Workbook

Sheet Startseite

Sheet Programmhinweise
A1: Hinweise zu OptiKA
A2: Haftungsausschluss
C3: Das Karlsruher Institut für Technologie übernimmt keine Verantwortung für die Richtigkeit der Ergebnisse. Es handelt sich um ein von Studenten entwickeltes Programm, was nach bestem Wissen und Gewissen erstellt wurde. Dennoch sind Fehler im Programmcode nicht auszuschließen.
A4: 1. Allgemeine Hinweise und Hilfen zum Programm
B6: 1.1 | C6: Das Hauptprogramm optika.xlsm und der Ordner Optika_files sind in einen Projektordner zu kopieren.
B8: 1.2 | C8: Das Hauptprogramm speichert die Ergebnisse im Ordner Optika_Projekte ab. Dort sind die Eingaben und Ergebnisse gespeichert.
B10: 1.3 | C10: Optika kann auch aus der Ergebnisdatei gestartet werden (Button "OptikaÖffnen"). Optika übernimmt dann automatisch alle spezifischen Vorwerte des Projekts (Hallenbreite, etc.).
A13: 2. Hinweise zur Pfettenbemessung
B15: 2.1 | C15: Die Berechnung gewährleistet ausreichende Tragsicherheit im elastischen Zustand für den Lastfall Eigengewicht, Schnee und Winddruck. Alle Nachweise sind Elastisch-Elastisch mit Ausnahme des Biegedrillknicknachweises (das Ersatzstabverfahren nach DIN 18800 ist El-PL).
B17: 2.2 | C17: Dachneigungen unter drei Grad werden nicht zugelassen. Dies soll u.a. eine Wasseransammlung ausschließen.
B19: 2.3 | C19: Die Ergebnisse des Optimierungsprozesses für die freien Profile werden auf sinnvolle Werte aufgerundet. Die Ausnutzungsgrade werden für diese etwas größeren Profile errechnet.
B21: 2.4 | C21: Die Kalkulation basiert auf gemittelten Preisen des Marktes. Diese sind als unverbindliche Richtwerte in OptiKA initialisiert (Tabellenblatt "Materialkosten" und "ProduktbezogeneKosten") und müssen vom Andwender den eigenen Erfahrungen angeglichen werden.
A24: 3. Hinweise zur Trapezprofilbemessung
B26: 3.1 | C26: Die Berechnung erfolgt nach DIN 18807 Teile 1 bis 3 - Stahltrapezprofile - Ausgabe Juni 1987 mit Anpassungsrichtlinie Stahlbau - Ausgabe Oktober 1998 und Ergänzung Dezember 2001.
B28: 3.2 | C28: Die Berechnung gewährleistet die Begehbarkeit der Dacheindeckung durch die Einhaltung von Grenzstützweiten (Mannlast ohne lastverteilende Beläge).
B30: 3.3 | C30: Die Berechnung gewährleistet ausreichende Tragsicherheit im elastischen Zustand für Eigengewicht, Schnee und Winddruck. Eine Berech- nung unter Ausnutzung plastischer Reststützmomente (Traglastzustand) ist nicht vorgesehen, da diese Berechnung beim Vorhandensein von Normalkräften nicht zulässig ist. Lediglich für sehr kleine Dachneigungen könnten diese Normalkräfte vernachlässigt werden.
B32: 3.4 | C32: Für die Endauflagerbreite b_a+ü wird die Pfettenbreite (aus der automatischen Bemessung) angenommen. Für Pfettenbreiten <10mm (z.B. Rohre) wird nach DIN 18807 10mm als Auflagerbreite angesetzt werden.
B34: 3.5 | C34: Für die Zwischenauflagerbreite b_B wird die Pfettenbreite (aus der automatischen Bemessung) angenommen. Für Pfettenbreiten <10mm (z.B. Rohre) wird nach DIN 18807 10mm als Auflagerbreite angesetzt werden.
B36: 3.6 | C36: Liegt die Auflagerbreite durch die Pfette am Endauflager bzw. Zwischenauflager unterhalb des b_a+ü bzw b_B Wertes (aber über 10 mm), so werden die Widerstandsgrößen linear reduziert.
B38: 3.7 | C38: Die Normalkräfte aus Dachneigung im Dachtrapezblech werden berücksichtigt. Der Normalkraftverlauf wird linear, alternierend am Zwischen- auflager und zu Null in Feldmitte angenommen.
B40: 3.8 | C40: Die Durchbiegung wird für die vom Anwender gewählte Grenze gewährleistet (Voreinstellung L/300).
B42: 3.9 | C42: Alle weiteren Regelungen in DIN 18807 Teile 1 und 3 sind einzuhalten (z.B. konstruktive Ausbildung, etc.)
B44: 3.10 | C44: Ist aufgrund hoher Belastung und/oder großer Pfettenabstände keine Trapezblecheindeckung mehr möglich aber gewünscht, so wird die Bemessung/Kalkulation der Pfetten nicht durchgeführt.
B46: 3.11 | C46: Die Kalkulation für die Trapezblecheindeckung basiert auf gemittelten Preisen. Diese sind eigentlich von der Bestellmenge und der Beschichtung abhängig. Weiterhin unterliegt der Preis starken Schwankungen des Marktes. Die hier aufgeführten Preise sind als Orientierungswert zu betrachten und müssen vom Andwender den eigenen Erfahrungen angeglichen werden. Die Werte sind auf den entsprechenden Seiten (Trapezprofile) in Spalte 'F' der Tabellen zu finden.
B48: 3.12 | C48: Für Satteldachreihen und Sheddächer wird das Trapezblech (wie auch die Pfette) mit erhöhter Schneelast (s_k * mu_2) aus Schneesackbildung bemessen.
A51: 3. Hinweise zur Sandwichelemtbemessung
B53: 3.1 | C53: Die Bemessung erfolgt nach DIN EN 14509:2007-02: Selbsttragende Sandwich-Elemente mit beidseitigen Metalldeckschichten - Anhang E: Bemessungsverfahren.
B55: 3.2 | C55: Schnittgrößen werden nach ECCS/CIB: European Recommendations for Sandwich Panels, Part I: Design; Publication 257, 2000 berechnet.
B57: 3.3 | C57: Alle Nachweise im Grenzzustand der Gebrauchstauglichkeit werden mit den seltenen Lastfallkombinationen nach EN14509, E.5.5 geführt. Eine Unterscheidung zwischen selten auftretender und häufig auftretender Lastfallkombinationen wird nicht gemacht.
B59: 3.4 | C59: Die Knitterspannungen am Zwischenauflager werden ab einer Schraubenanzahl von mehr als drei pro Meter Auflagerbreite mit dem Faktor K = (11-n)/8 (n = Anzahl der Schrauben pro Meter) abgemindert. Dies wird nur im Grenzzustand der Gebrauchstauglichkeit gemacht.
B61: 3.5 | C61: Eine Drehbettung der Doppel-T-Pfetten durch Sandwichelemente ist nicht möglich.

Sheet Materialkosten
A1: Kalkulation durch OptiKA
A2: Materialkosten
A4: Allgemeine Informationen Sämtliche Werte sind gemittelte und geschätzte Preise des Marktes.
A5: Materialgrundpreis für Stahlpfetten
A6: Materialgrundpreis, Material- und Mindermengenaufpreise für Stahl
A7: Gemittelter Stahlpreis S235 | C7: 600 | D7: [€/t]
A8: Aufpreis für Stahl S275 | C8: 10 | D8: [€/t]
A9: Aufpreis für Stahl S355 | C9: 50 | D9: [€/t]
A10: Aufpreis für Mindermengen | B10: in [1000 kg] | C10: Aufpreis
A11: Menge bis | B11: 5 | C11: 50 | D11: [€/t]
A12: Menge bis | B12: 25 | C12: 10 | D12: [€/t]
A13: Mengen über | B13: 25 | C13: 0 | D13: [€/t]
A19: Materialpreise für Holz
B20: sägerau | C20: gehobelt
A21: C24 | B21: 465 | C21: 515 | D21: [€/m3]
A22: C30 | B22: 510 | C22: 560 | D22: [€/m3]
A23: C35 | B23: 550 | C23: 600 | D23: [€/m3]
A24: GL24h | B24: 500 | C24: 550 | D24: [€/m3]
A28: Materialgrundpreis für Trapezbleche
A29: Materialgrundpreis
A30: Gemittelter Preis für das Blech | C30: 1100 | D30: [€/t]
A32: Materialgrundpreis für Sandwichelemente
A33: Materialgrundpreis
A34: Gemittelter Preis für die Deckbleche | C34: 1100 | D34: [€/t]
A35: Gemittelter Preis für den Kernwerkstoff | C35: 250 | D35: [€/m3]

Sheet ProduktbezogeneKosten
A1: Kalkulation durch OptiKA
A2: Produktbezogene Kosten
A4: Allgemeine Informationen Sämtliche Werte sind gemittelte und geschätzte Preise des Marktes.
B5: Verschnitt- faktor | C5: Herstell- kosten | D5: Beschichtungs-kosten | E5: Allgemein- kosten
B7: [-] | C7: [€/t] | D7: [€/t] | E7: [€/t] | F7: [€/t]
A8: Stahlquerschnitte
A9: IPE | B9: 1.1 | C9: 70 | D9: 20 | E9: 50 | F9: =B9*(C9+E9)+D9 -> 152
A10: HEA | B10: 1.1 | C10: 100 | D10: 20 | E10: 60 | F10: =B10*(C10+E10)+D10 -> 196
A11: HEB | B11: 1.1 | C11: 110 | D11: 20 | E11: 60 | F11: =B11*(C11+E11)+D11 -> 207
A12: Hohlprofil Kaltgewalzt | B12: 1.1 | C12: 180 | D12: 20 | E12: 90 | F12: =B12*(C12+E12)+D12 -> 317
A14: Hohlprofil Warmgewalzt | B14: 1.1 | C14: 220 | D14: 20 | E14: 120 | F14: =B14*(C14+E14)+D14 -> 394
A16: Holzquerschnitte
A17: Holzquerschnitt Durchlaufträger | B17: 1.1 | C17: 50 | D17: 20 | E17: 40 | F17: =B17*(C17+E17)+D17 -> 119
A19: Holzquerschnitt Koppelpfette | B19: 1.1 | C19: 50 | D19: 20 | E19: 50 | F19: =B19*(C19+E19)+D19 -> 130
B23: Verschnitt- faktor | C23: Herstell- kosten | D23: Beschichtungs-kosten | E23: Allgemein- kosten
B25: [-] | C25: [€/t] | D25: [€/t] | E25: [€/t] | F25: [€/t]
A26: Trapezblech-Hersteller
A27: allgemein | B27: 1 | C27: 40 | D27: 60 | E27: 10 | F27: =B27*(C27+E27+D27) -> 110
A28: Sandwichelement-Hersteller
A29: allgemein | B29: 1 | C29: 150 | D29: 80 | E29: 70 | F29: =B29*(C29+E29+D29) -> 300

Sheet Initialisierung
A1: Initialisierung von OptiKA
A2: Initialisierung der Eingabemaske
B4: Grundeinstellungen:
B7: Projektnummer: | C7: 1
B8: ProjektName: | C8: Beispiel
B11: Geometrie der Halle:
B14: Dachart: | C14: Pultdach
B15: Variabler Pfettenabstand | C15: Nein
B16: Hallenlaenge: | C16: 25
B17: Hallenbreite: | C17: 20
B18: Pfettenabstand e: | C18: 4
B19: Hallenfelder: | C19: 5
B20: Firsthöhe: | C20: 7
B21: Dachneigung: | C21: 10
B22: AnzahZugstangen: | C22: 1
B24: GelHoehe: | C24: 207
B25: SchneeZone: | C25: II
B26: Windzone: | C26: WLZ1
B27: Geländekategorie: | C27: Binnenland
B30: Dacheindeckung:
B33: Autom. Dachhautbemessung: | C33: Ja
B34: Dach Aufbau EG: | C34: 0.15
B35: Art der Dacheindeckung: | C35: Trapezprofil
B36: Auflagerbreite Binder: | C36: 300
B38: HerstellerTrapez: | C38: MÜNCKER Positivlage (+)
B39: Trapezprofil autom. bemessen: | C39: Ja
B40: Profilbezeichnung: | C40: M 50/250 t=0,75
B41: zul. Durchbiegung: | C41: 300
B42: Lieferlaenge: | C42: 23
B44: HerstellerSandwich: | C44: Metecno G4
B45: Stat. System: | C45: Einfeldträger
B46: Sonneneinstrahlung: | C46: direkt
B47: Farbgruppe: | C47: III
B48: Wintertiefsttemperatur: | C48: -20
B49: Innentemp. Sommer: | C49: 25
B50: Innentemp. Winter: | C50: 20
B51: Befestigungsmittel: | C51: 2
B52: zul. Durchbiegung (kurzzeit): | C52: 200
B53: zul. Durchbiegung (langzeit): | C53: 100
B54: SE autom. bemessen: | C54: Ja
B55: Profilbezeichnung: | C55: TL75 0,50/0,40
B58: Pfettenauswahl:
B60: Allgemeines
B61: Stahlmaterial: | C61: S235
B62: Holzmaterial: | C62: C24
B63: DrehBettung: | C63: Nein
B64: IPE-Pfette
B65: Auswahl: | C65: true
B66: biegesteif gestoßen | C66: Ja
B67: stat. System: | C67: Fünffeldträger
B68: HEA-Pfette
B69: Auswahl: | C69: false
B70: biegesteif gestoßen | C70: Ja
B71: stat. System: | C71: Fünffeldträger
B72: HEB-Pfette
B73: Auswahl: | C73: false
B74: biegesteif gestoßen | C74: Ja
B75: stat. System: | C75: Fünffeldträger
B76: Hohlprofil kaltgeformt
B77: Auswahl: | C77: false
B78: biegesteif gestoßen | C78: Ja
B79: stat. System: | C79: Fünffeldträger
B80: Hohlprofil warmgeformt
B81: Auswahl: | C81: false
B82: biegesteif gestoßen | C82: Ja
B83: stat. System: | C83: Fünffeldträger
B84: Rechteckquerschnitt
B85: Auswahl: | C85: false
B86: Stat. System: | C86: Einfeldträger
B87: Rechteckoberfläche: | C87: sägerau
B88: Koppelpfette mit Rechteckquerschnitt
B89: Auswahl: | C89: false
B90: Stat. System: | C90: Fünffeldträger
B91: Koppeloberfläche: | C91: sägerau
B92: Drehbettung (externes Fenster)
B93: Trapez cvak_quer: | C93: 3.1
B94: Trapez System: | C94: 2
B95: Trapez Ia: | C95: 91
B98: Durchbiegung:
B100: Stahlpfetten:
B101: Stahl fzul_z: | C101: 300
B102: Stahl fzul_y: | C102: 300
B103: Holzpfetten:
B104: Holz fzul_z_SE_AD: | C104: 300
B105: Holz fzul_z_SE_ED: | C105: 200
B106: Holz fzul_y_SE_AD: | C106: 300
B107: Holz fzul_y_SE_ED: | C107: 200
B108: Holz fzul_z_QS_ED: | C108: 200
B109: Holz fzul_y_QS_ED: | C109: 200
B112: Ausgabe:
B115: Ergebnistabelle: | C115: true
B116: Ergebnisgrafik: | C116: true
B117: Pfettenstatik: | C117: true
B118: Trapezblechstatik: | C118: true
B119: Sandwichelementstatik: | C119: true
B120: Bemessungsgrundlagen: | C120: true
B121: Optimierungsgrafik: | C121: true
B124: Teilsicherheitsbeiwerte:
B127: Stahlgamma_m: | C127: 1.1
B128: Holzgamma_m: | C128: 1.3
B129: Nutzungsklasse: | C129: 2
B130: Lasteinwirkungsdauer: | C130: kurz
B131: Gamma_g: | C131: 1.35
B132: Gamma_p: | C132: 1.5

Sheet DIN1052
A1: Dachbemessung durch OptiKA
A2: DIN 1052
B4: Approximation der Kurve für k_crit nach EC5
B5: Aktualisierung am | E5: 28.02.2011
B6: Approximation: | F6: mit | G6: a= | H6: b= | I6: c= | J6: Die Parameter a, b und c können modifiziert werden. Das Programm übernimmt die neuen Parameter automatisch.
G7: 0.65 | H7: -0.5 | I7: 0.06
C12: lambda_rel | D12: k_crit_norm | E12: k_crit_approx
C13: 0.01 | D13: 1 | E13: =1/(2.7182818^($G$7*C13^2+$H$7*C13+$I$7)) -> 0.946423629
C14: =C13+0.01 -> 0.02 | D14: 1 | E14: 0.9509821375
C15: 0.03 | D15: 1 | E15: 0.9554383873
C16: 0.04 | D16: 1 | E16: 0.959790738
C17: 0.05 | D17: 1 | E17: 0.964037582
C18: 0.06 | D18: 1 | E18: 0.9681773461
C19: 0.07 | D19: 1 | E19: 0.9722084919
C20: 0.08 | D20: 1 | E20: 0.9761295168
C21: 0.09 | D21: 1 | E21: 0.9799389553
C22: 0.1 | D22: 1 | E22: 0.9836353796
C23: 0.11 | D23: 1 | E23: 0.9872174005
C24: 0.12 | D24: 1 | E24: 0.9906836685
C25: 0.13 | D25: 1 | E25: 0.9940328745
C26: 0.14 | D26: 1 | E26: 0.9972637504
C27: 0.15 | D27: 1 | E27: 1.00037507
C28: 0.16 | D28: 1 | E28: 1.003365651
C29: 0.17 | D29: 1 | E29: 1.006234353
C30: 0.18 | D30: 1 | E30: 1.008980081
C31: 0.19 | D31: 1 | E31: 1.011601785
C32: 0.2 | D32: 1 | E32: 1.014098459
C33: 0.21 | D33: 1 | E33: 1.016469145
C34: 0.22 | D34: 1 | E34: 1.018712933
C35: 0.23 | D35: 1 | E35: 1.020828957
C36: 0.24 | D36: 1 | E36: 1.022816401
C37: 0.25 | D37: 1 | E37: 1.024674499
C38: 0.26 | D38: 1 | E38: 1.02640253
C39: 0.27 | D39: 1 | E39: 1.027999828
C40: 0.28 | D40: 1 | E40: 1.029465772
C41: 0.29 | D41: 1 | E41: 1.030799794
C42: 0.3 | D42: 1 | E42: 1.032001375
C43: 0.31 | D43: 1 | E43: 1.03307005
C44: 0.32 | D44: 1 | E44: 1.034005401
C45: 0.33 | D45: 1 | E45: 1.034807066
C46: 0.34 | D46: 1 | E46: 1.035474732
C47: 0.35 | D47: 1 | E47: 1.036008139
C48: 0.36 | D48: 1 | E48: 1.036407079
C49: 0.37 | D49: 1 | E49: 1.036671396
C50: 0.38 | D50: 1 | E50: 1.036800988
C51: 0.39 | D51: 1 | E51: 1.036795804
C52: 0.4 | D52: 1 | E52: 1.036655846
C53: 0.41 | D53: 1 | E53: 1.036381169
C54: 0.42 | D54: 1 | E54: 1.035971879
C55: 0.43 | D55: 1 | E55: 1.035428136
C56: 0.44 | D56: 1 | E56: 1.034750153
C57: 0.45 | D57: 1 | E57: 1.033938193
C58: 0.46 | D58: 1 | E58: 1.032992572
C59: 0.47 | D59: 1 | E59: 1.031913659
C60: 0.48 | D60: 1 | E60: 1.030701872
C61: 0.49 | D61: 1 | E61: 1.029357684
C62: 0.5 | D62: 1 | E62: 1.027881615
C63: 0.51 | D63: 1 | E63: 1.026274238
C64: 0.52 | D64: 1 | E64: 1.024536177
C65: 0.53 | D65: 1 | E65: 1.022668103
C66: 0.54 | D66: 1 | E66: 1.02067074
C67: 0.55 | D67: 1 | E67: 1.018544859
C68: 0.56 | D68: 1 | E68: 1.016291279
C69: 0.57 | D69: 1 | E69: 1.013910868
C70: 0.58 | D70: 1 | E70: 1.011404541
C71: 0.59 | D71: 1 | E71: 1.008773261
C72: 0.6 | D72: 1 | E72: 1.006018036
C73: 0.61 | D73: 1 | E73: 1.003139919
C74: 0.62 | D74: 1 | E74: 1.00014001
C75: 0.63 | D75: 1 | E75: 0.9970194507
C76: 0.64 | D76: 1 | E76: 0.9937794284
C77: 0.65 | D77: 1 | E77: =1/(2.7182818^($G$7*C77^2+$H$7*C77+$I$7)) -> 0.9904211722
C78: =C77+0.01 -> 0.66 | D78: 1 | E78: 0.9869459531
C79: 0.67 | D79: 1 | E79: 0.9833550834
C80: 0.68 | D80: 1 | E80: 0.9796499159
C81: 0.69 | D81: 1 | E81: 0.9758318427
C82: 0.7 | D82: 1 | E82: 0.9719022944
C83: 0.71 | D83: 1 | E83: 0.9678627396
C84: 0.72 | D84: 1 | E84: 0.9637146835
C85: 0.73 | D85: 1 | E85: 0.9594596673
C86: 0.74 | D86: 1 | E86: 0.9550992669
C87: 0.75 | D87: 1 | E87: 0.9506350924
C88: 0.76 | D88: =1.56 - 0.75*C88 -> 0.99 | E88: 0.9460687866
C89: 0.77 | D89: 0.9825 | E89: 0.9414020246
C90: 0.78 | D90: 0.975 | E90: 0.9366365121
C91: 0.79 | D91: 0.9675 | E91: 0.9317739848
C92: 0.8 | D92: 0.96 | E92: 0.9268162073
C93: 0.81 | D93: 0.9525 | E93: 0.9217649718
C94: 0.82 | D94: 0.945 | E94: 0.9166220975
C95: 0.83 | D95: 0.9375 | E95: 0.9113894288
C96: 0.84 | D96: 0.93 | E96: 0.906068835
C97: 0.85 | D97: 0.9225 | E97: 0.9006622086
C98: 0.86 | D98: 0.915 | E98: 0.8951714643
C99: 0.87 | D99: 0.9075 | E99: 0.8895985381
C100: 0.88 | D100: 0.9 | E100: 0.8839453861
C101: 0.89 | D101: 0.8925 | E101: 0.878213983
C102: 0.9 | D102: 0.885 | E102: 0.8724063215
C103: 0.91 | D103: 0.8775 | E103: 0.8665244108
C104: 0.92 | D104: 0.87 | E104: 0.8605702755
C105: 0.93 | D105: 0.8625 | E105: 0.8545459546
C106: 0.94 | D106: 0.855 | E106: 0.8484535001
C107: 0.95 | D107: 0.8475 | E107: 0.8422949761
C108: 0.96 | D108: 0.84 | E108: 0.8360724574
C109: 0.97 | D109: 0.8325 | E109: 0.8297880286
C110: 0.98 | D110: 0.825 | E110: 0.8234437827
C111: 0.99 | D111: 0.8175 | E111: 0.8170418202
C112: 1 | D112: 0.81 | E112: 0.8105842478
C113: 1.01 | D113: 0.8025 | E113: 0.804073177
C114: 1.02 | D114: 0.795 | E114: 0.7975107238
C115: 1.03 | D115: 0.7875 | E115: 0.7908990066
C116: 1.04 | D116: 0.78 | E116: 0.7842401455
C117: 1.05 | D117: 0.7725 | E117: 0.7775362616
C118: 1.06 | D118: 0.765 | E118: 0.7707894749
C119: 1.07 | D119: 0.7575 | E119: 0.7640019044
C120: 1.08 | D120: 0.75 | E120: 0.7571756659
C121: 1.09 | D121: 0.7425 | E121: 0.7503128718
C122: 1.1 | D122: 0.735 | E122: 0.7434156296
C123: 1.11 | D123: 0.7275 | E123: 0.7364860407
C124: 1.12 | D124: 0.72 | E124: 0.7295262
C125: 1.13 | D125: 0.7125 | E125: 0.7225381941
C126: 1.14 | D126: 0.705 | E126: 0.7155241009
C127: 1.15 | D127: 0.6975 | E127: 0.7084859885
C128: 1.16 | D128: 0.69 | E128: 0.7014259137
C129: 1.17 | D129: 0.6825 | E129: 0.6943459219
C130: 1.18 | D130: 0.675 | E130: 0.6872480454
C131: 1.19 | D131: 0.6675 | E131: 0.680134303
C132: 1.2 | D132: 0.66 | E132: 0.6730066987
C133: 1.21 | D133: 0.6525 | E133: 0.6658672213
C134: 1.22 | D134: 0.645 | E134: 0.6587178429
C135: 1.23 | D135: 0.6375 | E135: 0.6515605186
C136: 1.24 | D136: 0.63 | E136: 0.6443971854
C137: 1.25 | D137: 0.6225 | E137: 0.6372297615
C138: 1.26 | D138: 0.615 | E138: 0.6300601455
C139: 1.27 | D139: 0.6075 | E139: 0.6228902154
C140: 1.28 | D140: 0.6 | E140: 0.6157218283
C141: 1.29 | D141: 0.5925 | E141: =1/(2.7182818^($G$7*C141^2+$H$7*C141+$I$7)) -> 0.6085568194
C142: =C141+0.01 -> 1.3 | D142: 0.585 | E142: 0.6013970013
C143: 1.31 | D143: 0.5775 | E143: 0.5942441634
C144: 1.32 | D144: 0.57 | E144: 0.5871000713
C145: 1.33 | D145: 0.5625 | E145: 0.579966466
C146: 1.34 | D146: 0.555 | E146: 0.5728450635
C147: 1.35 | D147: 0.5475 | E147: 0.5657375539
C148: 1.36 | D148: 0.54 | E148: 0.5586456013
C149: 1.37 | D149: 0.5325 | E149: 0.5515708428
C150: 1.38 | D150: 0.525 | E150: 0.5445148885
C151: 1.39 | D151: 0.5175 | E151: 0.5374793203
C152: 1.4 | D152: =1.56 - 0.75*C152 -> 0.51 | E152: 0.5304656924
C153: 1.41 | D153: =1/C153^2 -> 0.5029928072 | E153: 0.5234755298
C154: 1.42 | D154: 0.4959333466 | E154: 0.5165103287
C155: 1.43 | D155: 0.489021468 | E155: 0.5095715558
C156: 1.44 | D156: 0.4822530864 | E156: 0.5026606479
C157: 1.45 | D157: 0.4756242568 | E157: 0.4957790116
C158: 1.46 | D158: 0.4691311691 | E158: 0.488928023
C159: 1.47 | D159: 0.4627701421 | E159: 0.4821090275
C160: 1.48 | D160: 0.4565376187 | E160: 0.4753233393
C161: 1.49 | D161: 0.4504301608 | E161: 0.4685722414
C162: 1.5 | D162: 0.4444444444 | E162: 0.4618569851
C163: 1.51 | D163: 0.4385772554 | E163: 0.4551787902
C164: 1.52 | D164: 0.4328254848 | E164: 0.4485388444
C165: 1.53 | D165: 0.427186125 | E165: 0.4419383035
C166: 1.54 | D166: 0.4216562658 | E166: 0.435378291
C167: 1.55 | D167: 0.4162330905 | E167: 0.4288598981
C168: 1.56 | D168: 0.4109138725 | E168: 0.4223841838
C169: 1.57 | D169: 0.4056959714 | E169: 0.4159521744
C170: 1.58 | D170: 0.4005768306 | E170: 0.4095648638
C171: 1.59 | D171: 0.3955539733 | E171: 0.4032232136
C172: 1.6 | D172: 0.390625 | E172: 0.3969281527
C173: 1.61 | D173: 0.3857875854 | E173: 0.3906805775
C174: 1.62 | D174: 0.3810394757 | E174: 0.3844813522
C175: 1.63 | D175: 0.3763784862 | E175: 0.3783313085
C176: 1.64 | D176: 0.3718024985 | E176: 0.3722312457
C177: 1.65 | D177: 0.3673094582 | E177: 0.3661819311
C178: 1.66 | D178: 0.3628973726 | E178: 0.3601841
C179: 1.67 | D179: 0.3585643085 | E179: 0.3542384556
C180: 1.68 | D180: 0.35430839 | E180: 0.3483456695
C181: 1.69 | D181: 0.3501277966 | E181: 0.3425063817
C182: 1.7 | D182: 0.3460207612 | E182: 0.3367212007
C183: 1.71 | D183: 0.3419855682 | E183: 0.3309907041
C184: 1.72 | D184: 0.3380205516 | E184: 0.3253154382
C185: 1.73 | D185: 0.3341240937 | E185: 0.319695919
C186: 1.74 | D186: 0.3302946228 | E186: 0.3141326318
C187: 1.75 | D187: 0.3265306122 | E187: 0.3086260319
C188: 1.76 | D188: 0.3228305785 | E188: 0.3031765447
C189: 1.77 | D189: 0.3191930799 | E189: 0.2977845658
C190: 1.78 | D190: 0.3156167151 | E190: 0.2924504621
C191: 1.79 | D191: 0.3121001217 | E191: 0.287174571
C192: 1.8 | D192: 0.3086419753 | E192: 0.2819572017
C193: 1.81 | D193: 0.3052409878 | E193: 0.276798635
C194: 1.82 | D194: 0.3018959063 | E194: 0.2716991241
C195: 1.83 | D195: 0.2986055123 | E195: 0.2666588945
C196: 1.84 | D196: 0.29536862 | E196: 0.2616781446
C197: 1.85 | D197: 0.292184076 | E197: 0.2567570464
C198: 1.86 | D198: 0.2890507573 | E198: 0.2518957455
C199: 1.87 | D199: 0.2859675713 | E199: 0.2470943614
C200: 1.88 | D200: 0.2829334541 | E200: 0.2423529886
C201: 1.89 | D201: 0.2799473699 | E201: 0.2376716963
C202: 1.9 | D202: 0.2770083102 | E202: 0.2330505294
C203: 1.91 | D203: 0.2741152929 | E203: 0.2284895085
C204: 1.92 | D204: 0.2712673611 | E204: 0.2239886307
C205: 1.93 | D205: 0.2684635829 | E205: =1/(2.7182818^($G$7*C205^2+$H$7*C205+$I$7)) -> 0.2195478699
... 207 more rows

Sheet DIN18800-BDK
A1: Dachbemessung durch OptiKA
A2: DIN 18800-BDK
B4: Drehbettung von Doppel-T-Profilen durch Stahltrapezprofile aus Dacheindeckung
B5: Aktualisierung am: | D5: 2011-02-28
B7: Im Biegedrillknicknachweis für Doppel-T-Profile erhöht sich das ideale Biegedrillknickmoment über den Drehradius des Querschnitts nach folgender Formel (Petersen):
B16: ist die wirksame vorhandene Drehbettung und berechnet sich nach DIN18800, Teil 2, Elem. (309) zu:
E19: mit | H19: und
B22: Die Berechnung der einzelnen Federsteiffigkeiten erfolgt automatisch nach Angabe folgender Werte:
C24: ... Faktor zur Erfassung des statischen Systems der Trapezblecheindeckung
C26: ... Trägheitsmoment des Trapezblechs
C28: ... Elastizitätsmodul des Trapezbleches
C30: ... Charakteristischer Wert der Anschlußsteifigkeit von
C31: Trapezprofilen aus Stahl, bezogen auf eine Gurtbreite von 100mm
C32: (kann DIN18800, Teil 2, Tabelle 7 entnommen werden)
C34: (die wirksame vorhandene Drehbettung) ist die Gesamtfedersteifigkeit dreier hintereinandergeschalteter Federn:
E40: theoretische Drehbettung aus der Biegesteifigkeit des abstützenden Bauteils (also des Trapezbleches)
E47: Steifigkeit des Anschlusses der Trapezbleche auf dem Obergurt des Trägers
E53: Profilsteifigkeit des gestützten Trägers
B60: Es ist zu beachten, dass die weicheste Einzelfedersteifigkeit die Gesamtfedersteifigkeit maßgebend beeinflusst. Im vorliegenden Falle hat meist die Steifigkeit des Anschlusses der Trapezbleche auf dem Obergurt des Trägers einen maßgebenden Einfluss.

Sheet IPE
A1: Datenbasis der IPE-Reihe
C2: IPE | D2: Gewicht [kg/m] | E2: Gurt- breite b [mm] | F2: Profil- höhe h [mm] | G2: Wy [cm³] | H2: Wz [cm³] | I2: Iy [cm4] | J2: Iz [cm4] | K2: IT [cm4] | L2: IW [cm6] | M2: Wpl,y [cm³] | N2: Wpl,z [cm³] | O2: Steg- dicke t [mm] | P2: Material- kosten [€/m] | Q2: Produkt- bezogene Kosten [€/m] | R2: Gesamt- kosten [€/t]
C4: 80 | D4: 6 | E4: 46 | F4: 80 | G4: 20 | H4: 3.69 | I4: 80.1 | J4: 8.49 | K4: 0.7 | L4: 118 | M4: 23.2 | N4: 5.82 | O4: 3.8 | P4: =Materialkosten!$C$7/1000*D4 -> 3.6 | Q4: =ProduktbezogeneKosten!$F$9/1000*D4 -> 0.912 | R4: =(P4+Q4)/D4*1000 -> 752
C5: 100 | D5: 8.1 | E5: 55 | F5: 100 | G5: 34.2 | H5: 5.79 | I5: 171 | J5: 15.9 | K5: 1.21 | L5: 351 | M5: 39.4 | N5: 9.15 | O5: 4.1 | P5: =Materialkosten!$C$7/1000*D5 -> 4.86 | Q5: =ProduktbezogeneKosten!$F$9/1000*D5 -> 1.2312 | R5: 752
C6: 120 | D6: 10.4 | E6: 64 | F6: 120 | G6: 53 | H6: 8.65 | I6: 318 | J6: 27.7 | K6: 1.74 | L6: 890 | M6: 60.7 | N6: 13.6 | O6: 4.4 | P6: =Materialkosten!$C$7/1000*D6 -> 6.24 | Q6: =ProduktbezogeneKosten!$F$9/1000*D6 -> 1.5808 | R6: 752
C7: 140 | D7: 12.9 | E7: 73 | F7: 140 | G7: 77.3 | H7: 12.3 | I7: 541 | J7: 44.9 | K7: 2.45 | L7: 1980 | M7: 88.3 | N7: 19.2 | O7: 4.7 | P7: =Materialkosten!$C$7/1000*D7 -> 7.74 | Q7: =ProduktbezogeneKosten!$F$9/1000*D7 -> 1.9608 | R7: 752
C8: 160 | D8: 15.8 | E8: 82 | F8: 160 | G8: 109 | H8: 16.7 | I8: 869 | J8: 68.3 | K8: 3.62 | L8: 3960 | M8: 124 | N8: 26.1 | O8: 5 | P8: =Materialkosten!$C$7/1000*D8 -> 9.48 | Q8: =ProduktbezogeneKosten!$F$9/1000*D8 -> 2.4016 | R8: 752
C9: 180 | D9: 18.8 | E9: 91 | F9: 180 | G9: 146 | H9: 22.2 | I9: 1320 | J9: 101 | K9: 4.8 | L9: 7430 | M9: 166 | N9: 34.6 | O9: 5.3 | P9: =Materialkosten!$C$7/1000*D9 -> 11.28 | Q9: =ProduktbezogeneKosten!$F$9/1000*D9 -> 2.8576 | R9: 752
C10: 200 | D10: 22.4 | E10: 100 | F10: 200 | G10: 194 | H10: 28.5 | I10: 1940 | J10: 142 | K10: 7.02 | L10: 12990 | M10: 221 | N10: 44.6 | O10: 5.6 | P10: =Materialkosten!$C$7/1000*D10 -> 13.44 | Q10: =ProduktbezogeneKosten!$F$9/1000*D10 -> 3.4048 | R10: 752
C11: 220 | D11: 26.2 | E11: 110 | F11: 220 | G11: 252 | H11: 37.3 | I11: 2770 | J11: 205 | K11: 9.1 | L11: 22670 | M11: 285 | N11: 58.1 | O11: 5.9 | P11: =Materialkosten!$C$7/1000*D11 -> 15.72 | Q11: =ProduktbezogeneKosten!$F$9/1000*D11 -> 3.9824 | R11: 752
C12: 240 | D12: 30.7 | E12: 120 | F12: 240 | G12: 324 | H12: 47.3 | I12: 3890 | J12: 284 | K12: 12.9 | L12: 37390 | M12: 367 | N12: 73.9 | O12: 6.2 | P12: =Materialkosten!$C$7/1000*D12 -> 18.42 | Q12: =ProduktbezogeneKosten!$F$9/1000*D12 -> 4.6664 | R12: 752
C13: 270 | D13: 36.1 | E13: 135 | F13: 270 | G13: 429 | H13: 62.2 | I13: 5790 | J13: 420 | K13: 16 | L13: 70580 | M13: 484 | N13: 96.9 | O13: 6.6 | P13: =Materialkosten!$C$7/1000*D13 -> 21.66 | Q13: =ProduktbezogeneKosten!$F$9/1000*D13 -> 5.4872 | R13: 752
C14: 300 | D14: 42.2 | E14: 150 | F14: 300 | G14: 557 | H14: 80.5 | I14: 8360 | J14: 604 | K14: 20.2 | L14: 125900 | M14: 628 | N14: 125 | O14: 7.1 | P14: =Materialkosten!$C$7/1000*D14 -> 25.32 | Q14: =ProduktbezogeneKosten!$F$9/1000*D14 -> 6.4144 | R14: 752
C15: 330 | D15: 49.1 | E15: 160 | F15: 330 | G15: 713 | H15: 98.5 | I15: 11770 | J15: 788 | K15: 28.3 | L15: 199100 | M15: 804 | N15: 154 | O15: 7.5 | P15: =Materialkosten!$C$7/1000*D15 -> 29.46 | Q15: =ProduktbezogeneKosten!$F$9/1000*D15 -> 7.4632 | R15: 752
C16: 360 | D16: 57.1 | E16: 170 | F16: 360 | G16: 904 | H16: 123 | I16: 16270 | J16: 1040 | K16: 37.5 | L16: 313600 | M16: 1019 | N16: 191 | O16: 8 | P16: =Materialkosten!$C$7/1000*D16 -> 34.26 | Q16: =ProduktbezogeneKosten!$F$9/1000*D16 -> 8.6792 | R16: 752
C17: 400 | D17: 66.3 | E17: 180 | F17: 400 | G17: 1160 | H17: 146 | I17: 23130 | J17: 1320 | K17: 51.4 | L17: 490000 | M17: 1307 | N17: 229 | O17: 8.6 | P17: =Materialkosten!$C$7/1000*D17 -> 39.78 | Q17: =ProduktbezogeneKosten!$F$9/1000*D17 -> 10.0776 | R17: 752
C18: 450 | D18: 77.6 | E18: 190 | F18: 450 | G18: 1500 | H18: 176 | I18: 33740 | J18: 1680 | K18: 67.1 | L18: 791000 | M18: 1702 | N18: 276 | O18: 9.4 | P18: =Materialkosten!$C$7/1000*D18 -> 46.56 | Q18: =ProduktbezogeneKosten!$F$9/1000*D18 -> 11.7952 | R18: 752
C19: 500 | D19: 90.7 | E19: 200 | F19: 500 | G19: 1930 | H19: 214 | I19: 48200 | J19: 2140 | K19: 89.7 | L19: 1249000 | M19: 2194 | N19: 336 | O19: 10.2 | P19: =Materialkosten!$C$7/1000*D19 -> 54.42 | Q19: =ProduktbezogeneKosten!$F$9/1000*D19 -> 13.7864 | R19: 752
C20: 550 | D20: 106 | E20: 210 | F20: 550 | G20: 2440 | H20: 254 | I20: 67120 | J20: 2670 | K20: 124 | L20: 1884000 | M20: 2787 | N20: 400 | O20: 11.1 | P20: =Materialkosten!$C$7/1000*D20 -> 63.6 | Q20: =ProduktbezogeneKosten!$F$9/1000*D20 -> 16.112 | R20: 752
C21: 600 | D21: 122 | E21: 220 | F21: 600 | G21: 3070 | H21: 308 | I21: 92080 | J21: 3390 | K21: 166 | L21: 2846000 | M21: 3512 | N21: 486 | O21: 12 | P21: =Materialkosten!$C$7/1000*D21 -> 73.2 | Q21: =ProduktbezogeneKosten!$F$9/1000*D21 -> 18.544 | R21: 752

Sheet HEA
A1: Datenbasis der HEA-Reihe
C2: HEA | D2: Gewicht [kg/m] | E2: Gurt- breite b [mm] | F2: Profil- höhe h [mm] | G2: Wy [cm³] | H2: Wz [cm³] | I2: Iy [cm4] | J2: Iz [cm4] | K2: IT [cm4] | L2: IW [cm6] | M2: Wpl,y [cm³] | N2: Wpl,z [cm³] | O2: Steg- dicke t [mm] | P2: Material- kosten [€/m] | Q2: Produkt- bezogene Kosten [€/m] | R2: Gesamt- kosten [€/t]
C4: 100 | D4: 16.7 | E4: 100 | F4: 96 | G4: 72.8 | H4: 26.8 | I4: 349 | J4: 134 | K4: 5.26 | L4: 2581 | M4: 83 | N4: 41.1 | O4: 5 | P4: =Materialkosten!$C$7/1000*D4 -> 10.02 | Q4: =ProduktbezogeneKosten!$F$10/1000*D4 -> 3.2732 | R4: =(P4+Q4)/D4*1000 -> 796
C5: 120 | D5: 19.9 | E5: 120 | F5: 114 | G5: 106 | H5: 38.5 | I5: 606 | J5: 231 | K5: 6.02 | L5: 6472 | M5: 119 | N5: 58.9 | O5: 5 | P5: =Materialkosten!$C$7/1000*D5 -> 11.94 | Q5: =ProduktbezogeneKosten!$F$10/1000*D5 -> 3.9004 | R5: 796
C6: 140 | D6: 24.7 | E6: 140 | F6: 133 | G6: 155 | H6: 55.6 | I6: 1030 | J6: 389 | K6: 8.16 | L6: 15060 | M6: 173 | N6: 84.8 | O6: 5.5 | P6: =Materialkosten!$C$7/1000*D6 -> 14.82 | Q6: =ProduktbezogeneKosten!$F$10/1000*D6 -> 4.8412 | R6: 796
C7: 160 | D7: 30.4 | E7: 160 | F7: 152 | G7: 220 | H7: 76.9 | I7: 1670 | J7: 616 | K7: 12.3 | L7: 31410 | M7: 245 | N7: 118 | O7: 6 | P7: =Materialkosten!$C$7/1000*D7 -> 18.24 | Q7: =ProduktbezogeneKosten!$F$10/1000*D7 -> 5.9584 | R7: 796
C8: 180 | D8: 35.5 | E8: 180 | F8: 171 | G8: 294 | H8: 103 | I8: 2510 | J8: 925 | K8: 14.9 | L8: 60210 | M8: 325 | N8: 157 | O8: 6 | P8: =Materialkosten!$C$7/1000*D8 -> 21.3 | Q8: =ProduktbezogeneKosten!$F$10/1000*D8 -> 6.958 | R8: 796
C9: 200 | D9: 42.3 | E9: 200 | F9: 190 | G9: 389 | H9: 134 | I9: 3690 | J9: 1340 | K9: 21.1 | L9: 108000 | M9: 429 | N9: 204 | O9: 6.5 | P9: =Materialkosten!$C$7/1000*D9 -> 25.38 | Q9: =ProduktbezogeneKosten!$F$10/1000*D9 -> 8.2908 | R9: 796
C10: 220 | D10: 50.5 | E10: 220 | F10: 210 | G10: 515 | H10: 178 | I10: 5410 | J10: 1950 | K10: 28.6 | L10: 193300 | M10: 568 | N10: 271 | O10: 7 | P10: =Materialkosten!$C$7/1000*D10 -> 30.3 | Q10: =ProduktbezogeneKosten!$F$10/1000*D10 -> 9.898 | R10: 796
C11: 240 | D11: 60.3 | E11: 240 | F11: 230 | G11: 675 | H11: 231 | I11: 7760 | J11: 2770 | K11: 41.7 | L11: 328500 | M11: 745 | N11: 352 | O11: 7.5 | P11: =Materialkosten!$C$7/1000*D11 -> 36.18 | Q11: =ProduktbezogeneKosten!$F$10/1000*D11 -> 11.8188 | R11: 796
C12: 260 | D12: 68.2 | E12: 260 | F12: 250 | G12: 836 | H12: 282 | I12: 10450 | J12: 3670 | K12: 52.6 | L12: 516400 | M12: 920 | N12: 430 | O12: 7.5 | P12: =Materialkosten!$C$7/1000*D12 -> 40.92 | Q12: =ProduktbezogeneKosten!$F$10/1000*D12 -> 13.3672 | R12: 796
C13: 280 | D13: 76.4 | E13: 280 | F13: 270 | G13: 1010 | H13: 340 | I13: 13670 | J13: 4760 | K13: 62.4 | L13: 785400 | M13: 1112 | N13: 518 | O13: 8 | P13: =Materialkosten!$C$7/1000*D13 -> 45.84 | Q13: =ProduktbezogeneKosten!$F$10/1000*D13 -> 14.9744 | R13: 796
C14: 300 | D14: 88.3 | E14: 300 | F14: 290 | G14: 1260 | H14: 421 | I14: 18260 | J14: 6310 | K14: 85.6 | L14: 1200000 | M14: 1383 | N14: 641 | O14: 8.5 | P14: =Materialkosten!$C$7/1000*D14 -> 52.98 | Q14: =ProduktbezogeneKosten!$F$10/1000*D14 -> 17.3068 | R14: 796
C15: 320 | D15: 97.6 | E15: 300 | F15: 310 | G15: 1480 | H15: 466 | I15: 22930 | J15: 6990 | K15: 108 | L15: 1512000 | M15: 1628 | N15: 710 | O15: 9 | P15: =Materialkosten!$C$7/1000*D15 -> 58.56 | Q15: =ProduktbezogeneKosten!$F$10/1000*D15 -> 19.1296 | R15: 796
C16: 340 | D16: 105 | E16: 300 | F16: 330 | G16: 1680 | H16: 496 | I16: 27690 | J16: 7440 | K16: 128 | L16: 1824000 | M16: 1850 | N16: 756 | O16: 9.5 | P16: =Materialkosten!$C$7/1000*D16 -> 63 | Q16: =ProduktbezogeneKosten!$F$10/1000*D16 -> 20.58 | R16: 796
C17: 360 | D17: 112 | E17: 300 | F17: 350 | G17: 1890 | H17: 526 | I17: 33090 | J17: 7890 | K17: 149 | L17: 2177000 | M17: 2088 | N17: 802 | O17: 10 | P17: =Materialkosten!$C$7/1000*D17 -> 67.2 | Q17: =ProduktbezogeneKosten!$F$10/1000*D17 -> 21.952 | R17: 796
C18: 400 | D18: 125 | E18: 300 | F18: 390 | G18: 2310 | H18: 571 | I18: 45070 | J18: 8560 | K18: 190 | L18: 2942000 | M18: 2562 | N18: 873 | O18: 11 | P18: =Materialkosten!$C$7/1000*D18 -> 75 | Q18: =ProduktbezogeneKosten!$F$10/1000*D18 -> 24.5 | R18: 796
C19: 450 | D19: 140 | E19: 300 | F19: 440 | G19: 2900 | H19: 631 | I19: 63720 | J19: 9470 | K19: 245 | L19: 4146000 | M19: 3216 | N19: 966 | O19: 11.5 | P19: =Materialkosten!$C$7/1000*D19 -> 84 | Q19: =ProduktbezogeneKosten!$F$10/1000*D19 -> 27.44 | R19: 796
C20: 500 | D20: 155 | E20: 300 | F20: 490 | G20: 3550 | H20: 691 | I20: 86970 | J20: 10370 | K20: 310 | L20: 5643000 | M20: 3949 | N20: 1059 | O20: 12 | P20: =Materialkosten!$C$7/1000*D20 -> 93 | Q20: =ProduktbezogeneKosten!$F$10/1000*D20 -> 30.38 | R20: 796
C21: 550 | D21: 166 | E21: 300 | F21: 540 | G21: 4150 | H21: 721 | I21: 111900 | J21: 10820 | K21: 353 | L21: 7189000 | M21: 4622 | N21: 1107 | O21: 12.5 | P21: =Materialkosten!$C$7/1000*D21 -> 99.6 | Q21: =ProduktbezogeneKosten!$F$10/1000*D21 -> 32.536 | R21: 796
C22: 600 | D22: 178 | E22: 300 | F22: 590 | G22: 4790 | H22: 751 | I22: 141200 | J22: 11270 | K22: 399 | L22: 8978000 | M22: 5350 | N22: 1156 | O22: 13 | P22: =Materialkosten!$C$7/1000*D22 -> 106.8 | Q22: =ProduktbezogeneKosten!$F$10/1000*D22 -> 34.888 | R22: 796
C23: 650 | D23: 190 | E23: 300 | F23: 640 | G23: 5470 | H23: 782 | I23: 175200 | J23: 11720 | K23: 450 | L23: 11027000 | M23: 6136 | N23: 1205 | O23: 13.5 | P23: =Materialkosten!$C$7/1000*D23 -> 114 | Q23: =ProduktbezogeneKosten!$F$10/1000*D23 -> 37.24 | R23: 796
C24: 700 | D24: 204 | E24: 300 | F24: 690 | G24: 6240 | H24: 812 | I24: 215300 | J24: 12180 | K24: 515 | L24: 13352000 | M24: 7032 | N24: 1257 | O24: 14.5 | P24: =Materialkosten!$C$7/1000*D24 -> 122.4 | Q24: =ProduktbezogeneKosten!$F$10/1000*D24 -> 39.984 | R24: 796
C25: 800 | D25: 224 | E25: 300 | F25: 790 | G25: 7680 | H25: 843 | I25: 303400 | J25: 12640 | K25: 599 | L25: 18290000 | M25: 8699 | N25: 1312 | O25: 15 | P25: =Materialkosten!$C$7/1000*D25 -> 134.4 | Q25: =ProduktbezogeneKosten!$F$10/1000*D25 -> 43.904 | R25: 796
C26: 900 | D26: 252 | E26: 300 | F26: 890 | G26: 9480 | H26: 903 | I26: 422100 | J26: 13550 | K26: 739 | L26: 24962000 | M26: 10811 | N26: 1414 | O26: 16 | P26: =Materialkosten!$C$7/1000*D26 -> 151.2 | Q26: =ProduktbezogeneKosten!$F$10/1000*D26 -> 49.392 | R26: 796
C27: 1000 | D27: 272 | E27: 300 | F27: 990 | G27: 11190 | H27: 934 | I27: 553800 | J27: 14000 | K27: 825 | L27: 32074000 | M27: 12824 | N27: 1470 | O27: 16.5 | P27: =Materialkosten!$C$7/1000*D27 -> 163.2 | Q27: =ProduktbezogeneKosten!$F$10/1000*D27 -> 53.312 | R27: 796

Sheet HEB
A1: Datenbasis der HEB-Reihe
C2: HEB | D2: Gewicht [kg/m] | E2: Gurt- breite b [mm] | F2: Profil- höhe h [mm] | G2: Wy [cm³] | H2: Wz [cm³] | I2: Iy [cm4] | J2: Iz [cm4] | K2: IT [cm4] | L2: IW [cm6] | M2: Wpl,y [cm³] | N2: Wpl,z [cm³] | O2: Steg- dicke t [mm] | P2: Material- kosten [€/m] | Q2: Produkt- bezogene Kosten [€/m] | R2: Gesamt- kosten [€/t]
C4: 100 | D4: 20.4 | E4: 100 | F4: 100 | G4: 89.9 | H4: 33.5 | I4: 450 | J4: 167 | K4: 9.29 | L4: 3375 | M4: 104 | N4: 51.4 | O4: 6 | P4: =Materialkosten!$C$7/1000*D4 -> 12.24 | Q4: =ProduktbezogeneKosten!$F$11/1000*D4 -> 4.2228 | R4: =(P4+Q4)/D4*1000 -> 807
C5: 120 | D5: 26.7 | E5: 120 | F5: 120 | G5: 144 | H5: 52.9 | I5: 864 | J5: 318 | K5: 13.9 | L5: 9410 | M5: 165 | N5: 81 | O5: 6.5 | P5: =Materialkosten!$C$7/1000*D5 -> 16.02 | Q5: =ProduktbezogeneKosten!$F$11/1000*D5 -> 5.5269 | R5: =(P5+Q5)/D5*1000 -> 807
C6: 140 | D6: 33.7 | E6: 140 | F6: 140 | G6: 216 | H6: 78.5 | I6: 1510 | J6: 550 | K6: 20.1 | L6: 22480 | M6: 245 | N6: 120 | O6: 7 | P6: =Materialkosten!$C$7/1000*D6 -> 20.22 | Q6: =ProduktbezogeneKosten!$F$11/1000*D6 -> 6.9759 | R6: 807
C7: 160 | D7: 42.6 | E7: 160 | F7: 160 | G7: 311 | H7: 111 | I7: 2490 | J7: 889 | K7: 31.4 | L7: 47940 | M7: 354 | N7: 170 | O7: 8 | P7: =Materialkosten!$C$7/1000*D7 -> 25.56 | Q7: =ProduktbezogeneKosten!$F$11/1000*D7 -> 8.8182 | R7: 807
C8: 180 | D8: 51.2 | E8: 180 | F8: 180 | G8: 426 | H8: 151 | I8: 3830 | J8: 1360 | K8: 42.3 | L8: 93750 | M8: 481 | N8: 231 | O8: 8.5 | P8: =Materialkosten!$C$7/1000*D8 -> 30.72 | Q8: =ProduktbezogeneKosten!$F$11/1000*D8 -> 10.5984 | R8: 807
C9: 200 | D9: 61.3 | E9: 200 | F9: 200 | G9: 570 | H9: 200 | I9: 5700 | J9: 2000 | K9: 59.5 | L9: 171100 | M9: 643 | N9: 306 | O9: 9 | P9: =Materialkosten!$C$7/1000*D9 -> 36.78 | Q9: =ProduktbezogeneKosten!$F$11/1000*D9 -> 12.6891 | R9: 807
C10: 220 | D10: 71.5 | E10: 220 | F10: 220 | G10: 736 | H10: 258 | I10: 8090 | J10: 2840 | K10: 76.8 | L10: 295400 | M10: 827 | N10: 394 | O10: 9.5 | P10: =Materialkosten!$C$7/1000*D10 -> 42.9 | Q10: =ProduktbezogeneKosten!$F$11/1000*D10 -> 14.8005 | R10: 807
C11: 240 | D11: 83.2 | E11: 240 | F11: 240 | G11: 938 | H11: 327 | I11: 11260 | J11: 3920 | K11: 103 | L11: 486900 | M11: 1053 | N11: 498 | O11: 10 | P11: =Materialkosten!$C$7/1000*D11 -> 49.92 | Q11: =ProduktbezogeneKosten!$F$11/1000*D11 -> 17.2224 | R11: 807
C12: 260 | D12: 93 | E12: 260 | F12: 260 | G12: 1150 | H12: 395 | I12: 14920 | J12: 5130 | K12: 124 | L12: 753700 | M12: 1283 | N12: 602 | O12: 10 | P12: =Materialkosten!$C$7/1000*D12 -> 55.8 | Q12: =ProduktbezogeneKosten!$F$11/1000*D12 -> 19.251 | R12: 807
C13: 280 | D13: 103 | E13: 280 | F13: 280 | G13: 1380 | H13: 471 | I13: 19270 | J13: 6590 | K13: 144 | L13: 1130000 | M13: 1534 | N13: 718 | O13: 10.5 | P13: =Materialkosten!$C$7/1000*D13 -> 61.8 | Q13: =ProduktbezogeneKosten!$F$11/1000*D13 -> 21.321 | R13: 807
C14: 300 | D14: 117 | E14: 300 | F14: 300 | G14: 1680 | H14: 571 | I14: 25170 | J14: 8560 | K14: 186 | L14: 1688000 | M14: 1869 | N14: 870 | O14: 11 | P14: =Materialkosten!$C$7/1000*D14 -> 70.2 | Q14: =ProduktbezogeneKosten!$F$11/1000*D14 -> 24.219 | R14: 807
C15: 320 | D15: 127 | E15: 300 | F15: 320 | G15: 1930 | H15: 616 | I15: 30820 | J15: 9240 | K15: 226 | L15: 2069000 | M15: 2149 | N15: 939 | O15: 11.5 | P15: =Materialkosten!$C$7/1000*D15 -> 76.2 | Q15: =ProduktbezogeneKosten!$F$11/1000*D15 -> 26.289 | R15: 807
C16: 340 | D16: 134 | E16: 300 | F16: 340 | G16: 2160 | H16: 646 | I16: 36660 | J16: 9690 | K16: 258 | L16: 2454000 | M16: 2408 | N16: 986 | O16: 12 | P16: =Materialkosten!$C$7/1000*D16 -> 80.4 | Q16: =ProduktbezogeneKosten!$F$11/1000*D16 -> 27.738 | R16: 807
C17: 360 | D17: 142 | E17: 300 | F17: 360 | G17: 2400 | H17: 676 | I17: 43190 | J17: 10140 | K17: 293 | L17: 2883000 | M17: 2683 | N17: 1032 | O17: 12.5 | P17: =Materialkosten!$C$7/1000*D17 -> 85.2 | Q17: =ProduktbezogeneKosten!$F$11/1000*D17 -> 29.394 | R17: 807
C18: 400 | D18: 155 | E18: 300 | F18: 400 | G18: 2880 | H18: 721 | I18: 57680 | J18: 10820 | K18: 357 | L18: 3817000 | M18: 3232 | N18: 1104 | O18: 13.5 | P18: =Materialkosten!$C$7/1000*D18 -> 93 | Q18: =ProduktbezogeneKosten!$F$11/1000*D18 -> 32.085 | R18: 807
C19: 450 | D19: 171 | E19: 300 | F19: 450 | G19: 3550 | H19: 781 | I19: 79890 | J19: 11720 | K19: 442 | L19: 5258000 | M19: 3982 | N19: 1198 | O19: 14 | P19: =Materialkosten!$C$7/1000*D19 -> 102.6 | Q19: =ProduktbezogeneKosten!$F$11/1000*D19 -> 35.397 | R19: 807
C20: 500 | D20: 187 | E20: 300 | F20: 500 | G20: 4290 | H20: 842 | I20: 107200 | J20: 12620 | K20: 540 | L20: 7018000 | M20: 4815 | N20: 1292 | O20: 14.5 | P20: =Materialkosten!$C$7/1000*D20 -> 112.2 | Q20: =ProduktbezogeneKosten!$F$11/1000*D20 -> 38.709 | R20: 807
C21: 550 | D21: 199 | E21: 300 | F21: 550 | G21: 4970 | H21: 872 | I21: 136700 | J21: 13080 | K21: 602 | L21: 8856000 | M21: 5591 | N21: 1341 | O21: 15 | P21: =Materialkosten!$C$7/1000*D21 -> 119.4 | Q21: =ProduktbezogeneKosten!$F$11/1000*D21 -> 41.193 | R21: 807
C22: 600 | D22: 212 | E22: 300 | F22: 600 | G22: 5700 | H22: 902 | I22: 171000 | J22: 13530 | K22: 669 | L22: 10965000 | M22: 6425 | N22: 1391 | O22: 15.5 | P22: =Materialkosten!$C$7/1000*D22 -> 127.2 | Q22: =ProduktbezogeneKosten!$F$11/1000*D22 -> 43.884 | R22: 807
C23: 650 | D23: 225 | E23: 300 | F23: 650 | G23: 6480 | H23: 932 | I23: 210600 | J23: 13980 | K23: 741 | L23: 13363000 | M23: 7320 | N23: 1441 | O23: 16 | P23: =Materialkosten!$C$7/1000*D23 -> 135 | Q23: =ProduktbezogeneKosten!$F$11/1000*D23 -> 46.575 | R23: 807
C24: 700 | D24: 241 | E24: 300 | F24: 700 | G24: 7340 | H24: 963 | I24: 256900 | J24: 14400 | K24: 833 | L24: 16064000 | M24: 8327 | N24: 1495 | O24: 17 | P24: =Materialkosten!$C$7/1000*D24 -> 144.6 | Q24: =ProduktbezogeneKosten!$F$11/1000*D24 -> 49.887 | R24: 807
C25: 800 | D25: 262 | E25: 300 | F25: 800 | G25: 8980 | H25: 994 | I25: 359100 | J25: 14900 | K25: 949 | L25: 21840000 | M25: 10229 | N25: 1553 | O25: 17.5 | P25: =Materialkosten!$C$7/1000*D25 -> 157.2 | Q25: =ProduktbezogeneKosten!$F$11/1000*D25 -> 54.234 | R25: 807
C26: 900 | D26: 291 | E26: 300 | F26: 900 | G26: 10980 | H26: 1050 | I26: 494100 | J26: 15820 | K26: 1140 | L26: 29461000 | M26: 12584 | N26: 1658 | O26: 18.5 | P26: =Materialkosten!$C$7/1000*D26 -> 174.6 | Q26: =ProduktbezogeneKosten!$F$11/1000*D26 -> 60.237 | R26: 807
C27: 1000 | D27: 314 | E27: 300 | F27: 1000 | G27: 12890 | H27: 1090 | I27: 644700 | J27: 16280 | K27: 1260 | L27: 37637000 | M27: 14855 | N27: 1716 | O27: 19 | P27: =Materialkosten!$C$7/1000*D27 -> 188.4 | Q27: =ProduktbezogeneKosten!$F$11/1000*D27 -> 64.998 | R27: 807

Sheet Rundstahl
A1: Datenbasis Rundstahl
C2: Rund | D2: Gewicht [kg/m] | E2: Material- kosten [€/m] | F2: Produkt- bezogene Kosten [€/m] | G2: Gesamt- kosten [€/t]
C4: 8 | D4: 6 | E4: =Materialkosten!$C$7/1000*D4 -> 3.6 | F4: =ProduktbezogeneKosten!$F$9/1000*D4 -> 0.912 | G4: =(E4+F4)/D4*1000 -> 752
C5: 9 | D5: 8.1 | E5: =Materialkosten!$C$7/1000*D5 -> 4.86 | F5: =ProduktbezogeneKosten!$F$9/1000*D5 -> 1.2312 | G5: 752
C6: 10 | D6: 10.4 | E6: =Materialkosten!$C$7/1000*D6 -> 6.24 | F6: =ProduktbezogeneKosten!$F$9/1000*D6 -> 1.5808 | G6: 752
C7: 12 | D7: 12.9 | E7: =Materialkosten!$C$7/1000*D7 -> 7.74 | F7: =ProduktbezogeneKosten!$F$9/1000*D7 -> 1.9608 | G7: 752
C8: 14 | D8: 15.8 | E8: =Materialkosten!$C$7/1000*D8 -> 9.48 | F8: =ProduktbezogeneKosten!$F$9/1000*D8 -> 2.4016 | G8: 752
D9: 18.8 | E9: =Materialkosten!$C$7/1000*D9 -> 11.28 | F9: =ProduktbezogeneKosten!$F$9/1000*D9 -> 2.8576 | G9: 752
D10: 22.4 | E10: =Materialkosten!$C$7/1000*D10 -> 13.44 | F10: =ProduktbezogeneKosten!$F$9/1000*D10 -> 3.4048 | G10: 752
D11: 26.2 | E11: =Materialkosten!$C$7/1000*D11 -> 15.72 | F11: =ProduktbezogeneKosten!$F$9/1000*D11 -> 3.9824 | G11: 752
D12: 30.7 | E12: =Materialkosten!$C$7/1000*D12 -> 18.42 | F12: =ProduktbezogeneKosten!$F$9/1000*D12 -> 4.6664 | G12: 752
D13: 36.1 | E13: =Materialkosten!$C$7/1000*D13 -> 21.66 | F13: =ProduktbezogeneKosten!$F$9/1000*D13 -> 5.4872 | G13: 752
D14: 42.2 | E14: =Materialkosten!$C$7/1000*D14 -> 25.32 | F14: =ProduktbezogeneKosten!$F$9/1000*D14 -> 6.4144 | G14: 752
D15: 49.1 | E15: =Materialkosten!$C$7/1000*D15 -> 29.46 | F15: =ProduktbezogeneKosten!$F$9/1000*D15 -> 7.4632 | G15: 752
D16: 57.1 | E16: =Materialkosten!$C$7/1000*D16 -> 34.26 | F16: =ProduktbezogeneKosten!$F$9/1000*D16 -> 8.6792 | G16: 752
D17: 66.3 | E17: =Materialkosten!$C$7/1000*D17 -> 39.78 | F17: =ProduktbezogeneKosten!$F$9/1000*D17 -> 10.0776 | G17: 752
D18: 77.6 | E18: =Materialkosten!$C$7/1000*D18 -> 46.56 | F18: =ProduktbezogeneKosten!$F$9/1000*D18 -> 11.7952 | G18: 752
D19: 90.7 | E19: =Materialkosten!$C$7/1000*D19 -> 54.42 | F19: =ProduktbezogeneKosten!$F$9/1000*D19 -> 13.7864 | G19: 752
D20: 106 | E20: =Materialkosten!$C$7/1000*D20 -> 63.6 | F20: =ProduktbezogeneKosten!$F$9/1000*D20 -> 16.112 | G20: 752
D21: 122 | E21: =Materialkosten!$C$7/1000*D21 -> 73.2 | F21: =ProduktbezogeneKosten!$F$9/1000*D21 -> 18.544 | G21: 752

Sheet Hohlprofil-kaltgefertigt
A1: Querschnittswerte Hohlprofile-kaltgefertigt
C2: Querschnitt- Nummer | D2: Höhe [mm] | E2: Breite [mm] | F2: Wand-stärke [mm] | G2: Gewicht [kg/m] | H2: Wy [cm³] | I2: Wz [cm³] | J2: Iy [cm4] | K2: Iz [cm4] | L2: Wpl,y [cm³] | M2: Wpl,z [cm³] | N2: Material- preis [€/m] | O2: Produkt- bezogene Kosten [€/m]
C4: 1 | D4: 20 | E4: 20 | F4: 2 | G4: 1.05 | H4: 0.69 | I4: 0.69 | J4: 0.69 | K4: 0.69 | L4: 0.88 | M4: 0.88 | N4: =Materialkosten!$C$7/1000*G4 -> 0.63 | O4: =ProduktbezogeneKosten!$F$12/1000*G4 -> 0.33285
C5: =C4+1 -> 2 | D5: 30 | E5: 30 | F5: 2 | G5: 1.68 | H5: 1.81 | I5: 1.81 | J5: 2.72 | K5: 2.72 | L5: 2.21 | M5: 2.21 | N5: =Materialkosten!$C$7/1000*G5 -> 1.008 | O5: =ProduktbezogeneKosten!$F$12/1000*G5 -> 0.53256
C6: 3 | D6: 40 | E6: 20 | F6: 2 | G6: 1.68 | H6: 2.02 | I6: 1.34 | J6: 4.05 | K6: 1.34 | L6: 2.61 | M6: 1.6 | N6: =Materialkosten!$C$7/1000*G6 -> 1.008 | O6: =ProduktbezogeneKosten!$F$12/1000*G6 -> 0.53256
C7: 4 | D7: 40 | E7: 20 | F7: 2.5 | G7: 2.03 | H7: 2.35 | I7: 1.54 | J7: 4.69 | K7: 1.54 | L7: 3.09 | M7: 1.88 | N7: =Materialkosten!$C$7/1000*G7 -> 1.218 | O7: =ProduktbezogeneKosten!$F$12/1000*G7 -> 0.64351
C8: 5 | D8: 40 | E8: 40 | F8: 2 | G8: 2.31 | H8: 3.47 | I8: 3.47 | J8: 6.95 | K8: 6.95 | L8: 4.13 | M8: 4.13 | N8: =Materialkosten!$C$7/1000*G8 -> 1.386 | O8: =ProduktbezogeneKosten!$F$12/1000*G8 -> 0.73227
C9: 6 | D9: 50 | E9: 30 | F9: 2 | G9: 2.31 | H9: 3.81 | I9: 2.86 | J9: 9.54 | K9: 4.29 | L9: 4.74 | M9: 3.33 | N9: =Materialkosten!$C$7/1000*G9 -> 1.386 | O9: =ProduktbezogeneKosten!$F$12/1000*G9 -> 0.73227
C10: 7 | D10: 50 | E10: 50 | F10: 2 | G10: 2.93 | H10: 5.66 | I10: 5.66 | J10: 14.1 | K10: 14.1 | L10: 6.66 | M10: 6.66 | N10: =Materialkosten!$C$7/1000*G10 -> 1.758 | O10: =ProduktbezogeneKosten!$F$12/1000*G10 -> 0.92881
C11: 8 | D11: 60 | E11: 40 | F11: 2 | G11: 2.93 | H11: 6.14 | I11: 4.92 | J11: 18.4 | K11: 9.83 | L11: 7.47 | M11: 5.65 | N11: =Materialkosten!$C$7/1000*G11 -> 1.758 | O11: =ProduktbezogeneKosten!$F$12/1000*G11 -> 0.92881
C12: 9 | D12: 40 | E12: 40 | F12: 3 | G12: 3.3 | H12: 4.66 | I12: 4.66 | J12: 9.32 | K12: 9.32 | L12: 5.72 | M12: 5.72 | N12: =Materialkosten!$C$7/1000*G12 -> 1.98 | O12: =ProduktbezogeneKosten!$F$12/1000*G12 -> 1.0461
C13: 10 | D13: 50 | E13: 30 | F13: 3 | G13: 3.3 | H13: 5.13 | I13: 3.8 | J13: 12.8 | K13: 5.7 | L13: 6.57 | M13: 4.58 | N13: =Materialkosten!$C$7/1000*G13 -> 1.98 | O13: =ProduktbezogeneKosten!$F$12/1000*G13 -> 1.0461
C14: 11 | D14: 60 | E14: 60 | F14: 2 | G14: 3.56 | H14: 8.38 | I14: 8.38 | J14: 25.1 | K14: 25.1 | L14: 9.79 | M14: 9.79 | N14: =Materialkosten!$C$7/1000*G14 -> 2.136 | O14: =ProduktbezogeneKosten!$F$12/1000*G14 -> 1.12852
C15: 12 | D15: 80 | E15: 40 | F15: 2 | G15: 3.56 | H15: 9.34 | I15: 6.36 | J15: 37.4 | K15: 12.7 | L15: 11.6 | M15: 7.17 | N15: =Materialkosten!$C$7/1000*G15 -> 2.136 | O15: =ProduktbezogeneKosten!$F$12/1000*G15 -> 1.12852
C16: 13 | D16: 40 | E16: 40 | F16: 4 | G16: 4.2 | H16: 5.54 | I16: 5.54 | J16: 11.1 | K16: 11.1 | L16: 7.01 | M16: 7.01 | N16: =Materialkosten!$C$7/1000*G16 -> 2.52 | O16: =ProduktbezogeneKosten!$F$12/1000*G16 -> 1.3314
C17: 14 | D17: 50 | E17: 30 | F17: 4 | G17: 4.2 | H17: 6.1 | I17: 4.46 | J17: 15.3 | K17: 6.69 | L17: 8.05 | M17: 5.58 | N17: =Materialkosten!$C$7/1000*G17 -> 2.52 | O17: =ProduktbezogeneKosten!$F$12/1000*G17 -> 1.3314
C18: 15 | D18: 50 | E18: 50 | F18: 3 | G18: 4.25 | H18: 7.79 | I18: 7.79 | J18: 19.5 | K18: 19.5 | L18: 9.39 | M18: 9.39 | N18: =Materialkosten!$C$7/1000*G18 -> 2.55 | O18: =ProduktbezogeneKosten!$F$12/1000*G18 -> 1.34725
C19: 16 | D19: 60 | E19: 40 | F19: 3 | G19: 4.25 | H19: 8.46 | I19: 6.72 | J19: 25.4 | K19: 13.4 | L19: 10.5 | M19: 7.94 | N19: =Materialkosten!$C$7/1000*G19 -> 2.55 | O19: =ProduktbezogeneKosten!$F$12/1000*G19 -> 1.34725
C20: 17 | D20: 60 | E20: 60 | F20: 3 | G20: 5.19 | H20: 11.7 | I20: 11.7 | J20: 35.1 | K20: 35.1 | L20: 14 | M20: 14 | N20: =Materialkosten!$C$7/1000*G20 -> 3.114 | O20: =ProduktbezogeneKosten!$F$12/1000*G20 -> 1.64523
C21: 18 | D21: 80 | E21: 40 | F21: 3 | G21: 5.19 | H21: 13.1 | I21: 8.78 | J21: 52.3 | K21: 17.6 | L21: 16.5 | M21: 10.2 | N21: =Materialkosten!$C$7/1000*G21 -> 3.114 | O21: =ProduktbezogeneKosten!$F$12/1000*G21 -> 1.64523
C22: 19 | D22: 50 | E22: 50 | F22: 4 | G22: 5.45 | H22: 9.49 | I22: 9.49 | J22: 23.7 | K22: 23.7 | L22: 11.7 | M22: 11.7 | N22: =Materialkosten!$C$7/1000*G22 -> 3.27 | O22: =ProduktbezogeneKosten!$F$12/1000*G22 -> 1.72765
C23: 20 | D23: 60 | E23: 40 | F23: 4 | G23: 5.45 | H23: 10.3 | I23: 8.14 | J23: 31 | K23: 16.3 | L23: 13.2 | M23: 9.89 | N23: =Materialkosten!$C$7/1000*G23 -> 3.27 | O23: =ProduktbezogeneKosten!$F$12/1000*G23 -> 1.72765
C24: 21 | D24: 70 | E24: 70 | F24: 3 | G24: 6.13 | H24: 16.4 | I24: 16.4 | J24: 57.5 | K24: 57.5 | L24: 19.4 | M24: 19.4 | N24: =Materialkosten!$C$7/1000*G24 -> 3.678 | O24: =ProduktbezogeneKosten!$F$12/1000*G24 -> 1.94321
C25: 22 | D25: 90 | E25: 50 | F25: 3 | G25: 6.13 | H25: 18.2 | I25: 13.1 | J25: 81.9 | K25: 32.7 | L25: 22.6 | M25: 15 | N25: =Materialkosten!$C$7/1000*G25 -> 3.678 | O25: =ProduktbezogeneKosten!$F$12/1000*G25 -> 1.94321
C26: 23 | D26: 50 | E26: 50 | F26: 5 | G26: 6.56 | H26: 10.8 | I26: 10.8 | J26: 27 | K26: 27 | L26: 13.7 | M26: 13.7 | N26: =Materialkosten!$C$7/1000*G26 -> 3.936 | O26: =ProduktbezogeneKosten!$F$12/1000*G26 -> 2.07952
C27: 24 | D27: 60 | E27: 40 | F27: 5 | G27: 6.56 | H27: 11.8 | I27: 9.21 | J27: 35.3 | K27: 18.4 | L27: 15.4 | M27: 11.5 | N27: =Materialkosten!$C$7/1000*G27 -> 3.936 | O27: =ProduktbezogeneKosten!$F$12/1000*G27 -> 2.07952
C28: 25 | D28: 100 | E28: 50 | F28: 3 | G28: 6.6 | H28: 21.3 | I28: 14.4 | J28: 106 | K28: 36.1 | L28: 26.7 | M28: 16.4 | N28: =Materialkosten!$C$7/1000*G28 -> 3.96 | O28: =ProduktbezogeneKosten!$F$12/1000*G28 -> 2.0922
C29: 26 | D29: 60 | E29: 60 | F29: 4 | G29: 6.71 | H29: 14.5 | I29: 14.5 | J29: 43.6 | K29: 43.6 | L29: 17.6 | M29: 17.6 | N29: =Materialkosten!$C$7/1000*G29 -> 4.026 | O29: =ProduktbezogeneKosten!$F$12/1000*G29 -> 2.12707
C30: 27 | D30: 80 | E30: 40 | F30: 4 | G30: 6.71 | H30: 16.2 | I30: 10.7 | J30: 64.8 | K30: 21.5 | L30: 20.9 | M30: 12.8 | N30: =Materialkosten!$C$7/1000*G30 -> 4.026 | O30: =ProduktbezogeneKosten!$F$12/1000*G30 -> 2.12707
C31: 28 | D31: 80 | E31: 80 | F31: 3 | G31: 7.07 | H31: 22 | I31: 22 | J31: 87.8 | K31: 87.8 | L31: 25.8 | M31: 25.8 | N31: =Materialkosten!$C$7/1000*G31 -> 4.242 | O31: =ProduktbezogeneKosten!$F$12/1000*G31 -> 2.24119
C32: 29 | D32: 100 | E32: 60 | F32: 3 | G32: 7.07 | H32: 24.1 | I32: 18.2 | J32: 121 | K32: 54.6 | L32: 29.6 | M32: 20.8 | N32: =Materialkosten!$C$7/1000*G32 -> 4.242 | O32: =ProduktbezogeneKosten!$F$12/1000*G32 -> 2.24119
C33: 30 | D33: 70 | E33: 70 | F33: 4 | G33: 7.95 | H33: 20.6 | I33: 20.6 | J33: 72.1 | K33: 72.1 | L33: 24.8 | M33: 24.8 | N33: =Materialkosten!$C$7/1000*G33 -> 4.77 | O33: =ProduktbezogeneKosten!$F$12/1000*G33 -> 2.52015
C34: 31 | D34: 90 | E34: 50 | F34: 4 | G34: 7.97 | H34: 22.8 | I34: 16.3 | J34: 103 | K34: 40.7 | L34: 28.8 | M34: 19.1 | N34: =Materialkosten!$C$7/1000*G34 -> 4.782 | O34: =ProduktbezogeneKosten!$F$12/1000*G34 -> 2.52649
C35: 32 | D35: 90 | E35: 90 | F35: 3 | G35: 8.01 | H35: 28.3 | I35: 28.3 | J35: 127 | K35: 127 | L35: 33 | M35: 33 | N35: =Materialkosten!$C$7/1000*G35 -> 4.806 | O35: =ProduktbezogeneKosten!$F$12/1000*G35 -> 2.53917
C36: 33 | D36: 120 | E36: 60 | F36: 3 | G36: 8.01 | H36: 31.5 | I36: 21.5 | J36: 189 | K36: 64.4 | L36: 39.2 | M36: 24.2 | N36: =Materialkosten!$C$7/1000*G36 -> 4.806 | O36: =ProduktbezogeneKosten!$F$12/1000*G36 -> 2.53917
C37: 34 | D37: 60 | E37: 60 | F37: 5 | G37: 8.13 | H37: 16.8 | I37: 16.8 | J37: 50.5 | K37: 50.5 | L37: 20.9 | M37: 20.9 | N37: =Materialkosten!$C$7/1000*G37 -> 4.878 | O37: =ProduktbezogeneKosten!$F$12/1000*G37 -> 2.57721
C38: 35 | D38: 80 | E38: 40 | F38: 5 | G38: 8.13 | H38: 18.8 | I38: 12.3 | J38: 75.1 | K38: 24.6 | L38: 24.7 | M38: 15 | N38: =Materialkosten!$C$7/1000*G38 -> 4.878 | O38: =ProduktbezogeneKosten!$F$12/1000*G38 -> 2.57721
C39: 36 | D39: 80 | E39: 80 | F39: 4 | G39: 9.22 | H39: 27.8 | I39: 27.8 | J39: 111 | K39: 111 | L39: 33.1 | M39: 33.1 | N39: =Materialkosten!$C$7/1000*G39 -> 5.532 | O39: =ProduktbezogeneKosten!$F$12/1000*G39 -> 2.92274
C40: 37 | D40: 100 | E40: 60 | F40: 4 | G40: 9.22 | H40: 30.5 | I40: 22.9 | J40: 153 | K40: 68.7 | L40: 37.9 | M40: 26.6 | N40: =Materialkosten!$C$7/1000*G40 -> 5.532 | O40: =ProduktbezogeneKosten!$F$12/1000*G40 -> 2.92274
C41: 38 | D41: 70 | E41: 70 | F41: 5 | G41: 9.7 | H41: 24.4 | I41: 24.4 | J41: 84.6 | K41: 84.6 | L41: 29.6 | M41: 29.6 | N41: =Materialkosten!$C$7/1000*G41 -> 5.82 | O41: =ProduktbezogeneKosten!$F$12/1000*G41 -> 3.0749
C42: 39 | D42: 90 | E42: 50 | F42: 5 | G42: 9.7 | H42: 26.8 | I42: 18.9 | J42: 121 | K42: 47.4 | L42: 34.4 | M42: 22.7 | N42: =Materialkosten!$C$7/1000*G42 -> 5.82 | O42: =ProduktbezogeneKosten!$F$12/1000*G42 -> 3.0749
C43: 40 | D43: 90 | E43: 90 | F43: 4 | G43: 10.5 | H43: 36 | I43: 36 | J43: 162 | K43: 162 | L43: 42.6 | M43: 42.6 | N43: =Materialkosten!$C$7/1000*G43 -> 6.3 | O43: =ProduktbezogeneKosten!$F$12/1000*G43 -> 3.3285
C44: 41 | D44: 100 | E44: 50 | F44: 5 | G44: 10.5 | H44: 31.6 | I44: 21 | J44: 158 | K44: 52.5 | L44: 40.8 | M44: 25 | N44: =Materialkosten!$C$7/1000*G44 -> 6.3 | O44: =ProduktbezogeneKosten!$F$12/1000*G44 -> 3.3285
C45: 42 | D45: 120 | E45: 60 | F45: 4 | G45: 10.5 | H45: 40.1 | I45: 27.1 | J45: 241 | K45: 81.2 | L45: 50.5 | M45: 31.1 | N45: =Materialkosten!$C$7/1000*G45 -> 6.3 | O45: =ProduktbezogeneKosten!$F$12/1000*G45 -> 3.3285
C46: 43 | D46: 80 | E46: 80 | F46: 5 | G46: 11.3 | H46: 32.9 | I46: 32.9 | J46: 131 | K46: 131 | L46: 39.7 | M46: 39.7 | N46: =Materialkosten!$C$7/1000*G46 -> 6.78 | O46: =ProduktbezogeneKosten!$F$12/1000*G46 -> 3.5821
C47: 44 | D47: 100 | E47: 60 | F47: 5 | G47: 11.3 | H47: 36.2 | I47: 26.9 | J47: 181 | K47: 80.8 | L47: 45.6 | M47: 31.9 | N47: =Materialkosten!$C$7/1000*G47 -> 6.78 | O47: =ProduktbezogeneKosten!$F$12/1000*G47 -> 3.5821
C48: 45 | D48: 100 | E48: 100 | F48: 4 | G48: 11.7 | H48: 45.3 | I48: 45.3 | J48: 226 | K48: 226 | L48: 53.3 | M48: 53.3 | N48: =Materialkosten!$C$7/1000*G48 -> 7.02 | O48: =ProduktbezogeneKosten!$F$12/1000*G48 -> 3.7089
C49: 46 | D49: 120 | E49: 80 | F49: 4 | G49: 11.7 | H49: 49.1 | I49: 39.3 | J49: 295 | K49: 157 | L49: 59.8 | M49: 45.2 | N49: =Materialkosten!$C$7/1000*G49 -> 7.02 | O49: =ProduktbezogeneKosten!$F$12/1000*G49 -> 3.7089
C50: 47 | D50: 90 | E50: 90 | F50: 5 | G50: 12.8 | H50: 42.9 | I50: 42.9 | J50: 193 | K50: 193 | L50: 51.4 | M50: 51.4 | N50: =Materialkosten!$C$7/1000*G50 -> 7.68 | O50: =ProduktbezogeneKosten!$F$12/1000*G50 -> 4.0576
C51: 48 | D51: 120 | E51: 60 | F51: 5 | G51: 12.8 | H51: 47.8 | I51: 32 | J51: 287 | K51: 96 | L51: 60.9 | M51: 37.4 | N51: =Materialkosten!$C$7/1000*G51 -> 7.68 | O51: =ProduktbezogeneKosten!$F$12/1000*G51 -> 4.0576
C52: 49 | D52: 140 | E52: 80 | F52: 4 | G52: 13 | H52: 61.4 | I52: 45.1 | J52: 430 | K52: 180 | L52: 75.5 | M52: 51.3 | N52: =Materialkosten!$C$7/1000*G52 -> 7.8 | O52: =ProduktbezogeneKosten!$F$12/1000*G52 -> 4.121
C53: 50 | D53: 80 | E53: 80 | F53: 6.3 | G53: 13.5 | H53: 37.1 | I53: 37.1 | J53: 149 | K53: 149 | L53: 46.1 | M53: 46.1 | N53: =Materialkosten!$C$7/1000*G53 -> 8.1 | O53: =ProduktbezogeneKosten!$F$12/1000*G53 -> 4.2795
C54: 51 | D54: 100 | E54: 60 | F54: 6.3 | G54: 13.5 | H54: 40.7 | I54: 30.3 | J54: 203 | K54: 90.9 | L54: 52.8 | M54: 36.9 | N54: =Materialkosten!$C$7/1000*G54 -> 8.1 | O54: =ProduktbezogeneKosten!$F$12/1000*G54 -> 4.2795
C55: 52 | D55: 120 | E55: 120 | F55: 4 | G55: 14.2 | H55: 67 | I55: 67 | J55: 402 | K55: 402 | L55: 78.3 | M55: 78.3 | N55: =Materialkosten!$C$7/1000*G55 -> 8.52 | O55: =ProduktbezogeneKosten!$F$12/1000*G55 -> 4.5014
C56: 53 | D56: 160 | E56: 80 | F56: 4 | G56: 14.2 | H56: 74.7 | I56: 50.9 | J56: 598 | K56: 204 | L56: 92.6 | M56: 57.4 | N56: =Materialkosten!$C$7/1000*G56 -> 8.52 | O56: =ProduktbezogeneKosten!$F$12/1000*G56 -> 4.5014
C57: 54 | D57: 120 | E57: 80 | F57: 5 | G57: 14.4 | H57: 58.9 | I57: 46.8 | J57: 353 | K57: 188 | L57: 72.4 | M57: 54.7 | N57: =Materialkosten!$C$7/1000*G57 -> 8.64 | O57: =ProduktbezogeneKosten!$F$12/1000*G57 -> 4.5648
C58: 55 | D58: 100 | E58: 100 | F58: 5 | G58: 14.7 | H58: 54.2 | I58: 54.2 | J58: 271 | K58: 271 | L58: 64.6 | M58: 64.6 | N58: =Materialkosten!$C$7/1000*G58 -> 8.82 | O58: =ProduktbezogeneKosten!$F$12/1000*G58 -> 4.6599
C59: 56 | D59: 150 | E59: 100 | F59: 4 | G59: 14.9 | H59: 79.3 | I59: 63.7 | J59: 595 | K59: 319 | L59: 95.7 | M59: 72.5 | N59: =Materialkosten!$C$7/1000*G59 -> 8.94 | O59: =ProduktbezogeneKosten!$F$12/1000*G59 -> 4.7233
C60: 57 | D60: 90 | E60: 90 | F60: 6.3 | G60: 15.5 | H60: 49.1 | I60: 49.1 | J60: 221 | K60: 221 | L60: 60.3 | M60: 60.3 | N60: =Materialkosten!$C$7/1000*G60 -> 9.3 | O60: =ProduktbezogeneKosten!$F$12/1000*G60 -> 4.9135
C61: 58 | D61: 120 | E61: 60 | F61: 6.3 | G61: 15.5 | H61: 54.5 | I61: 36.4 | J61: 327 | K61: 109 | L61: 71.2 | M61: 43.7 | N61: =Materialkosten!$C$7/1000*G61 -> 9.3 | O61: =ProduktbezogeneKosten!$F$12/1000*G61 -> 4.9135
C62: 59 | D62: 140 | E62: 80 | F62: 5 | G62: 16 | H62: 73.9 | I62: 54 | J62: 517 | K62: 216 | L62: 91.3 | M62: 62.2 | N62: =Materialkosten!$C$7/1000*G62 -> 9.6 | O62: =ProduktbezogeneKosten!$F$12/1000*G62 -> 5.072
C63: 60 | D63: 140 | E63: 140 | F63: 4 | G63: 16.8 | H63: 93.1 | I63: 93.1 | J63: 652 | K63: 652 | L63: 108 | M63: 108 | N63: =Materialkosten!$C$7/1000*G63 -> 10.08 | O63: =ProduktbezogeneKosten!$F$12/1000*G63 -> 5.3256
C64: 61 | D64: 100 | E64: 100 | F64: 6.3 | G64: 17.5 | H64: 62.8 | I64: 62.8 | J64: 314 | K64: 314 | L64: 76.4 | M64: 76.4 | N64: =Materialkosten!$C$7/1000*G64 -> 10.5 | O64: =ProduktbezogeneKosten!$F$12/1000*G64 -> 5.5475
C65: 62 | D65: 120 | E65: 120 | F65: 5 | G65: 17.5 | H65: 80.9 | I65: 80.9 | J65: 485 | K65: 485 | L65: 95.4 | M65: 95.4 | N65: =Materialkosten!$C$7/1000*G65 -> 10.5 | O65: =ProduktbezogeneKosten!$F$12/1000*G65 -> 5.5475
C66: 63 | D66: 120 | E66: 80 | F66: 6.3 | G66: 17.5 | H66: 68.1 | I66: 54.3 | J66: 408 | K66: 217 | L66: 85.6 | M66: 64.7 | N66: =Materialkosten!$C$7/1000*G66 -> 10.5 | O66: =ProduktbezogeneKosten!$F$12/1000*G66 -> 5.5475
C67: 64 | D67: 160 | E67: 80 | F67: 5 | G67: 17.5 | H67: 90.2 | I67: 61 | J67: 722 | K67: 244 | L67: 113 | M67: 69.7 | N67: =Materialkosten!$C$7/1000*G67 -> 10.5 | O67: =ProduktbezogeneKosten!$F$12/1000*G67 -> 5.5475
C68: 65 | D68: 150 | E68: 100 | F68: 5 | G68: 18.3 | H68: 95.9 | I68: 76.8 | J68: 719 | K68: 384 | L68: 117 | M68: 88.3 | N68: =Materialkosten!$C$7/1000*G68 -> 10.98 | O68: =ProduktbezogeneKosten!$F$12/1000*G68 -> 5.8011
C69: =C68+1 -> 66 | D69: 160 | E69: 160 | F69: 4 | G69: 19.3 | H69: 123 | I69: 123 | J69: 987 | K69: 987 | L69: 143 | M69: 143 | N69: =Materialkosten!$C$7/1000*G69 -> 11.58 | O69: =ProduktbezogeneKosten!$F$12/1000*G69 -> 6.1181
C70: 67 | D70: 140 | E70: 80 | F70: 6.3 | G70: 19.4 | H70: 86.1 | I70: 62.9 | J70: 603 | K70: 251 | L70: 109 | M70: 74 | N70: =Materialkosten!$C$7/1000*G70 -> 11.64 | O70: =ProduktbezogeneKosten!$F$12/1000*G70 -> 6.1498
C71: 68 | D71: 140 | E71: 140 | F71: 5 | G71: 20.7 | H71: 113 | I71: 113 | J71: 791 | K71: 791 | L71: 132 | M71: 132 | N71: =Materialkosten!$C$7/1000*G71 -> 12.42 | O71: =ProduktbezogeneKosten!$F$12/1000*G71 -> 6.5619
C72: 69 | D72: 180 | E72: 100 | F72: 5 | G72: 20.7 | H72: 125 | I72: 90.4 | J72: 1124 | K72: 452 | L72: 154 | M72: 103 | N72: =Materialkosten!$C$7/1000*G72 -> 12.42 | O72: =ProduktbezogeneKosten!$F$12/1000*G72 -> 6.5619
C73: 70 | D73: 120 | E73: 120 | F73: 6.3 | G73: 21.4 | H73: 95.3 | I73: 95.3 | J73: 572 | K73: 572 | L73: 114 | M73: 114 | N73: =Materialkosten!$C$7/1000*G73 -> 12.84 | O73: =ProduktbezogeneKosten!$F$12/1000*G73 -> 6.7838
C74: 71 | D74: 160 | E74: 80 | F74: 6.3 | G74: 21.4 | H74: 106 | I74: 71.4 | J74: 846 | K74: 286 | L74: 135 | M74: 83.3 | N74: =Materialkosten!$C$7/1000*G74 -> 12.84 | O74: =ProduktbezogeneKosten!$F$12/1000*G74 -> 6.7838
C75: 72 | D75: 150 | E75: 150 | F75: 5 | G75: 22.3 | H75: 131 | I75: 131 | J75: 882 | K75: 882 | L75: 153 | M75: 153 | N75: =Materialkosten!$C$7/1000*G75 -> 13.38 | O75: =ProduktbezogeneKosten!$F$12/1000*G75 -> 7.0691
C76: 73 | D76: 150 | E76: 100 | F76: 6.3 | G76: 22.4 | H76: 113 | I76: 90.5 | J76: 848 | K76: 453 | L76: 140 | M76: 106 | N76: =Materialkosten!$C$7/1000*G76 -> 13.44 | O76: =ProduktbezogeneKosten!$F$12/1000*G76 -> 7.1008
C77: 74 | D77: 160 | E77: 160 | F77: 5 | G77: 23.8 | H77: 150 | I77: 150 | J77: 1202 | K77: 1202 | L77: 175 | M77: 175 | N77: =Materialkosten!$C$7/1000*G77 -> 14.28 | O77: =ProduktbezogeneKosten!$F$12/1000*G77 -> 7.5446
C78: 75 | D78: 200 | E78: 120 | F78: 5 | G78: 23.8 | H78: 165 | I78: 125 | J78: 1649 | K78: 750 | L78: 201 | M78: 141 | N78: =Materialkosten!$C$7/1000*G78 -> 14.28 | O78: =ProduktbezogeneKosten!$F$12/1000*G78 -> 7.5446
C79: 76 | D79: 140 | E79: 140 | F79: 6.3 | G79: 25.4 | H79: 134 | I79: 134 | J79: 941 | K79: 941 | L79: 160 | M79: 160 | N79: =Materialkosten!$C$7/1000*G79 -> 15.24 | O79: =ProduktbezogeneKosten!$F$12/1000*G79 -> 8.0518
C80: 77 | D80: 180 | E80: 100 | F80: 6.3 | G80: 25.4 | H80: 148 | I80: 107 | J80: 1335 | K80: 536 | L80: 186 | M80: 124 | N80: =Materialkosten!$C$7/1000*G80 -> 15.24 | O80: =ProduktbezogeneKosten!$F$12/1000*G80 -> 8.0518
C81: 78 | D81: 120 | E81: 120 | F81: 8 | G81: 26.4 | H81: 113 | I81: 113 | J81: 677 | K81: 677 | L81: 138 | M81: 138 | N81: =Materialkosten!$C$7/1000*G81 -> 15.84 | O81: =ProduktbezogeneKosten!$F$12/1000*G81 -> 8.3688
C82: 79 | D82: 160 | E82: 80 | F82: 8 | G82: 26.4 | H82: 125 | I82: 83.7 | J82: 1001 | K82: 335 | L82: 163 | M82: 100 | N82: =Materialkosten!$C$7/1000*G82 -> 15.84 | O82: =ProduktbezogeneKosten!$F$12/1000*G82 -> 8.3688
C83: 80 | D83: 150 | E83: 150 | F83: 6.3 | G83: 27.4 | H83: 156 | I83: 156 | J83: 1174 | K83: 1174 | L83: 185 | M83: 185 | N83: =Materialkosten!$C$7/1000*G83 -> 16.44 | O83: =ProduktbezogeneKosten!$F$12/1000*G83 -> 8.6858
C84: 81 | D84: 200 | E84: 100 | F84: 6.3 | G84: 27.4 | H84: 174 | I84: 118 | J84: 1739 | K84: 591 | L84: 219 | M84: 135 | N84: =Materialkosten!$C$7/1000*G84 -> 16.44 | O84: =ProduktbezogeneKosten!$F$12/1000*G84 -> 8.6858
C85: 82 | D85: 150 | E85: 100 | F85: 8 | G85: 27.7 | H85: 134 | I85: 107 | J85: 1008 | K85: 563 | L85: 169 | M85: 128 | N85: =Materialkosten!$C$7/1000*G85 -> 16.62 | O85: =ProduktbezogeneKosten!$F$12/1000*G85 -> 8.7809
C86: 83 | D86: 160 | E86: 160 | F86: 6.3 | G86: 29.3 | H86: 180 | I86: 180 | J86: 1442 | K86: 1442 | L86: 213 | M86: 213 | N86: =Materialkosten!$C$7/1000*G86 -> 17.58 | O86: =ProduktbezogeneKosten!$F$12/1000*G86 -> 9.2881
C87: 84 | D87: 200 | E87: 120 | F87: 6.3 | G87: 29.3 | H87: 198 | I87: 150 | J87: 1976 | K87: 898 | L87: 244 | M87: 172 | N87: =Materialkosten!$C$7/1000*G87 -> 17.58 | O87: =ProduktbezogeneKosten!$F$12/1000*G87 -> 9.2881
C88: 85 | D88: 140 | E88: 140 | F88: 8 | G88: 31.4 | H88: 161 | I88: 161 | J88: 1127 | K88: 1127 | L88: 194 | M88: 194 | N88: =Materialkosten!$C$7/1000*G88 -> 18.84 | O88: =ProduktbezogeneKosten!$F$12/1000*G88 -> 9.9538
C89: 86 | D89: 180 | E89: 100 | F89: 8 | G89: 31.4 | H89: 178 | I89: 127 | J89: 1598 | K89: 637 | L89: 226 | M89: 150 | N89: =Materialkosten!$C$7/1000*G89 -> 18.84 | O89: =ProduktbezogeneKosten!$F$12/1000*G89 -> 9.9538
C90: 87 | D90: 180 | E90: 180 | F90: 6.3 | G90: 33.3 | H90: 233 | I90: 233 | J90: 2096 | K90: 2096 | L90: 273 | M90: 273 | N90: =Materialkosten!$C$7/1000*G90 -> 19.98 | O90: =ProduktbezogeneKosten!$F$12/1000*G90 -> 10.5561
C91: 88 | D91: 150 | E91: 150 | F91: 8 | G91: 33.9 | H91: 188 | I91: 188 | J91: 1412 | K91: 1412 | L91: 226 | M91: 226 | N91: =Materialkosten!$C$7/1000*G91 -> 20.34 | O91: =ProduktbezogeneKosten!$F$12/1000*G91 -> 10.7463
C92: 89 | D92: 200 | E92: 100 | F92: 8 | G92: 33.9 | H92: 209 | I92: 141 | J92: 2091 | K92: 705 | L92: 267 | M92: 165 | N92: =Materialkosten!$C$7/1000*G92 -> 20.34 | O92: =ProduktbezogeneKosten!$F$12/1000*G92 -> 10.7463
C93: 90 | D93: 160 | E93: 160 | F93: 8 | G93: 36.5 | H93: 218 | I93: 218 | J93: 1741 | K93: 1741 | L93: 260 | M93: 260 | N93: =Materialkosten!$C$7/1000*G93 -> 21.9 | O93: =ProduktbezogeneKosten!$F$12/1000*G93 -> 11.5705
C94: 91 | D94: 200 | E94: 120 | F94: 8 | G94: 36.5 | H94: 239 | I94: 180 | J94: 2386 | K94: 1079 | L94: 298 | M94: 209 | N94: =Materialkosten!$C$7/1000*G94 -> 21.9 | O94: =ProduktbezogeneKosten!$F$12/1000*G94 -> 11.5705
C95: 92 | D95: 200 | E95: 200 | F95: 6.3 | G95: 37.2 | H95: 292 | I95: 292 | J95: 2922 | K95: 2922 | L95: 341 | M95: 341 | N95: =Materialkosten!$C$7/1000*G95 -> 22.32 | O95: =ProduktbezogeneKosten!$F$12/1000*G95 -> 11.7924
C96: 93 | D96: 250 | E96: 150 | F96: 6.3 | G96: 37.2 | H96: 320 | I96: 243 | J96: 4001 | K96: 1825 | L96: 391 | M96: 276 | N96: =Materialkosten!$C$7/1000*G96 -> 22.32 | O96: =ProduktbezogeneKosten!$F$12/1000*G96 -> 11.7924
C97: 94 | D97: 300 | E97: 100 | F97: 6.3 | G97: 37.2 | H97: 327 | I97: 174 | J97: 4907 | K97: 868 | L97: 425 | M97: 194 | N97: =Materialkosten!$C$7/1000*G97 -> 22.32 | O97: =ProduktbezogeneKosten!$F$12/1000*G97 -> 11.7924
C98: 95 | D98: 140 | E98: 140 | F98: 10 | G98: 38.1 | H98: 187 | I98: 187 | J98: 1312 | K98: 1312 | L98: 230 | M98: 230 | N98: =Materialkosten!$C$7/1000*G98 -> 22.86 | O98: =ProduktbezogeneKosten!$F$12/1000*G98 -> 12.0777
C99: 96 | D99: 180 | E99: 100 | F99: 10 | G99: 38.1 | H99: 207 | I99: 147 | J99: 1859 | K99: 736 | L99: 268 | M99: 177 | N99: =Materialkosten!$C$7/1000*G99 -> 22.86 | O99: =ProduktbezogeneKosten!$F$12/1000*G99 -> 12.0777
C100: 97 | D100: 180 | E100: 180 | F100: 10 | G100: 40.7 | H100: 335 | I100: 335 | J100: 3017 | K100: 3017 | L100: 404 | M100: 404 | N100: =Materialkosten!$C$7/1000*G100 -> 24.42 | O100: =ProduktbezogeneKosten!$F$12/1000*G100 -> 12.9019
C101: 98 | D101: 150 | E101: 150 | F101: 10 | G101: 41.3 | H101: 220 | I101: 220 | J101: 1653 | K101: 1653 | L101: 269 | M101: 269 | N101: =Materialkosten!$C$7/1000*G101 -> 24.78 | O101: =ProduktbezogeneKosten!$F$12/1000*G101 -> 13.0921
C102: 99 | D102: 200 | E102: 100 | F102: 10 | G102: 41.3 | H102: 244 | I102: 164 | J102: 2444 | K102: 818 | L102: 318 | M102: 195 | N102: =Materialkosten!$C$7/1000*G102 -> 24.78 | O102: =ProduktbezogeneKosten!$F$12/1000*G102 -> 13.0921
C103: 100 | D103: 180 | E103: 180 | F103: 8 | G103: 41.5 | H103: 283 | I103: 283 | J103: 2546 | K103: 2546 | L103: 336 | M103: 336 | N103: =Materialkosten!$C$7/1000*G103 -> 24.9 | O103: =ProduktbezogeneKosten!$F$12/1000*G103 -> 13.1555
C104: 101 | D104: 160 | E104: 160 | F104: 10 | G104: 44.4 | H104: 256 | I104: 256 | J104: 2048 | K104: 2048 | L104: 311 | M104: 311 | N104: =Materialkosten!$C$7/1000*G104 -> 26.64 | O104: =ProduktbezogeneKosten!$F$12/1000*G104 -> 14.0748
C105: 102 | D105: 200 | E105: 120 | F105: 10 | G105: 44.4 | H105: 281 | I105: 210 | J105: 2806 | K105: 1262 | L105: 356 | M105: 250 | N105: =Materialkosten!$C$7/1000*G105 -> 26.64 | O105: =ProduktbezogeneKosten!$F$12/1000*G105 -> 14.0748
C106: 103 | D106: 200 | E106: 200 | F106: 8 | G106: 46.5 | H106: 357 | I106: 357 | J106: 3566 | K106: 3566 | L106: 421 | M106: 421 | N106: =Materialkosten!$C$7/1000*G106 -> 27.9 | O106: =ProduktbezogeneKosten!$F$12/1000*G106 -> 14.7405
C107: 104 | D107: 250 | E107: 150 | F107: 8 | G107: 46.5 | H107: 391 | I107: 286 | J107: 4886 | K107: 2219 | L107: 482 | M107: 340 | N107: =Materialkosten!$C$7/1000*G107 -> 27.9 | O107: =ProduktbezogeneKosten!$F$12/1000*G107 -> 14.7405
C108: 105 | D108: 300 | E108: 100 | F108: 10 | G108: 46.5 | H108: 474 | I108: 245 | J108: 7106 | K108: 1224 | L108: 631 | M108: 285 | N108: =Materialkosten!$C$7/1000*G108 -> 27.9 | O108: =ProduktbezogeneKosten!$F$12/1000*G108 -> 14.7405
C109: 106 | D109: 250 | E109: 250 | F109: 6.3 | G109: 47.1 | H109: 470 | I109: 470 | J109: 5873 | K109: 5873 | L109: 544 | M109: 544 | N109: =Materialkosten!$C$7/1000*G109 -> 28.26 | O109: =ProduktbezogeneKosten!$F$12/1000*G109 -> 14.9307
C110: 107 | D110: 300 | E110: 200 | F110: 6.3 | G110: 47.1 | H110: 508 | I110: 410 | J110: 7624 | K110: 4104 | L110: 610 | M110: 463 | N110: =Materialkosten!$C$7/1000*G110 -> 28.26 | O110: =ProduktbezogeneKosten!$F$12/1000*G110 -> 14.9307
C111: 108 | D111: 220 | E111: 220 | F111: 8 | G111: 51.5 | H111: 439 | I111: 439 | J111: 4828 | K111: 4828 | L111: 516 | M111: 516 | N111: =Materialkosten!$C$7/1000*G111 -> 30.9 | O111: =ProduktbezogeneKosten!$F$12/1000*G111 -> 16.3255
C112: 109 | D112: 200 | E112: 200 | F112: 10 | G112: 57 | H112: 425 | I112: 425 | J112: 4251 | K112: 4251 | L112: 508 | M112: 508 | N112: =Materialkosten!$C$7/1000*G112 -> 34.2 | O112: =ProduktbezogeneKosten!$F$12/1000*G112 -> 18.069
C113: 110 | D113: 250 | E113: 150 | F113: 10 | G113: 57 | H113: 466 | I113: 351 | J113: 5825 | K113: 2634 | L113: 582 | M113: 409 | N113: =Materialkosten!$C$7/1000*G113 -> 34.2 | O113: =ProduktbezogeneKosten!$F$12/1000*G113 -> 18.069
C114: 111 | D114: 300 | E114: 100 | F114: 12 | G114: 57 | H114: 521 | I114: 269 | J114: 7808 | K114: 1343 | L114: 710 | M114: 321 | N114: =Materialkosten!$C$7/1000*G114 -> 34.2 | O114: =ProduktbezogeneKosten!$F$12/1000*G114 -> 18.069
C115: 112 | D115: 350 | E115: 250 | F115: 6.3 | G115: 57 | H115: 738 | I115: 620 | J115: 12923 | K115: 7744 | L115: 876 | M115: 698 | N115: =Materialkosten!$C$7/1000*G115 -> 34.2 | O115: =ProduktbezogeneKosten!$F$12/1000*G115 -> 18.069
C116: 113 | D116: 300 | E116: 300 | F116: 6.3 | G116: 57.8 | H116: 689 | I116: 689 | J116: 10342 | K116: 10342 | L116: 795 | M116: 795 | N116: =Materialkosten!$C$7/1000*G116 -> 34.68 | O116: =ProduktbezogeneKosten!$F$12/1000*G116 -> 18.3226
C117: 114 | D117: 250 | E117: 250 | F117: 8 | G117: 59.1 | H117: 578 | I117: 578 | J117: 7229 | K117: 7229 | L117: 676 | M117: 676 | N117: =Materialkosten!$C$7/1000*G117 -> 35.46 | O117: =ProduktbezogeneKosten!$F$12/1000*G117 -> 18.7347
C118: 115 | D118: 300 | E118: 200 | F118: 8 | G118: 59.1 | H118: 626 | I118: 504 | J118: 9389 | K118: 5042 | L118: 757 | M118: 574 | N118: =Materialkosten!$C$7/1000*G118 -> 35.46 | O118: =ProduktbezogeneKosten!$F$12/1000*G118 -> 18.7347
C119: 116 | D119: 180 | E119: 180 | F119: 12.5 | G119: 60.5 | H119: 378 | I119: 378 | J119: 3466 | K119: 3466 | L119: 467 | M119: 467 | N119: =Materialkosten!$C$7/1000*G119 -> 36.3 | O119: =ProduktbezogeneKosten!$F$12/1000*G119 -> 19.1785
C120: 117 | D120: 260 | E120: 260 | F120: 8 | G120: 61.6 | H120: 629 | I120: 629 | J120: 8178 | K120: 8178 | L120: 734 | M120: 734 | N120: =Materialkosten!$C$7/1000*G120 -> 36.96 | O120: =ProduktbezogeneKosten!$F$12/1000*G120 -> 19.5272
C121: 118 | D121: 220 | E121: 220 | F121: 10 | G121: 63.2 | H121: 526 | I121: 526 | J121: 5782 | K121: 5782 | L121: 625 | M121: 625 | N121: =Materialkosten!$C$7/1000*G121 -> 37.92 | O121: =ProduktbezogeneKosten!$F$12/1000*G121 -> 20.0344
C122: 119 | D122: 200 | E122: 200 | F122: 12.5 | G122: 68.3 | H122: 486 | I122: 486 | J122: 4859 | K122: 4859 | L122: 594 | M122: 594 | N122: =Materialkosten!$C$7/1000*G122 -> 40.98 | O122: =ProduktbezogeneKosten!$F$12/1000*G122 -> 21.6511
C123: 120 | D123: 250 | E123: 150 | F123: 12.5 | G123: 68.3 | H123: 531 | I123: 400 | J123: 6633 | K123: 3002 | L123: 678 | M123: 477 | N123: =Materialkosten!$C$7/1000*G123 -> 40.98 | O123: =ProduktbezogeneKosten!$F$12/1000*G123 -> 21.6511
C124: 121 | D124: 300 | E124: 300 | F124: 8 | G124: 71.6 | H124: 853 | I124: 853 | J124: 12801 | K124: 12801 | L124: 991 | M124: 991 | N124: =Materialkosten!$C$7/1000*G124 -> 42.96 | O124: =ProduktbezogeneKosten!$F$12/1000*G124 -> 22.6972
C125: 122 | D125: 350 | E125: 250 | F125: 8 | G125: 71.6 | H125: 914 | I125: 766 | J125: 16001 | K125: 9573 | L125: 1092 | M125: 869 | N125: =Materialkosten!$C$7/1000*G125 -> 42.96 | O125: =ProduktbezogeneKosten!$F$12/1000*G125 -> 22.6972
C126: 123 | D126: 400 | E126: 200 | F126: 8 | G126: 71.6 | H126: 949 | I126: 652 | J126: 18974 | K126: 6517 | L126: 1173 | M126: 728 | N126: =Materialkosten!$C$7/1000*G126 -> 42.96 | O126: =ProduktbezogeneKosten!$F$12/1000*G126 -> 22.6972
C127: 124 | D127: 250 | E127: 250 | F127: 10 | G127: 72.7 | H127: 697 | I127: 697 | J127: 8707 | K127: 8707 | L127: 822 | M127: 822 | N127: =Materialkosten!$C$7/1000*G127 -> 43.62 | O127: =ProduktbezogeneKosten!$F$12/1000*G127 -> 23.0459
C128: 125 | D128: 300 | E128: 200 | F128: 10 | G128: 72.7 | H128: 754 | I128: 606 | J128: 11313 | K128: 6058 | L128: 921 | M128: 698 | N128: =Materialkosten!$C$7/1000*G128 -> 43.62 | O128: =ProduktbezogeneKosten!$F$12/1000*G128 -> 23.0459
C129: 126 | D129: 260 | E129: 260 | F129: 10 | G129: 75.8 | H129: 759 | I129: 759 | J129: 9865 | K129: 9865 | L129: 894 | M129: 894 | N129: =Materialkosten!$C$7/1000*G129 -> 45.48 | O129: =ProduktbezogeneKosten!$F$12/1000*G129 -> 24.0286
C130: 127 | D130: 220 | E130: 220 | F130: 12.5 | G130: 76.2 | H130: 607 | I130: 607 | J130: 6674 | K130: 6674 | L130: 735 | M130: 735 | N130: =Materialkosten!$C$7/1000*G130 -> 45.72 | O130: =ProduktbezogeneKosten!$F$12/1000*G130 -> 24.1554
C131: 128 | D131: 350 | E131: 350 | F131: 8 | G131: 84.2 | H131: 1182 | I131: 1182 | J131: 20681 | K131: 20681 | L131: 1366 | M131: 1366 | N131: =Materialkosten!$C$7/1000*G131 -> 50.52 | O131: =ProduktbezogeneKosten!$F$12/1000*G131 -> 26.6914
C132: 129 | D132: 400 | E132: 300 | F132: 8 | G132: 84.2 | H132: 1256 | I132: 1081 | J132: 25122 | K132: 16212 | L132: 1487 | M132: 1224 | N132: =Materialkosten!$C$7/1000*G132 -> 50.52 | O132: =ProduktbezogeneKosten!$F$12/1000*G132 -> 26.6914
C133: =C132+1 -> 130 | D133: 250 | E133: 250 | F133: 12.5 | G133: 88 | H133: 813 | I133: 813 | J133: 10161 | K133: 10161 | L133: 975 | M133: 975 | N133: =Materialkosten!$C$7/1000*G133 -> 52.8 | O133: =ProduktbezogeneKosten!$F$12/1000*G133 -> 27.896
C134: 131 | D134: 300 | E134: 200 | F134: 12.5 | G134: 88 | H134: 879 | I134: 706 | J134: 13179 | K134: 7066 | L134: 1091 | M134: 828 | N134: =Materialkosten!$C$7/1000*G134 -> 52.8 | O134: =ProduktbezogeneKosten!$F$12/1000*G134 -> 27.896
C135: 132 | D135: 300 | E135: 300 | F135: 10 | G135: 88.4 | H135: 1035 | I135: 1035 | J135: 15519 | K135: 15519 | L135: 1211 | M135: 1211 | N135: =Materialkosten!$C$7/1000*G135 -> 53.04 | O135: =ProduktbezogeneKosten!$F$12/1000*G135 -> 28.0228
C136: 133 | D136: 350 | E136: 250 | F136: 10 | G136: 88.4 | H136: 1109 | I136: 927 | J136: 19407 | K136: 11588 | L136: 1335 | M136: 1062 | N136: =Materialkosten!$C$7/1000*G136 -> 53.04 | O136: =ProduktbezogeneKosten!$F$12/1000*G136 -> 28.0228
C137: 134 | D137: 400 | E137: 200 | F137: 10 | G137: 88.4 | H137: 1150 | I137: 786 | J137: 23003 | K137: 7864 | L137: 1434 | M137: 888 | N137: =Materialkosten!$C$7/1000*G137 -> 53.04 | O137: =ProduktbezogeneKosten!$F$12/1000*G137 -> 28.0228
C138: 135 | D138: 260 | E138: 260 | F138: 12.5 | G138: 91.9 | H138: 888 | I138: 888 | J138: 11548 | K138: 11548 | L138: 1063 | M138: 1063 | N138: =Materialkosten!$C$7/1000*G138 -> 55.14 | O138: =ProduktbezogeneKosten!$F$12/1000*G138 -> 29.1323
C139: 136 | D139: 350 | E139: 350 | F139: 10 | G139: 104 | H139: 1439 | I139: 1439 | J139: 25184 | K139: 25184 | L139: 1675 | M139: 1675 | N139: =Materialkosten!$C$7/1000*G139 -> 62.4 | O139: =ProduktbezogeneKosten!$F$12/1000*G139 -> 32.968
C140: 137 | D140: 350 | E140: 250 | F140: 12 | G140: 104 | H140: 1268 | I140: 1061 | J140: 22197 | K140: 13261 | L140: 1544 | M140: 1229 | N140: =Materialkosten!$C$7/1000*G140 -> 62.4 | O140: =ProduktbezogeneKosten!$F$12/1000*G140 -> 32.968
C141: 138 | D141: 400 | E141: 300 | F141: 10 | G141: 104 | H141: 1530 | I141: 1315 | J141: 30609 | K141: 19726 | L141: 1824 | M141: 1501 | N141: =Materialkosten!$C$7/1000*G141 -> 62.4 | O141: =ProduktbezogeneKosten!$F$12/1000*G141 -> 32.968
C142: 139 | D142: 300 | E142: 300 | F142: 12.5 | G142: 108 | H142: 1223 | I142: 1223 | J142: 18348 | K142: 18348 | L142: 1451 | M142: 1451 | N142: =Materialkosten!$C$7/1000*G142 -> 64.8 | O142: =ProduktbezogeneKosten!$F$12/1000*G142 -> 34.236
C143: 140 | D143: 400 | E143: 200 | F143: 12.5 | G143: 108 | H143: 1355 | I143: 926 | J143: 27100 | K143: 9260 | L143: 1714 | M143: 1062 | N143: =Materialkosten!$C$7/1000*G143 -> 64.8 | O143: =ProduktbezogeneKosten!$F$12/1000*G143 -> 34.236
C144: 141 | D144: 400 | E144: 400 | F144: 10 | G144: 120 | H144: 1911 | I144: 1911 | J144: 38216 | K144: 38216 | L144: 2214 | M144: 2214 | N144: =Materialkosten!$C$7/1000*G144 -> 72 | O144: =ProduktbezogeneKosten!$F$12/1000*G144 -> 38.04
C145: 142 | D145: 400 | E145: 300 | F145: 12 | G145: 123 | H145: 1764 | I145: 1516 | J145: 35284 | K145: 22747 | L145: 2122 | M145: 1747 | N145: =Materialkosten!$C$7/1000*G145 -> 73.8 | O145: =ProduktbezogeneKosten!$F$12/1000*G145 -> 38.991
C146: 143 | D146: 350 | E146: 350 | F146: 12.5 | G146: 127 | H146: 1717 | I146: 1717 | J146: 30045 | K146: 30045 | L146: 2020 | M146: 2020 | N146: =Materialkosten!$C$7/1000*G146 -> 76.2 | O146: =ProduktbezogeneKosten!$F$12/1000*G146 -> 40.259
C147: 144 | D147: 400 | E147: 400 | F147: 12.5 | G147: 147 | H147: 2294 | I147: 2294 | J147: 45877 | K147: 45877 | L147: 2683 | M147: 2683 | N147: =Materialkosten!$C$7/1000*G147 -> 88.2 | O147: =ProduktbezogeneKosten!$F$12/1000*G147 -> 46.599

Sheet Hohlprofil-warmgefertigt
A1: Querschnittswerte Hohlprofile-warmgefertigt
C2: Querschnitt- Nummer | D2: Höhe [mm] | E2: Breite [mm] | F2: Wand-stärke [mm] | G2: Gewicht [kg/m] | H2: Wy [cm³] | I2: Wz [cm³] | J2: Iy [cm4] | K2: Iz [cm4] | L2: Wpl,y [cm³] | M2: Wpl,z [cm³] | N2: Material- preis [€/m] | O2: Produkt- bezogene Kosten [€/m]
C4: 1 | D4: 40 | E4: 40 | F4: 3 | G4: 3.41 | H4: 4.89 | I4: 4.89 | J4: 9.78 | K4: 9.78 | L4: 5.97 | M4: 5.97 | N4: =Materialkosten!$C$7/1000*G4 -> 2.046 | O4: =ProduktbezogeneKosten!$F$14/1000*G4 -> 1.34354
C5: =C4+1 -> 2 | D5: 50 | E5: 30 | F5: 3 | G5: 3.41 | H5: 5.43 | I5: 3.96 | J5: 13.6 | K5: 5.94 | L5: 6.88 | M5: 4.76 | N5: =Materialkosten!$C$7/1000*G5 -> 2.046 | O5: =ProduktbezogeneKosten!$F$14/1000*G5 -> 1.34354
C6: 3 | D6: 50 | E6: 50 | F6: 3 | G6: 4.35 | H6: 8.08 | I6: 8.08 | J6: 20.2 | K6: 20.2 | L6: 9.7 | M6: 9.7 | N6: =Materialkosten!$C$7/1000*G6 -> 2.61 | O6: =ProduktbezogeneKosten!$F$14/1000*G6 -> 1.7139
C7: 4 | D7: 60 | E7: 40 | F7: 3 | G7: 4.35 | H7: 8.82 | I7: 6.95 | J7: 26.5 | K7: 13.9 | L7: 10.9 | M7: 8.19 | N7: =Materialkosten!$C$7/1000*G7 -> 2.61 | O7: =ProduktbezogeneKosten!$F$14/1000*G7 -> 1.7139
C8: 5 | D8: 40 | E8: 40 | F8: 4 | G8: 4.39 | H8: 5.91 | I8: 5.91 | J8: 11.8 | K8: 11.8 | L8: 7.44 | M8: 7.44 | N8: =Materialkosten!$C$7/1000*G8 -> 2.634 | O8: =ProduktbezogeneKosten!$F$14/1000*G8 -> 1.72966
C9: 6 | D9: 50 | E9: 30 | F9: 4 | G9: 4.39 | H9: 6.6 | I9: 4.72 | J9: 16.5 | K9: 7.08 | L9: 8.59 | M9: 5.88 | N9: =Materialkosten!$C$7/1000*G9 -> 2.634 | O9: =ProduktbezogeneKosten!$F$14/1000*G9 -> 1.72966
C10: 7 | D10: 80 | E10: 40 | F10: 3 | G10: 5.29 | H10: 13.6 | I10: 9 | J10: 54.2 | K10: 18 | L10: 17.1 | M10: 10.4 | N10: =Materialkosten!$C$7/1000*G10 -> 3.174 | O10: =ProduktbezogeneKosten!$F$14/1000*G10 -> 2.08426
C11: 8 | D11: 60 | E11: 60 | F11: 3 | G11: 5.39 | H11: 12.1 | I11: 12.1 | J11: 36.2 | K11: 36.2 | L11: 14.3 | M11: 14.3 | N11: =Materialkosten!$C$7/1000*G11 -> 3.234 | O11: =ProduktbezogeneKosten!$F$14/1000*G11 -> 2.12366
C12: 9 | D12: 50 | E12: 50 | F12: 4 | G12: 5.64 | H12: 9.99 | I12: 9.99 | J12: 25 | K12: 25 | L12: 12.3 | M12: 12.3 | N12: =Materialkosten!$C$7/1000*G12 -> 3.384 | O12: =ProduktbezogeneKosten!$F$14/1000*G12 -> 2.22216
C13: 10 | D13: 60 | E13: 40 | F13: 4 | G13: 5.64 | H13: 10.9 | I13: 8.52 | J13: 32.8 | K13: 17 | L13: 13.8 | M13: 10.3 | N13: =Materialkosten!$C$7/1000*G13 -> 3.384 | O13: =ProduktbezogeneKosten!$F$14/1000*G13 -> 2.22216
C14: 11 | D14: 70 | E14: 70 | F14: 3 | G14: 6.24 | H14: 16.9 | I14: 16.9 | J14: 59 | K14: 59 | L14: 19.9 | M14: 19.9 | N14: =Materialkosten!$C$7/1000*G14 -> 3.744 | O14: =ProduktbezogeneKosten!$F$14/1000*G14 -> 2.45856
C15: 12 | D15: 90 | E15: 50 | F15: 3 | G15: 6.24 | H15: 18.8 | I15: 13.4 | J15: 84.4 | K15: 33.5 | L15: 23.2 | M15: 15.3 | N15: =Materialkosten!$C$7/1000*G15 -> 3.744 | O15: =ProduktbezogeneKosten!$F$14/1000*G15 -> 2.45856
C16: 13 | D16: 60 | E16: 60 | F16: 4 | G16: 6.9 | H16: 15.1 | I16: 15.1 | J16: 45.4 | K16: 45.4 | L16: 18.3 | M16: 18.3 | N16: =Materialkosten!$C$7/1000*G16 -> 4.14 | O16: =ProduktbezogeneKosten!$F$14/1000*G16 -> 2.7186
C17: 14 | D17: 80 | E17: 40 | F17: 4 | G17: 6.9 | H17: 17.1 | I17: 11.1 | J17: 68.2 | K17: 22.2 | L17: 21.8 | M17: 13.2 | N17: =Materialkosten!$C$7/1000*G17 -> 4.14 | O17: =ProduktbezogeneKosten!$F$14/1000*G17 -> 2.7186
C18: 15 | D18: 70 | E18: 70 | F18: 4 | G18: 8.15 | H18: 21.3 | I18: 21.3 | J18: 74.7 | K18: 74.7 | L18: 25.5 | M18: 25.5 | N18: =Materialkosten!$C$7/1000*G18 -> 4.89 | O18: =ProduktbezogeneKosten!$F$14/1000*G18 -> 3.2111
C19: 16 | D19: 90 | E19: 50 | F19: 4 | G19: 8.15 | H19: 23.8 | I19: 16.8 | J19: 107 | K19: 51.9 | L19: 29.8 | M19: 19.6 | N19: =Materialkosten!$C$7/1000*G19 -> 4.89 | O19: =ProduktbezogeneKosten!$F$14/1000*G19 -> 3.2111
C20: 17 | D20: 60 | E20: 60 | F20: 5 | G20: 8.42 | H20: 17.8 | I20: 17.8 | J20: 53.3 | K20: 53.3 | L20: 21.9 | M20: 21.9 | N20: =Materialkosten!$C$7/1000*G20 -> 5.052 | O20: =ProduktbezogeneKosten!$F$14/1000*G20 -> 3.31748
C21: 18 | D21: 80 | E21: 40 | F21: 5 | G21: 8.42 | H21: 20.1 | I21: 12.9 | J21: 80.3 | K21: 25.7 | L21: 26.1 | M21: 15.7 | N21: =Materialkosten!$C$7/1000*G21 -> 5.052 | O21: =ProduktbezogeneKosten!$F$14/1000*G21 -> 3.31748
C22: 19 | D22: 100 | E22: 50 | F22: 4 | G22: 8.78 | H22: 27.9 | I22: 18.5 | J22: 140 | K22: 46.2 | L22: 35.2 | M22: 21.5 | N22: =Materialkosten!$C$7/1000*G22 -> 5.268 | O22: =ProduktbezogeneKosten!$F$14/1000*G22 -> 3.45932
C23: 20 | D23: 80 | E23: 80 | F23: 4 | G23: 9.41 | H23: 28.6 | I23: 28.6 | J23: 114 | K23: 114 | L23: 34 | M23: 34 | N23: =Materialkosten!$C$7/1000*G23 -> 5.646 | O23: =ProduktbezogeneKosten!$F$14/1000*G23 -> 3.70754
C24: 21 | D24: 100 | E24: 60 | F24: 4 | G24: 9.41 | H24: 31.6 | I24: 23.5 | J24: 158 | K24: 70.5 | L24: 39.1 | M24: 27.3 | N24: =Materialkosten!$C$7/1000*G24 -> 5.646 | O24: =ProduktbezogeneKosten!$F$14/1000*G24 -> 3.70754
C25: 22 | D25: 70 | E25: 70 | F25: 5 | G25: 9.99 | H25: 25.3 | I25: 25.3 | J25: 88.5 | K25: 88.5 | L25: 30.8 | M25: 30.8 | N25: =Materialkosten!$C$7/1000*G25 -> 5.994 | O25: =ProduktbezogeneKosten!$F$14/1000*G25 -> 3.93606
C26: 23 | D26: 90 | E26: 50 | F26: 5 | G26: 9.99 | H26: 28.3 | I26: 19.7 | J26: 127 | K26: 49.2 | L26: 36 | M26: 23.5 | N26: =Materialkosten!$C$7/1000*G26 -> 5.994 | O26: =ProduktbezogeneKosten!$F$14/1000*G26 -> 3.93606
C27: 24 | D27: 90 | E27: 90 | F27: 4 | G27: 10.7 | H27: 37 | I27: 37 | J27: 166 | K27: 166 | L27: 43.6 | M27: 43.6 | N27: =Materialkosten!$C$7/1000*G27 -> 6.42 | O27: =ProduktbezogeneKosten!$F$14/1000*G27 -> 4.2158
C28: 25 | D28: 120 | E28: 60 | F28: 4 | G28: 10.7 | H28: 41.5 | I28: 27.7 | J28: 249 | K28: 83.1 | L28: 51.9 | M28: 31.7 | N28: =Materialkosten!$C$7/1000*G28 -> 6.42 | O28: =ProduktbezogeneKosten!$F$14/1000*G28 -> 4.2158
C29: 26 | D29: 100 | E29: 50 | F29: 5 | G29: 10.8 | H29: 33.3 | I29: 21.7 | J29: 167 | K29: 54.3 | L29: 42.6 | M29: 25.8 | N29: =Materialkosten!$C$7/1000*G29 -> 6.48 | O29: =ProduktbezogeneKosten!$F$14/1000*G29 -> 4.2552
C30: 27 | D30: 80 | E30: 80 | F30: 5 | G30: 11.6 | H30: 34.2 | I30: 34.2 | J30: 137 | K30: 137 | L30: 41.1 | M30: 41.1 | N30: =Materialkosten!$C$7/1000*G30 -> 6.96 | O30: =ProduktbezogeneKosten!$F$14/1000*G30 -> 4.5704
C31: 28 | D31: 100 | E31: 60 | F31: 5 | G31: 11.6 | H31: 37.8 | I31: 27.9 | J31: 189 | K31: 83.6 | L31: 47.4 | M31: 32.9 | N31: =Materialkosten!$C$7/1000*G31 -> 6.96 | O31: =ProduktbezogeneKosten!$F$14/1000*G31 -> 4.5704
C32: 29 | D32: 100 | E32: 100 | F32: 4 | G32: 11.9 | H32: 46.4 | I32: 46.4 | J32: 232 | K32: 232 | L32: 54.4 | M32: 54.4 | N32: =Materialkosten!$C$7/1000*G32 -> 7.14 | O32: =ProduktbezogeneKosten!$F$14/1000*G32 -> 4.6886
C33: 30 | D33: 120 | E33: 80 | F33: 4 | G33: 11.9 | H33: 50.4 | I33: 40.2 | J33: 303 | K33: 161 | L33: 61.2 | M33: 46.1 | N33: =Materialkosten!$C$7/1000*G33 -> 7.14 | O33: =ProduktbezogeneKosten!$F$14/1000*G33 -> 4.6886
C34: 31 | D34: 90 | E34: 90 | F34: 5 | G34: 13.1 | H34: 44.4 | I34: 44.4 | J34: 200 | K34: 200 | L34: 53 | M34: 53 | N34: =Materialkosten!$C$7/1000*G34 -> 7.86 | O34: =ProduktbezogeneKosten!$F$14/1000*G34 -> 5.1614
C35: 32 | D35: 120 | E35: 60 | F35: 5 | G35: 13.1 | H35: 49.9 | I35: 32.9 | J35: 299 | K35: 98.8 | L35: 63.1 | M35: 38.4 | N35: =Materialkosten!$C$7/1000*G35 -> 7.86 | O35: =ProduktbezogeneKosten!$F$14/1000*G35 -> 5.1614
C36: 33 | D36: 140 | E36: 80 | F36: 4 | G36: 13.2 | H36: 62.9 | I36: 46 | J36: 441 | K36: 184 | L36: 77.1 | M36: 52.2 | N36: =Materialkosten!$C$7/1000*G36 -> 7.92 | O36: =ProduktbezogeneKosten!$F$14/1000*G36 -> 5.2008
C37: 34 | D37: 100 | E37: 50 | F37: 6.3 | G37: 13.3 | H37: 39.4 | I37: 25.2 | J37: 197 | K37: 63 | L37: 51.3 | M37: 30.8 | N37: =Materialkosten!$C$7/1000*G37 -> 7.98 | O37: =ProduktbezogeneKosten!$F$14/1000*G37 -> 5.2402
C38: 35 | D38: 80 | E38: 80 | F38: 6.3 | G38: 14.2 | H38: 40.5 | I38: 40.5 | J38: 156 | K38: 156 | L38: 49.7 | M38: 49.7 | N38: =Materialkosten!$C$7/1000*G38 -> 8.52 | O38: =ProduktbezogeneKosten!$F$14/1000*G38 -> 5.5948
C39: 36 | D39: 100 | E39: 60 | F39: 6.3 | G39: 14.2 | H39: 45 | I39: 32.7 | J39: 225 | K39: 98.1 | L39: 57.3 | M39: 39.5 | N39: =Materialkosten!$C$7/1000*G39 -> 8.52 | O39: =ProduktbezogeneKosten!$F$14/1000*G39 -> 5.5948
C40: 37 | D40: 100 | E40: 100 | F40: 5 | G40: 14.7 | H40: 55.9 | I40: 55.9 | J40: 279 | K40: 279 | L40: 66.4 | M40: 66.4 | N40: =Materialkosten!$C$7/1000*G40 -> 8.82 | O40: =ProduktbezogeneKosten!$F$14/1000*G40 -> 5.7918
C41: 38 | D41: 120 | E41: 80 | F41: 5 | G41: 14.7 | H41: 60.9 | I41: 48.2 | J41: 365 | K41: 193 | L41: 74.6 | M41: 56.1 | N41: =Materialkosten!$C$7/1000*G41 -> 8.82 | O41: =ProduktbezogeneKosten!$F$14/1000*G41 -> 5.7918
C42: 39 | D42: 90 | E42: 90 | F42: 6.3 | G42: 16.2 | H42: 53 | I42: 53 | J42: 238 | K42: 238 | L42: 64.3 | M42: 64.3 | N42: =Materialkosten!$C$7/1000*G42 -> 9.72 | O42: =ProduktbezogeneKosten!$F$14/1000*G42 -> 6.3828
C43: 40 | D43: 120 | E43: 60 | F43: 6.3 | G43: 16.2 | H43: 59.7 | I43: 38.8 | J43: 358 | K43: 116 | L43: 76.7 | M43: 46.3 | N43: =Materialkosten!$C$7/1000*G43 -> 9.72 | O43: =ProduktbezogeneKosten!$F$14/1000*G43 -> 6.3828
C44: 41 | D44: 140 | E44: 80 | F44: 5 | G44: 16.3 | H44: 76.3 | I44: 55.3 | J44: 534 | K44: 222 | L44: 94.3 | M44: 63.6 | N44: =Materialkosten!$C$7/1000*G44 -> 9.78 | O44: =ProduktbezogeneKosten!$F$14/1000*G44 -> 6.4222
C45: 42 | D45: 120 | E45: 120 | F45: 5 | G45: 17.8 | H45: 83 | I45: 83 | J45: 498 | K45: 498 | L45: 97.6 | M45: 97.6 | N45: =Materialkosten!$C$7/1000*G45 -> 10.68 | O45: =ProduktbezogeneKosten!$F$14/1000*G45 -> 7.0132
C46: 43 | D46: 160 | E46: 80 | F46: 5 | G46: 17.8 | H46: 93 | I46: 62.3 | J46: 744 | K46: 249 | L46: 116 | M46: 71.1 | N46: =Materialkosten!$C$7/1000*G46 -> 10.68 | O46: =ProduktbezogeneKosten!$F$14/1000*G46 -> 7.0132
C47: 44 | D47: 100 | E47: 100 | F47: 6.3 | G47: 18.2 | H47: 67.1 | I47: 67.1 | J47: 336 | K47: 336 | L47: 80.9 | M47: 80.9 | N47: =Materialkosten!$C$7/1000*G47 -> 10.92 | O47: =ProduktbezogeneKosten!$F$14/1000*G47 -> 7.1708
C48: 45 | D48: 120 | E48: 80 | F48: 6.3 | G48: 18.2 | H48: 73.3 | I48: 57.6 | J48: 440 | K48: 230 | L48: 91 | M48: 68.2 | N48: =Materialkosten!$C$7/1000*G48 -> 10.92 | O48: =ProduktbezogeneKosten!$F$14/1000*G48 -> 7.1708
C49: 46 | D49: 140 | E49: 80 | F49: 6.3 | G49: 20.2 | H49: 92.3 | I49: 66.2 | J49: 646 | K49: 265 | L49: 115 | M49: 77.5 | N49: =Materialkosten!$C$7/1000*G49 -> 12.12 | O49: =ProduktbezogeneKosten!$F$14/1000*G49 -> 7.9588
C50: 47 | D50: 140 | E50: 140 | F50: 5 | G50: 21 | H50: 115 | I50: 115 | J50: 807 | K50: 807 | L50: 135 | M50: 135 | N50: =Materialkosten!$C$7/1000*G50 -> 12.6 | O50: =ProduktbezogeneKosten!$F$14/1000*G50 -> 8.274
C51: 48 | D51: 180 | E51: 100 | F51: 5 | G51: 21 | H51: 128 | I51: 92 | J51: 1153 | K51: 460 | L51: 157 | M51: 104 | N51: =Materialkosten!$C$7/1000*G51 -> 12.6 | O51: =ProduktbezogeneKosten!$F$14/1000*G51 -> 8.274
C52: 49 | D52: 120 | E52: 120 | F52: 6.3 | G52: 22.2 | H52: 100 | I52: 100 | J52: 603 | K52: 603 | L52: 120 | M52: 120 | N52: =Materialkosten!$C$7/1000*G52 -> 13.32 | O52: =ProduktbezogeneKosten!$F$14/1000*G52 -> 8.7468
C53: 50 | D53: 160 | E53: 80 | F53: 6.3 | G53: 22.2 | H53: 113 | I53: 74.8 | J53: 903 | K53: 299 | L53: 142 | M53: 86.8 | N53: =Materialkosten!$C$7/1000*G53 -> 13.32 | O53: =ProduktbezogeneKosten!$F$14/1000*G53 -> 8.7468
C54: 51 | D54: 150 | E54: 150 | F54: 5 | G54: 22.6 | H54: 134 | I54: 134 | J54: 1002 | K54: 1002 | L54: 156 | M54: 156 | N54: =Materialkosten!$C$7/1000*G54 -> 13.56 | O54: =ProduktbezogeneKosten!$F$14/1000*G54 -> 8.9044
C55: 52 | D55: 150 | E55: 100 | F55: 6.3 | G55: 23.1 | H55: 120 | I55: 94.8 | J55: 898 | K55: 474 | L55: 147 | M55: 110 | N55: =Materialkosten!$C$7/1000*G55 -> 13.86 | O55: =ProduktbezogeneKosten!$F$14/1000*G55 -> 9.1014
C56: 53 | D56: 140 | E56: 140 | F56: 6.3 | G56: 26.1 | H56: 141 | I56: 141 | J56: 984 | K56: 984 | L56: 166 | M56: 166 | N56: =Materialkosten!$C$7/1000*G56 -> 15.66 | O56: =ProduktbezogeneKosten!$F$14/1000*G56 -> 10.2834
C57: 54 | D57: 180 | E57: 100 | F57: 6.3 | G57: 26.1 | H57: 156 | I57: 111 | J57: 1407 | K57: 557 | L57: 194 | M57: 128 | N57: =Materialkosten!$C$7/1000*G57 -> 15.66 | O57: =ProduktbezogeneKosten!$F$14/1000*G57 -> 10.2834
C58: 55 | D58: 120 | E58: 120 | F58: 8 | G58: 27.6 | H58: 121 | I58: 121 | J58: 726 | K58: 726 | L58: 146 | M58: 146 | N58: =Materialkosten!$C$7/1000*G58 -> 16.56 | O58: =ProduktbezogeneKosten!$F$14/1000*G58 -> 10.8744
C59: 56 | D59: 160 | E59: 80 | F59: 8 | G59: 27.6 | H59: 136 | I59: 89 | J59: 1091 | K59: 356 | L59: 175 | M59: 106 | N59: =Materialkosten!$C$7/1000*G59 -> 16.56 | O59: =ProduktbezogeneKosten!$F$14/1000*G59 -> 10.8744
C60: 57 | D60: 150 | E60: 150 | F60: 6.3 | G60: 28.1 | H60: 163 | I60: 163 | J60: 1223 | K60: 1223 | L60: 192 | M60: 192 | N60: =Materialkosten!$C$7/1000*G60 -> 16.86 | O60: =ProduktbezogeneKosten!$F$14/1000*G60 -> 11.0714
C61: 58 | D61: 200 | E61: 100 | F61: 6.3 | G61: 28.1 | H61: 183 | I61: 123 | J61: 1829 | K61: 613 | L61: 228 | M61: 140 | N61: =Materialkosten!$C$7/1000*G61 -> 16.86 | O61: =ProduktbezogeneKosten!$F$14/1000*G61 -> 11.0714
C62: 59 | D62: 150 | E62: 100 | F62: 8 | G62: 28.9 | H62: 145 | I62: 114 | J62: 1087 | K62: 569 | L62: 180 | M62: 135 | N62: =Materialkosten!$C$7/1000*G62 -> 17.34 | O62: =ProduktbezogeneKosten!$F$14/1000*G62 -> 11.3866
C63: 60 | D63: 160 | E63: 160 | F63: 6.3 | G63: 30.1 | H63: 187 | I63: 187 | J63: 1499 | K63: 1499 | L63: 220 | M63: 220 | N63: =Materialkosten!$C$7/1000*G63 -> 18.06 | O63: =ProduktbezogeneKosten!$F$14/1000*G63 -> 11.8594
C64: 61 | D64: 200 | E64: 120 | F64: 6.3 | G64: 30.1 | H64: 207 | I64: 155 | J64: 2065 | K64: 929 | L64: 253 | M64: 177 | N64: =Materialkosten!$C$7/1000*G64 -> 18.06 | O64: =ProduktbezogeneKosten!$F$14/1000*G64 -> 11.8594
C65: 62 | D65: 140 | E65: 140 | F65: 8 | G65: 32.6 | H65: 171 | I65: 171 | J65: 1195 | K65: 1195 | L65: 204 | M65: 204 | N65: =Materialkosten!$C$7/1000*G65 -> 19.56 | O65: =ProduktbezogeneKosten!$F$14/1000*G65 -> 12.8444
C66: 63 | D66: 180 | E66: 100 | F66: 8 | G66: 32.6 | H66: 190 | I66: 134 | J66: 1713 | K66: 671 | L66: 239 | M66: 157 | N66: =Materialkosten!$C$7/1000*G66 -> 19.56 | O66: =ProduktbezogeneKosten!$F$14/1000*G66 -> 12.8444
C67: 64 | D67: 120 | E67: 120 | F67: 10 | G67: 33.7 | H67: 142 | I67: 142 | J67: 852 | K67: 852 | L67: 175 | M67: 175 | N67: =Materialkosten!$C$7/1000*G67 -> 20.22 | O67: =ProduktbezogeneKosten!$F$14/1000*G67 -> 13.2778
C68: 65 | D68: 160 | E68: 80 | F68: 10 | G68: 33.7 | H68: 161 | I68: 103 | J68: 1284 | K68: 411 | L68: 209 | M68: 125 | N68: =Materialkosten!$C$7/1000*G68 -> 20.22 | O68: =ProduktbezogeneKosten!$F$14/1000*G68 -> 13.2778
C69: =C68+1 -> 66 | D69: 180 | E69: 180 | F69: 6.3 | G69: 34 | H69: 241 | I69: 241 | J69: 2168 | K69: 2168 | L69: 281 | M69: 281 | N69: =Materialkosten!$C$7/1000*G69 -> 20.4 | O69: =ProduktbezogeneKosten!$F$14/1000*G69 -> 13.396
C70: 67 | D70: 150 | E70: 150 | F70: 8 | G70: 35.1 | H70: 199 | I70: 199 | J70: 1491 | K70: 1491 | L70: 237 | M70: 237 | N70: =Materialkosten!$C$7/1000*G70 -> 21.06 | O70: =ProduktbezogeneKosten!$F$14/1000*G70 -> 13.8294
C71: 68 | D71: 200 | E71: 100 | F71: 8 | G71: 35.1 | H71: 223 | I71: 148 | J71: 2234 | K71: 739 | L71: 282 | M71: 172 | N71: =Materialkosten!$C$7/1000*G71 -> 21.06 | O71: =ProduktbezogeneKosten!$F$14/1000*G71 -> 13.8294
C72: 69 | D72: 150 | E72: 100 | F72: 10 | G72: 35.3 | H72: 171 | I72: 133 | J72: 1282 | K72: 665 | L72: 216 | M72: 161 | N72: =Materialkosten!$C$7/1000*G72 -> 21.18 | O72: =ProduktbezogeneKosten!$F$14/1000*G72 -> 13.9082
C73: 70 | D73: 160 | E73: 160 | F73: 8 | G73: 37.6 | H73: 229 | I73: 229 | J73: 1831 | K73: 1831 | L73: 272 | M73: 272 | N73: =Materialkosten!$C$7/1000*G73 -> 22.56 | O73: =ProduktbezogeneKosten!$F$14/1000*G73 -> 14.8144
C74: 71 | D74: 200 | E74: 120 | F74: 8 | G74: 37.6 | H74: 253 | I74: 188 | J74: 2529 | K74: 1128 | L74: 313 | M74: 218 | N74: =Materialkosten!$C$7/1000*G74 -> 22.56 | O74: =ProduktbezogeneKosten!$F$14/1000*G74 -> 14.8144
C75: 72 | D75: 200 | E75: 200 | F75: 6.3 | G75: 38 | H75: 301 | I75: 301 | J75: 3011 | K75: 3011 | L75: 350 | M75: 350 | N75: =Materialkosten!$C$7/1000*G75 -> 22.8 | O75: =ProduktbezogeneKosten!$F$14/1000*G75 -> 14.972
C76: 73 | D76: 250 | E76: 150 | F76: 6.3 | G76: 38 | H76: 331 | I76: 250 | J76: 4143 | K76: 1874 | L76: 400 | M76: 283 | N76: =Materialkosten!$C$7/1000*G76 -> 22.8 | O76: =ProduktbezogeneKosten!$F$14/1000*G76 -> 14.972
C77: 74 | D77: 140 | E77: 140 | F77: 10 | G77: 40 | H77: 202 | I77: 202 | J77: 1416 | K77: 1416 | L77: 246 | M77: 246 | N77: =Materialkosten!$C$7/1000*G77 -> 24 | O77: =ProduktbezogeneKosten!$F$14/1000*G77 -> 15.76
C78: 75 | D78: 180 | E78: 100 | F78: 10 | G78: 40 | H78: 226 | I78: 157 | J78: 2036 | K78: 787 | L78: 288 | M78: 177 | N78: =Materialkosten!$C$7/1000*G78 -> 24 | O78: =ProduktbezogeneKosten!$F$14/1000*G78 -> 15.76
C79: 76 | D79: 220 | E79: 220 | F79: 6.3 | G79: 41.9 | H79: 368 | I79: 368 | J79: 4049 | K79: 4049 | L79: 427 | M79: 427 | N79: =Materialkosten!$C$7/1000*G79 -> 25.14 | O79: =ProduktbezogeneKosten!$F$14/1000*G79 -> 16.5086
C80: 77 | D80: 260 | E80: 180 | F80: 6.3 | G80: 41.9 | H80: 397 | I80: 325 | J80: 5166 | K80: 2929 | L80: 475 | M80: 369 | N80: =Materialkosten!$C$7/1000*G80 -> 25.14 | O80: =ProduktbezogeneKosten!$F$14/1000*G80 -> 16.5086
C81: 78 | D81: 180 | E81: 180 | F81: 8 | G81: 42.7 | H81: 296 | I81: 296 | J81: 2661 | K81: 2661 | L81: 349 | M81: 349 | N81: =Materialkosten!$C$7/1000*G81 -> 25.62 | O81: =ProduktbezogeneKosten!$F$14/1000*G81 -> 16.8238
C82: 79 | D82: 150 | E82: 150 | F82: 10 | G82: 43.1 | H82: 236 | I82: 236 | J82: 1773 | K82: 1773 | L82: 286 | M82: 286 | N82: =Materialkosten!$C$7/1000*G82 -> 25.86 | O82: =ProduktbezogeneKosten!$F$14/1000*G82 -> 16.9814
C83: 80 | D83: 200 | E83: 100 | F83: 10 | G83: 43.1 | H83: 266 | I83: 174 | J83: 2664 | K83: 869 | L83: 341 | M83: 206 | N83: =Materialkosten!$C$7/1000*G83 -> 25.86 | O83: =ProduktbezogeneKosten!$F$14/1000*G83 -> 16.9814
C84: 81 | D84: 160 | E84: 160 | F84: 10 | G84: 46.3 | H84: 273 | I84: 273 | J84: 2186 | K84: 2186 | L84: 329 | M84: 329 | N84: =Materialkosten!$C$7/1000*G84 -> 27.78 | O84: =ProduktbezogeneKosten!$F$14/1000*G84 -> 18.2422
C85: 82 | D85: 200 | E85: 120 | F85: 10 | G85: 46.3 | H85: 303 | I85: 223 | J85: 3026 | K85: 1337 | L85: 379 | M85: 263 | N85: =Materialkosten!$C$7/1000*G85 -> 27.78 | O85: =ProduktbezogeneKosten!$F$14/1000*G85 -> 18.2422
C86: 83 | D86: 200 | E86: 200 | F86: 8 | G86: 47.7 | H86: 371 | I86: 371 | J86: 3709 | K86: 3709 | L86: 436 | M86: 436 | N86: =Materialkosten!$C$7/1000*G86 -> 28.62 | O86: =ProduktbezogeneKosten!$F$14/1000*G86 -> 18.7938
C87: 84 | D87: 250 | E87: 150 | F87: 8 | G87: 47.7 | H87: 409 | I87: 306 | J87: 5111 | K87: 2298 | L87: 501 | M87: 350 | N87: =Materialkosten!$C$7/1000*G87 -> 28.62 | O87: =ProduktbezogeneKosten!$F$14/1000*G87 -> 18.7938
C88: 85 | D88: 250 | E88: 250 | F88: 6.3 | G88: 47.9 | H88: 481 | I88: 481 | J88: 6014 | K88: 6014 | L88: 556 | M88: 556 | N88: =Materialkosten!$C$7/1000*G88 -> 28.74 | O88: =ProduktbezogeneKosten!$F$14/1000*G88 -> 18.8726
C89: 86 | D89: 300 | E89: 200 | F89: 6.3 | G89: 47.9 | H89: 522 | I89: 419 | J89: 7829 | K89: 4193 | L89: 624 | M89: 472 | N89: =Materialkosten!$C$7/1000*G89 -> 28.74 | O89: =ProduktbezogeneKosten!$F$14/1000*G89 -> 18.8726
C90: 87 | D90: 180 | E90: 180 | F90: 10 | G90: 52.5 | H90: 355 | I90: 355 | J90: 3193 | K90: 3193 | L90: 424 | M90: 424 | N90: =Materialkosten!$C$7/1000*G90 -> 31.5 | O90: =ProduktbezogeneKosten!$F$14/1000*G90 -> 20.685
C91: 88 | D91: 220 | E91: 220 | F91: 8 | G91: 52.7 | H91: 455 | I91: 455 | J91: 5002 | K91: 5002 | L91: 532 | M91: 532 | N91: =Materialkosten!$C$7/1000*G91 -> 31.62 | O91: =ProduktbezogeneKosten!$F$14/1000*G91 -> 20.7638
C92: 89 | D92: 200 | E92: 100 | F92: 12.5 | G92: 52.7 | H92: 314 | I92: 201 | J92: 3136 | K92: 1004 | L92: 408 | M92: 245 | N92: =Materialkosten!$C$7/1000*G92 -> 31.62 | O92: =ProduktbezogeneKosten!$F$14/1000*G92 -> 20.7638
C93: 90 | D93: 260 | E93: 180 | F93: 8 | G93: 52.7 | H93: 492 | I93: 401 | J93: 6390 | K93: 3608 | L93: 592 | M93: 459 | N93: =Materialkosten!$C$7/1000*G93 -> 31.62 | O93: =ProduktbezogeneKosten!$F$14/1000*G93 -> 20.7638
C94: 91 | D94: 160 | E94: 160 | F94: 12.5 | G94: 56.6 | H94: 322 | I94: 322 | J94: 2576 | K94: 2576 | L94: 395 | M94: 395 | N94: =Materialkosten!$C$7/1000*G94 -> 33.96 | O94: =ProduktbezogeneKosten!$F$14/1000*G94 -> 22.3004
C95: 92 | D95: 200 | E95: 120 | F95: 12.5 | G95: 56.6 | H95: 358 | I95: 260 | J95: 3576 | K95: 1562 | L95: 455 | M95: 314 | N95: =Materialkosten!$C$7/1000*G95 -> 33.96 | O95: =ProduktbezogeneKosten!$F$14/1000*G95 -> 22.3004
C96: 93 | D96: 200 | E96: 200 | F96: 10 | G96: 58.8 | H96: 447 | I96: 447 | J96: 4471 | K96: 4471 | L96: 531 | M96: 531 | N96: =Materialkosten!$C$7/1000*G96 -> 35.28 | O96: =ProduktbezogeneKosten!$F$14/1000*G96 -> 23.1672
C97: 94 | D97: 250 | E97: 150 | F97: 10 | G97: 58.8 | H97: 494 | I97: 367 | J97: 6174 | K97: 2755 | L97: 611 | M97: 426 | N97: =Materialkosten!$C$7/1000*G97 -> 35.28 | O97: =ProduktbezogeneKosten!$F$14/1000*G97 -> 23.1672
C98: 95 | D98: 250 | E98: 250 | F98: 8 | G98: 60.3 | H98: 596 | I98: 596 | J98: 7455 | K98: 7455 | L98: 694 | M98: 694 | N98: =Materialkosten!$C$7/1000*G98 -> 36.18 | O98: =ProduktbezogeneKosten!$F$14/1000*G98 -> 23.7582
C99: 96 | D99: 300 | E99: 200 | F99: 8 | G99: 60.3 | H99: 648 | I99: 518 | J99: 9717 | K99: 5184 | L99: 779 | M99: 589 | N99: =Materialkosten!$C$7/1000*G99 -> 36.18 | O99: =ProduktbezogeneKosten!$F$14/1000*G99 -> 23.7582
C100: 97 | D100: 260 | E100: 260 | F100: 8 | G100: 62.8 | H100: 648 | I100: 648 | J100: 8423 | K100: 8423 | L100: 753 | M100: 753 | N100: =Materialkosten!$C$7/1000*G100 -> 37.68 | O100: =ProduktbezogeneKosten!$F$14/1000*G100 -> 24.7432
C101: 98 | D101: 180 | E101: 180 | F101: 12.5 | G101: 64.4 | H101: 421 | I101: 421 | J101: 3790 | K101: 3790 | L101: 511 | M101: 511 | N101: =Materialkosten!$C$7/1000*G101 -> 38.64 | O101: =ProduktbezogeneKosten!$F$14/1000*G101 -> 25.3736
C102: 99 | D102: 220 | E102: 220 | F102: 10 | G102: 65.1 | H102: 550 | I102: 550 | J102: 6050 | K102: 6050 | L102: 650 | M102: 650 | N102: =Materialkosten!$C$7/1000*G102 -> 39.06 | O102: =ProduktbezogeneKosten!$F$14/1000*G102 -> 25.6494
C103: 100 | D103: 260 | E103: 180 | F103: 10 | G103: 65.1 | H103: 595 | I103: 483 | J103: 7741 | K103: 4351 | L103: 724 | M103: 560 | N103: =Materialkosten!$C$7/1000*G103 -> 39.06 | O103: =ProduktbezogeneKosten!$F$14/1000*G103 -> 25.6494
C104: 101 | D104: 200 | E104: 200 | F104: 12.5 | G104: 72.3 | H104: 534 | I104: 534 | J104: 5336 | K104: 5336 | L104: 643 | M104: 643 | N104: =Materialkosten!$C$7/1000*G104 -> 43.38 | O104: =ProduktbezogeneKosten!$F$14/1000*G104 -> 28.4862
C105: 102 | D105: 250 | E105: 150 | F105: 12.5 | G105: 72.3 | H105: 591 | I105: 435 | J105: 7378 | K105: 3265 | L105: 740 | M105: 514 | N105: =Materialkosten!$C$7/1000*G105 -> 43.38 | O105: =ProduktbezogeneKosten!$F$14/1000*G105 -> 28.4862
C106: 103 | D106: 300 | E106: 300 | F106: 8 | G106: 72.8 | H106: 875 | I106: 875 | J106: 13128 | K106: 13128 | L106: 1013 | M106: 1013 | N106: =Materialkosten!$C$7/1000*G106 -> 43.68 | O106: =ProduktbezogeneKosten!$F$14/1000*G106 -> 28.6832
C107: 104 | D107: 350 | E107: 250 | F107: 8 | G107: 72.8 | H107: 940 | I107: 784 | J107: 16449 | K107: 9798 | L107: 1118 | M107: 888 | N107: =Materialkosten!$C$7/1000*G107 -> 43.68 | O107: =ProduktbezogeneKosten!$F$14/1000*G107 -> 28.6832
C108: 105 | D108: 400 | E108: 200 | F108: 8 | G108: 72.8 | H108: 975 | I108: 666 | J108: 19562 | K108: 6660 | L108: 1203 | M108: 743 | N108: =Materialkosten!$C$7/1000*G108 -> 43.68 | O108: =ProduktbezogeneKosten!$F$14/1000*G108 -> 28.6832
C109: 106 | D109: 250 | E109: 250 | F109: 10 | G109: 74.5 | H109: 724 | I109: 724 | J109: 9055 | K109: 9055 | L109: 851 | M109: 851 | N109: =Materialkosten!$C$7/1000*G109 -> 44.7 | O109: =ProduktbezogeneKosten!$F$14/1000*G109 -> 29.353
C110: 107 | D110: 300 | E110: 200 | F110: 10 | G110: 74.5 | H110: 788 | I110: 628 | J110: 11819 | K110: 6278 | L110: 956 | M110: 721 | N110: =Materialkosten!$C$7/1000*G110 -> 44.7 | O110: =ProduktbezogeneKosten!$F$14/1000*G110 -> 29.353
C111: 108 | D111: 260 | E111: 260 | F111: 10 | G111: 77.7 | H111: 788 | I111: 788 | J111: 10242 | K111: 10242 | L111: 924 | M111: 924 | N111: =Materialkosten!$C$7/1000*G111 -> 46.62 | O111: =ProduktbezogeneKosten!$F$14/1000*G111 -> 30.6138
C112: 109 | D112: 220 | E112: 220 | F112: 12.5 | G112: 80.1 | H112: 659 | I112: 659 | J112: 7254 | K112: 7254 | L112: 789 | M112: 789 | N112: =Materialkosten!$C$7/1000*G112 -> 48.06 | O112: =ProduktbezogeneKosten!$F$14/1000*G112 -> 31.5594
C113: 110 | D113: 260 | E113: 180 | F113: 12.5 | G113: 80.1 | H113: 715 | I113: 577 | J113: 9299 | K113: 5196 | L113: 879 | M113: 679 | N113: =Materialkosten!$C$7/1000*G113 -> 48.06 | O113: =ProduktbezogeneKosten!$F$14/1000*G113 -> 31.5594
C114: 111 | D114: 350 | E114: 350 | F114: 8 | G114: 85.4 | H114: 1207 | I114: 1207 | J114: 21129 | K114: 21129 | L114: 1392 | M114: 1392 | N114: =Materialkosten!$C$7/1000*G114 -> 51.24 | O114: =ProduktbezogeneKosten!$F$14/1000*G114 -> 33.6476
C115: 112 | D115: 450 | E115: 250 | F115: 8 | G115: 85.4 | H115: 1337 | I115: 971 | J115: 30082 | K115: 12142 | L115: 1622 | M115: 1081 | N115: =Materialkosten!$C$7/1000*G115 -> 51.24 | O115: =ProduktbezogeneKosten!$F$14/1000*G115 -> 33.6476
C116: 113 | D116: 300 | E116: 300 | F116: 10 | G116: 90.2 | H116: 1068 | I116: 1068 | J116: 16026 | K116: 16026 | L116: 1246 | M116: 1246 | N116: =Materialkosten!$C$7/1000*G116 -> 54.12 | O116: =ProduktbezogeneKosten!$F$14/1000*G116 -> 35.5388
C117: 114 | D117: 350 | E117: 250 | F117: 10 | G117: 90.2 | H117: 1149 | I117: 955 | J117: 20102 | K117: 11937 | L117: 1375 | M117: 1091 | N117: =Materialkosten!$C$7/1000*G117 -> 54.12 | O117: =ProduktbezogeneKosten!$F$14/1000*G117 -> 35.5388
C118: 115 | D118: 400 | E118: 200 | F118: 10 | G118: 90.2 | H118: 1196 | I118: 808 | J118: 23914 | K118: 8084 | L118: 1480 | M118: 911 | N118: =Materialkosten!$C$7/1000*G118 -> 54.12 | O118: =ProduktbezogeneKosten!$F$14/1000*G118 -> 35.5388
C119: 116 | D119: 300 | E119: 200 | F119: 12.5 | G119: 91.9 | H119: 952 | I119: 754 | J119: 14273 | K119: 7537 | L119: 1165 | M119: 877 | N119: =Materialkosten!$C$7/1000*G119 -> 55.14 | O119: =ProduktbezogeneKosten!$F$14/1000*G119 -> 36.2086
C120: 117 | D120: 260 | E120: 260 | F120: 12.5 | G120: 95.8 | H120: 951 | I120: 951 | J120: 12365 | K120: 12365 | L120: 1127 | M120: 1127 | N120: =Materialkosten!$C$7/1000*G120 -> 57.48 | O120: =ProduktbezogeneKosten!$F$14/1000*G120 -> 37.7452
C121: 118 | D121: 350 | E121: 350 | F121: 10 | G121: 106 | H121: 1479 | I121: 1479 | J121: 25884 | K121: 25884 | L121: 1715 | M121: 1715 | N121: =Materialkosten!$C$7/1000*G121 -> 63.6 | O121: =ProduktbezogeneKosten!$F$14/1000*G121 -> 41.764
C122: 119 | D122: 450 | E122: 250 | F122: 10 | G122: 106 | H122: 1640 | I122: 1185 | J122: 36895 | K122: 14819 | L122: 2000 | M122: 1331 | N122: =Materialkosten!$C$7/1000*G122 -> 63.6 | O122: =ProduktbezogeneKosten!$F$14/1000*G122 -> 41.764
C123: 120 | D123: 300 | E123: 300 | F123: 12.5 | G123: 112 | H123: 1296 | I123: 1296 | J123: 19442 | K123: 19442 | L123: 1525 | M123: 1525 | N123: =Materialkosten!$C$7/1000*G123 -> 67.2 | O123: =ProduktbezogeneKosten!$F$14/1000*G123 -> 44.128
C124: 121 | D124: 350 | E124: 250 | F124: 12.5 | G124: 112 | H124: 1395 | I124: 1156 | J124: 24419 | K124: 14444 | L124: 1685 | M124: 1334 | N124: =Materialkosten!$C$7/1000*G124 -> 67.2 | O124: =ProduktbezogeneKosten!$F$14/1000*G124 -> 44.128
C125: 122 | D125: 400 | E125: 200 | F125: 12.5 | G125: 112 | H125: 1453 | I125: 975 | J125: 29063 | K125: 9738 | L125: 1813 | M125: 1111 | N125: =Materialkosten!$C$7/1000*G125 -> 67.2 | O125: =ProduktbezogeneKosten!$F$14/1000*G125 -> 44.128
C126: 123 | D126: 250 | E126: 250 | F126: 16 | G126: 115 | H126: 1061 | I126: 1061 | J126: 13267 | K126: 13267 | L126: 1280 | M126: 1280 | N126: =Materialkosten!$C$7/1000*G126 -> 69 | O126: =ProduktbezogeneKosten!$F$14/1000*G126 -> 45.31
C127: 124 | D127: 260 | E127: 260 | F127: 16 | G127: 120 | H127: 1159 | I127: 1159 | J127: 15061 | K127: 15061 | L127: 1394 | M127: 1394 | N127: =Materialkosten!$C$7/1000*G127 -> 72 | O127: =ProduktbezogeneKosten!$F$14/1000*G127 -> 47.28
C128: 125 | D128: 400 | E128: 400 | F128: 10 | G128: 122 | H128: 1956 | I128: 1956 | J128: 39128 | K128: 39128 | L128: 2260 | M128: 2260 | N128: =Materialkosten!$C$7/1000*G128 -> 73.2 | O128: =ProduktbezogeneKosten!$F$14/1000*G128 -> 48.068
C129: 126 | D129: 500 | E129: 300 | F129: 10 | G129: 122 | H129: 2150 | I129: 1629 | J129: 53762 | K129: 24439 | L129: 2595 | M129: 1826 | N129: =Materialkosten!$C$7/1000*G129 -> 73.2 | O129: =ProduktbezogeneKosten!$F$14/1000*G129 -> 48.068
C130: 127 | D130: 350 | E130: 350 | F130: 12.5 | G130: 131 | H130: 1802 | I130: 1802 | J130: 31541 | K130: 31541 | L130: 2107 | M130: 2107 | N130: =Materialkosten!$C$7/1000*G130 -> 78.6 | O130: =ProduktbezogeneKosten!$F$14/1000*G130 -> 51.614
C131: 128 | D131: 450 | E131: 250 | F131: 12.5 | G131: 131 | H131: 2001 | I131: 1438 | J131: 45026 | K131: 17973 | L131: 2458 | M131: 1631 | N131: =Materialkosten!$C$7/1000*G131 -> 78.6 | O131: =ProduktbezogeneKosten!$F$14/1000*G131 -> 51.614
C132: 129 | D132: 300 | E132: 300 | F132: 16 | G132: 141 | H132: 1590 | I132: 1590 | J132: 23855 | K132: 23855 | L132: 1895 | M132: 1895 | N132: =Materialkosten!$C$7/1000*G132 -> 84.6 | O132: =ProduktbezogeneKosten!$F$14/1000*G132 -> 55.554
C133: =C132+1 -> 130 | D133: 350 | E133: 250 | F133: 16 | G133: 141 | H133: 1715 | I133: 1412 | J133: 30011 | K133: 17654 | L133: 2095 | M133: 1655 | N133: =Materialkosten!$C$7/1000*G133 -> 84.6 | O133: =ProduktbezogeneKosten!$F$14/1000*G133 -> 55.554
C134: 131 | D134: 400 | E134: 200 | F134: 16 | G134: 141 | H134: 1785 | I134: 1182 | J134: 35738 | K134: 11824 | L134: 2256 | M134: 1374 | N134: =Materialkosten!$C$7/1000*G134 -> 84.6 | O134: =ProduktbezogeneKosten!$F$14/1000*G134 -> 55.554
C135: 132 | D135: 400 | E135: 400 | F135: 12.5 | G135: 151 | H135: 2392 | I135: 2392 | J135: 47839 | K135: 47839 | L135: 2782 | M135: 2782 | N135: =Materialkosten!$C$7/1000*G135 -> 90.6 | O135: =ProduktbezogeneKosten!$F$14/1000*G135 -> 59.494
C136: 133 | D136: 500 | E136: 300 | F136: 12.5 | G136: 151 | H136: 2633 | I136: 1985 | J136: 65813 | K136: 29780 | L136: 3196 | M136: 2244 | N136: =Materialkosten!$C$7/1000*G136 -> 90.6 | O136: =ProduktbezogeneKosten!$F$14/1000*G136 -> 59.494
C137: 134 | D137: 350 | E137: 350 | F137: 16 | G137: 166 | H137: 2225 | I137: 2225 | J137: 38942 | K137: 38942 | L137: 2630 | M137: 2630 | N137: =Materialkosten!$C$7/1000*G137 -> 99.6 | O137: =ProduktbezogeneKosten!$F$14/1000*G137 -> 65.404
C138: 135 | D138: 450 | E138: 250 | F138: 16 | G138: 166 | H138: 2476 | I138: 1763 | J138: 55705 | K138: 22041 | L138: 3070 | M138: 2029 | N138: =Materialkosten!$C$7/1000*G138 -> 99.6 | O138: =ProduktbezogeneKosten!$F$14/1000*G138 -> 65.404
C139: 136 | D139: 400 | E139: 400 | F139: 16 | G139: 191 | H139: 2967 | I139: 2967 | J139: 59344 | K139: 59344 | L139: 3484 | M139: 3484 | N139: =Materialkosten!$C$7/1000*G139 -> 114.6 | O139: =ProduktbezogeneKosten!$F$14/1000*G139 -> 75.254
C140: 137 | D140: 500 | E140: 300 | F140: 16 | G140: 191 | H140: 3271 | I140: 2451 | J140: 81783 | K140: 36768 | L140: 4005 | M140: 2804 | N140: =Materialkosten!$C$7/1000*G140 -> 114.6 | O140: =ProduktbezogeneKosten!$F$14/1000*G140 -> 75.254
C141: 138 | D141: 500 | E141: 300 | F141: 20 | G141: 235 | H141: 3951 | I141: 2939 | J141: 98777 | K141: 44078 | L141: 4885 | M141: 3408 | N141: =Materialkosten!$C$7/1000*G141 -> 141 | O141: =ProduktbezogeneKosten!$F$14/1000*G141 -> 92.59

Sheet Trapezprofile1
A1: Stahltrapezblech | B1: Müncker Metallprofile GmbH 51580 Riechshof-Wehnrath | G1: Querschnitts- und Widerstandsgrößen nach DIN 18807 und der Anpassungsrichtlinie Stahlbau gemäß Prüfbescheid
E2: Produkt- bezogene Kosten [€/m2] | G2: Werte aus Anlage *.1 des Prüfbescheids | P2: Werte aus Anlage *.2 des Prüfbescheids
D3: Nenn- blech- dicke [mm] | F3: Material-kosten [€/m2] | I3: Nennstreck- grenze des Stahlkerns fy,k [N/mm2] | J3: Normalkraft- beanspruchung nicht reduzierter Querschnitt Ag [cm2/m] | K3: Normalkraft- beanspruchung nicht reduzierter Querschnitt Ig [cm] | L3: Normalkraft- beanspruchung mitwirkender Querschnitt Aef [cm2/m] | M3: Normalkraft- beanspruchung mitwirkender Querschnitt ief,mit [cm] | N3: Grenzstützweiten | P3: Feldmoment MF,k [kNm/m] | Q3: Endauflagerkräfte (obere Zeilen) | S3: Endauflagerkräfte (untere Zeilen) | U3: Inter- aktions- para- meter ε [-] | V3: Elastisch aufnehmbare Schnittgrößen an Zwischenauflagern (1) | AA3: Elastisch aufnehmbare Schnittgrößen an Zwischenauflagern (2)
A4: MÜNCKER Positivlage (+) | B4: Bezeich- nung [-] | G4: Eigenlast [kN/m2] | H4: I+ef [cm4/m] | N4: Einfeld- träger [m] | O4: Mehrfeld- träger [m] | Q4: ba+ü [mm] | R4: Tragfähig- keit Ra,T,k [kN/m] | S4: ba+ü [mm] | T4: Tragfähig- keit Ra,T,k [kN/m] | V4: bB [mm] | W4: M0B,k [kNm/m] | X4: R0B,k [kN/m] | Y4: maxMB,k [kNm/m] | Z4: maxRB,k [kN/m] | AA4: bB [mm] | AB4: M0B,k [kNm/m] | AC4: R0B,k [kN/m] | AD4: maxMB,k [kNm/m] | AE4: maxRB,k [kN/m]
B6: M 35/207 t=0,75 | D6: 0.75 | E6: =ProduktbezogeneKosten!$F$27/10*G6 -> 0.792 | F6: =Materialkosten!$C$30/10*G6 -> 7.92 | G6: 0.072 | H6: 9.86 | I6: 320 | J6: 8.2 | K6: 1.31 | L6: 3.99 | M6: 1.38 | N6: 0.89 | O6: 1.11 | P6: 1.65 | Q6: 40 | R6: 9.44 | S6: 40 | T6: 9.44 | U6: 2 | V6: 60 | W6: 1.72 | X6: 24.34 | Y6: 1.72 | Z6: 21.77 | AA6: 120 | AB6: 1.72 | AC6: 31.63 | AD6: 1.72 | AE6: 28.28
B7: M 35/207 t=0,88 | D7: 0.88 | E7: =ProduktbezogeneKosten!$F$27/10*G7 -> 0.935 | F7: =Materialkosten!$C$30/10*G7 -> 9.35 | G7: 0.085 | H7: 12.25 | I7: 320 | J7: 9.7 | K7: 1.31 | L7: 5.39 | M7: 1.36 | N7: 1.88 | O7: 2.35 | P7: 2.14 | Q7: 40 | R7: 12.85 | S7: 40 | T7: 12.85 | U7: 2 | V7: 60 | W7: 2.17 | X7: 32.98 | Y7: 2.17 | Z7: 29.53 | AA7: 120 | AB7: 2.17 | AC7: 42.62 | AD7: 2.17 | AE7: 38.15
B8: M 35/207 t=1,00 | D8: 1 | E8: =ProduktbezogeneKosten!$F$27/10*G8 -> 1.067 | F8: =Materialkosten!$C$30/10*G8 -> 10.67 | G8: 0.097 | H8: 14.55 | I8: 320 | J8: 11.08 | K8: 1.31 | L8: 6.8 | M8: 1.34 | N8: 2.8 | O8: 3.5 | P8: 2.62 | Q8: 40 | R8: 16.41 | S8: 40 | T8: 16.41 | U8: 2 | V8: 60 | W8: 2.62 | X8: 42.05 | Y8: 2.62 | Z8: 37.58 | AA8: 120 | AB8: 2.62 | AC8: 54.1 | AD8: 2.62 | AE8: 48.34
B9: M 40/183 t=0,75 | D9: 0.75 | E9: =ProduktbezogeneKosten!$F$27/10*G9 -> 0.902 | F9: =Materialkosten!$C$30/10*G9 -> 9.02 | G9: 0.082 | H9: 17.61 | I9: 320 | J9: 9.41 | K9: 1.63 | L9: 4.53 | M9: 1.73 | N9: 1.87 | O9: 2.35 | P9: 2.36 | Q9: 40 | R9: 11.9 | S9: 40 | T9: 11.9 | U9: 2 | V9: 60 | W9: 2.47 | X9: 30.69 | Y9: 2.47 | Z9: 27.44 | AA9: 120 | AB9: 2.47 | AC9: 39.86 | AD9: 2.47 | AE9: 35.65
B10: M 40/183 t=0,88 | D10: 0.88 | E10: =ProduktbezogeneKosten!$F$27/10*G10 -> 1.056 | F10: =Materialkosten!$C$30/10*G10 -> 10.56 | G10: 0.096 | H10: 21.87 | I10: 320 | J10: 11.13 | K10: 1.63 | L10: 6.13 | M10: 1.7 | N10: 3.07 | O10: 3.84 | P10: 3.06 | Q10: 40 | R10: 16.21 | S10: 40 | T10: 16.21 | U10: 2 | V10: 60 | W10: 3.12 | X10: 41.62 | Y10: 3.12 | Z10: 37.23 | AA10: 120 | AB10: 3.12 | AC10: 53.77 | AD10: 3.12 | AE10: 48.1
B11: M 40/183 t=1,00 | D11: 1 | E11: =ProduktbezogeneKosten!$F$27/10*G11 -> 1.199 | F11: =Materialkosten!$C$30/10*G11 -> 11.99 | G11: 0.109 | H11: 25.97 | I11: 320 | J11: 12.72 | K11: 1.63 | L11: 7.75 | M11: 1.68 | N11: 4.16 | O11: 5.2 | P11: 3.74 | Q11: 40 | R11: 20.69 | S11: 40 | T11: 20.69 | U11: 2 | V11: 60 | W11: 3.75 | X11: 52.94 | Y11: 3.75 | Z11: 47.38 | AA11: 120 | AB11: 3.75 | AC11: 68.11 | AD11: 3.75 | AE11: 60.94
B12: M 50/250 t=0,75 | D12: 0.75 | E12: =ProduktbezogeneKosten!$F$27/10*G12 -> 0.825 | F12: =Materialkosten!$C$30/10*G12 -> 8.25 | G12: 0.075 | H12: 35.1 | I12: 320 | J12: 8.88 | K12: 2.02 | L12: 3.47 | M12: 2.15 | N12: 1.77 | O12: 2.21 | P12: 2.3 | Q12: 40 | R12: 13.8 | S12: 40 | T12: 13.8 | U12: 1 | V12: 0 | W12: 2.39 | X12: 12.6 | Y12: 1.81 | Z12: 7.02 | AA12: 60 | AB12: 3.24 | AC12: 20.64 | AD12: 2.42 | AE12: 17.17
B13: M 50/250 t=0,88 | D13: 0.88 | E13: =ProduktbezogeneKosten!$F$27/10*G13 -> 0.968 | F13: =Materialkosten!$C$30/10*G13 -> 9.68 | G13: 0.088 | H13: 41.5 | I13: 320 | J13: 10.5 | K13: 2.02 | L13: 4.74 | M13: 2.12 | N13: 2.5 | O13: 3.13 | P13: 3.07 | Q13: 40 | R13: 18.2 | S13: 40 | T13: 18.2 | U13: 1 | V13: 0 | W13: 3.33 | X13: 15.78 | Y13: 2.45 | Z13: 9.11 | AA13: 60 | AB13: 4.13 | AC13: 33.12 | AD13: 3.33 | AE13: 22.63
B14: M 50/250 t=1,00 | D14: 1 | E14: =ProduktbezogeneKosten!$F$27/10*G14 -> 1.1 | F14: =Materialkosten!$C$30/10*G14 -> 11 | G14: 0.1 | H14: 47.5 | I14: 320 | J14: 12 | K14: 2.02 | L14: 6.05 | M14: 2.09 | N14: 2.86 | O14: 3.57 | P14: 3.77 | Q14: 40 | R14: 22.4 | S14: 40 | T14: 22.4 | U14: 1 | V14: 0 | W14: 4.21 | X14: 18.73 | Y14: 3.03 | Z14: 11 | AA14: 60 | AB14: 4.94 | AC14: 44.51 | AD14: 4.19 | AE14: 28.21
B15: M 50/250 t=1,25 | D15: 1.25 | E15: =ProduktbezogeneKosten!$F$27/10*G15 -> 1.375 | F15: =Materialkosten!$C$30/10*G15 -> 13.75 | G15: 0.125 | H15: 59.8 | I15: 320 | J15: 15.1 | K15: 2.02 | L15: 9.14 | M15: 2.05 | N15: 3.6 | O15: 4.5 | P15: 5.64 | Q15: 40 | R15: 34.5 | S15: 40 | T15: 34.5 | U15: 1 | V15: 0 | W15: 6.55 | X15: 36.09 | Y15: 4.96 | Z15: 19.1 | AA15: 60 | AB15: 7.19 | AC15: 93.47 | AD15: 6.33 | AE15: 42.33
B16: M 50/250 t=1,50 | D16: 1.5 | E16: =ProduktbezogeneKosten!$F$27/10*G16 -> 1.65 | F16: =Materialkosten!$C$30/10*G16 -> 16.5 | G16: 0.15 | H16: 72.2 | I16: 320 | J16: 18.3 | K16: 2.02 | L16: 12.6 | M16: 2.02 | N16: 4.35 | O16: 5.43 | P16: 7.52 | Q16: 40 | R16: 46.6 | S16: 40 | T16: 46.6 | U16: 1 | V16: 0 | W16: 8.89 | X16: 53.34 | Y16: 6.9 | Z16: 27 | AA16: 60 | AB16: 9.42 | AC16: 142.2 | AD16: 8.46 | AE16: 60.19
B17: M 85/280 t=0,75 | D17: 0.75 | E17: =ProduktbezogeneKosten!$F$27/10*G17 -> 0.88 | F17: =Materialkosten!$C$30/10*G17 -> 8.8 | G17: 0.08 | H17: 101 | I17: 320 | J17: 9.51 | K17: 3.26 | L17: 4.01 | M17: 3.72 | N17: 3.64 | O17: 4.55 | P17: 5.17 | Q17: 40 | R17: 10.8 | S17: 40 | T17: 10.8 | U17: 2 | V17: 60 | W17: 5.91 | X17: 21.42 | Y17: 5.09 | Z17: 19.47 | AA17: 160 | AB17: 6.86 | AC17: 26.98 | AD17: 5.8 | AE17: 28.37
B18: M 85/280 t=0,88 | D18: 0.88 | E18: =ProduktbezogeneKosten!$F$27/10*G18 -> 1.034 | F18: =Materialkosten!$C$30/10*G18 -> 10.34 | G18: 0.094 | H18: 119 | I18: 320 | J18: 11.25 | K18: 3.26 | L18: 5.33 | M18: 3.68 | N18: 5.1 | O18: 6.38 | P18: 7.65 | Q18: 40 | R18: 14.6 | S18: 40 | T18: 14.6 | U18: 2 | V18: 60 | W18: 7.62 | X18: 30.92 | Y18: 6.8 | Z18: 27.19 | AA18: 160 | AB18: 8.85 | AC18: 42.84 | AD18: 7.76 | AE18: 39.33
B19: M 85/280 t=1,00 | D19: 1 | E19: =ProduktbezogeneKosten!$F$27/10*G19 -> 1.177 | F19: =Materialkosten!$C$30/10*G19 -> 11.77 | G19: 0.107 | H19: 136 | I19: 320 | J19: 12.86 | K19: 3.26 | L19: 6.67 | M19: 3.65 | N19: 8.04 | O19: 10.05 | P19: 9.94 | Q19: 40 | R19: 18.2 | S19: 40 | T19: 18.2 | U19: 2 | V19: 60 | W19: 9.2 | X19: 39.13 | Y19: 8.38 | Z19: 35.29 | AA19: 160 | AB19: 10.7 | AC19: 58.55 | AD19: 9.57 | AE19: 50.73
B20: M 85/280 t=1,13 | D20: 1.13 | E20: =ProduktbezogeneKosten!$F$27/10*G20 -> 1.331 | F20: =Materialkosten!$C$30/10*G20 -> 13.31 | G20: 0.121 | H20: 150 | I20: 320 | J20: 14.6 | K20: 3.26 | L20: 8.24 | M20: 3.61 | N20: 9.09 | O20: 11.36 | P20: 11.6 | Q20: 40 | R20: 25.3 | S20: 40 | T20: 25.3 | U20: 2 | V20: 60 | W20: 11.2 | X20: 50.2 | Y20: 10.2 | Z20: 45.08 | AA20: 160 | AB20: 12.8 | AC20: 74.42 | AD20: 11.6 | AE20: 64.41
B21: M 85/280 t=1,25 | D21: 1.25 | E21: =ProduktbezogeneKosten!$F$27/10*G21 -> 1.463 | F21: =Materialkosten!$C$30/10*G21 -> 14.63 | G21: 0.133 | H21: 162 | I21: 320 | J21: 16.21 | K21: 3.26 | L21: 9.77 | M21: 3.58 | N21: 10.05 | O21: 12.56 | P21: 13.1 | Q21: 40 | R21: 31.9 | S21: 40 | T21: 31.9 | U21: 2 | V21: 60 | W21: 13 | X21: 59.49 | Y21: 11.9 | Z21: 55.03 | AA21: 160 | AB21: 14.7 | AC21: 90.48 | AD21: 13.4 | AE21: 78.22
B22: M 85/280 t=1,50 | D22: 1.5 | E22: =ProduktbezogeneKosten!$F$27/10*G22 -> 1.76 | F22: =Materialkosten!$C$30/10*G22 -> 17.6 | G22: 0.16 | H22: 196 | I22: 320 | J22: 19.55 | K22: 3.26 | L22: 13.15 | M22: 3.48 | N22: 12.06 | O22: 15.08 | P22: 15.8 | Q22: 40 | R22: 38.5 | S22: 40 | T22: 38.5 | U22: 2 | V22: 60 | W22: 15.6 | X22: 72.28 | Y22: 14.4 | Z22: 78.48 | AA22: 160 | AB22: 17.8 | AC22: 108.1 | AD22: 16.2 | AE22: 110.5
B23: M 100/275 t=0,75 | D23: 0.75 | E23: =ProduktbezogeneKosten!$F$27/10*G23 -> 0.99 | F23: =Materialkosten!$C$30/10*G23 -> 9.9 | G23: 0.09 | H23: 144.79 | I23: 320 | J23: 10.5 | K23: 3.74 | L23: 4.41 | M23: 4.34 | N23: 4.43 | O23: 5.54 | P23: 6.91 | Q23: 40 | R23: 8.98 | S23: 40 | T23: 8.98 | U23: 2 | V23: 60 | W23: 6.72 | X23: 23.16 | Y23: 6.72 | Z23: 20.71 | AA23: 160 | AB23: 6.72 | AC23: 33.75 | AD23: 6.72 | AE23: 30.18
B24: M 100/275 t=0,88 | D24: 0.88 | E24: =ProduktbezogeneKosten!$F$27/10*G24 -> 1.166 | F24: =Materialkosten!$C$30/10*G24 -> 11.66 | G24: 0.106 | H24: 173.11 | I24: 320 | J24: 12.42 | K24: 3.74 | L24: 5.85 | M24: 4.3 | N24: 5.94 | O24: 7.43 | P24: 9.03 | Q24: 40 | R24: 12.61 | S24: 40 | T24: 12.61 | U24: 2 | V24: 60 | W24: 8.25 | X24: 32.39 | Y24: 8.25 | Z24: 28.97 | AA24: 160 | AB24: 8.25 | AC24: 46.84 | AD24: 8.25 | AE24: 41.9
B25: M 100/275 t=1,00 | D25: 1 | E25: =ProduktbezogeneKosten!$F$27/10*G25 -> 1.32 | F25: =Materialkosten!$C$30/10*G25 -> 13.2 | G25: 0.12 | H25: 198.61 | I25: 320 | J25: 14.2 | K25: 3.74 | L25: 7.23 | M25: 4.27 | N25: 6.73 | O25: 8.03 | P25: 11.03 | Q25: 40 | R25: 16.43 | S25: 40 | T25: 16.43 | U25: 2 | V25: 60 | W25: 9.72 | X25: 42.07 | Y25: 9.72 | Z25: 37.63 | AA25: 160 | AB25: 9.72 | AC25: 60.47 | AD25: 9.72 | AE25: 54.09
B26: M 100/275 t=1,13 | D26: 1.13 | E26: =ProduktbezogeneKosten!$F$27/10*G26 -> 1.496 | F26: =Materialkosten!$C$30/10*G26 -> 14.96 | G26: 0.136 | H26: 225.51 | I26: 320 | J26: 16.12 | K26: 3.74 | L26: 8.77 | M26: 4.23 | N26: 7.17 | O26: 8.56 | P26: 13 | Q26: 40 | R26: 21.06 | S26: 40 | T26: 21.06 | U26: 2 | V26: 60 | W26: 11.34 | X26: 53.78 | Y26: 11.34 | Z26: 48.1 | AA26: 160 | AB26: 11.34 | AC26: 76.83 | AD26: 11.34 | AE26: 68.72
B27: M 100/275 t=1,25 | D27: 1.25 | E27: =ProduktbezogeneKosten!$F$27/10*G27 -> 1.661 | F27: =Materialkosten!$C$30/10*G27 -> 16.61 | G27: 0.151 | H27: 250.33 | I27: 320 | J27: 17.9 | K27: 3.74 | L27: 10.28 | M27: 4.2 | N27: 7.55 | O27: 9.02 | P27: 14.9 | Q27: 40 | R27: 25.78 | S27: 40 | T27: 25.78 | U27: 2 | V27: 60 | W27: 12.85 | X27: 65.67 | Y27: 12.85 | Z27: 58.74 | AA27: 160 | AB27: 12.85 | AC27: 93.35 | AD27: 12.85 | AE27: 83.49
B28: M 100/275 t=1,50 | D28: 1.5 | E28: =ProduktbezogeneKosten!$F$27/10*G28 -> 1.991 | F28: =Materialkosten!$C$30/10*G28 -> 19.91 | G28: 0.181 | H28: 302.05 | I28: 320 | J28: 21.59 | K28: 3.74 | L28: 13.44 | M28: 4.1 | N28: 8.3 | O28: 9.91 | P28: 18.84 | Q28: 40 | R28: 36.96 | S28: 40 | T28: 36.96 | U28: 2 | V28: 60 | W28: 15.55 | X28: 93.73 | Y28: 15.55 | Z28: 83.83 | AA28: 160 | AB28: 15.55 | AC28: 131.96 | AD28: 15.55 | AE28: 118.03
B29: M 135/310 t=0,75 | D29: 0.75 | E29: =ProduktbezogeneKosten!$F$27/10*G29 -> 1.067 | F29: =Materialkosten!$C$30/10*G29 -> 10.67 | G29: 0.097 | H29: 274.92 | I29: 320 | J29: 11.25 | K29: 4.94 | L29: 4.34 | M29: 5.82 | N29: 5.77 | O29: 7.21 | P29: 9.68 | Q29: 40 | R29: 8.25 | S29: 40 | T29: 8.25 | U29: 2 | V29: 60 | W29: 8.37 | X29: 21.26 | Y29: 8.37 | Z29: 19.02 | AA29: 160 | AB29: 8.37 | AC29: 30.98 | AD29: 8.37 | AE29: 27.72
B30: M 135/310 t=0,88 | D30: 0.88 | E30: =ProduktbezogeneKosten!$F$27/10*G30 -> 1.463 | F30: =Materialkosten!$C$30/10*G30 -> 14.63 | G30: 0.133 | H30: 325.26 | I30: 320 | J30: 13.31 | K30: 4.94 | L30: 5.64 | M30: 5.78 | N30: 7.66 | O30: 10.3 | P30: 12.23 | Q30: 40 | R30: 11.55 | S30: 40 | T30: 11.55 | U30: 2 | V30: 60 | W30: 11.06 | X30: 29.67 | Y30: 11.06 | Z30: 26.52 | AA30: 160 | AB30: 11.06 | AC30: 42.9 | AD30: 11.06 | AE30: 38.36
B31: M 135/310 t=1,00 | D31: 1 | E31: =ProduktbezogeneKosten!$F$27/10*G31 -> 1.419 | F31: =Materialkosten!$C$30/10*G31 -> 14.19 | G31: 0.129 | H31: 371.72 | I31: 320 | J31: 15.21 | K31: 4.94 | L31: 6.88 | M31: 5.75 | N31: 8.19 | O31: 11.65 | P31: 14.65 | Q31: 40 | R31: 15.01 | S31: 40 | T31: 15.01 | U31: 2 | V31: 60 | W31: 13.37 | X31: 38.43 | Y31: 13.37 | Z31: 34.37 | AA31: 160 | AB31: 13.37 | AC31: 55.25 | AD31: 13.37 | AE31: 49.41
B32: M 135/310 t=1,13 | D32: 1.13 | E32: =ProduktbezogeneKosten!$F$27/10*G32 -> 1.606 | F32: =Materialkosten!$C$30/10*G32 -> 16.06 | G32: 0.146 | H32: 422.06 | I32: 320 | J32: 17.27 | K32: 4.94 | L32: 8.33 | M32: 5.71 | N32: 8.73 | O32: 12.41 | P32: 17.62 | Q32: 40 | R32: 19.2 | S32: 40 | T32: 19.2 | U32: 2 | V32: 60 | W32: 15.94 | X32: 49.03 | Y32: 15.94 | Z32: 43.85 | AA32: 160 | AB32: 15.94 | AC32: 70.03 | AD32: 15.94 | AE32: 62.65
B33: M 135/310 t=1,25 | D33: 1.25 | E33: =ProduktbezogeneKosten!$F$27/10*G33 -> 1.771 | F33: =Materialkosten!$C$30/10*G33 -> 17.71 | G33: 0.161 | H33: 468.53 | I33: 320 | J33: 19.18 | K33: 4.94 | L33: 9.75 | M33: 5.67 | N33: 9.2 | O33: 13.08 | P33: 20.35 | Q33: 40 | R33: 23.47 | S33: 40 | T33: 23.47 | U33: 2 | V33: 60 | W33: 18.11 | X33: 59.79 | Y33: 18.11 | Z33: 53.47 | AA33: 160 | AB33: 18.11 | AC33: 84.98 | AD33: 18.11 | AE33: 76.01
B34: M 135/310 t=1,50 | D34: 1.5 | E34: =ProduktbezogeneKosten!$F$27/10*G34 -> 2.123 | F34: =Materialkosten!$C$30/10*G34 -> 21.23 | G34: 0.193 | H34: 565.33 | I34: 320 | J34: 23.14 | K34: 4.94 | L34: 12.9 | M34: 5.55 | N34: 10.11 | O34: 14.38 | P34: 25.98 | Q34: 40 | R34: 33.56 | S34: 40 | T34: 33.56 | U34: 2 | V34: 60 | W34: 21.89 | X34: 85.1 | Y34: 21.89 | Z34: 76.13 | AA34: 160 | AB34: 21.89 | AC34: 119.82 | AD34: 21.89 | AE34: 107.19
B35: M 150/280 t=0,75 | D35: 0.75 | E35: =ProduktbezogeneKosten!$F$27/10*G35 -> 1.177 | F35: =Materialkosten!$C$30/10*G35 -> 11.77 | G35: 0.107 | H35: 410 | I35: 320 | J35: 12.68 | K35: 5.51 | L35: 5.09 | M35: 6.47 | N35: 8.28 | O35: 10.35 | P35: 13.91 | Q35: 40 | R35: 9.01 | S35: 40 | T35: 9.01 | U35: 2 | V35: 60 | W35: 12.73 | X35: 22.73 | Y35: 9.56 | Z35: 20.41 | AA35: 160 | AB35: 14.37 | AC35: 33.55 | AD35: 11.67 | AE35: 29.73
B36: M 150/280 t=0,88 | D36: 0.88 | E36: =ProduktbezogeneKosten!$F$27/10*G36 -> 1.386 | F36: =Materialkosten!$C$30/10*G36 -> 13.86 | G36: 0.126 | H36: 485 | I36: 320 | J36: 15 | K36: 5.51 | L36: 6.9 | M36: 6.42 | N36: 8.38 | O36: 10.48 | P36: 18.81 | Q36: 40 | R36: 13.33 | S36: 40 | T36: 13.33 | U36: 2 | V36: 60 | W36: 16.85 | X36: 32.72 | Y36: 13.17 | Z36: 28.6 | AA36: 160 | AB36: 18.29 | AC36: 49.28 | AD36: 15.76 | AE36: 41.36
B37: M 150/280 t=1,00 | D37: 1 | E37: =ProduktbezogeneKosten!$F$27/10*G37 -> 1.573 | F37: =Materialkosten!$C$30/10*G37 -> 15.73 | G37: 0.143 | H37: 554.3 | I37: 320 | J37: 17.14 | K37: 5.51 | L37: 8.74 | M37: 6.38 | N37: 9.5 | O37: 11.88 | P37: 23.33 | Q37: 40 | R37: 17.32 | S37: 40 | T37: 17.32 | U37: 2 | V37: 60 | W37: 20.73 | X37: 41.89 | Y37: 16.52 | Z37: 37.2 | AA37: 160 | AB37: 22.92 | AC37: 64.06 | AD37: 19.54 | AE37: 53.47
B38: M 150/280 t=1,13 | D38: 1.13 | E38: =ProduktbezogeneKosten!$F$27/10*G38 -> 1.782 | F38: =Materialkosten!$C$30/10*G38 -> 17.82 | G38: 0.162 | H38: 629.4 | I38: 320 | J38: 19.46 | K38: 5.51 | L38: 10.79 | M38: 6.32 | N38: 10.72 | O38: 13.4 | P38: 27.71 | Q38: 40 | R38: 22.85 | S38: 40 | T38: 22.85 | U38: 2 | V38: 60 | W38: 26.05 | X38: 57.01 | Y38: 21.18 | Z38: 47.6 | AA38: 160 | AB38: 27.49 | AC38: 83.94 | AD38: 24.35 | AE38: 68
B39: M 150/280 t=1,25 | D39: 1.25 | E39: =ProduktbezogeneKosten!$F$27/10*G39 -> 1.969 | F39: =Materialkosten!$C$30/10*G39 -> 19.69 | G39: 0.179 | H39: 698.7 | I39: 320 | J39: 21.6 | K39: 5.51 | L39: 11.9 | M39: 6.25 | N39: 11.9 | O39: 14.88 | P39: 31.75 | Q39: 40 | R39: 27.97 | S39: 40 | T39: 27.97 | U39: 2 | V39: 60 | W39: 30.75 | X39: 70.87 | Y39: 25.48 | Z39: 58.17 | AA39: 160 | AB39: 32.78 | AC39: 102.54 | AD39: 28.79 | AE39: 82.69
B40: M 150/280 t=1,50 | D40: 1.5 | E40: =ProduktbezogeneKosten!$F$27/10*G40 -> 2.354 | F40: =Materialkosten!$C$30/10*G40 -> 23.54 | G40: 0.214 | H40: 843.1 | I40: 320 | J40: 26.07 | K40: 5.51 | L40: 17.45 | M40: 6.1 | N40: 14.36 | O40: 17.95 | P40: 38.3 | Q40: 40 | R40: 33.74 | S40: 40 | T40: 33.74 | U40: 2 | V40: 60 | W40: 37.1 | X40: 85.82 | Y40: 30.74 | Z40: 83.12 | AA40: 160 | AB40: 39.55 | AC40: 123.7 | AD40: 34.74 | AE40: 117.03
D42: Dqw i,2 | E42: Dqw i,3 | F42: Dqw i,4 | G42: Dqw i,5 | H42: Dqw i,6 | I42: Dqw i,7 | J42: Dqw i,8 | K42: Dqw i,9 | L42: Dqw i,10 | M42: Dqw i,11 | N42: Dqw i,12 | O42: Dqw i,13 | P42: Dqw i,14 | Q42: Dqw i,15 | R42: Dqw i,16 | S42: Dqw i,17 | T42: Dqw i,18 | U42: Dqw i,19 | V42: Dqw i,20 | W42: Dqw i,21 | X42: Dqw i,22 | Y42: Dqw i,23 | Z42: Dqw i,24 | AA42: Dqw i,25 | AB42: Dqw i,26 | AC42: Dqw i,27 | AD42: Dqw i,28 | AE42: Dqw i,29 | AF42: Dqw i,30 | AG42: Dqw i,31 | AH42: Dqw i,32 | AI42: Dqw i,33 | AJ42: Dqw i,34 | AK42: Dqw i,35

Sheet Trapezprofile2
A1: Stahltrapezblech | B1: Müncker Metallprofile GmbH 51580 Riechshof-Wehnrath | G1: Querschnitts- und Widerstandsgrößen nach DIN 18807 und der Anpassungsrichtlinie Stahlbau gemäß Prüfbescheid
E2: Produkt- bezogene Kosten [€/m2] | G2: Werte aus Anlage *.1 des Prüfbescheids | P2: Werte aus Anlage *.2 des Prüfbescheids
D3: Nenn- blech- dicke [mm] | F3: Material-kosten [€/m2] | I3: Nennstreck- grenze des Stahlkerns fy,k [N/mm2] | J3: Normalkraft- beanspruchung nicht reduzierter Querschnitt Ag [cm2/m] | K3: Normalkraft- beanspruchung nicht reduzierter Querschnitt Ig [cm] | L3: Normalkraft- beanspruchung mitwirkender Querschnitt Aef [cm2/m] | M3: Normalkraft- beanspruchung mitwirkender Querschnitt ief,mit [cm] | N3: Grenzstützweiten | P3: Feldmoment MF,k [kNm/m] | Q3: Endauflagerkräfte (obere Zeilen) | S3: Endauflagerkräfte (untere Zeilen) | U3: Inter- aktions- para- meter ε [-] | V3: Elastisch aufnehmbare Schnittgrößen an Zwischenauflagern (1) | AA3: Elastisch aufnehmbare Schnittgrößen an Zwischenauflagern (2)
A4: MÜNCKER Negativlage (-) | B4: Bezeich- nung [-] | G4: Eigenlast [kN/m2] | H4: I+ef [cm4/m] | N4: Einfeld- träger [m] | O4: Mehrfeld- träger [m] | Q4: ba+ü [mm] | R4: Tragfähig- keit Ra,T,k [kN/m] | S4: ba+ü [mm] | T4: Tragfähig- keit Ra,T,k [kN/m] | V4: bB [mm] | W4: M0B,k [kNm/m] | X4: R0B,k [kN/m] | Y4: maxMB,k [kNm/m] | Z4: maxRB,k [kN/m] | AA4: bB [mm] | AB4: M0B,k [kNm/m] | AC4: R0B,k [kN/m] | AD4: maxMB,k [kNm/m] | AE4: maxRB,k [kN/m]
B6: M 35/207 t=0,75 | D6: 0.75 | E6: =ProduktbezogeneKosten!$F$27/10*G6 -> 0.792 | F6: =Materialkosten!$C$30/10*G6 -> 7.92 | G6: 0.072 | H6: 13.12 | I6: 320 | J6: 8.2 | K6: 1.31 | L6: 3.99 | M6: 1.38 | N6: 1.36 | O6: 1.7 | P6: 1.72 | Q6: 40 | R6: 9.44 | S6: 40 | T6: 9.44 | U6: 2 | V6: 60 | W6: 1.65 | X6: 24.34 | Y6: 1.65 | Z6: 21.77 | AA6: 120 | AB6: 1.65 | AC6: 31.62 | AD6: 1.65 | AE6: 28.28
B7: M 35/207 t=0,88 | D7: 0.88 | E7: =ProduktbezogeneKosten!$F$27/10*G7 -> 0.935 | F7: =Materialkosten!$C$30/10*G7 -> 9.35 | G7: 0.085 | H7: 16.29 | I7: 320 | J7: 9.7 | K7: 1.31 | L7: 5.39 | M7: 1.36 | N7: 2.21 | O7: 2.76 | P7: 2.17 | Q7: 40 | R7: 12.85 | S7: 40 | T7: 12.85 | U7: 2 | V7: 60 | W7: 2.14 | X7: 33.01 | Y7: 2.14 | Z7: 29.53 | AA7: 120 | AB7: 2.14 | AC7: 42.65 | AD7: 2.14 | AE7: 38.15
B8: M 35/207 t=1,00 | D8: 1 | E8: =ProduktbezogeneKosten!$F$27/10*G8 -> 1.067 | F8: =Materialkosten!$C$30/10*G8 -> 10.67 | G8: 0.097 | H8: 18.94 | I8: 320 | J8: 11.08 | K8: 1.31 | L8: 6.8 | M8: 1.34 | N8: 3 | O8: 3.75 | P8: 2.62 | Q8: 40 | R8: 16.41 | S8: 40 | T8: 16.41 | U8: 2 | V8: 60 | W8: 2.62 | X8: 42.05 | Y8: 2.62 | Z8: 37.58 | AA8: 120 | AB8: 2.62 | AC8: 54.08 | AD8: 2.62 | AE8: 48.34
B9: M 40/333 t=0,75 | D9: 0.75 | E9: =ProduktbezogeneKosten!$F$27/10*G9 -> 0.781 | F9: =Materialkosten!$C$30/10*G9 -> 7.81 | G9: 0.071 | H9: 8.28 | I9: 320 | J9: 8.17 | K9: 1.28 | L9: 2.41 | M9: 1.72 | N9: 2.5 | O9: 3.13 | P9: 1.29 | Q9: 40 | R9: 5.81 | S9: 40 | T9: 5.81 | U9: 2 | V9: 60 | W9: 1.6 | X9: 14.96 | Y9: 1.6 | Z9: 13.4 | AA9: 120 | AB9: 1.6 | AC9: 19.44 | AD9: 1.6 | AE9: 17.41
B10: M 40/333 t=0,88 | D10: 0.88 | E10: =ProduktbezogeneKosten!$F$27/10*G10 -> 0.913 | F10: =Materialkosten!$C$30/10*G10 -> 9.13 | G10: 0.083 | H10: 10.24 | I10: 320 | J10: 9.67 | K10: 1.28 | L10: 3.2 | M10: 1.68 | N10: 3 | O10: 3.75 | P10: 1.54 | Q10: 40 | R10: 7.94 | S10: 40 | T10: 7.94 | U10: 2 | V10: 60 | W10: 1.99 | X10: 20.4 | Y10: 1.99 | Z10: 18.25 | AA10: 120 | AB10: 1.99 | AC10: 26.35 | AD10: 1.99 | AE10: 23.58
B11: M 40/333 t=1,00 | D11: 1 | E11: =ProduktbezogeneKosten!$F$27/10*G11 -> 1.045 | F11: =Materialkosten!$C$30/10*G11 -> 10.45 | G11: 0.095 | H11: 12.13 | I11: 320 | J11: 11.05 | K11: 1.28 | L11: 4 | M11: 1.65 | N11: 3.3 | O11: 4.12 | P11: 1.76 | Q11: 40 | R11: 10.17 | S11: 40 | T11: 10.17 | U11: 2 | V11: 60 | W11: 2.35 | X11: 26.01 | Y11: 2.35 | Z11: 23.29 | AA11: 120 | AB11: 2.35 | AC11: 33.46 | AD11: 2.35 | AE11: 29.96
B12: M 40/183 t=0,75 | D12: 0.75 | E12: =ProduktbezogeneKosten!$F$27/10*G12 -> 0.902 | F12: =Materialkosten!$C$30/10*G12 -> 9.02 | G12: 0.082 | H12: 23.43 | I12: 320 | J12: 9.41 | K12: 1.63 | L12: 4.53 | M12: 1.73 | N12: 1.8 | O12: 2.25 | P12: 2.47 | Q12: 40 | R12: 11.9 | S12: 40 | T12: 11.9 | U12: 2 | V12: 60 | W12: 2.36 | X12: 30.66 | Y12: 2.47 | Z12: 27.44 | AA12: 120 | AB12: 2.36 | AC12: 39.85 | AD12: 2.36 | AE12: 35.65
B13: M 40/183 t=0,88 | D13: 0.88 | E13: =ProduktbezogeneKosten!$F$27/10*G13 -> 1.056 | F13: =Materialkosten!$C$30/10*G13 -> 10.56 | G13: 0.096 | H13: 29.08 | I13: 320 | J13: 11.13 | K13: 1.63 | L13: 6.13 | M13: 1.7 | N13: 3.12 | O13: 3.9 | P13: 3.12 | Q13: 40 | R13: 16.21 | S13: 40 | T13: 16.21 | U13: 2 | V13: 60 | W13: 3.06 | X13: 41.6 | Y13: 3.12 | Z13: 37.23 | AA13: 120 | AB13: 3.06 | AC13: 53.77 | AD13: 3.06 | AE13: 48.1
B14: M 40/183 t=1,00 | D14: 1 | E14: =ProduktbezogeneKosten!$F$27/10*G14 -> 1.199 | F14: =Materialkosten!$C$30/10*G14 -> 11.99 | G14: 0.109 | H14: 33.81 | I14: 320 | J14: 12.72 | K14: 1.63 | L14: 7.75 | M14: 1.68 | N14: 4.34 | O14: 5.42 | P14: 3.75 | Q14: 40 | R14: 20.69 | S14: 40 | T14: 20.69 | U14: 2 | V14: 60 | W14: 3.74 | X14: 52.99 | Y14: 3.75 | Z14: 47.38 | AA14: 120 | AB14: 3.74 | AC14: 68.15 | AD14: 3.74 | AE14: 60.94
B15: M 50/250 t=0,75 | D15: 0.75 | E15: =ProduktbezogeneKosten!$F$27/10*G15 -> 0.825 | F15: =Materialkosten!$C$30/10*G15 -> 8.25 | G15: 0.075 | H15: 35.1 | I15: 320 | J15: 8.88 | K15: 2.02 | L15: 3.47 | M15: 2.15 | N15: 2.2 | O15: 2.75 | P15: 2.48 | Q15: 40 | R15: 13.8 | S15: 40 | T15: 13.8 | U15: 1 | V15: 0 | W15: 2.33 | X15: 16.64 | Y15: 1.78 | Z15: 7.62 | AA15: 60 | AB15: 2.91 | AC15: 25.17 | AD15: 2.36 | AE15: 17.17
B16: M 50/250 t=0,88 | D16: 0.88 | E16: =ProduktbezogeneKosten!$F$27/10*G16 -> 0.968 | F16: =Materialkosten!$C$30/10*G16 -> 9.68 | G16: 0.088 | H16: 41.5 | I16: 320 | J16: 10.5 | K16: 2.02 | L16: 4.74 | M16: 2.12 | N16: 2.96 | O16: 3.7 | P16: 3.57 | Q16: 40 | R16: 18.2 | S16: 40 | T16: 18.2 | U16: 1 | V16: 0 | W16: 3.17 | X16: 22.48 | Y16: 2.51 | Z16: 10.1 | AA16: 60 | AB16: 3.71 | AC16: 44.89 | AD16: 3.2 | AE16: 22.63
B17: M 50/250 t=1,00 | D17: 1 | E17: =ProduktbezogeneKosten!$F$27/10*G17 -> 1.1 | F17: =Materialkosten!$C$30/10*G17 -> 11 | G17: 0.1 | H17: 47.5 | I17: 320 | J17: 12 | K17: 2.02 | L17: 6.05 | M17: 2.09 | N17: 3.38 | O17: 4.23 | P17: 4.58 | Q17: 40 | R17: 22.4 | S17: 40 | T17: 22.4 | U17: 1 | V17: 0 | W17: 3.93 | X17: 27.82 | Y17: 3.17 | Z17: 12.4 | AA17: 60 | AB17: 4.44 | AC17: 63.05 | AD17: 3.96 | AE17: 28.21
B18: M 50/250 t=1,25 | D18: 1.25 | E18: =ProduktbezogeneKosten!$F$27/10*G18 -> 1.375 | F18: =Materialkosten!$C$30/10*G18 -> 13.75 | G18: 0.125 | H18: 59.8 | I18: 320 | J18: 15.1 | K18: 2.02 | L18: 9.14 | M18: 2.05 | N18: 4.26 | O18: 5.33 | P18: 6.47 | Q18: 40 | R18: 34.5 | S18: 40 | T18: 34.5 | U18: 1 | V18: 0 | W18: 6.11 | X18: 50.29 | Y18: 4.98 | Z18: 21.3 | AA18: 60 | AB18: 6.36 | AC18: 136.7 | AD18: 5.78 | AE18: 42.33
B19: M 50/250 t=1,50 | D19: 1.5 | E19: =ProduktbezogeneKosten!$F$27/10*G19 -> 1.65 | F19: =Materialkosten!$C$30/10*G19 -> 16.5 | G19: 0.15 | H19: 72.2 | I19: 320 | J19: 18.3 | K19: 2.02 | L19: 12.6 | M19: 2.02 | N19: 5.14 | O19: 6.43 | P19: 8.34 | Q19: 40 | R19: 46.6 | S19: 40 | T19: 46.6 | U19: 1 | V19: 0 | W19: 8.28 | X19: 72.7 | Y19: 6.79 | Z19: 30.2 | AA19: 60 | AB19: 8.27 | AC19: 210.1 | AD19: 7.59 | AE19: 60.19
B20: M 85/280 t=0,75 | D20: 0.75 | E20: =ProduktbezogeneKosten!$F$27/10*G20 -> 0.88 | F20: =Materialkosten!$C$30/10*G20 -> 8.8 | G20: 0.08 | H20: 100 | I20: 320 | J20: 9.51 | K20: 3.26 | L20: 4.01 | M20: 3.72 | N20: 4.19 | O20: 5.24 | P20: 5.75 | Q20: 40 | R20: 6.54 | S20: 40 | T20: 6.54 | U20: 2 | V20: 60 | W20: 5.19 | X20: 16.81 | Y20: 5.19 | Z20: 15.09 | AA20: 160 | AB20: 5.19 | AC20: 24.49 | AD20: 5.19 | AE20: 21.98
B21: M 85/280 t=0,88 | D21: 0.88 | E21: =ProduktbezogeneKosten!$F$27/10*G21 -> 1.034 | F21: =Materialkosten!$C$30/10*G21 -> 10.34 | G21: 0.094 | H21: 117 | I21: 320 | J21: 11.25 | K21: 3.26 | L21: 5.33 | M21: 3.68 | N21: 5.87 | O21: 7.34 | P21: 7.8 | Q21: 40 | R21: 8.99 | S21: 40 | T21: 8.99 | U21: 2 | V21: 60 | W21: 7.06 | X21: 23.04 | Y21: 7.06 | Z21: 20.66 | AA21: 160 | AB21: 7.06 | AC21: 33.29 | AD21: 7.06 | AE21: 29.88
B22: M 85/280 t=1,00 | D22: 1 | E22: =ProduktbezogeneKosten!$F$27/10*G22 -> 1.177 | F22: =Materialkosten!$C$30/10*G22 -> 11.77 | G22: 0.107 | H22: 133 | I22: 320 | J22: 12.86 | K22: 3.26 | L22: 6.67 | M22: 3.65 | N22: 8 | O22: 10 | P22: 9.69 | Q22: 40 | R22: 11.58 | S22: 40 | T22: 11.58 | U22: 2 | V22: 60 | W22: 8.8 | X22: 29.55 | Y22: 8.8 | Z22: 26.52 | AA22: 160 | AB22: 8.8 | AC22: 42.45 | AD22: 8.8 | AE22: 38.12
B23: M 85/280 t=1,13 | D23: 1.13 | E23: =ProduktbezogeneKosten!$F$27/10*G23 -> 1.331 | F23: =Materialkosten!$C$30/10*G23 -> 13.31 | G23: 0.121 | H23: 148 | I23: 320 | J23: 14.6 | K23: 3.26 | L23: 8.24 | M23: 3.61 | N23: 9.04 | O23: 11.3 | P23: 11.5 | Q23: 40 | R23: 14.73 | S23: 40 | T23: 14.73 | U23: 2 | V23: 60 | W23: 10.47 | X23: 37.47 | Y23: 10.47 | Z23: 33.65 | AA23: 160 | AB23: 10.47 | AC23: 53.52 | AD23: 10.47 | AE23: 48.07
B24: M 85/280 t=1,25 | D24: 1.25 | E24: =ProduktbezogeneKosten!$F$27/10*G24 -> 1.463 | F24: =Materialkosten!$C$30/10*G24 -> 14.63 | G24: 0.133 | H24: 162 | I24: 320 | J24: 16.21 | K24: 3.26 | L24: 9.77 | M24: 3.58 | N24: 10 | O24: 12.5 | P24: 13.1 | Q24: 40 | R24: 17.98 | S24: 40 | T24: 17.98 | U24: 2 | V24: 60 | W24: 12.04 | X24: 45.59 | Y24: 12.04 | Z24: 40.97 | AA24: 160 | AB24: 12.04 | AC24: 64.78 | AD24: 12.04 | AE24: 58.23
B25: M 85/280 t=1,50 | D25: 1.5 | E25: =ProduktbezogeneKosten!$F$27/10*G25 -> 1.76 | F25: =Materialkosten!$C$30/10*G25 -> 17.6 | G25: 0.16 | H25: 195 | I25: 320 | J25: 19.55 | K25: 3.26 | L25: 13.15 | M25: 3.48 | N25: 12 | O25: 15 | P25: 15.8 | Q25: 40 | R25: 25.82 | S25: 40 | T25: 25.82 | U25: 2 | V25: 60 | W25: 15.17 | X25: 64.89 | Y25: 15.17 | Z25: 58.56 | AA25: 160 | AB25: 15.17 | AC25: 91.37 | AD25: 15.17 | AE25: 82.46
B26: M 100/275 t=0,75 | D26: 0.75 | E26: =ProduktbezogeneKosten!$F$27/10*G26 -> 0.99 | F26: =Materialkosten!$C$30/10*G26 -> 9.9 | G26: 0.09 | H26: 141.21 | I26: 320 | J26: 10.5 | K26: 3.74 | L26: 4.41 | M26: 4.34 | N26: 4.4 | O26: 5.5 | P26: 6.72 | Q26: 40 | R26: 8.98 | S26: 40 | T26: 7.04 | U26: 2 | V26: 60 | W26: 6.91 | X26: 18.14 | Y26: 6.91 | Z26: 16.22 | AA26: 160 | AB26: 6.91 | AC26: 26.43 | AD26: 6.91 | AE26: 23.64
B27: M 100/275 t=0,88 | D27: 0.88 | E27: =ProduktbezogeneKosten!$F$27/10*G27 -> 1.166 | F27: =Materialkosten!$C$30/10*G27 -> 11.66 | G27: 0.106 | H27: 171.97 | I27: 320 | J27: 12.42 | K27: 3.74 | L27: 5.85 | M27: 4.3 | N27: 5.49 | O27: 6.86 | P27: 8.25 | Q27: 40 | R27: 12.61 | S27: 40 | T27: 9.68 | U27: 2 | V27: 60 | W27: 9.03 | X27: 24.87 | Y27: 9.03 | Z27: 22.25 | AA27: 160 | AB27: 9.03 | AC27: 35.97 | AD27: 9.03 | AE27: 32.17
B28: M 100/275 t=1,00 | D28: 1 | E28: =ProduktbezogeneKosten!$F$27/10*G28 -> 1.32 | F28: =Materialkosten!$C$30/10*G28 -> 13.2 | G28: 0.12 | H28: 198.61 | I28: 320 | J28: 14.2 | K28: 3.74 | L28: 7.23 | M28: 4.27 | N28: 6.51 | O28: 8.03 | P28: 9.72 | Q28: 40 | R28: 16.43 | S28: 40 | T28: 12.49 | U28: 2 | V28: 60 | W28: 11.03 | X28: 31.97 | Y28: 11.03 | Z28: 28.6 | AA28: 160 | AB28: 11.03 | AC28: 45.96 | AD28: 11.03 | AE28: 41.11
B29: M 100/275 t=1,13 | D29: 1.13 | E29: =ProduktbezogeneKosten!$F$27/10*G29 -> 1.496 | F29: =Materialkosten!$C$30/10*G29 -> 14.96 | G29: 0.136 | H29: 225.51 | I29: 320 | J29: 16.12 | K29: 3.74 | L29: 8.77 | M29: 4.23 | N29: 7.17 | O29: 8.56 | P29: 11.34 | Q29: 40 | R29: 21.06 | S29: 40 | T29: 15.92 | U29: 2 | V29: 60 | W29: 13 | X29: 40.64 | Y29: 13 | Z29: 36.35 | AA29: 160 | AB29: 13 | AC29: 58.07 | AD29: 13 | AE29: 51.94
B30: M 100/275 t=1,25 | D30: 1.25 | E30: =ProduktbezogeneKosten!$F$27/10*G30 -> 1.661 | F30: =Materialkosten!$C$30/10*G30 -> 16.61 | G30: 0.151 | H30: 250.33 | I30: 320 | J30: 17.9 | K30: 3.74 | L30: 10.28 | M30: 4.2 | N30: 7.55 | O30: 9.02 | P30: 12.85 | Q30: 40 | R30: 25.78 | S30: 40 | T30: 19.46 | U30: 2 | V30: 60 | W30: 14.9 | X30: 49.57 | Y30: 14.9 | Z30: 44.34 | AA30: 160 | AB30: 14.9 | AC30: 70.46 | AD30: 14.9 | AE30: 63.02
B31: M 100/275 t=1,50 | D31: 1.5 | E31: =ProduktbezogeneKosten!$F$27/10*G31 -> 1.991 | F31: =Materialkosten!$C$30/10*G31 -> 19.91 | G31: 0.181 | H31: 302.05 | I31: 320 | J31: 21.59 | K31: 3.74 | L31: 13.44 | M31: 4.1 | N31: 8.3 | O31: 9.91 | P31: 15.55 | Q31: 40 | R31: 36.96 | S31: 40 | T31: 28.06 | U31: 2 | V31: 60 | W31: 18.84 | X31: 71.17 | Y31: 18.84 | Z31: 63.65 | AA31: 160 | AB31: 18.84 | AC31: 100.2 | AD31: 18.84 | AE31: 89.62
B32: M 135/310 t=0,75 | D32: 0.75 | E32: =ProduktbezogeneKosten!$F$27/10*G32 -> 1.067 | F32: =Materialkosten!$C$30/10*G32 -> 10.67 | G32: 0.097 | H32: 263.02 | I32: 320 | J32: 11.25 | K32: 4.94 | L32: 4.34 | M32: 5.82 | N32: 5.53 | O32: 6.91 | P32: 8.37 | Q32: 40 | R32: 6.76 | S32: 40 | T32: 6.76 | U32: 2 | V32: 60 | W32: 9.68 | X32: 17.42 | Y32: 9.68 | Z32: 15.58 | AA32: 160 | AB32: 9.68 | AC32: 25.38 | AD32: 9.68 | AE32: 22.71
B33: M 135/310 t=0,88 | D33: 0.88 | E33: =ProduktbezogeneKosten!$F$27/10*G33 -> 1.463 | F33: =Materialkosten!$C$30/10*G33 -> 14.63 | G33: 0.133 | H33: 320.07 | I33: 320 | J33: 13.31 | K33: 4.94 | L33: 5.64 | M33: 5.78 | N33: 7.61 | O33: 9.51 | P33: 11.06 | Q33: 40 | R33: 9.41 | S33: 40 | T33: 9.41 | U33: 2 | V33: 60 | W33: 12.23 | X33: 24.16 | Y33: 12.23 | Z33: 21.62 | AA33: 160 | AB33: 12.23 | AC33: 34.97 | AD33: 12.23 | AE33: 31.27
B34: M 135/310 t=1,00 | D34: 1 | E34: =ProduktbezogeneKosten!$F$27/10*G34 -> 1.419 | F34: =Materialkosten!$C$30/10*G34 -> 14.19 | G34: 0.129 | H34: 369 | I34: 320 | J34: 15.21 | K34: 4.94 | L34: 6.88 | M34: 5.75 | N34: 8.68 | O34: 11.69 | P34: 13.37 | Q34: 40 | R34: 12.3 | S34: 40 | T34: 12.3 | U34: 2 | V34: 60 | W34: 14.65 | X34: 31.5 | Y34: 14.65 | Z34: 28.18 | AA34: 160 | AB34: 14.65 | AC34: 45.28 | AD34: 14.65 | AE34: 40.5
B35: M 135/310 t=1,13 | D35: 1.13 | E35: =ProduktbezogeneKosten!$F$27/10*G35 -> 1.606 | F35: =Materialkosten!$C$30/10*G35 -> 16.06 | G35: 0.146 | H35: 418.97 | I35: 320 | J35: 17.27 | K35: 4.94 | L35: 8.33 | M35: 5.71 | N35: 9.25 | O35: 13.15 | P35: 15.94 | Q35: 40 | R35: 15.96 | S35: 40 | T35: 15.96 | U35: 2 | V35: 60 | W35: 17.62 | X35: 40.76 | Y35: 17.62 | Z35: 36.44 | AA35: 160 | AB35: 17.62 | AC35: 58.22 | AD35: 17.62 | AE35: 52.06
B36: M 135/310 t=1,25 | D36: 1.25 | E36: =ProduktbezogeneKosten!$F$27/10*G36 -> 1.771 | F36: =Materialkosten!$C$30/10*G36 -> 17.71 | G36: 0.161 | H36: 465.09 | I36: 320 | J36: 19.18 | K36: 4.94 | L36: 9.75 | M36: 5.67 | N36: 9.75 | O36: 13.87 | P36: 18.11 | Q36: 40 | R36: 19.86 | S36: 40 | T36: 19.86 | U36: 2 | V36: 60 | W36: 20.35 | X36: 50.57 | Y36: 20.35 | Z36: 45.24 | AA36: 160 | AB36: 20.35 | AC36: 71.9 | AD36: 20.35 | AE36: 64.3
B37: M 135/310 t=1,50 | D37: 1.5 | E37: =ProduktbezogeneKosten!$F$27/10*G37 -> 2.123 | F37: =Materialkosten!$C$30/10*G37 -> 21.23 | G37: 0.193 | H37: 561.19 | I37: 320 | J37: 23.14 | K37: 4.94 | L37: 12.9 | M37: 5.55 | N37: 10.71 | O37: 15.23 | P37: 21.89 | Q37: 40 | R37: 29.84 | S37: 40 | T37: 29.84 | U37: 2 | V37: 60 | W37: 25.98 | X37: 75.69 | Y37: 25.98 | Z37: 67.68 | AA37: 160 | AB37: 25.98 | AC37: 106.53 | AD37: 25.98 | AE37: 95.29
B38: M 150/280 t=0,75 | D38: 0.75 | E38: =ProduktbezogeneKosten!$F$27/10*G38 -> 1.177 | F38: =Materialkosten!$C$30/10*G38 -> 11.77 | G38: 0.107 | H38: 410 | I38: 320 | J38: 12.68 | K38: 5.51 | L38: 5.09 | M38: 6.47 | N38: 7.14 | O38: 8.93 | P38: 10.82 | Q38: 40 | R38: 7.63 | S38: 40 | T38: 7.63 | U38: 2 | V38: 60 | W38: 10.8 | X38: 19.68 | Y38: 10.8 | Z38: 17.6 | AA38: 160 | AB38: 10.8 | AC38: 28.67 | AD38: 10.8 | AE38: 25.64
B39: M 150/280 t=0,88 | D39: 0.88 | E39: =ProduktbezogeneKosten!$F$27/10*G39 -> 1.386 | F39: =Materialkosten!$C$30/10*G39 -> 13.86 | G39: 0.126 | H39: 445.1 | I39: 320 | J39: 15 | K39: 5.51 | L39: 6.9 | M39: 6.42 | N39: 9.87 | O39: 12.2 | P39: 14.7 | Q39: 40 | R39: 10.84 | S39: 40 | T39: 10.84 | U39: 2 | V39: 60 | W39: 14.23 | X39: 27.84 | Y39: 14.23 | Z39: 24.9 | AA39: 160 | AB39: 14.23 | AC39: 40.26 | AD39: 14.23 | AE39: 36.01
B40: M 150/280 t=1,00 | D40: 1 | E40: =ProduktbezogeneKosten!$F$27/10*G40 -> 1.573 | F40: =Materialkosten!$C$30/10*G40 -> 15.73 | G40: 0.143 | H40: 458.4 | I40: 320 | J40: 17.14 | K40: 5.51 | L40: 8.74 | M40: 6.38 | N40: 10.87 | O40: 13.1 | P40: 17.95 | Q40: 40 | R40: 14.43 | S40: 40 | T40: 14.43 | U40: 2 | V40: 60 | W40: 17.08 | X40: 36.94 | Y40: 17.08 | Z40: 33.04 | AA40: 160 | AB40: 17.08 | AC40: 53.1 | AD40: 17.08 | AE40: 47.5
B41: M 150/280 t=1,13 | D41: 1.13 | E41: =ProduktbezogeneKosten!$F$27/10*G41 -> 1.782 | F41: =Materialkosten!$C$30/10*G41 -> 17.82 | G41: 0.162 | H41: 507.7 | I41: 320 | J41: 19.46 | K41: 5.51 | L41: 10.79 | M41: 6.32 | N41: 11.69 | O41: 13.96 | P41: 21.07 | Q41: 40 | R41: 19.09 | S41: 40 | T41: 19.09 | U41: 2 | V41: 60 | W41: 20.43 | X41: 48.75 | Y41: 20.43 | Z41: 43.6 | AA41: 160 | AB41: 20.43 | AC41: 69.65 | AD41: 20.43 | AE41: 62.3
B42: M 150/280 t=1,25 | D42: 1.25 | E42: =ProduktbezogeneKosten!$F$27/10*G42 -> 1.969 | F42: =Materialkosten!$C$30/10*G42 -> 19.69 | G42: 0.179 | H42: 553.3 | I42: 320 | J42: 21.6 | K42: 5.51 | L42: 11.9 | M42: 6.25 | N42: 12.31 | O42: 14.71 | P42: 23.77 | Q42: 40 | R42: 24.22 | S42: 40 | T42: 24.22 | U42: 2 | V42: 60 | W42: 23.67 | X42: 61.68 | Y42: 23.67 | Z42: 55.17 | AA42: 160 | AB42: 23.67 | AC42: 87.68 | AD42: 23.67 | AE42: 78.42
B43: M 150/280 t=1,50 | D43: 1.5 | E43: =ProduktbezogeneKosten!$F$27/10*G43 -> 2.354 | F43: =Materialkosten!$C$30/10*G43 -> 23.54 | G43: 0.214 | H43: 667.6 | I43: 320 | J43: 26.07 | K43: 5.51 | L43: 17.45 | M43: 6.1 | N43: 13.53 | O43: 16.15 | P43: 28.73 | Q43: 40 | R43: 36.64 | S43: 40 | T43: 36.64 | U43: 2 | V43: 60 | W43: 30.25 | X43: 92.93 | Y43: 30.25 | Z43: 83.12 | AA43: 160 | AB43: 30.25 | AC43: 130.85 | AD43: 30.25 | AE43: 117.03

Sheet Trapezprofile3
A1: Stahltrapezblech | B1: ThyssenKrupp Hoesch Bausysteme GmbH 57223 Kreuztal | G1: Querschnitts- und Widerstandsgrößen nach DIN 18807 und der Anpassungsrichtlinie Stahlbau gemäß Prüfbescheid II B 2 - 543 - 921 vom 21.04.2004 in Verbindung mit Bescheid Nr. VI A 4-543-1021 vom 08.01.2009, gültig bis 30.04.2014
E2: Produkt- bezogene Kosten [€/m2] | G2: Werte aus Anlage *.1 des Prüfbescheids | P2: Werte aus Anlage *.2 des Prüfbescheids
D3: Nenn- blech- dicke [mm] | F3: Material-kosten [€/m2] | I3: Nennstreck- grenze des Stahlkerns fy,k [N/mm2] | J3: Normalkraft- beanspruchung nicht reduzierter Querschnitt Ag [cm2/m] | K3: Normalkraft- beanspruchung nicht reduzierter Querschnitt Ig [cm] | L3: Normalkraft- beanspruchung mitwirkender Querschnitt Aef [cm2/m] | M3: Normalkraft- beanspruchung mitwirkender Querschnitt ief,mit [cm] | N3: Grenzstützweiten | P3: Feldmoment MF,k [kNm/m] | Q3: Endauflagerkräfte (obere Zeilen) | S3: Endauflagerkräfte (untere Zeilen) | U3: Inter- aktions- para- meter ε [-] | V3: Elastisch aufnehmbare Schnittgrößen an Zwischenauflagern (1) | AA3: Elastisch aufnehmbare Schnittgrößen an Zwischenauflagern (2)
A4: HOESCH Positivlage (+) | B4: Bezeich- nung [-] | G4: Eigenlast [kN/m2] | H4: I+ef [cm4/m] | N4: Einfeld- träger [m] | O4: Mehrfeld- träger [m] | Q4: ba+ü [mm] | R4: Tragfähig- keit Ra,T,k [kN/m] | S4: ba+ü [mm] | T4: Tragfähig- keit Ra,T,k [kN/m] | V4: bB [mm] | W4: M0B,k [kNm/m] | X4: R0B,k [kN/m] | Y4: maxMB,k [kNm/m] | Z4: maxRB,k [kN/m] | AA4: bB [mm] | AB4: M0B,k [kNm/m] | AC4: R0B,k [kN/m] | AD4: maxMB,k [kNm/m] | AE4: maxRB,k [kN/m]
B6: T 35.1 t=0,75 | D6: 0.75 | E6: =ProduktbezogeneKosten!$F$27/10*G6 -> 0.7876 | F6: =Materialkosten!$C$30/10*G6 -> 7.876 | G6: 0.0716 | H6: 13.3 | I6: 320 | J6: 8.47 | K6: 1.33 | L6: 3.99 | M6: 1.38 | N6: 0.9 | O6: 1.13 | P6: 1.87 | Q6: 40 | R6: 13.2 | S6: 40 | T6: 13.2 | U6: 1 | V6: 0 | W6: 2.42 | X6: 12.34 | Y6: 1.65 | Z6: 6.74 | AA6: 60 | AD6: 1.83 | AE6: 11.3
B7: T 35.1 t=0,88 | D7: 0.88 | E7: =ProduktbezogeneKosten!$F$27/10*G7 -> 0.924 | F7: =Materialkosten!$C$30/10*G7 -> 9.24 | G7: 0.084 | H7: 16.7 | I7: 320 | J7: 10 | K7: 1.33 | L7: 5.39 | M7: 1.36 | N7: 1.4 | O7: 1.75 | P7: 2.46 | Q7: 40 | R7: 17.8 | S7: 40 | T7: 17.8 | U7: 1 | V7: 0 | W7: 2.97 | X7: 19.6 | Y7: 2.19 | Z7: 9.47 | AA7: 60 | AD7: 2.43 | AE7: 15
B8: T 35.1 t=1,00 | D8: 1 | E8: =ProduktbezogeneKosten!$F$27/10*G8 -> 1.0505 | F8: =Materialkosten!$C$30/10*G8 -> 10.505 | G8: 0.0955 | H8: 20.3 | I8: 320 | J8: 11.5 | K8: 1.33 | L8: 6.8 | M8: 1.34 | N8: 1.8 | O8: 2.25 | P8: 3 | Q8: 40 | R8: 22.1 | S8: 40 | T8: 22.1 | U8: 1 | V8: 0 | W8: 3.5 | X8: 26.95 | Y8: 2.69 | Z8: 12 | AA8: 60 | AD8: 3.02 | AE8: 18.5
B9: T 35.1 t=1,25 | D9: 1.25 | E9: =ProduktbezogeneKosten!$F$27/10*G9 -> 1.309 | F9: =Materialkosten!$C$30/10*G9 -> 13.09 | G9: 0.119 | H9: 25.6 | I9: 320 | J9: 14.4 | K9: 1.33 | L9: 10 | M9: 1.33 | N9: 4.4 | O9: 5.5 | P9: 4.04 | Q9: 40 | R9: 32 | S9: 40 | T9: 32 | U9: 1 | V9: 0 | W9: 4.86 | X9: 42.77 | Y9: 3.85 | Z9: 17.7 | AA9: 60 | AD9: 4.35 | AE9: 26.7
B10: T 35.1 t=1,50 | D10: 1.5 | E10: =ProduktbezogeneKosten!$F$27/10*G10 -> 1.573 | F10: =Materialkosten!$C$30/10*G10 -> 15.73 | G10: 0.143 | H10: 30.8 | I10: 320 | J10: 17.4 | K10: 1.33 | L10: 12.8 | M10: 1.33 | N10: 5.3 | O10: 6.63 | P10: 5.09 | Q10: 40 | R10: 41.6 | S10: 40 | T10: 41.6 | U10: 1 | V10: 0 | W10: 6.23 | X10: 61.68 | Y10: 5.03 | Z10: 23.6 | AA10: 60 | AD10: 5.66 | AE10: 34.8
B11: T 40.1 t=0,75 | D11: 0.75 | E11: =ProduktbezogeneKosten!$F$27/10*G11 -> 0.902 | F11: =Materialkosten!$C$30/10*G11 -> 9.02 | G11: 0.082 | H11: 21.6 | I11: 320 | J11: 9.41 | K11: 1.63 | L11: 4.53 | M11: 1.73 | N11: 1.2 | O11: 1.5 | P11: 2.57 | Q11: 40 | R11: 8.5 | S11: 40 | T11: 13.2 | U11: 1 | V11: 60 | W11: 3.32 | X11: 37.18 | Y11: 2.7 | Z11: 15.3
B12: T 40.1 t=0,88 | D12: 0.88 | E12: =ProduktbezogeneKosten!$F$27/10*G12 -> 1.0582 | F12: =Materialkosten!$C$30/10*G12 -> 10.582 | G12: 0.0962 | H12: 27.7 | I12: 320 | J12: 11.1 | K12: 1.63 | L12: 6.13 | M12: 1.7 | N12: 2.7 | O12: 3.38 | P12: 3.31 | Q12: 40 | R12: 16 | S12: 40 | T12: 17.8 | U12: 1 | V12: 60 | W12: 4.32 | X12: 53.57 | Y12: 3.63 | Z12: 26.5
B13: T 40.1 t=1,00 | D13: 1 | E13: =ProduktbezogeneKosten!$F$27/10*G13 -> 1.199 | F13: =Materialkosten!$C$30/10*G13 -> 11.99 | G13: 0.109 | H13: 35.2 | I13: 320 | J13: 12.7 | K13: 1.63 | L13: 7.75 | M13: 1.68 | N13: 3.9 | O13: 4.88 | P13: 4.04 | Q13: 40 | R13: 23.1 | S13: 40 | T13: 22.1 | U13: 1 | V13: 60 | W13: 5.24 | X13: 70.74 | Y13: 4.5 | Z13: 37
B14: T 40.1 t=1,25 | D14: 1.25 | E14: =ProduktbezogeneKosten!$F$27/10*G14 -> 1.507 | F14: =Materialkosten!$C$30/10*G14 -> 15.07 | G14: 0.137 | H14: 44.1 | I14: 320 | J14: 16 | K14: 1.63 | L14: 11.5 | M14: 1.66 | N14: 5.1 | O14: 6.38 | P14: 5.51 | Q14: 40 | R14: 37.7 | S14: 40 | T14: 32 | U14: 1 | V14: 60 | W14: 7.16 | X14: 113.8 | Y14: 6.12 | Z14: 58.8
B15: T 40.1 t=1,50 | D15: 1.5 | E15: =ProduktbezogeneKosten!$F$27/10*G15 -> 1.804 | F15: =Materialkosten!$C$30/10*G15 -> 18.04 | G15: 0.164 | H15: 52.9 | I15: 320 | J15: 19.4 | K15: 1.63 | L15: 14.8 | M15: 1.66 | N15: 6.2 | O15: 7.75 | P15: 6.98 | Q15: 40 | R15: 52.4 | S15: 40 | T15: 41.6 | U15: 1 | V15: 60 | W15: 9.07 | X15: 166 | Y15: 7.74 | Z15: 80.6
B16: T 40.1 S t=0,75 | D16: 0.75 | E16: =ProduktbezogeneKosten!$F$27/10*G16 -> 0.902 | F16: =Materialkosten!$C$30/10*G16 -> 9.02 | G16: 0.082 | H16: 26.4 | I16: 320 | J16: 9.41 | K16: 1.63 | L16: 5.02 | M16: 1.73 | N16: 1.7 | O16: 2.13 | P16: 2.57 | Q16: 40 | R16: 8.5 | U16: 1 | V16: 60 | W16: 3.32 | X16: 37.18 | Y16: 2.7 | Z16: 15.3
B17: T 40.1 S t=0,88 | D17: 0.88 | E17: =ProduktbezogeneKosten!$F$27/10*G17 -> 1.0582 | F17: =Materialkosten!$C$30/10*G17 -> 10.582 | G17: 0.0962 | H17: 31.2 | I17: 320 | J17: 11.1 | K17: 1.63 | L17: 6.71 | M17: 1.71 | N17: 2.8 | O17: 3.5 | P17: 3.49 | Q17: 40 | R17: 16 | U17: 1 | V17: 60 | W17: 4.32 | X17: 53.57 | Y17: 3.63 | Z17: 26.5
B18: T 40.1 S t=1,00 | D18: 1 | E18: =ProduktbezogeneKosten!$F$27/10*G18 -> 1.199 | F18: =Materialkosten!$C$30/10*G18 -> 11.99 | G18: 0.109 | H18: 35.2 | I18: 320 | J18: 12.7 | K18: 1.63 | L18: 8.39 | M18: 1.69 | N18: 3.9 | O18: 4.88 | P18: 4.41 | Q18: 40 | R18: 23.1 | U18: 1 | V18: 60 | W18: 5.24 | X18: 70.74 | Y18: 4.5 | Z18: 37
B19: T 40.1 S t=1,25 | D19: 1.25 | E19: =ProduktbezogeneKosten!$F$27/10*G19 -> 1.507 | F19: =Materialkosten!$C$30/10*G19 -> 15.07 | G19: 0.137 | H19: 44.1 | I19: 320 | J19: 16 | K19: 1.63 | L19: 11.8 | M19: 1.66 | N19: 5 | O19: 6.25 | P19: 5.7 | Q19: 40 | R19: 37.7 | U19: 1 | V19: 60 | W19: 7.16 | X19: 113.8 | Y19: 6.12 | Z19: 58.8
B20: T 40.1 S t=1,50 | D20: 1.5 | E20: =ProduktbezogeneKosten!$F$27/10*G20 -> 1.804 | F20: =Materialkosten!$C$30/10*G20 -> 18.04 | G20: 0.164 | H20: 52.9 | I20: 320 | J20: 19.4 | K20: 1.63 | L20: 14.7 | M20: 1.65 | N20: 6 | O20: 7.5 | P20: 6.98 | Q20: 40 | R20: 52.4 | U20: 1 | V20: 60 | W20: 9.07 | X20: 166 | Y20: 7.74 | Z20: 80.6
B21: T 50.1 t=0,75 | D21: 0.75 | E21: =ProduktbezogeneKosten!$F$27/10*G21 -> 0.825 | F21: =Materialkosten!$C$30/10*G21 -> 8.25 | G21: 0.075 | H21: 35.1 | I21: 320 | J21: 8.88 | K21: 2.02 | L21: 3.47 | M21: 2.15 | N21: 1.77 | O21: 2.21 | P21: 2.3 | Q21: 40 | R21: 13.8 | S21: 40 | T21: 13.8 | U21: 1 | V21: 0 | W21: 2.39 | X21: 12.6 | Y21: 1.81 | Z21: 7.02 | AA21: 60 | AB21: 3.24 | AC21: 20.64 | AD21: 2.42 | AE21: 9.96
B22: T 50.1 t=0,88 | D22: 0.88 | E22: =ProduktbezogeneKosten!$F$27/10*G22 -> 0.968 | F22: =Materialkosten!$C$30/10*G22 -> 9.68 | G22: 0.088 | H22: 41.5 | I22: 320 | J22: 10.5 | K22: 2.02 | L22: 4.74 | M22: 2.12 | N22: 2.5 | O22: 3.13 | P22: 3.07 | Q22: 40 | R22: 18.2 | S22: 40 | T22: 18.2 | U22: 1 | V22: 0 | W22: 3.33 | X22: 15.78 | Y22: 2.45 | Z22: 9.11 | AA22: 60 | AB22: 4.13 | AC22: 33.12 | AD22: 3.33 | AE22: 14.1
B23: T 50.1 t=1,00 | D23: 1 | E23: =ProduktbezogeneKosten!$F$27/10*G23 -> 1.1 | F23: =Materialkosten!$C$30/10*G23 -> 11 | G23: 0.1 | H23: 47.5 | I23: 320 | J23: 12 | K23: 2.02 | L23: 6.05 | M23: 2.09 | N23: 2.86 | O23: 3.57 | P23: 3.77 | Q23: 40 | R23: 22.4 | S23: 40 | T23: 22.4 | U23: 1 | V23: 0 | W23: 4.21 | X23: 18.73 | Y23: 3.03 | Z23: 11 | AA23: 60 | AB23: 4.94 | AC23: 44.51 | AD23: 4.19 | AE23: 18
B24: T 50.1 t=1,25 | D24: 1.25 | E24: =ProduktbezogeneKosten!$F$27/10*G24 -> 1.375 | F24: =Materialkosten!$C$30/10*G24 -> 13.75 | G24: 0.125 | H24: 59.8 | I24: 320 | J24: 15.1 | K24: 2.02 | L24: 9.14 | M24: 2.05 | N24: 3.6 | O24: 4.5 | P24: 5.64 | Q24: 40 | R24: 34.5 | S24: 40 | T24: 34.5 | U24: 1 | V24: 0 | W24: 6.55 | X24: 36.09 | Y24: 4.96 | Z24: 19.1 | AA24: 60 | AB24: 7.19 | AC24: 93.47 | AD24: 6.33 | AE24: 29.9
B25: T 50.1 t=1,50 | D25: 1.5 | E25: =ProduktbezogeneKosten!$F$27/10*G25 -> 1.65 | F25: =Materialkosten!$C$30/10*G25 -> 16.5 | G25: 0.15 | H25: 72.2 | I25: 320 | J25: 18.3 | K25: 2.02 | L25: 12.6 | M25: 2.02 | N25: 4.35 | O25: 5.43 | P25: 7.52 | Q25: 40 | R25: 46.6 | S25: 40 | T25: 46.6 | U25: 1 | V25: 0 | W25: 8.89 | X25: 53.34 | Y25: 6.9 | Z25: 27 | AA25: 60 | AB25: 9.42 | AC25: 142.2 | AD25: 8.46 | AE25: 41.7
B26: T 85.1 t=0,75 | D26: 0.75 | E26: =ProduktbezogeneKosten!$F$27/10*G26 -> 0.8833 | F26: =Materialkosten!$C$30/10*G26 -> 8.833 | G26: 0.0803 | H26: 91 | I26: 320 | J26: 9.3 | K26: 3.12 | L26: 4.38 | M26: 3.56 | N26: 3.5 | O26: 4.38 | P26: 6.03 | Q26: 40 | R26: 9.4 | S26: 90 | T26: 12.2 | U26: 2 | V26: 60 | W26: 6.12 | X26: 26.22 | Y26: 6.12 | Z26: 21.3 | AA26: 120 | AB26: 6.45 | AC26: 34.79 | AD26: 6.45 | AE26: 28.2
B27: T 85.1 t=0,88 | D27: 0.88 | E27: =ProduktbezogeneKosten!$F$27/10*G27 -> 1.0362 | F27: =Materialkosten!$C$30/10*G27 -> 10.362 | G27: 0.0942 | H27: 108 | I27: 320 | J27: 11 | K27: 3.12 | L27: 5.84 | M27: 3.53 | N27: 4.93 | O27: 6.16 | P27: 8.12 | Q27: 40 | R27: 13.1 | S27: 90 | T27: 17.1 | U27: 2 | V27: 60 | W27: 7.97 | X27: 38.11 | Y27: 7.97 | Z27: 30.7 | AA27: 120 | AB27: 8.28 | AC27: 50.36 | AD27: 8.28 | AE27: 41
B28: T 85.1 t=1,00 | D28: 1 | E28: =ProduktbezogeneKosten!$F$27/10*G28 -> 1.177 | F28: =Materialkosten!$C$30/10*G28 -> 11.77 | G28: 0.107 | H28: 123 | I28: 320 | J28: 12.6 | K28: 3.12 | L28: 7.4 | M28: 3.49 | N28: 5.63 | O28: 7.04 | P28: 9.23 | Q28: 40 | R28: 16.4 | S28: 90 | T28: 21.3 | U28: 2 | V28: 60 | W28: 9.59 | X28: 48.31 | Y28: 9.59 | Z28: 38.9 | AA28: 120 | AB28: 9.98 | AC28: 64.76 | AD28: 9.98 | AE28: 52.2
B29: T 85.1 t=1,25 | D29: 1.25 | E29: =ProduktbezogeneKosten!$F$27/10*G29 -> 1.474 | F29: =Materialkosten!$C$30/10*G29 -> 14.74 | G29: 0.134 | H29: 155 | I29: 320 | J29: 15.9 | K29: 3.12 | L29: 11 | M29: 3.42 | N29: 7.1 | O29: 8.88 | P29: 11.6 | Q29: 40 | R29: 21.6 | S29: 90 | T29: 28.1 | U29: 2 | V29: 60 | W29: 12 | X29: 64.09 | Y29: 12 | Z29: 51.9 | AA29: 120 | AB29: 13.1 | AC29: 84.69 | AD29: 13.1 | AE29: 68.7
B30: T 85.1 t=1,50 | D30: 1.5 | E30: =ProduktbezogeneKosten!$F$27/10*G30 -> 1.771 | F30: =Materialkosten!$C$30/10*G30 -> 17.71 | G30: 0.161 | H30: 187 | I30: 320 | J30: 19.2 | K30: 3.12 | L30: 14.8 | M30: 3.34 | N30: 8.57 | O30: 10.7 | P30: 14 | Q30: 40 | R30: 26 | S30: 90 | T30: 33.8 | U30: 2 | V30: 60 | W30: 14.4 | X30: 77.03 | Y30: 14.4 | Z30: 62.6 | AA30: 120 | AB30: 15.8 | AC30: 102.2 | AD30: 15.8 | AE30: 82.8
B31: T 100.1 t=0,75 | D31: 0.75 | E31: =ProduktbezogeneKosten!$F$27/10*G31 -> 0.9999 | F31: =Materialkosten!$C$30/10*G31 -> 9.999 | G31: 0.0909 | H31: 167 | I31: 320 | J31: 10.76 | K31: 3.94 | L31: 4.13 | M31: 4.45 | N31: 5.08 | O31: 6.35 | P31: 6.53 | Q31: 40 | R31: 9.46 | S31: 40 | T31: 9.46 | U31: 2 | V31: 60 | W31: 6.96 | X31: 24.38 | Y31: 6.96 | Z31: 21.8 | AA31: 160 | AB31: 6.96 | AC31: 35.51 | AD31: 6.96 | AE31: 31.77
B32: T 100.1 t=0,88 | D32: 0.88 | E32: =ProduktbezogeneKosten!$F$27/10*G32 -> 1.177 | F32: =Materialkosten!$C$30/10*G32 -> 11.77 | G32: 0.107 | H32: 198 | I32: 320 | J32: 12.73 | K32: 3.94 | L32: 5.39 | M32: 4.43 | N32: 7.7 | O32: 9.63 | P32: 8.63 | Q32: 40 | R32: 13.16 | S32: 40 | T32: 13.16 | U32: 2 | V32: 60 | W32: 8.63 | X32: 33.78 | Y32: 8.63 | Z32: 30.22 | AA32: 160 | AB32: 8.63 | AC32: 48.88 | AD32: 8.63 | AE32: 43.71
B33: T 100.1 t=1,00 | D33: 1 | E33: =ProduktbezogeneKosten!$F$27/10*G33 -> 1.331 | F33: =Materialkosten!$C$30/10*G33 -> 13.31 | G33: 0.121 | H33: 226 | I33: 320 | J33: 14.55 | K33: 3.94 | L33: 6.65 | M33: 4.41 | N33: 10.12 | O33: 12.65 | P33: 10.6 | Q33: 40 | R33: 17.04 | S33: 40 | T33: 17.04 | U33: 2 | V33: 60 | W33: 10.15 | X33: 43.65 | Y33: 10.15 | Z33: 39.03 | AA33: 160 | AB33: 10.15 | AC33: 62.73 | AD33: 10.15 | AE33: 56.1
B34: T 100.1 t=1,25 | D34: 1.25 | E34: =ProduktbezogeneKosten!$F$27/10*G34 -> 1.672 | F34: =Materialkosten!$C$30/10*G34 -> 16.72 | G34: 0.152 | H34: 285 | I34: 320 | J34: 18.33 | K34: 3.94 | L34: 9.51 | M34: 4.37 | N34: 12.39 | O34: 15.49 | P34: 15.7 | Q34: 40 | R34: 19.49 | S34: 40 | T34: 19.49 | U34: 2 | V34: 60 | W34: 13.36 | X34: 49.64 | Y34: 13.36 | Z34: 44.41 | AA34: 160 | AB34: 13.36 | AC34: 70.54 | AD34: 13.36 | AE34: 63.12
B35: T 100.1 t=1,50 | D35: 1.5 | E35: =ProduktbezogeneKosten!$F$27/10*G35 -> 2.002 | F35: =Materialkosten!$C$30/10*G35 -> 20.02 | G35: 0.182 | H35: 344 | I35: 320 | J35: 22.12 | K35: 3.94 | L35: 12.48 | M35: 4.3 | N35: 14.99 | O35: 18.74 | P35: 18.9 | Q35: 40 | R35: 27.49 | S35: 40 | T35: 27.29 | U35: 2 | V35: 60 | W35: 16.12 | X35: 69.7 | Y35: 16.12 | Z35: 62.35 | AA35: 160 | AB35: 16.12 | AC35: 98.13 | AD35: 16.12 | AE35: 87.79
B36: T 106.1 t=0,75 | D36: 0.75 | E36: =ProduktbezogeneKosten!$F$27/10*G36 -> 1.1 | F36: =Materialkosten!$C$30/10*G36 -> 11 | G36: 0.1 | H36: 206 | I36: 320 | J36: 11.84 | K36: 4.17 | L36: 4.43 | M36: 4.72 | N36: 5.83 | O36: 7.29 | P36: 7.31 | Q36: 40 | R36: 10.79 | S36: 40 | T36: 10.79 | U36: 2 | V36: 60 | W36: 8.04 | X36: 27.82 | Y36: 8.04 | Z36: 24.88 | AA36: 160 | AB36: 8.04 | AC36: 40.52 | AD36: 8.04 | AE36: 36.26
B37: T 106.1 t=0,88 | D37: 0.88 | E37: =ProduktbezogeneKosten!$F$27/10*G37 -> 1.287 | F37: =Materialkosten!$C$30/10*G37 -> 12.87 | G37: 0.117 | H37: 243 | I37: 320 | J37: 14.01 | K37: 4.17 | L37: 5.78 | M37: 4.7 | N37: 8.54 | O37: 10.68 | P37: 9.96 | Q37: 40 | R37: 15.03 | S37: 40 | T37: 15.03 | U37: 2 | V37: 60 | W37: 10.07 | X37: 38.59 | Y37: 10.07 | Z37: 34.52 | AA37: 160 | AB37: 10.07 | AC37: 55.82 | AD37: 10.07 | AE37: 49.93
B38: T 106.1 t=1,00 | D38: 1 | E38: =ProduktbezogeneKosten!$F$27/10*G38 -> 1.463 | F38: =Materialkosten!$C$30/10*G38 -> 14.63 | G38: 0.133 | H38: 278 | I38: 320 | J38: 16.01 | K38: 4.17 | L38: 7.14 | M38: 4.68 | N38: 11.04 | O38: 13.8 | P38: 12.4 | Q38: 40 | R38: 19.48 | S38: 40 | T38: 19.48 | U38: 2 | V38: 60 | W38: 11.84 | X38: 49.86 | Y38: 11.84 | Z38: 44.61 | AA38: 160 | AB38: 11.84 | AC38: 71.67 | AD38: 11.84 | AE38: 64.12
B39: T 106.1 t=1,25 | D39: 1.25 | E39: =ProduktbezogeneKosten!$F$27/10*G39 -> 1.837 | F39: =Materialkosten!$C$30/10*G39 -> 18.37 | G39: 0.167 | H39: 330 | I39: 320 | J39: 20.18 | K39: 4.17 | L39: 10.24 | M39: 4.64 | N39: 13.57 | O39: 16.96 | P39: 16.3 | Q39: 40 | R39: 22.35 | S39: 40 | T39: 22.35 | U39: 2 | V39: 60 | W39: 15.63 | X39: 56.93 | Y39: 15.63 | Z39: 50.92 | AA39: 160 | AB39: 15.63 | AC39: 80.93 | AD39: 15.63 | AE39: 72.37
B40: T 106.1 t=1,50 | D40: 1.5 | E40: =ProduktbezogeneKosten!$F$27/10*G40 -> 2.2 | F40: =Materialkosten!$C$30/10*G40 -> 22 | G40: 0.2 | H40: 398 | I40: 320 | J40: 24.35 | K40: 4.17 | L40: 13.43 | M40: 4.56 | N40: 16.37 | O40: 20.46 | P40: 19.7 | Q40: 40 | R40: 31.52 | S40: 40 | T40: 31.25 | U40: 2 | V40: 60 | W40: 18.86 | X40: 79.95 | Y40: 18.86 | Z40: 71.5 | AA40: 160 | AB40: 18.86 | AC40: 112.6 | AD40: 18.86 | AE40: 100.66
B41: T 135.1 t=0,75 | D41: 0.75 | E41: =ProduktbezogeneKosten!$F$27/10*G41 -> 1.0714 | F41: =Materialkosten!$C$30/10*G41 -> 10.714 | G41: 0.0974 | H41: 297 | I41: 320 | J41: 11.5 | K41: 5.14 | L41: 4.01 | M41: 5.96 | N41: 5.18 | O41: 6.48 | P41: 10.2 | Q41: 40 | R41: 7.16 | S41: 40 | T41: 7.16 | U41: 2 | V41: 60 | W41: 9.44 | X41: 20.4 | Y41: 7.86 | Z41: 16.6 | AA41: 160 | AB41: 10.8 | AC41: 29.18 | AD41: 9.56 | AE41: 22.8
B42: T 135.1 t=0,88 | D42: 0.88 | E42: =ProduktbezogeneKosten!$F$27/10*G42 -> 1.254 | F42: =Materialkosten!$C$30/10*G42 -> 12.54 | G42: 0.114 | H42: 344 | I42: 320 | J42: 13.6 | K42: 5.14 | L42: 5.22 | M42: 5.94 | N42: 10 | O42: 12.5 | P42: 12.6 | Q42: 40 | R42: 10.4 | S42: 40 | T42: 10.4 | U42: 2 | V42: 60 | W42: 12.3 | X42: 29.07 | Y42: 10.5 | Z42: 24.3 | AA42: 160 | AB42: 14.3 | AC42: 39.33 | AD42: 12.7 | AE42: 30.2
B43: T 135.1 t=1,00 | D43: 1 | E43: =ProduktbezogeneKosten!$F$27/10*G43 -> 1.43 | F43: =Materialkosten!$C$30/10*G43 -> 14.3 | G43: 0.13 | H43: 387 | I43: 320 | J43: 15.6 | K43: 5.14 | L43: 6.42 | M43: 5.91 | N43: 11.4 | O43: 14.3 | P43: 14.8 | Q43: 40 | R43: 13.3 | S43: 40 | T43: 13.3 | U43: 2 | V43: 60 | W43: 14.9 | X43: 36.98 | Y43: 12.9 | Z43: 31.2 | AA43: 160 | AB43: 17.4 | AC43: 47.97 | AD43: 15.6 | AE43: 37
B44: T 135.1 t=1,25 | D44: 1.25 | E44: =ProduktbezogeneKosten!$F$27/10*G44 -> 1.782 | F44: =Materialkosten!$C$30/10*G44 -> 17.82 | G44: 0.162 | H44: 491 | I44: 320 | J44: 19.7 | K44: 5.14 | L44: 9.2 | M44: 5.85 | N44: 14.4 | O44: 18 | P44: 20.6 | Q44: 40 | R44: 24.6 | S44: 40 | T44: 24.6 | U44: 2 | V44: 60 | W44: 21.3 | X44: 66 | Y44: 19.2 | Z44: 50.7 | AA44: 160 | AB44: 24 | AC44: 82.79 | AD44: 21.9 | AE44: 60.2
B45: T 135.1 t=1,50 | D45: 1.5 | E45: =ProduktbezogeneKosten!$F$27/10*G45 -> 2.145 | F45: =Materialkosten!$C$30/10*G45 -> 21.45 | G45: 0.195 | H45: 594 | I45: 320 | J45: 23.7 | K45: 5.14 | L45: 12 | M45: 5.76 | N45: 17.4 | O45: 21.7 | P45: 26.5 | Q45: 40 | R45: 36.2 | S45: 40 | T45: 36.2 | U45: 2 | V45: 60 | W45: 27.8 | X45: 94.91 | Y45: 25.4 | Z45: 70.1 | AA45: 160 | AB45: 30.6 | AC45: 117.3 | AD45: 28.4 | AE45: 83.1
B46: T 150.1 t=0,75 | D46: 0.75 | E46: =ProduktbezogeneKosten!$F$27/10*G46 -> 1.177 | F46: =Materialkosten!$C$30/10*G46 -> 11.77 | G46: 0.107 | H46: 377 | I46: 320 | J46: 12.5 | K46: 5.49 | L46: 5.26 | M46: 6.29 | N46: 7.75 | O46: 9.69 | P46: 12.1 | Q46: 40 | R46: 8.62 | S46: 90 | T46: 11.2 | U46: 2 | V46: 60 | W46: 14.4 | X46: 19.69 | Y46: 12.5 | Z46: 15.9 | AA46: 160 | AB46: 14.1 | AC46: 36.65 | AD46: 12.5 | AE46: 29.7
B47: T 150.1 t=0,88 | D47: 0.88 | E47: =ProduktbezogeneKosten!$F$27/10*G47 -> 1.386 | F47: =Materialkosten!$C$30/10*G47 -> 13.86 | G47: 0.126 | H47: 446 | I47: 320 | J47: 14.8 | K47: 5.49 | L47: 7.13 | M47: 6.24 | N47: 10 | O47: 12.5 | P47: 18 | Q47: 40 | R47: 13.7 | S47: 90 | T47: 17.8 | U47: 2 | V47: 60 | W47: 24.3 | X47: 26.87 | Y47: 16.4 | Z47: 21.7 | AA47: 160 | AB47: 20.1 | AC47: 54.25 | AD47: 16.4 | AE47: 44.1
B48: T 150.1 t=1,00 | D48: 1 | E48: =ProduktbezogeneKosten!$F$27/10*G48 -> 1.573 | F48: =Materialkosten!$C$30/10*G48 -> 15.73 | G48: 0.143 | H48: 510 | I48: 320 | J48: 16.9 | K48: 5.49 | L48: 9.04 | M48: 6.21 | N48: 11.4 | O48: 14.3 | P48: 23 | Q48: 40 | R48: 18.5 | S48: 90 | T48: 24.1 | U48: 2 | V48: 60 | W48: 30.7 | X48: 35.24 | Y48: 21.1 | Z48: 28.7 | AA48: 160 | AB48: 25.4 | AC48: 71.57 | AD48: 21.1 | AE48: 57.9
B49: T 150.1 t=1,25 | D49: 1.25 | E49: =ProduktbezogeneKosten!$F$27/10*G49 -> 1.969 | F49: =Materialkosten!$C$30/10*G49 -> 19.69 | G49: 0.179 | H49: 642 | I49: 320 | J49: 21.3 | K49: 5.49 | L49: 13.6 | M49: 6.08 | N49: 14.4 | O49: 18 | P49: 29.4 | Q49: 40 | R49: 27.2 | S49: 90 | T49: 35.4 | U49: 2 | V49: 60 | W49: 33.9 | X49: 58.22 | Y49: 33.9 | Z49: 47.4 | AA49: 160 | AB49: 33.5 | AC49: 105.3 | AD49: 33.5 | AE49: 85.7
B50: T 150.1 t=1,50 | D50: 1.5 | E50: =ProduktbezogeneKosten!$F$27/10*G50 -> 2.365 | F50: =Materialkosten!$C$30/10*G50 -> 23.65 | G50: 0.215 | H50: 775 | I50: 320 | J50: 25.7 | K50: 5.49 | L50: 18.4 | M50: 5.96 | N50: 17.4 | O50: 21.7 | P50: 35.5 | Q50: 40 | R50: 32.8 | S50: 90 | T50: 42.7 | U50: 2 | V50: 60 | W50: 41 | X50: 70.43 | Y50: 41 | Z50: 57.2 | AA50: 160 | AB50: 40.4 | AC50: 127.8 | AD50: 40.4 | AE50: 103
B51: T 160.1 t=0,75 | D51: 0.75 | E51: =ProduktbezogeneKosten!$F$27/10*G51 -> 1.331 | F51: =Materialkosten!$C$30/10*G51 -> 13.31 | G51: 0.121 | H51: 458 | I51: 320 | J51: 13.9 | K51: 5.66 | L51: 5.67 | M51: 6.59 | N51: 7.75 | O51: 9.69 | P51: 13.2 | Q51: 40 | R51: 11.4 | S51: 40 | T51: 11.4 | U51: 2 | V51: 60 | W51: 13.6 | X51: 26.66 | Y51: 9.92 | Z51: 25.5 | AA51: 160 | AB51: 15.6 | AC51: 38.83 | AD51: 13.1 | AE51: 32.9
B52: T 160.1 t=0,88 | D52: 0.88 | E52: =ProduktbezogeneKosten!$F$27/10*G52 -> 1.562 | F52: =Materialkosten!$C$30/10*G52 -> 15.62 | G52: 0.142 | H52: 542 | I52: 320 | J52: 16.5 | K52: 5.66 | L52: 7.69 | M52: 6.54 | N52: 10 | O52: 12.5 | P52: 17.5 | Q52: 40 | R52: 17 | S52: 40 | T52: 17 | U52: 2 | V52: 60 | W52: 17 | X52: 37.11 | Y52: 13.2 | Z52: 36.5 | AA52: 160 | AB52: 19.5 | AC52: 57.85 | AD52: 17.6 | AE52: 48.6
B53: T 160.1 t=1,00 | D53: 1 | E53: =ProduktbezogeneKosten!$F$27/10*G53 -> 1.771 | F53: =Materialkosten!$C$30/10*G53 -> 17.71 | G53: 0.161 | H53: 619 | I53: 320 | J53: 18.8 | K53: 5.66 | L53: 9.75 | M53: 6.5 | N53: 11.4 | O53: 14.3 | P53: 22.1 | Q53: 40 | R53: 22.3 | S53: 40 | T53: 22.3 | U53: 2 | V53: 60 | W53: 20.9 | X53: 49.37 | Y53: 18 | Z53: 46.2 | AA53: 160 | AB53: 22.6 | AC53: 77.96 | AD53: 21.1 | AE53: 63.5
B54: T 160.1 t=1,25 | D54: 1.25 | E54: =ProduktbezogeneKosten!$F$27/10*G54 -> 2.211 | F54: =Materialkosten!$C$30/10*G54 -> 22.11 | G54: 0.201 | H54: 780 | I54: 320 | J54: 23.8 | K54: 5.66 | L54: 14.4 | M54: 6.39 | N54: 14.4 | O54: 18 | P54: 27.8 | Q54: 40 | R54: 28.1 | S54: 40 | T54: 28.1 | U54: 2 | V54: 60 | W54: 26.3 | X54: 62.05 | Y54: 22.8 | Z54: 58.2 | AA54: 160 | AB54: 28.5 | AC54: 98.76 | AD54: 27.2 | AE54: 80
B55: T 160.1 t=1,50 | D55: 1.5 | E55: =ProduktbezogeneKosten!$F$27/10*G55 -> 2.662 | F55: =Materialkosten!$C$30/10*G55 -> 26.62 | G55: 0.242 | H55: 942 | I55: 320 | J55: 28.7 | K55: 5.66 | L55: 19.5 | M55: 6.25 | N55: 17.4 | O55: 21.7 | P55: 33.6 | Q55: 40 | R55: 33.8 | S55: 40 | T55: 33.8 | U55: 2 | V55: 60 | W55: 31.7 | X55: 74.88 | Y55: 27.3 | Z55: 70.2 | AA55: 160 | AB55: 34.5 | AC55: 119.2 | AD55: 33 | AE55: 96.3

Sheet Trapezprofile4
A1: Stahltrapezblech | B1: ThyssenKrupp Hoesch Bausysteme GmbH 57223 Kreuztal | G1: Querschnitts- und Widerstandsgrößen nach DIN 18807 und der Anpassungsrichtlinie Stahlbau gemäß Prüfbescheid II B 2 - 543 - 921 vom 21.04.2004 in Verbindung mit Bescheid Nr. VI A 4-543-1021 vom 08.01.2009, gültig bis 30.04.2014
E2: Produkt- bezogene Kosten [€/m2] | G2: Werte aus Anlage *.1 des Prüfbescheids | P2: Werte aus Anlage *.2 des Prüfbescheids
D3: Nenn- blech- dicke [mm] | F3: Material-kosten [€/m2] | I3: Nennstreck- grenze des Stahlkerns fy,k [N/mm2] | J3: Normalkraft- beanspruchung nicht reduzierter Querschnitt Ag [cm2/m] | K3: Normalkraft- beanspruchung nicht reduzierter Querschnitt Ig [cm] | L3: Normalkraft- beanspruchung mitwirkender Querschnitt Aef [cm2/m] | M3: Normalkraft- beanspruchung mitwirkender Querschnitt ief,mit [cm] | N3: Grenzstützweiten | P3: Feldmoment MF,k [kNm/m] | Q3: Endauflagerkräfte (obere Zeilen) | S3: Endauflagerkräfte (untere Zeilen) | U3: Inter- aktions- para- meter ε [-] | V3: Elastisch aufnehmbare Schnittgrößen an Zwischenauflagern (1) | AA3: Elastisch aufnehmbare Schnittgrößen an Zwischenauflagern (2)
A4: HOESCH Negativlage (-) | B4: Bezeich- nung [-] | G4: Eigenlast [kN/m2] | H4: I+ef [cm4/m] | N4: Einfeld- träger [m] | O4: Mehrfeld- träger [m] | Q4: ba+ü [mm] | R4: Tragfähig- keit Ra,T,k [kN/m] | S4: ba+ü [mm] | T4: Tragfähig- keit Ra,T,k [kN/m] | V4: bB [mm] | W4: M0B,k [kNm/m] | X4: R0B,k [kN/m] | Y4: maxMB,k [kNm/m] | Z4: maxRB,k [kN/m] | AA4: bB [mm] | AB4: M0B,k [kNm/m] | AC4: R0B,k [kN/m] | AD4: maxMB,k [kNm/m] | AE4: maxRB,k [kN/m]
B6: T 35.1 t=0,75 | D6: 0.75 | E6: =ProduktbezogeneKosten!$F$27/10*G6 -> 0.7876 | F6: =Materialkosten!$C$30/10*G6 -> 7.876 | G6: 0.0716 | H6: 14.6 | I6: 320 | J6: 8.47 | K6: 1.33 | L6: 3.99 | M6: 1.38 | N6: 1.1 | O6: 1.38 | P6: 1.82 | Q6: 40 | R6: 13.2 | S6: 40 | T6: 13.2 | U6: 1 | V6: 0 | W6: 1.8 | X6: 27.54 | Y6: 1.56 | Z6: 7.92 | AA6: 60 | AD6: 1.77 | AE6: 10.9
B7: T 35.1 t=0,88 | D7: 0.88 | E7: =ProduktbezogeneKosten!$F$27/10*G7 -> 0.924 | F7: =Materialkosten!$C$30/10*G7 -> 9.24 | G7: 0.084 | H7: 17.6 | I7: 320 | J7: 10 | K7: 1.33 | L7: 5.39 | M7: 1.36 | N7: 2.1 | O7: 2.63 | P7: 2.7 | Q7: 40 | R7: 17.8 | S7: 40 | T7: 17.8 | U7: 1 | V7: 0 | W7: 2.63 | X7: 31.3 | Y7: 2.21 | Z7: 10.7 | AA7: 60 | AD7: 2.43 | AE7: 15
B8: T 35.1 t=1,00 | D8: 1 | E8: =ProduktbezogeneKosten!$F$27/10*G8 -> 1.0505 | F8: =Materialkosten!$C$30/10*G8 -> 10.505 | G8: 0.0955 | H8: 20.3 | I8: 320 | J8: 11.5 | K8: 1.33 | L8: 6.8 | M8: 1.34 | N8: 3 | O8: 3.75 | P8: 3.53 | Q8: 40 | R8: 22.1 | S8: 40 | T8: 22.1 | U8: 1 | V8: 0 | W8: 3.39 | X8: 36.61 | Y8: 2.79 | Z8: 13.3 | AA8: 60 | AD8: 3.06 | AE8: 18.9
B9: T 35.1 t=1,25 | D9: 1.25 | E9: =ProduktbezogeneKosten!$F$27/10*G9 -> 1.309 | F9: =Materialkosten!$C$30/10*G9 -> 13.09 | G9: 0.119 | H9: 25 | I9: 320 | J9: 14.4 | K9: 1.33 | L9: 10 | M9: 1.33 | N9: 4.4 | O9: 5.5 | P9: 4.45 | Q9: 40 | R9: 32 | S9: 40 | T9: 32 | U9: 1 | V9: 0 | W9: 4.38 | X9: 81.91 | Y9: 3.89 | Z9: 20.3 | AA9: 60 | AD9: 4.3 | AE9: 26.7
B10: T 35.1 t=1,50 | D10: 1.5 | E10: =ProduktbezogeneKosten!$F$27/10*G10 -> 1.573 | F10: =Materialkosten!$C$30/10*G10 -> 15.73 | G10: 0.143 | H10: 29.7 | I10: 320 | J10: 17.4 | K10: 1.33 | L10: 12.8 | M10: 1.33 | N10: 5.3 | O10: 6.63 | P10: 5.35 | Q10: 40 | R10: 41.6 | S10: 40 | T10: 41.6 | U10: 1 | V10: 0 | W10: 5.36 | X10: 161.3 | Y10: 4.96 | Z10: 27.3 | AA10: 60 | AD10: 5.37 | AE10: 34.5
B11: T 40.1 t=0,75 | D11: 0.75 | E11: =ProduktbezogeneKosten!$F$27/10*G11 -> 0.902 | F11: =Materialkosten!$C$30/10*G11 -> 9.02 | G11: 0.082 | H11: 21.6 | I11: 320 | J11: 9.41 | K11: 1.63 | L11: 4.53 | M11: 1.73 | N11: 1.2 | O11: 1.5 | P11: 2.48 | Q11: 40 | R11: 8.5 | U11: 1 | V11: 60 | W11: 3.26 | X11: 72.37 | Y11: 2.92 | Z11: 12.3
B12: T 40.1 t=0,88 | D12: 0.88 | E12: =ProduktbezogeneKosten!$F$27/10*G12 -> 1.0582 | F12: =Materialkosten!$C$30/10*G12 -> 10.582 | G12: 0.0962 | H12: 27.7 | I12: 320 | J12: 11.1 | K12: 1.63 | L12: 6.13 | M12: 1.7 | N12: 3.2 | O12: 4 | P12: 3.35 | Q12: 40 | R12: 16 | U12: 1 | V12: 60 | W12: 3.85 | X12: 95.48 | Y12: 3.53 | Z12: 14.4
B13: T 40.1 t=1,00 | D13: 1 | E13: =ProduktbezogeneKosten!$F$27/10*G13 -> 1.199 | F13: =Materialkosten!$C$30/10*G13 -> 11.99 | G13: 0.109 | H13: 35.2 | I13: 320 | J13: 12.7 | K13: 1.63 | L13: 7.75 | M13: 1.68 | N13: 4.8 | O13: 6 | P13: 4.14 | Q13: 40 | R13: 23.1 | U13: 1 | V13: 60 | W13: 4.41 | X13: 183 | Y13: 4.2 | Z13: 37
B14: T 40.1 t=1,25 | D14: 1.25 | E14: =ProduktbezogeneKosten!$F$27/10*G14 -> 1.507 | F14: =Materialkosten!$C$30/10*G14 -> 15.07 | G14: 0.137 | H14: 44.1 | I14: 320 | J14: 16 | K14: 1.63 | L14: 11.5 | M14: 1.66 | N14: 5.4 | O14: 6.75 | P14: 5.62 | Q14: 40 | R14: 37.7 | U14: 1 | V14: 60 | W14: 5.93 | X14: 423 | Y14: 5.78 | Z14: 58.8
B15: T 40.1 S t=0,75 | D15: 0.75 | E15: =ProduktbezogeneKosten!$F$27/10*G15 -> 0.902 | F15: =Materialkosten!$C$30/10*G15 -> 9.02 | G15: 0.082 | H15: 26.4 | I15: 320 | J15: 9.41 | K15: 1.63 | L15: 5.02 | M15: 1.73 | N15: 1.6 | O15: 2 | P15: 2.48 | Q15: 40 | R15: 8.5 | U15: 1 | V15: 60 | W15: 3.26 | X15: 72.37 | Y15: 2.92 | Z15: 12.3
B16: T 40.1 S t=0,88 | D16: 0.88 | E16: =ProduktbezogeneKosten!$F$27/10*G16 -> 1.0582 | F16: =Materialkosten!$C$30/10*G16 -> 10.582 | G16: 0.0962 | H16: 31.2 | I16: 320 | J16: 11.1 | K16: 1.63 | L16: 6.71 | M16: 1.71 | N16: 2.9 | O16: 3.63 | P16: 3.35 | Q16: 40 | R16: 16 | U16: 1 | V16: 60 | W16: 3.85 | X16: 95.48 | Y16: 3.53 | Z16: 14.4
B17: T 40.1 S t=1,00 | D17: 1 | E17: =ProduktbezogeneKosten!$F$27/10*G17 -> 1.199 | F17: =Materialkosten!$C$30/10*G17 -> 11.99 | G17: 0.109 | H17: 35.2 | I17: 320 | J17: 12.7 | K17: 1.63 | L17: 8.39 | M17: 1.69 | N17: 3.9 | O17: 4.88 | P17: 4.14 | Q17: 40 | R17: 23.1 | U17: 1 | V17: 60 | W17: 4.41 | X17: 183 | Y17: 4.2 | Z17: 37
B18: T 40.1 S t=1,25 | D18: 1.25 | E18: =ProduktbezogeneKosten!$F$27/10*G18 -> 1.507 | F18: =Materialkosten!$C$30/10*G18 -> 15.07 | G18: 0.137 | H18: 44.1 | I18: 320 | J18: 16 | K18: 1.63 | L18: 11.8 | M18: 1.66 | N18: 5.4 | O18: 6.75 | P18: 5.62 | Q18: 40 | R18: 37.7 | U18: 1 | V18: 60 | W18: 5.93 | X18: 423.4 | Y18: 5.78 | Z18: 58.8
B19: T 50.1 t=0,75 | D19: 0.75 | E19: =ProduktbezogeneKosten!$F$27/10*G19 -> 0.825 | F19: =Materialkosten!$C$30/10*G19 -> 8.25 | G19: 0.075 | H19: 35.1 | I19: 320 | J19: 8.88 | K19: 2.02 | L19: 3.47 | M19: 2.15 | N19: 2.2 | O19: 2.75 | P19: 2.48 | Q19: 40 | R19: 13.8 | S19: 40 | T19: 13.8 | U19: 1 | V19: 0 | W19: 2.33 | X19: 16.64 | Y19: 1.78 | Z19: 7.62 | AA19: 60 | AB19: 2.91 | AC19: 25.17 | AD19: 2.36 | AE19: 10.4
B20: T 50.1 t=0,88 | D20: 0.88 | E20: =ProduktbezogeneKosten!$F$27/10*G20 -> 0.968 | F20: =Materialkosten!$C$30/10*G20 -> 9.68 | G20: 0.088 | H20: 41.5 | I20: 320 | J20: 10.5 | K20: 2.02 | L20: 4.74 | M20: 2.12 | N20: 2.96 | O20: 3.7 | P20: 3.57 | Q20: 40 | R20: 18.2 | S20: 40 | T20: 18.2 | U20: 1 | V20: 0 | W20: 3.17 | X20: 22.48 | Y20: 2.51 | Z20: 10.1 | AA20: 60 | AB20: 3.71 | AC20: 44.89 | AD20: 3.2 | AE20: 14.5
B21: T 50.1 t=1,00 | D21: 1 | E21: =ProduktbezogeneKosten!$F$27/10*G21 -> 1.1 | F21: =Materialkosten!$C$30/10*G21 -> 11 | G21: 0.1 | H21: 47.5 | I21: 320 | J21: 12 | K21: 2.02 | L21: 6.05 | M21: 2.09 | N21: 3.38 | O21: 4.23 | P21: 4.58 | Q21: 40 | R21: 22.4 | S21: 40 | T21: 22.4 | U21: 1 | V21: 0 | W21: 3.93 | X21: 27.82 | Y21: 3.17 | Z21: 12.4 | AA21: 60 | AB21: 4.44 | AC21: 63.05 | AD21: 3.96 | AE21: 18.3
B22: T 50.1 t=1,25 | D22: 1.25 | E22: =ProduktbezogeneKosten!$F$27/10*G22 -> 1.375 | F22: =Materialkosten!$C$30/10*G22 -> 13.75 | G22: 0.125 | H22: 59.8 | I22: 320 | J22: 15.1 | K22: 2.02 | L22: 9.14 | M22: 2.05 | N22: 4.26 | O22: 5.33 | P22: 6.47 | Q22: 40 | R22: 34.5 | S22: 40 | T22: 34.5 | U22: 1 | V22: 0 | W22: 6.11 | X22: 50.29 | Y22: 4.98 | Z22: 21.3 | AA22: 60 | AB22: 6.36 | AC22: 136.7 | AD22: 5.78 | AE22: 29.5
B23: T 50.1 t=1,50 | D23: 1.5 | E23: =ProduktbezogeneKosten!$F$27/10*G23 -> 1.65 | F23: =Materialkosten!$C$30/10*G23 -> 16.5 | G23: 0.15 | H23: 72.2 | I23: 320 | J23: 18.3 | K23: 2.02 | L23: 12.6 | M23: 2.02 | N23: 5.14 | O23: 6.43 | P23: 8.34 | Q23: 40 | R23: 46.6 | S23: 40 | T23: 46.6 | U23: 1 | V23: 0 | W23: 8.28 | X23: 72.7 | Y23: 6.79 | Z23: 30.2 | AA23: 60 | AB23: 8.27 | AC23: 210.1 | AD23: 7.59 | AE23: 40.8
B24: T 85.1 t=0,75 | D24: 0.75 | E24: =ProduktbezogeneKosten!$F$27/10*G24 -> 0.8833 | F24: =Materialkosten!$C$30/10*G24 -> 8.833 | G24: 0.0803 | H24: 91 | I24: 320 | J24: 9.3 | K24: 3.12 | L24: 4.38 | M24: 3.56 | N24: 3.38 | O24: 4.22 | P24: 6.27 | Q24: 40 | R24: 9.4 | S24: 90 | T24: 12.2 | U24: 2 | V24: 60 | W24: 6.53 | X24: 19.04 | Y24: 6.53 | Z24: 15.5 | AA24: 120 | AB24: 6.36 | AC24: 29.25 | AD24: 6.36 | AE24: 23.9
B25: T 85.1 t=0,88 | D25: 0.88 | E25: =ProduktbezogeneKosten!$F$27/10*G25 -> 1.0362 | F25: =Materialkosten!$C$30/10*G25 -> 10.362 | G25: 0.0942 | H25: 108 | I25: 320 | J25: 11 | K25: 3.12 | L25: 5.84 | M25: 3.53 | N25: 4.71 | O25: 5.89 | P25: 8.36 | Q25: 40 | R25: 13.1 | S25: 90 | T25: 17.1 | U25: 2 | V25: 60 | W25: 8.54 | X25: 26.48 | Y25: 8.54 | Z25: 21.5 | AA25: 120 | AB25: 8 | AC25: 41.86 | AD25: 8 | AE25: 34
B26: T 85.1 t=1,00 | D26: 1 | E26: =ProduktbezogeneKosten!$F$27/10*G26 -> 1.177 | F26: =Materialkosten!$C$30/10*G26 -> 11.77 | G26: 0.107 | H26: 123 | I26: 320 | J26: 12.6 | K26: 3.12 | L26: 7.4 | M26: 3.49 | N26: 5.38 | O26: 6.72 | P26: 9.78 | Q26: 40 | R26: 16.4 | S26: 90 | T26: 21.3 | U26: 2 | V26: 60 | W26: 10.3 | X26: 33.06 | Y26: 10 | Z26: 26.9 | AA26: 120 | AB26: 9.54 | AC26: 54.05 | AD26: 9.54 | AE26: 43.8
B27: T 85.1 t=1,25 | D27: 1.25 | E27: =ProduktbezogeneKosten!$F$27/10*G27 -> 1.474 | F27: =Materialkosten!$C$30/10*G27 -> 14.74 | G27: 0.134 | H27: 155 | I27: 320 | J27: 15.9 | K27: 3.12 | L27: 11 | M27: 3.42 | N27: 6.78 | O27: 8.48 | P27: 12.3 | Q27: 40 | R27: 21.6 | S27: 90 | T27: 28.1 | U27: 2 | V27: 60 | W27: 13.2 | X27: 43.96 | Y27: 12.6 | Z27: 35.7 | AA27: 120 | AB27: 12.6 | AC27: 70.99 | AD27: 12.6 | AE27: 57.5
B28: T 85.1 t=1,50 | D28: 1.5 | E28: =ProduktbezogeneKosten!$F$27/10*G28 -> 1.771 | F28: =Materialkosten!$C$30/10*G28 -> 17.71 | G28: 0.161 | H28: 187 | I28: 320 | J28: 19.2 | K28: 3.12 | L28: 14.8 | M28: 3.34 | N28: 8.19 | O28: 10.2 | P28: 14.9 | Q28: 40 | R28: 26 | S28: 90 | T28: 33.8 | U28: 2 | V28: 60 | W28: 15.9 | X28: 53.03 | Y28: 15.3 | Z28: 43 | AA28: 120 | AB28: 15.3 | AC28: 85.66 | AD28: 15.3 | AE28: 69.3
B29: T 100.1 t=0,75 | D29: 0.75 | E29: =ProduktbezogeneKosten!$F$27/10*G29 -> 0.9999 | F29: =Materialkosten!$C$30/10*G29 -> 9.999 | G29: 0.0909 | H29: 167 | I29: 320 | J29: 10.76 | K29: 3.94 | L29: 4.13 | M29: 4.45 | N29: 4.42 | O29: 5.53 | P29: 8.02 | Q29: 40 | R29: 7.49 | S29: 40 | T29: 7.49 | U29: 2 | V29: 60 | W29: 7.1 | X29: 19.32 | Y29: 7.1 | Z29: 17.28 | AA29: 160 | AB29: 7.1 | AC29: 28.16 | AD29: 7.1 | AE29: 25.18
B30: T 100.1 t=0,88 | D30: 0.88 | E30: =ProduktbezogeneKosten!$F$27/10*G30 -> 1.177 | F30: =Materialkosten!$C$30/10*G30 -> 11.77 | G30: 0.107 | H30: 198 | I30: 320 | J30: 12.73 | K30: 3.94 | L30: 5.39 | M30: 4.43 | N30: 7.12 | O30: 8.9 | P30: 10.5 | Q30: 40 | R30: 10.56 | S30: 40 | T30: 10.56 | U30: 2 | V30: 60 | W30: 9.02 | X30: 27.12 | Y30: 9.02 | Z30: 24.25 | AA30: 160 | AB30: 9.02 | AC30: 39.22 | AD30: 9.02 | AE30: 35.08
B31: T 100.1 t=1,00 | D31: 1 | E31: =ProduktbezogeneKosten!$F$27/10*G31 -> 1.331 | F31: =Materialkosten!$C$30/10*G31 -> 13.31 | G31: 0.121 | H31: 226 | I31: 320 | J31: 14.55 | K31: 3.94 | L31: 6.65 | M31: 4.41 | N31: 9.61 | O31: 12.01 | P31: 12.8 | Q31: 40 | R31: 13.94 | S31: 40 | T31: 13.94 | U31: 2 | V31: 60 | W31: 10.87 | X31: 35.71 | Y31: 10.87 | Z31: 31.93 | AA31: 160 | AB31: 10.87 | AC31: 51.33 | AD31: 10.87 | AE31: 45.9
B32: T 100.1 t=1,25 | D32: 1.25 | E32: =ProduktbezogeneKosten!$F$27/10*G32 -> 1.672 | F32: =Materialkosten!$C$30/10*G32 -> 16.72 | G32: 0.152 | H32: 257 | I32: 320 | J32: 18.33 | K32: 3.94 | L32: 9.51 | M32: 4.37 | N32: 12.39 | O32: 15.49 | P32: 17 | Q32: 40 | R32: 23 | S32: 40 | T32: 23 | U32: 2 | V32: 60 | W32: 14.92 | X32: 58.6 | Y32: 14.92 | Z32: 52.39 | AA32: 160 | AB32: 14.92 | AC32: 83.28 | AD32: 14.92 | AE32: 74.47
B33: T 100.1 t=1,50 | D33: 1.5 | E33: =ProduktbezogeneKosten!$F$27/10*G33 -> 2.002 | F33: =Materialkosten!$C$30/10*G33 -> 20.02 | G33: 0.182 | H33: 310 | I33: 320 | J33: 22.12 | K33: 3.94 | L33: 12.48 | M33: 4.3 | N33: 14.99 | O33: 18.74 | P33: 20.5 | Q33: 40 | R33: 27.49 | S33: 40 | T33: 27.49 | U33: 2 | V33: 60 | W33: 19.11 | X33: 69.73 | Y33: 19.11 | Z33: 62.35 | AA33: 160 | AB33: 19.11 | AC33: 98.18 | AD33: 19.11 | AE33: 87.79
B34: T 106.1 t=0,75 | D34: 0.75 | E34: =ProduktbezogeneKosten!$F$27/10*G34 -> 1.1 | F34: =Materialkosten!$C$30/10*G34 -> 11 | G34: 0.1 | H34: 206 | I34: 320 | J34: 11.84 | K34: 4.17 | L34: 4.43 | M34: 4.72 | N34: 4.74 | O34: 5.93 | P34: 8.95 | Q34: 40 | R34: 8.59 | S34: 40 | T34: 8.59 | U34: 2 | V34: 60 | W34: 8.2 | X34: 22.14 | Y34: 8.2 | Z34: 19.8 | AA34: 160 | AB34: 8.2 | AC34: 32.24 | AD34: 8.2 | AE34: 28.85
B35: T 106.1 t=0,88 | D35: 0.88 | E35: =ProduktbezogeneKosten!$F$27/10*G35 -> 1.287 | F35: =Materialkosten!$C$30/10*G35 -> 12.87 | G35: 0.117 | H35: 243 | I35: 320 | J35: 14.01 | K35: 4.17 | L35: 5.78 | M35: 4.7 | N35: 8.02 | O35: 10.03 | P35: 12.1 | Q35: 40 | R35: 12.09 | S35: 40 | T35: 12.09 | U35: 2 | V35: 60 | W35: 10.42 | X35: 31.05 | Y35: 10.42 | Z35: 27.78 | AA35: 160 | AB35: 10.42 | AC35: 44.93 | AD35: 10.42 | AE35: 40.18
B36: T 106.1 t=1,00 | D36: 1 | E36: =ProduktbezogeneKosten!$F$27/10*G36 -> 1.463 | F36: =Materialkosten!$C$30/10*G36 -> 14.63 | G36: 0.133 | H36: 278 | I36: 320 | J36: 16.01 | K36: 4.17 | L36: 7.14 | M36: 4.68 | N36: 11.04 | O36: 13.8 | P36: 15 | Q36: 40 | R36: 15.97 | S36: 40 | T36: 15.97 | U36: 2 | V36: 60 | W36: 12.56 | X36: 40.9 | Y36: 12.56 | Z36: 36.57 | AA36: 160 | AB36: 12.56 | AC36: 58.76 | AD36: 12.56 | AE36: 52.57
B37: T 106.1 t=1,25 | D37: 1.25 | E37: =ProduktbezogeneKosten!$F$27/10*G37 -> 1.837 | F37: =Materialkosten!$C$30/10*G37 -> 18.37 | G37: 0.167 | H37: 350 | I37: 320 | J37: 20.18 | K37: 4.17 | L37: 10.24 | M37: 4.64 | N37: 13.57 | O37: 16.96 | P37: 20.7 | Q37: 40 | R37: 26.32 | S37: 40 | T37: 26.32 | U37: 2 | V37: 60 | W37: 17.24 | X37: 67.01 | Y37: 17.24 | Z37: 59.96 | AA37: 160 | AB37: 17.24 | AC37: 95.29 | AD37: 17.24 | AE37: 85.23
B38: T 106.1 t=1,50 | D38: 1.5 | E38: =ProduktbezogeneKosten!$F$27/10*G38 -> 2.2 | F38: =Materialkosten!$C$30/10*G38 -> 22 | G38: 0.2 | H38: 423 | I38: 320 | J38: 24.35 | K38: 4.17 | L38: 13.43 | M38: 4.56 | N38: 16.37 | O38: 20.46 | P38: 25 | Q38: 40 | R38: 31.52 | S38: 40 | T38: 31.52 | U38: 2 | V38: 60 | W38: 22.12 | X38: 79.95 | Y38: 22.12 | Z38: 71.5 | AA38: 160 | AB38: 22.12 | AC38: 112.6 | AD38: 22.12 | AE38: 100.66
B39: T 135.1 t=0,75 | D39: 0.75 | E39: =ProduktbezogeneKosten!$F$27/10*G39 -> 1.0714 | F39: =Materialkosten!$C$30/10*G39 -> 10.714 | G39: 0.0974 | H39: 297 | I39: 320 | J39: 11.5 | K39: 5.14 | L39: 4.01 | M39: 5.96 | N39: 6 | O39: 7.5 | P39: 9.83 | Q39: 40 | R39: 7.16 | S39: 40 | T39: 7.16 | U39: 2 | V39: 60 | W39: 10.6 | X39: 20.77 | Y39: 8.69 | Z39: 17.9 | AA39: 160 | AB39: 12 | AC39: 23.35 | AD39: 9.71 | AE39: 21.3
B40: T 135.1 t=0,88 | D40: 0.88 | E40: =ProduktbezogeneKosten!$F$27/10*G40 -> 1.254 | F40: =Materialkosten!$C$30/10*G40 -> 12.54 | G40: 0.114 | H40: 344 | I40: 320 | J40: 13.6 | K40: 5.14 | L40: 5.22 | M40: 5.94 | N40: 8.57 | O40: 10.7 | P40: 12.8 | Q40: 40 | R40: 10.4 | S40: 40 | T40: 10.4 | U40: 2 | V40: 60 | W40: 13.4 | X40: 29.1 | Y40: 11.2 | Z40: 24 | AA40: 160 | AB40: 14.3 | AC40: 34.15 | AD40: 12.1 | AE40: 27.9
B41: T 135.1 t=1,00 | D41: 1 | E41: =ProduktbezogeneKosten!$F$27/10*G41 -> 1.43 | F41: =Materialkosten!$C$30/10*G41 -> 14.3 | G41: 0.13 | H41: 387 | I41: 320 | J41: 15.6 | K41: 5.14 | L41: 6.42 | M41: 5.91 | N41: 9.79 | O41: 12.2 | P41: 15.5 | Q41: 40 | R41: 13.3 | S41: 40 | T41: 13.3 | U41: 2 | V41: 60 | W41: 16.1 | X41: 36.91 | Y41: 13.6 | Z41: 29.9 | AA41: 160 | AB41: 16.5 | AC41: 44.28 | AD41: 14.4 | AE41: 34.2
B42: T 135.1 t=1,25 | D42: 1.25 | E42: =ProduktbezogeneKosten!$F$27/10*G42 -> 1.782 | F42: =Materialkosten!$C$30/10*G42 -> 17.82 | G42: 0.162 | H42: 491 | I42: 320 | J42: 19.7 | K42: 5.14 | L42: 9.2 | M42: 5.85 | N42: 12.3 | O42: 15.4 | P42: 21.3 | Q42: 40 | R42: 24.6 | S42: 40 | T42: 24.6 | U42: 2 | V42: 60 | W42: 23.7 | X42: 57.93 | Y42: 20.6 | Z42: 46.5 | AA42: 160 | AB42: 24.5 | AC42: 75.24 | AD42: 21.9 | AE42: 56.4
B43: T 135.1 t=1,50 | D43: 1.5 | E43: =ProduktbezogeneKosten!$F$27/10*G43 -> 2.145 | F43: =Materialkosten!$C$30/10*G43 -> 21.45 | G43: 0.195 | H43: 594 | I43: 320 | J43: 23.7 | K43: 5.14 | L43: 12 | M43: 5.76 | N43: 14.9 | O43: 18.6 | P43: 27.2 | Q43: 40 | R43: 36.2 | S43: 40 | T43: 36.2 | U43: 2 | V43: 60 | W43: 31.5 | X43: 79.14 | Y43: 27.5 | Z43: 63.2 | AA43: 160 | AB43: 32.4 | AC43: 105.9 | AD43: 29.5 | AE43: 78.6
B44: T 150.1 t=0,75 | D44: 0.75 | E44: =ProduktbezogeneKosten!$F$27/10*G44 -> 1.177 | F44: =Materialkosten!$C$30/10*G44 -> 11.77 | G44: 0.107 | H44: 377 | I44: 320 | J44: 12.5 | K44: 5.49 | L44: 5.26 | M44: 6.29 | N44: 6.25 | O44: 7.81 | P44: 11.5 | Q44: 40 | R44: 8.62 | S44: 90 | T44: 11.2 | U44: 2 | V44: 60 | W44: 12.9 | X44: 20.01 | Y44: 12.9 | Z44: 16.2 | AA44: 160 | AB44: 16.1 | AC44: 29.57 | AD44: 13.1 | AE44: 23.9
B45: T 150.1 t=0,88 | D45: 0.88 | E45: =ProduktbezogeneKosten!$F$27/10*G45 -> 1.386 | F45: =Materialkosten!$C$30/10*G45 -> 13.86 | G45: 0.126 | H45: 446 | I45: 320 | J45: 14.8 | K45: 5.49 | L45: 7.13 | M45: 6.24 | N45: 9.05 | O45: 11.3 | P45: 15 | Q45: 40 | R45: 13.7 | S45: 90 | T45: 17.8 | U45: 2 | V45: 60 | W45: 19.6 | X45: 28.42 | Y45: 19.6 | Z45: 23.1 | AA45: 160 | AB45: 21.1 | AC45: 46.85 | AD45: 19.6 | AE45: 38
B46: T 150.1 t=1,00 | D46: 1 | E46: =ProduktbezogeneKosten!$F$27/10*G46 -> 1.573 | F46: =Materialkosten!$C$30/10*G46 -> 15.73 | G46: 0.143 | H46: 510 | I46: 320 | J46: 16.9 | K46: 5.49 | L46: 9.04 | M46: 6.21 | N46: 10.3 | O46: 12.9 | P46: 19.5 | Q46: 40 | R46: 18.5 | S46: 90 | T46: 24.1 | U46: 2 | V46: 60 | W46: 24.7 | X46: 37.42 | Y46: 24.7 | Z46: 30.5 | AA46: 160 | AB46: 25.7 | AC46: 63.37 | AD46: 25.1 | AE46: 51.2
B47: T 150.1 t=1,25 | D47: 1.25 | E47: =ProduktbezogeneKosten!$F$27/10*G47 -> 1.969 | F47: =Materialkosten!$C$30/10*G47 -> 19.69 | G47: 0.179 | H47: 642 | I47: 320 | J47: 21.3 | K47: 5.49 | L47: 13.6 | M47: 6.08 | N47: 13 | O47: 16.3 | P47: 33.5 | Q47: 40 | R47: 27.2 | S47: 90 | T47: 35.4 | U47: 2 | V47: 60 | W47: 30.5 | X47: 57.99 | Y47: 30.5 | Z47: 47.1 | AA47: 160 | AB47: 32.4 | AC47: 92.21 | AD47: 32 | AE47: 74.8
B48: T 150.1 t=1,50 | D48: 1.5 | E48: =ProduktbezogeneKosten!$F$27/10*G48 -> 2.365 | F48: =Materialkosten!$C$30/10*G48 -> 23.65 | G48: 0.215 | H48: 775 | I48: 320 | J48: 25.7 | K48: 5.49 | L48: 18.4 | M48: 5.96 | N48: 15.7 | O48: 19.7 | P48: 40.3 | Q48: 40 | R48: 32.8 | S48: 90 | T48: 42.7 | U48: 2 | V48: 60 | W48: 36.7 | X48: 70.27 | Y48: 36.7 | Z48: 56.9 | AA48: 160 | AB48: 39.2 | AC48: 111.4 | AD48: 38.7 | AE48: 90.3
B49: T 160.1 t=0,75 | D49: 0.75 | E49: =ProduktbezogeneKosten!$F$27/10*G49 -> 1.331 | F49: =Materialkosten!$C$30/10*G49 -> 13.31 | G49: 0.121 | H49: 458 | I49: 320 | J49: 13.9 | K49: 5.66 | L49: 5.67 | M49: 6.59 | N49: 7.75 | O49: 9.69 | P49: 14.2 | Q49: 40 | R49: 11.4 | S49: 40 | T49: 11.4 | U49: 2 | V49: 60 | W49: 12.9 | X49: 25.43 | Y49: 10.1 | Z49: 23.1 | AA49: 160 | AB49: 13.4 | AC49: 36.24 | AD49: 11.3 | AE49: 32.5
B50: T 160.1 t=0,88 | D50: 0.88 | E50: =ProduktbezogeneKosten!$F$27/10*G50 -> 1.562 | F50: =Materialkosten!$C$30/10*G50 -> 15.62 | G50: 0.142 | H50: 542 | I50: 320 | J50: 16.5 | K50: 5.66 | L50: 7.69 | M50: 6.54 | N50: 10 | O50: 12.5 | P50: 17.8 | Q50: 40 | R50: 17 | S50: 40 | T50: 17 | U50: 2 | V50: 60 | W50: 19.8 | X50: 33.64 | Y50: 13.8 | Z50: 30.9 | AA50: 160 | AB50: 20.1 | AC50: 52.01 | AD50: 17.4 | AE50: 42.9
B51: T 160.1 t=1,00 | D51: 1 | E51: =ProduktbezogeneKosten!$F$27/10*G51 -> 1.771 | F51: =Materialkosten!$C$30/10*G51 -> 17.71 | G51: 0.161 | H51: 619 | I51: 320 | J51: 18.8 | K51: 5.66 | L51: 9.75 | M51: 6.5 | N51: 11.4 | O51: 14.3 | P51: 21.5 | Q51: 40 | R51: 22.3 | S51: 40 | T51: 22.3 | U51: 2 | V51: 60 | W51: 23 | X51: 45.22 | Y51: 17.4 | Z51: 41 | AA51: 160 | AB51: 23.4 | AC51: 71.11 | AD51: 20.1 | AE51: 56.7
B52: T 160.1 t=1,25 | D52: 1.25 | E52: =ProduktbezogeneKosten!$F$27/10*G52 -> 2.211 | F52: =Materialkosten!$C$30/10*G52 -> 22.11 | G52: 0.201 | H52: 780 | I52: 320 | J52: 23.8 | K52: 5.66 | L52: 14.4 | M52: 6.39 | N52: 14.4 | O52: 18 | P52: 27 | Q52: 40 | R52: 28.1 | S52: 40 | T52: 28.1 | U52: 2 | V52: 60 | W52: 29 | X52: 57.08 | Y52: 21.9 | Z52: 51.6 | AA52: 160 | AB52: 29.4 | AC52: 89.47 | AD52: 25.4 | AE52: 71.4
B53: T 160.1 t=1,50 | D53: 1.5 | E53: =ProduktbezogeneKosten!$F$27/10*G53 -> 2.662 | F53: =Materialkosten!$C$30/10*G53 -> 26.62 | G53: 0.242 | H53: 942 | I53: 320 | J53: 28.7 | K53: 5.66 | L53: 19.5 | M53: 6.25 | N53: 17.4 | O53: 21.7 | P53: 32.5 | Q53: 40 | R53: 33.8 | S53: 40 | T53: 33.8 | U53: 2 | V53: 60 | W53: 35 | X53: 68.63 | Y53: 26.4 | Z53: 62.3 | AA53: 160 | AB53: 35.5 | AC53: 107.8 | AD53: 30.6 | AE53: 86.3

Sheet Trapezprofile5
A1: Stahltrapezblech | B1: Fischer Profil GmbH 57250 Netphen-Deuz | G1: Querschnitts- und Widerstandsgrößen nach DIN 18807 und der Anpassungsrichtlinie Stahlbau gemäß Prüfbescheid
E2: Produkt- bezogene Kosten [€/m2] | G2: Werte aus Anlage *.1 des Prüfbescheids | P2: Werte aus Anlage *.2 des Prüfbescheids
D3: Nenn- blech- dicke [mm] | F3: Material-kosten [€/m2] | I3: Nennstreck- grenze des Stahlkerns fy,k [N/mm2] | J3: Normalkraft- beanspruchung nicht reduzierter Querschnitt Ag [cm2/m] | K3: Normalkraft- beanspruchung nicht reduzierter Querschnitt Ig [cm] | L3: Normalkraft- beanspruchung mitwirkender Querschnitt Aef [cm2/m] | M3: Normalkraft- beanspruchung mitwirkender Querschnitt ief,mit [cm] | N3: Grenzstützweiten | P3: Feldmoment MF,k [kNm/m] | Q3: Endauflagerkräfte (obere Zeilen) | S3: Endauflagerkräfte (untere Zeilen) | U3: Inter- aktions- para- meter ε [-] | V3: Elastisch aufnehmbare Schnittgrößen an Zwischenauflagern (1) | AA3: Elastisch aufnehmbare Schnittgrößen an Zwischenauflagern (2)
A4: FISCHER Positivlage (+) | B4: Bezeich- nung [-] | G4: Eigenlast [kN/m2] | H4: I+ef [cm4/m] | N4: Einfeld- träger [m] | O4: Mehrfeld- träger [m] | Q4: ba+ü [mm] | R4: Tragfähig- keit Ra,T,k [kN/m] | S4: ba+ü [mm] | T4: Tragfähig- keit Ra,T,k [kN/m] | V4: bB [mm] | W4: M0B,k [kNm/m] | X4: R0B,k [kN/m] | Y4: maxMB,k [kNm/m] | Z4: maxRB,k [kN/m] | AA4: bB [mm] | AB4: M0B,k [kNm/m] | AC4: R0B,k [kN/m] | AD4: maxMB,k [kNm/m] | AE4: maxRB,k [kN/m]
B6: FI 35/207 t=0,75 | D6: 0.75 | E6: =ProduktbezogeneKosten!$F$27/10*G6 -> 0.792 | F6: =Materialkosten!$C$30/10*G6 -> 7.92 | G6: 0.072 | H6: 12.26 | I6: 320 | J6: 8.36 | K6: 1.44 | L6: 4.02 | M6: 1.54 | N6: 0.94 | O6: 1.17 | P6: 1.87 | Q6: 40 | R6: 9.52 | U6: 2 | V6: 10 | W6: 1.96 | X6: 14.05 | Y6: 1.96 | Z6: 12.57 | AA6: 60 | AB6: 1.96 | AC6: 24.54 | AD6: 1.96 | AE6: 21.95
B7: FI 35/207 t=0,88 | D7: 0.88 | E7: =ProduktbezogeneKosten!$F$27/10*G7 -> 0.924 | F7: =Materialkosten!$C$30/10*G7 -> 9.24 | G7: 0.084 | H7: 15.21 | I7: 320 | J7: 9.89 | K7: 1.44 | L7: 5.43 | M7: 1.51 | N7: 1.82 | O7: 2.28 | P7: 2.42 | Q7: 40 | R7: 12.96 | U7: 2 | V7: 10 | W7: 2.47 | X7: 19.4 | Y7: 2.47 | Z7: 17.35 | AA7: 60 | AB7: 2.47 | AC7: 33.29 | AD7: 2.47 | AE7: 29.78
B8: FI 35/207 t=1,00 | D8: 1 | E8: =ProduktbezogeneKosten!$F$27/10*G8 -> 1.056 | F8: =Materialkosten!$C$30/10*G8 -> 10.56 | G8: 0.096 | H8: 18.06 | I8: 320 | J8: 11.31 | K8: 1.44 | L8: 6.87 | M8: 1.5 | N8: 2.65 | O8: 3.31 | P8: 2.94 | Q8: 40 | R8: 16.54 | U8: 2 | V8: 10 | W8: 2.97 | X8: 25.04 | Y8: 2.97 | Z8: 22.4 | AA8: 60 | AB8: 2.97 | AC8: 42.37 | AD8: 2.97 | AE8: 37.89
B9: FI 35/207 t=1,25 | D9: 1.25 | E9: =ProduktbezogeneKosten!$F$27/10*G9 -> 1.32 | F9: =Materialkosten!$C$30/10*G9 -> 13.2 | G9: 0.12 | H9: 24.29 | I9: 320 | J9: 14.25 | K9: 1.44 | L9: 10.16 | M9: 1.47 | N9: 3.34 | O9: 4.17 | P9: 4.1 | Q9: 40 | R9: 25.22 | U9: 2 | V9: 10 | W9: 4.02 | X9: 38.93 | Y9: 4.02 | Z9: 34.82 | AA9: 60 | AB9: 4.02 | AC9: 64.23 | AD9: 4.02 | AE9: 57.45
B10: FI 35/207 t=1,50 | D10: 1.5 | E10: =ProduktbezogeneKosten!$F$27/10*G10 -> 1.584 | F10: =Materialkosten!$C$30/10*G10 -> 15.84 | G10: 0.144 | H10: 30.84 | I10: 320 | J10: 17.2 | K10: 1.44 | L10: 13.22 | M10: 1.46 | N10: 4.02 | O10: 5.03 | P10: 5.34 | Q10: 40 | R10: 35.47 | U10: 2 | V10: 10 | W10: 4.85 | X10: 55.64 | Y10: 4.85 | Z10: 49.77 | AA10: 60 | AB10: 4.85 | AC10: 89.95 | AD10: 4.85 | AE10: 80.45
B11: FI 40/183 t=0,75 | D11: 0.75 | E11: =ProduktbezogeneKosten!$F$27/10*G11 -> 0.891 | F11: =Materialkosten!$C$30/10*G11 -> 8.91 | G11: 0.081 | H11: 21.6 | I11: 320 | J11: 9.6 | K11: 1.73 | L11: 4.56 | M11: 1.84 | N11: 1.2 | O11: 1.5 | P11: 2.57 | Q11: 40 | R11: 8.5 | U11: 1 | V11: 60 | W11: 3.32 | X11: 37.2 | Y11: 2.7 | Z11: 15.27
B12: FI 40/183 t=0,88 | D12: 0.88 | E12: =ProduktbezogeneKosten!$F$27/10*G12 -> 1.045 | F12: =Materialkosten!$C$30/10*G12 -> 10.45 | G12: 0.095 | H12: 27.7 | I12: 320 | J12: 11.35 | K12: 1.73 | L12: 6.17 | M12: 1.81 | N12: 2.7 | O12: 3.37 | P12: 3.31 | Q12: 40 | R12: 15.98 | U12: 1 | V12: 60 | W12: 4.32 | X12: 53.6 | Y12: 3.63 | Z12: 26.58
B13: FI 40/183 t=1,00 | D13: 1 | E13: =ProduktbezogeneKosten!$F$27/10*G13 -> 1.188 | F13: =Materialkosten!$C$30/10*G13 -> 11.88 | G13: 0.108 | H13: 33.8 | I13: 320 | J13: 12.97 | K13: 1.73 | L13: 7.81 | M13: 1.79 | N13: 3.9 | O13: 4.87 | P13: 4.04 | Q13: 40 | R13: 23.12 | U13: 1 | V13: 60 | W13: 5.24 | X13: 70.7 | Y13: 4.5 | Z13: 37.02
B14: FI 40/183 t=1,25 | D14: 1.25 | E14: =ProduktbezogeneKosten!$F$27/10*G14 -> 1.496 | F14: =Materialkosten!$C$30/10*G14 -> 14.96 | G14: 0.136 | H14: 42.6 | I14: 320 | J14: 16.35 | K14: 1.73 | L14: 11.59 | M14: 1.76 | N14: 5.1 | O14: 5.63 | P14: 5.51 | Q14: 40 | R14: 37.74 | U14: 1 | V14: 60 | W14: 7.16 | X14: 113.8 | Y14: 6.12 | Z14: 58.77
B15: FI 40/183 t=1,50 | D15: 1.5 | E15: =ProduktbezogeneKosten!$F$27/10*G15 -> 1.793 | F15: =Materialkosten!$C$30/10*G15 -> 17.93 | G15: 0.163 | H15: 51.4 | I15: 320 | J15: 19.73 | K15: 1.73 | L15: 15.16 | M15: 1.75 | N15: 6.2 | O15: 7.75 | P15: 6.98 | Q15: 40 | R15: 52.36 | U15: 1 | V15: 60 | W15: 9.08 | X15: 166.2 | Y15: 7.74 | Z15: 80.52
B16: FI 50/250 t=0,75 | D16: 0.75 | E16: =ProduktbezogeneKosten!$F$27/10*G16 -> 0.814 | F16: =Materialkosten!$C$30/10*G16 -> 8.14 | G16: 0.074 | H16: 23.6 | I16: 320 | J16: 8.32 | K16: 1.99 | L16: 3.33 | M16: 2.15 | N16: 1.55 | O16: 1.9 | P16: 2.44 | Q16: 40 | R16: 7.47 | U16: 2 | V16: 60 | W16: 2.45 | X16: 19.24 | Y16: 2.45 | Z16: 17.21 | AA16: 160 | AB16: 2.45 | AC16: 28.04 | AD16: 2.45 | AE16: 25.08
B17: FI 50/250 t=0,88 | D17: 0.88 | E17: =ProduktbezogeneKosten!$F$27/10*G17 -> 0.957 | F17: =Materialkosten!$C$30/10*G17 -> 9.57 | G17: 0.087 | H17: 29.2 | I17: 320 | J17: 9.85 | K17: 1.99 | L17: 4.56 | M17: 2.12 | N17: 2.15 | O17: 2.6 | P17: 3.13 | Q17: 40 | R17: 9.88 | U17: 2 | V17: 60 | W17: 3.31 | X17: 25.37 | Y17: 3.31 | Z17: 22.69 | AA17: 160 | AB17: 3.31 | AC17: 36.69 | AD17: 3.31 | AE17: 32.82
B18: FI 50/250 t=1,00 | D18: 1 | E18: =ProduktbezogeneKosten!$F$27/10*G18 -> 1.089 | F18: =Materialkosten!$C$30/10*G18 -> 10.89 | G18: 0.099 | H18: 34.7 | I18: 320 | J18: 11.25 | K18: 1.99 | L18: 5.82 | M18: 2.09 | N18: 3.3 | O18: 4.1 | P18: 3.82 | Q18: 40 | R18: 12.35 | U18: 2 | V18: 60 | W18: 3.98 | X18: 31.63 | Y18: 3.98 | Z18: 28.29 | AA18: 160 | AB18: 3.98 | AC18: 45.46 | AD18: 3.98 | AE18: 40.66
B19: FI 50/250 t=1,25 | D19: 1.25 | E19: =ProduktbezogeneKosten!$F$27/10*G19 -> 1.364 | F19: =Materialkosten!$C$30/10*G19 -> 13.64 | G19: 0.124 | H19: 46.7 | I19: 320 | J19: 14.19 | K19: 1.99 | L19: 8.79 | M19: 2.06 | N19: 4.15 | O19: 5.15 | P19: 5.41 | Q19: 40 | R19: 18.63 | U19: 2 | V19: 60 | W19: 5.48 | X19: 47.45 | Y19: 5.48 | Z19: 42.44 | AA19: 160 | AB19: 5.48 | AC19: 67.45 | AD19: 5.48 | AE19: 60.33
B20: FI 50/250 t=1,50 | D20: 1.5 | E20: =ProduktbezogeneKosten!$F$27/10*G20 -> 1.639 | F20: =Materialkosten!$C$30/10*G20 -> 16.39 | G20: 0.149 | H20: 59.4 | I20: 320 | J20: 17.11 | K20: 1.99 | L20: 12.16 | M20: 2.03 | N20: 5 | O20: 6.25 | P20: 6.66 | Q20: 40 | R20: 26.61 | U20: 2 | V20: 60 | W20: 7.07 | X20: 67.47 | Y20: 7.07 | Z20: 60.35 | AA20: 160 | AB20: 7.07 | AC20: 95.01 | AD20: 7.07 | AE20: 84.98
B21: FI 85/280 t=0,75 | D21: 0.75 | E21: =ProduktbezogeneKosten!$F$27/10*G21 -> 0.88 | F21: =Materialkosten!$C$30/10*G21 -> 8.8 | G21: 0.08 | H21: 90.63 | I21: 320 | J21: 9.38 | K21: 3.19 | L21: 4.04 | M21: 3.71 | N21: 3.3 | O21: 4.13 | P21: 5.13 | Q21: 40 | R21: 8.47 | U21: 2 | V21: 60 | W21: 5.32 | X21: 21.87 | Y21: 5.32 | Z21: 19.52 | AA21: 160 | AB21: 5.32 | AC21: 31.81 | AD21: 5.32 | AE21: 28.45
B22: FI 85/280 t=0,88 | D22: 0.88 | E22: =ProduktbezogeneKosten!$F$27/10*G22 -> 1.034 | F22: =Materialkosten!$C$30/10*G22 -> 10.34 | G22: 0.094 | H22: 109.9 | I22: 320 | J22: 11.1 | K22: 3.19 | L22: 5.37 | M22: 3.67 | N22: 4.6 | O22: 5.75 | P22: 6.97 | Q22: 40 | R22: 11.86 | U22: 2 | V22: 60 | W22: 6.54 | X22: 30.47 | Y22: 6.54 | Z22: 27.25 | AA22: 160 | AB22: 6.54 | AC22: 44.06 | AD22: 6.54 | AE22: 39.41
B23: FI 85/280 t=1,00 | D23: 1 | E23: =ProduktbezogeneKosten!$F$27/10*G23 -> 1.177 | F23: =Materialkosten!$C$30/10*G23 -> 11.77 | G23: 0.107 | H23: 128.5 | I23: 320 | J23: 12.69 | K23: 3.19 | L23: 6.71 | M23: 3.64 | N23: 5.4 | O23: 6.75 | P23: 8.72 | Q23: 40 | R23: 15.43 | U23: 2 | V23: 60 | W23: 7.71 | X23: 37.52 | Y23: 7.71 | Z23: 35.35 | AA23: 160 | AB23: 7.71 | AC23: 56.81 | AD23: 7.71 | AE23: 50.81
B24: FI 85/280 t=1,25 | D24: 1.25 | E24: =ProduktbezogeneKosten!$F$27/10*G24 -> 1.474 | F24: =Materialkosten!$C$30/10*G24 -> 14.74 | G24: 0.134 | H24: 162.5 | I24: 320 | J24: 15.99 | K24: 3.19 | L24: 9.81 | M24: 3.57 | N24: 6.1 | O24: 7.63 | P24: 11.95 | Q24: 40 | R24: 24.18 | U24: 2 | V24: 60 | W24: 10.21 | X24: 61.59 | Y24: 10.21 | Z24: 55.08 | AA24: 160 | AB24: 10.21 | AC24: 87.54 | AD24: 10.21 | AE24: 78.3
B25: FI 85/280 t=1,50 | D25: 1.5 | E25: =ProduktbezogeneKosten!$F$27/10*G25 -> 1.771 | F25: =Materialkosten!$C$30/10*G25 -> 17.71 | G25: 0.161 | H25: 196.1 | I25: 320 | J25: 19.3 | K25: 3.19 | L25: 13.19 | M25: 3.48 | N25: 6.7 | O25: 8.38 | P25: 15.11 | Q25: 40 | R25: 34.62 | U25: 2 | V25: 60 | W25: 12.36 | X25: 87.79 | Y25: 12.36 | Z25: 78.53 | AA25: 160 | AB25: 12.36 | AC25: 123.61 | AD25: 12.36 | AE25: 110.56
B26: FI 100/275 t=0,75 | D26: 0.75 | E26: =ProduktbezogeneKosten!$F$27/10*G26 -> 0.99 | F26: =Materialkosten!$C$30/10*G26 -> 9.9 | G26: 0.09 | H26: 145 | I26: 320 | J26: 10.52 | K26: 3.73 | L26: 4.49 | M26: 4.33 | N26: 4.5 | O26: 5.63 | P26: 7.06 | Q26: 40 | R26: 8.96 | U26: 2 | V26: 60 | W26: 6.72 | X26: 23.09 | Y26: 6.72 | Z26: 20.65 | AA26: 160 | AB26: 6.72 | AC26: 33.64 | AD26: 6.72 | AE26: 30.09
B27: FI 100/275 t=0,88 | D27: 0.88 | E27: =ProduktbezogeneKosten!$F$27/10*G27 -> 1.166 | F27: =Materialkosten!$C$30/10*G27 -> 11.66 | G27: 0.106 | H27: 173 | I27: 320 | J27: 12.45 | K27: 3.73 | L27: 5.96 | M27: 4.29 | N27: 6.05 | O27: 7.56 | P27: 9.22 | Q27: 40 | R27: 12.58 | U27: 2 | V27: 60 | W27: 8.25 | X27: 32.61 | Y27: 8.25 | Z27: 28.89 | AA27: 160 | AB27: 8.25 | AC27: 46.72 | AD27: 8.25 | AE27: 41.79
B28: FI 100/275 t=1,00 | D28: 1 | E28: =ProduktbezogeneKosten!$F$27/10*G28 -> 1.32 | F28: =Materialkosten!$C$30/10*G28 -> 13.2 | G28: 0.12 | H28: 198 | I28: 320 | J28: 14.22 | K28: 3.73 | L28: 7.34 | M28: 4.25 | N28: 6.7 | O28: 8.38 | P28: 11.32 | Q28: 40 | R28: 16.39 | U28: 2 | V28: 60 | W28: 9.71 | X28: 41.97 | Y28: 9.71 | Z28: 37.54 | AA28: 160 | AB28: 9.71 | AC28: 60.33 | AD28: 9.71 | AE28: 53.96
B29: FI 100/275 t=1,25 | D29: 1.25 | E29: =ProduktbezogeneKosten!$F$27/10*G29 -> 1.65 | F29: =Materialkosten!$C$30/10*G29 -> 16.5 | G29: 0.15 | H29: 250 | I29: 320 | J29: 17.93 | K29: 3.73 | L29: 10.46 | M29: 4.18 | N29: 7.5 | O29: 9.38 | P29: 15.29 | Q29: 40 | R29: 25.73 | U29: 2 | V29: 60 | W29: 12.84 | X29: 65.55 | Y29: 12.84 | Z29: 58.63 | AA29: 160 | AB29: 12.84 | AC29: 93.17 | AD29: 12.84 | AE29: 83.34
B30: FI 100/275 t=1,50 | D30: 1.5 | E30: =ProduktbezogeneKosten!$F$27/10*G30 -> 1.98 | F30: =Materialkosten!$C$30/10*G30 -> 19.8 | G30: 0.18 | H30: 302 | I30: 320 | J30: 21.63 | K30: 3.73 | L30: 13.68 | M30: 4.09 | N30: 8.25 | O30: 10.31 | P30: 19.24 | Q30: 40 | R30: 36.9 | U30: 2 | V30: 60 | W30: 15.5 | X30: 93.57 | Y30: 15.5 | Z30: 83.69 | AA30: 160 | AB30: 15.5 | AC30: 131.75 | AD30: 15.5 | AE30: 117.84
B31: FI 135/310 t=0,75 | D31: 0.75 | E31: =ProduktbezogeneKosten!$F$27/10*G31 -> 1.067 | F31: =Materialkosten!$C$30/10*G31 -> 10.67 | G31: 0.097 | H31: 323 | I31: 320 | J31: 11.36 | K31: 5.05 | L31: 3.98 | M31: 5.98 | N31: 5.5 | O31: 6.88 | P31: 9.44 | Q31: 40 | R31: 8.56 | S31: 90 | T31: 10.43 | U31: 2 | V31: 60 | W31: 10.1 | X31: 19.42 | Y31: 7.46 | Z31: 16.83 | AA31: 160 | AB31: 12.12 | AC31: 24.51 | AD31: 9.13 | AE31: 21.07
B32: FI 135/310 t=0,88 | D32: 0.88 | E32: =ProduktbezogeneKosten!$F$27/10*G32 -> 1.254 | F32: =Materialkosten!$C$30/10*G32 -> 12.54 | G32: 0.114 | H32: 354 | I32: 320 | J32: 13.44 | K32: 5.05 | L32: 5.17 | M32: 5.96 | N32: 9 | O32: 11.25 | P32: 12.04 | Q32: 40 | R32: 11.75 | S32: 90 | T32: 14.93 | U32: 2 | V32: 60 | W32: 13.98 | X32: 27.44 | Y32: 10.4 | Z32: 23.69 | AA32: 160 | AB32: 16.24 | AC32: 34.98 | AD32: 12.52 | AE32: 29.76
B33: FI 135/310 t=1,00 | D33: 1 | E33: =ProduktbezogeneKosten!$F$27/10*G33 -> 1.419 | F33: =Materialkosten!$C$30/10*G33 -> 14.19 | G33: 0.129 | H33: 383 | I33: 320 | J33: 15.36 | K33: 5.05 | L33: 6.38 | M33: 5.93 | N33: 10.29 | O33: 12.86 | P33: 14.44 | Q33: 40 | R33: 14.96 | S33: 90 | T33: 19.09 | U33: 2 | V33: 60 | W33: 17.56 | X33: 34.82 | Y33: 13.12 | Z33: 30.02 | AA33: 160 | AB33: 20.04 | AC33: 44.63 | AD33: 15.66 | AE33: 37.79
B34: FI 135/310 t=1,25 | D34: 1.25 | E34: =ProduktbezogeneKosten!$F$27/10*G34 -> 1.771 | F34: =Materialkosten!$C$30/10*G34 -> 17.71 | G34: 0.161 | H34: 483 | I34: 320 | J34: 19.36 | K34: 5.05 | L34: 9.15 | M34: 5.87 | N34: 12.96 | O34: 16.2 | P34: 18.2 | Q34: 40 | R34: 18.52 | S34: 90 | T34: 24.06 | U34: 2 | V34: 60 | W34: 22.13 | X34: 43.89 | Y34: 16.54 | Z34: 37.83 | AA34: 160 | AB34: 25.26 | AC34: 56.23 | AD34: 19.73 | AE34: 47.63
B35: FI 135/310 t=1,50 | D35: 1.5 | E35: =ProduktbezogeneKosten!$F$27/10*G35 -> 2.134 | F35: =Materialkosten!$C$30/10*G35 -> 21.34 | G35: 0.194 | H35: 583 | I35: 320 | J35: 23.36 | K35: 5.05 | L35: 12 | M35: 5.78 | N35: 15.65 | O35: 19.56 | P35: 21.96 | Q35: 40 | R35: 22.35 | S35: 90 | T35: 29.03 | U35: 2 | V35: 60 | W35: 26.71 | X35: 52.92 | Y35: 19.96 | Z35: 45.65 | AA35: 160 | AB35: 30.48 | AC35: 67.3 | AD35: 23.81 | AE35: 57.48
B36: FI 150/280 t=0,75 | D36: 0.75 | E36: =ProduktbezogeneKosten!$F$27/10*G36 -> 1.177 | F36: =Materialkosten!$C$30/10*G36 -> 11.77 | G36: 0.107 | H36: 371 | I36: 320 | J36: 12.49 | K36: 5.54 | L36: 5.07 | M36: 6.45 | N36: 8 | O36: 10 | P36: 11.38 | Q36: 40 | R36: 9.41 | S36: 90 | T36: 12.61 | U36: 2 | V36: 60 | W36: 10.65 | X36: 24.27 | Y36: 10.65 | Z36: 21.7 | AA36: 160 | AB36: 10.65 | AC36: 35.36 | AD36: 10.65 | AE36: 31.63
B37: FI 150/280 t=0,88 | D37: 0.88 | E37: =ProduktbezogeneKosten!$F$27/10*G37 -> 1.386 | F37: =Materialkosten!$C$30/10*G37 -> 13.86 | G37: 0.126 | H37: 450 | I37: 320 | J37: 14.78 | K37: 5.54 | L37: 6.86 | M37: 6.4 | N37: 9.45 | O37: 11.81 | P37: 15.2 | Q37: 40 | R37: 13.13 | S37: 90 | T37: 17.47 | U37: 2 | V37: 60 | W37: 14.41 | X37: 33.72 | Y37: 14.41 | Z37: 30.16 | AA37: 160 | AB37: 14.41 | AC37: 48.77 | AD37: 14.41 | AE37: 43.62
B38: FI 150/280 t=1,00 | D38: 1 | E38: =ProduktbezogeneKosten!$F$27/10*G38 -> 1.573 | F38: =Materialkosten!$C$30/10*G38 -> 15.73 | G38: 0.143 | H38: 519 | I38: 320 | J38: 16.89 | K38: 5.54 | L38: 8.66 | M38: 6.36 | N38: 10.8 | O38: 13.5 | P38: 18.62 | Q38: 40 | R38: 17.03 | S38: 90 | T38: 22.53 | U38: 2 | V38: 60 | W38: 17.99 | X38: 43.61 | Y38: 17.99 | Z38: 39 | AA38: 160 | AB38: 17.99 | AC38: 62.68 | AD38: 17.99 | AE38: 56.06
B39: FI 150/280 t=1,25 | D39: 1.25 | E39: =ProduktbezogeneKosten!$F$27/10*G39 -> 1.969 | F39: =Materialkosten!$C$30/10*G39 -> 19.69 | G39: 0.179 | H39: 654 | I39: 320 | J39: 21.29 | K39: 5.54 | L39: 12.61 | M39: 6.26 | N39: 13.6 | O39: 17 | P39: 25.39 | Q39: 40 | R39: 26.55 | S39: 90 | T39: 34.78 | U39: 2 | V39: 60 | W39: 23.6 | X39: 67.64 | Y39: 23.6 | Z39: 60.5 | AA39: 160 | AB39: 23.6 | AC39: 96.15 | AD39: 23.6 | AE39: 86
B40: FI 150/280 t=1,50 | D40: 1.5 | E40: =ProduktbezogeneKosten!$F$27/10*G40 -> 2.354 | F40: =Materialkosten!$C$30/10*G40 -> 23.54 | G40: 0.214 | H40: 790 | I40: 320 | J40: 25.69 | K40: 5.54 | L40: 16.66 | M40: 6.11 | N40: 16.4 | O40: 20.5 | P40: 31.78 | Q40: 40 | R40: 37.9 | S40: 90 | T40: 49.22 | U40: 2 | V40: 60 | W40: 28.53 | X40: 96.13 | Y40: 28.53 | Z40: 85.98 | AA40: 160 | AB40: 28.53 | AC40: 135.34 | AD40: 28.53 | AE40: 121.05
B41: FI 165/250 t=0,75 | D41: 0.75 | E41: =ProduktbezogeneKosten!$F$27/10*G41 -> 1.32 | F41: =Materialkosten!$C$30/10*G41 -> 13.2 | G41: 0.12 | H41: 454 | I41: 320 | J41: 14.09 | K41: 5.78 | L41: 5.67 | M41: 6.76 | N41: 9.1 | O41: 11.38 | P41: 13.36 | Q41: 40 | R41: 10.81 | S41: 90 | T41: 14.48 | U41: 2 | V41: 60 | W41: 12.39 | X41: 27.85 | Y41: 12.39 | Z41: 24.91 | AA41: 160 | AB41: 12.39 | AC41: 40.58 | AD41: 12.39 | AE41: 36.3
B42: FI 165/250 t=0,88 | D42: 0.88 | E42: =ProduktbezogeneKosten!$F$27/10*G42 -> 1.551 | F42: =Materialkosten!$C$30/10*G42 -> 15.51 | G42: 0.141 | H42: 551 | I42: 320 | J42: 16.67 | K42: 5.78 | L42: 7.67 | M42: 6.71 | N42: 10.8 | O42: 13.5 | P42: 17.85 | Q42: 40 | R42: 15.09 | S42: 90 | T42: 20.08 | U42: 2 | V42: 60 | W42: 16.8 | X42: 38.76 | Y42: 16.8 | Z42: 34.67 | AA42: 160 | AB42: 16.8 | AC42: 56.06 | AD42: 16.8 | AE42: 50.14
B43: FI 165/250 t=1,00 | D43: 1 | E43: =ProduktbezogeneKosten!$F$27/10*G43 -> 1.76 | F43: =Materialkosten!$C$30/10*G43 -> 17.6 | G43: 0.16 | H43: 636 | I43: 320 | J43: 19.05 | K43: 5.78 | L43: 9.7 | M43: 6.67 | N43: 12.35 | O43: 15.44 | P43: 21.75 | Q43: 40 | R43: 19.59 | S43: 90 | T43: 25.92 | U43: 2 | V43: 60 | W43: 20.95 | X43: 50.18 | Y43: 20.95 | Z43: 44.88 | AA43: 160 | AB43: 20.95 | AC43: 72.12 | AD43: 20.95 | AE43: 64.51
B44: FI 165/250 t=1,25 | D44: 1.25 | E44: =ProduktbezogeneKosten!$F$27/10*G44 -> 2.2 | F44: =Materialkosten!$C$30/10*G44 -> 22 | G44: 0.2 | H44: 802 | I44: 320 | J44: 24.01 | K44: 5.78 | L44: 14.08 | M44: 6.56 | N44: 15.55 | O44: 19.44 | P44: 29.7 | Q44: 40 | R44: 30.6 | S44: 90 | T44: 40.07 | U44: 2 | V44: 60 | W44: 27.73 | X44: 77.93 | Y44: 27.73 | Z44: 69.71 | AA44: 160 | AB44: 27.73 | AC44: 110.78 | AD44: 27.73 | AE44: 99.08
B45: FI 165/250 t=1,50 | D45: 1.5 | E45: =ProduktbezogeneKosten!$F$27/10*G45 -> 2.64 | F45: =Materialkosten!$C$30/10*G45 -> 26.4 | G45: 0.24 | H45: 968 | I45: 320 | J45: 28.97 | K45: 5.78 | L45: 18.79 | M45: 6.4 | N45: 18.75 | O45: 23.44 | P45: 37.26 | Q45: 40 | R45: 43.71 | S45: 90 | T45: 56.75 | U45: 2 | V45: 60 | W45: 33.52 | X45: 110.85 | Y45: 33.52 | Z45: 99.14 | AA45: 160 | AB45: 33.52 | AC45: 156.07 | AD45: 33.52 | AE45: 139.59

Sheet Trapezprofile6
A1: Stahltrapezblech | B1: Fischer Profil GmbH 57250 Netphen-Deuz | G1: Querschnitts- und Widerstandsgrößen nach DIN 18807 und der Anpassungsrichtlinie Stahlbau gemäß Prüfbescheid
E2: Produkt- bezogene Kosten [€/m2] | G2: Werte aus Anlage *.1 des Prüfbescheids | P2: Werte aus Anlage *.4 des Prüfbescheids
D3: Nenn- blech- dicke [mm] | F3: Material-kosten [€/m2] | I3: Nennstreck- grenze des Stahlkerns fy,k [N/mm2] | J3: Normalkraft- beanspruchung nicht reduzierter Querschnitt Ag [cm2/m] | K3: Normalkraft- beanspruchung nicht reduzierter Querschnitt Ig [cm] | L3: Normalkraft- beanspruchung mitwirkender Querschnitt Aef [cm2/m] | M3: Normalkraft- beanspruchung mitwirkender Querschnitt ief,mit [cm] | N3: Grenzstützweiten | P3: Feldmoment MF,k [kNm/m] | Q3: Endauflagerkräfte (obere Zeilen) | S3: Endauflagerkräfte (untere Zeilen) | U3: Inter- aktions- para- meter ε [-] | V3: Elastisch aufnehmbare Schnittgrößen an Zwischenauflagern (1) | AA3: Elastisch aufnehmbare Schnittgrößen an Zwischenauflagern (2)
A4: FISCHER Negativlage (-) | B4: Bezeich- nung [-] | G4: Eigenlast [kN/m2] | H4: I+ef [cm4/m] | N4: Einfeld- träger [m] | O4: Mehrfeld- träger [m] | Q4: ba+ü [mm] | R4: Tragfähig- keit Ra,T,k [kN/m] | S4: ba+ü [mm] | T4: Tragfähig- keit Ra,T,k [kN/m] | V4: bB [mm] | W4: M0B,k [kNm/m] | X4: R0B,k [kN/m] | Y4: maxMB,k [kNm/m] | Z4: maxRB,k [kN/m] | AA4: bB [mm] | AB4: M0B,k [kNm/m] | AC4: R0B,k [kN/m] | AD4: maxMB,k [kNm/m] | AE4: maxRB,k [kN/m]
B6: FI 35/207 t=0,75 | D6: 0.75 | E6: =ProduktbezogeneKosten!$F$27/10*G6 -> 0.792 | F6: =Materialkosten!$C$30/10*G6 -> 7.92 | G6: 0.072 | H6: 16.38 | I6: 320 | J6: 8.36 | K6: 1.44 | L6: 4.02 | M6: 1.54 | N6: 1.31 | O6: 1.64 | P6: 1.96 | Q6: 40 | R6: 9.52 | U6: 2 | V6: 10 | W6: 1.87 | X6: 14.05 | Y6: 1.87 | Z6: 12.57 | AA6: 60 | AB6: 1.87 | AC6: 24.54 | AD6: 1.87 | AE6: 21.95
B7: FI 35/207 t=0,88 | D7: 0.88 | E7: =ProduktbezogeneKosten!$F$27/10*G7 -> 0.924 | F7: =Materialkosten!$C$30/10*G7 -> 9.24 | G7: 0.084 | H7: 20.31 | I7: 320 | J7: 9.89 | K7: 1.44 | L7: 5.43 | M7: 1.51 | N7: 2.26 | O7: 2.82 | P7: 2.47 | Q7: 40 | R7: 12.96 | U7: 2 | V7: 10 | W7: 2.42 | X7: 19.4 | Y7: 2.42 | Z7: 17.35 | AA7: 60 | AB7: 2.42 | AC7: 33.29 | AD7: 2.42 | AE7: 29.78
B8: FI 35/207 t=1,00 | D8: 1 | E8: =ProduktbezogeneKosten!$F$27/10*G8 -> 1.056 | F8: =Materialkosten!$C$30/10*G8 -> 10.56 | G8: 0.096 | H8: 23.43 | I8: 320 | J8: 11.31 | K8: 1.44 | L8: 6.87 | M8: 1.5 | N8: 3.14 | O8: 3.93 | P8: 2.97 | Q8: 40 | R8: 16.54 | U8: 2 | V8: 10 | W8: 2.94 | X8: 25.04 | Y8: 2.94 | Z8: 22.4 | AA8: 60 | AB8: 2.94 | AC8: 42.37 | AD8: 2.94 | AE8: 37.89
B9: FI 35/207 t=1,25 | D9: 1.25 | E9: =ProduktbezogeneKosten!$F$27/10*G9 -> 1.32 | F9: =Materialkosten!$C$30/10*G9 -> 13.2 | G9: 0.12 | H9: 29.53 | I9: 320 | J9: 14.25 | K9: 1.44 | L9: 10.16 | M9: 1.47 | N9: 3.96 | O9: 4.95 | P9: 4.02 | Q9: 40 | R9: 25.22 | U9: 2 | V9: 10 | W9: 4.1 | X9: 38.93 | Y9: 4.1 | Z9: 34.82 | AA9: 60 | AB9: 4.1 | AC9: 64.23 | AD9: 4.1 | AE9: 57.45
B10: FI 35/207 t=1,50 | D10: 1.5 | E10: =ProduktbezogeneKosten!$F$27/10*G10 -> 1.584 | F10: =Materialkosten!$C$30/10*G10 -> 15.84 | G10: 0.144 | H10: 35.62 | I10: 320 | J10: 17.2 | K10: 1.44 | L10: 13.22 | M10: 1.46 | N10: 4.78 | O10: 5.98 | P10: 4.85 | Q10: 40 | R10: 35.47 | U10: 2 | V10: 10 | W10: 5.34 | X10: 55.64 | Y10: 5.34 | Z10: 49.77 | AA10: 60 | AB10: 5.34 | AC10: 89.95 | AD10: 5.34 | AE10: 80.45
B11: FI 40/183 t=0,75 | D11: 0.75 | E11: =ProduktbezogeneKosten!$F$27/10*G11 -> 0.891 | F11: =Materialkosten!$C$30/10*G11 -> 8.91 | G11: 0.081 | H11: 21.6 | I11: 320 | J11: 9.6 | K11: 1.73 | L11: 4.56 | M11: 1.84 | N11: 1.2 | O11: 1.5 | P11: 2.48 | Q11: 40 | R11: 8.5 | U11: 1 | V11: 60 | W11: 3.26 | X11: 72.4 | Y11: 2.93 | Z11: 12.33
B12: FI 40/183 t=0,88 | D12: 0.88 | E12: =ProduktbezogeneKosten!$F$27/10*G12 -> 1.045 | F12: =Materialkosten!$C$30/10*G12 -> 10.45 | G12: 0.095 | H12: 27.7 | I12: 320 | J12: 11.35 | K12: 1.73 | L12: 6.17 | M12: 1.81 | N12: 3.2 | O12: 4 | P12: 3.35 | Q12: 40 | R12: 15.98 | U12: 1 | V12: 60 | W12: 3.86 | X12: 95.7 | Y12: 3.53 | Z12: 14.4
B13: FI 40/183 t=1,00 | D13: 1 | E13: =ProduktbezogeneKosten!$F$27/10*G13 -> 1.188 | F13: =Materialkosten!$C$30/10*G13 -> 11.88 | G13: 0.108 | H13: 33.8 | I13: 320 | J13: 12.97 | K13: 1.73 | L13: 7.81 | M13: 1.79 | N13: 4.8 | O13: 6 | P13: 4.14 | Q13: 40 | R13: 23.12 | U13: 1 | V13: 60 | W13: 4.41 | X13: 183 | Y13: 4.2 | Z13: 16.35
B14: FI 40/183 t=1,25 | D14: 1.25 | E14: =ProduktbezogeneKosten!$F$27/10*G14 -> 1.496 | F14: =Materialkosten!$C$30/10*G14 -> 14.96 | G14: 0.136 | H14: 42.6 | I14: 320 | J14: 16.35 | K14: 1.73 | L14: 11.59 | M14: 1.76 | N14: 5.4 | O14: 6.75 | P14: 5.62 | Q14: 40 | R14: 37.74 | U14: 1 | V14: 60 | W14: 5.93 | X14: 423.4 | Y14: 5.78 | Z14: 19.5
B15: FI 40/183 t=1,50 | D15: 1.5 | E15: =ProduktbezogeneKosten!$F$27/10*G15 -> 1.793 | F15: =Materialkosten!$C$30/10*G15 -> 17.93 | G15: 0.163 | H15: 51.4 | I15: 320 | J15: 19.73 | K15: 1.73 | L15: 15.16 | M15: 1.75 | N15: 6.5 | O15: 8.12 | P15: 7.11 | Q15: 40 | R15: 52.36 | U15: 1 | V15: 60 | W15: 7.28 | X15: 10000 | Y15: 7.28 | Z15: 22.35
B16: FI 50/250 t=0,75 | D16: 0.75 | E16: =ProduktbezogeneKosten!$F$27/10*G16 -> 0.814 | F16: =Materialkosten!$C$30/10*G16 -> 8.14 | G16: 0.074 | H16: 30.3 | I16: 320 | J16: 8.32 | K16: 1.99 | L16: 3.33 | M16: 2.15 | N16: 1.9 | O16: 2.35 | P16: 2.45 | Q16: 40 | R16: 7.47 | U16: 2 | V16: 60 | W16: 2.44 | X16: 19.24 | Y16: 2.44 | Z16: 17.21 | AA16: 160 | AB16: 2.44 | AC16: 28.04 | AD16: 2.44 | AE16: 25.08
B17: FI 50/250 t=0,88 | D17: 0.88 | E17: =ProduktbezogeneKosten!$F$27/10*G17 -> 0.957 | F17: =Materialkosten!$C$30/10*G17 -> 9.57 | G17: 0.087 | H17: 37.6 | I17: 320 | J17: 9.85 | K17: 1.99 | L17: 4.56 | M17: 2.12 | N17: 2.8 | O17: 3.5 | P17: 3.31 | Q17: 40 | R17: 9.88 | U17: 2 | V17: 60 | W17: 3.13 | X17: 25.37 | Y17: 3.13 | Z17: 22.69 | AA17: 160 | AB17: 3.13 | AC17: 36.69 | AD17: 3.13 | AE17: 32.82
B18: FI 50/250 t=1,00 | D18: 1 | E18: =ProduktbezogeneKosten!$F$27/10*G18 -> 1.089 | F18: =Materialkosten!$C$30/10*G18 -> 10.89 | G18: 0.099 | H18: 44.6 | I18: 320 | J18: 11.25 | K18: 1.99 | L18: 5.82 | M18: 2.09 | N18: 3.8 | O18: 4.75 | P18: 3.98 | Q18: 40 | R18: 12.35 | U18: 2 | V18: 60 | W18: 3.82 | X18: 31.63 | Y18: 3.82 | Z18: 28.29 | AA18: 160 | AB18: 3.82 | AC18: 45.46 | AD18: 3.82 | AE18: 40.66
B19: FI 50/250 t=1,25 | D19: 1.25 | E19: =ProduktbezogeneKosten!$F$27/10*G19 -> 1.364 | F19: =Materialkosten!$C$30/10*G19 -> 13.64 | G19: 0.124 | H19: 59.3 | I19: 320 | J19: 14.19 | K19: 1.99 | L19: 8.79 | M19: 2.06 | N19: 4.75 | O19: 5.9 | P19: 5.48 | Q19: 40 | R19: 18.63 | U19: 2 | V19: 60 | W19: 5.41 | X19: 47.45 | Y19: 5.41 | Z19: 42.44 | AA19: 160 | AB19: 5.41 | AC19: 67.45 | AD19: 5.41 | AE19: 60.33
B20: FI 50/250 t=1,50 | D20: 1.5 | E20: =ProduktbezogeneKosten!$F$27/10*G20 -> 1.639 | F20: =Materialkosten!$C$30/10*G20 -> 16.39 | G20: 0.149 | H20: 71.5 | I20: 320 | J20: 17.11 | K20: 1.99 | L20: 12.16 | M20: 2.03 | N20: 5.75 | O20: 7.15 | P20: 7.07 | Q20: 40 | R20: 26.61 | U20: 2 | V20: 60 | W20: 6.66 | X20: 67.47 | Y20: 6.66 | Z20: 60.35 | AA20: 160 | AB20: 6.66 | AC20: 95.01 | AD20: 6.66 | AE20: 84.98
B21: FI 85/280 t=0,75 | D21: 0.75 | E21: =ProduktbezogeneKosten!$F$27/10*G21 -> 0.88 | F21: =Materialkosten!$C$30/10*G21 -> 8.8 | G21: 0.08 | H21: 91.6 | I21: 320 | J21: 9.38 | K21: 3.19 | L21: 4.04 | M21: 3.71 | N21: 3.5 | O21: 4.38 | P21: 5.32 | Q21: 40 | R21: 6.53 | U21: 2 | V21: 60 | W21: 5.13 | X21: 16.84 | Y21: 5.13 | Z21: 15.06 | AA21: 160 | AB21: 5.13 | AC21: 24.54 | AD21: 5.13 | AE21: 21.95
B22: FI 85/280 t=0,88 | D22: 0.88 | E22: =ProduktbezogeneKosten!$F$27/10*G22 -> 1.034 | F22: =Materialkosten!$C$30/10*G22 -> 10.34 | G22: 0.094 | H22: 111.6 | I22: 320 | J22: 11.1 | K22: 3.19 | L22: 5.37 | M22: 3.67 | N22: 4.35 | O22: 5.44 | P22: 6.54 | Q22: 40 | R22: 8.98 | U22: 2 | V22: 60 | W22: 6.97 | X22: 23.06 | Y22: 6.97 | Z22: 20.62 | AA22: 160 | AB22: 6.97 | AC22: 33.35 | AD22: 6.97 | AE22: 29.83
B23: FI 85/280 t=1,00 | D23: 1 | E23: =ProduktbezogeneKosten!$F$27/10*G23 -> 1.177 | F23: =Materialkosten!$C$30/10*G23 -> 11.77 | G23: 0.107 | H23: 129 | I23: 320 | J23: 12.69 | K23: 3.19 | L23: 6.71 | M23: 3.64 | N23: 5.2 | O23: 6.5 | P23: 7.71 | Q23: 40 | R23: 11.56 | U23: 2 | V23: 60 | W23: 8.72 | X23: 29.6 | Y23: 8.72 | Z23: 26.47 | AA23: 160 | AB23: 8.72 | AC23: 42.54 | AD23: 8.72 | AE23: 38.05
B24: FI 85/280 t=1,25 | D24: 1.25 | E24: =ProduktbezogeneKosten!$F$27/10*G24 -> 1.474 | F24: =Materialkosten!$C$30/10*G24 -> 14.74 | G24: 0.134 | H24: 162.5 | I24: 320 | J24: 15.99 | K24: 3.19 | L24: 9.81 | M24: 3.57 | N24: 6.55 | O24: 8.19 | P24: 10.21 | Q24: 40 | R24: 17.94 | U24: 2 | V24: 60 | W24: 11.95 | X24: 45.71 | Y24: 11.95 | Z24: 40.88 | AA24: 160 | AB24: 11.95 | AC24: 64.97 | AD24: 11.95 | AE24: 58.11
B25: FI 85/280 t=1,50 | D25: 1.5 | E25: =ProduktbezogeneKosten!$F$27/10*G25 -> 1.771 | F25: =Materialkosten!$C$30/10*G25 -> 17.71 | G25: 0.161 | H25: 196.1 | I25: 320 | J25: 19.3 | K25: 3.19 | L25: 13.19 | M25: 3.48 | N25: 7.2 | O25: 9 | P25: 12.36 | Q25: 40 | R25: 25.75 | U25: 2 | V25: 60 | W25: 15.11 | X25: 65.31 | Y25: 15.11 | Z25: 58.42 | AA25: 160 | AB25: 15.11 | AC25: 91.96 | AD25: 15.11 | AE25: 82.25
B26: FI 100/275 t=0,75 | D26: 0.75 | E26: =ProduktbezogeneKosten!$F$27/10*G26 -> 0.99 | F26: =Materialkosten!$C$30/10*G26 -> 9.9 | G26: 0.09 | H26: 141 | I26: 320 | J26: 10.52 | K26: 3.73 | L26: 4.49 | M26: 4.33 | N26: 4.4 | O26: 5.5 | P26: 6.72 | Q26: 40 | R26: 7.02 | S26: 40 | T26: 7.02 | U26: 2 | V26: 60 | W26: 7.06 | X26: 18.11 | Y26: 7.06 | Z26: 16.2 | AA26: 160 | AB26: 7.06 | AC26: 26.39 | AD26: 7.06 | AE26: 23.6
B27: FI 100/275 t=0,88 | D27: 0.88 | E27: =ProduktbezogeneKosten!$F$27/10*G27 -> 1.166 | F27: =Materialkosten!$C$30/10*G27 -> 11.66 | G27: 0.106 | H27: 172 | I27: 320 | J27: 12.45 | K27: 3.73 | L27: 5.96 | M27: 4.29 | N27: 5.5 | O27: 6.88 | P27: 8.25 | Q27: 40 | R27: 9.66 | S27: 40 | T27: 9.66 | U27: 2 | V27: 60 | W27: 9.22 | X27: 24.82 | Y27: 9.22 | Z27: 22.2 | AA27: 160 | AB27: 9.22 | AC27: 35.9 | AD27: 9.22 | AE27: 32.11
B28: FI 100/275 t=1,00 | D28: 1 | E28: =ProduktbezogeneKosten!$F$27/10*G28 -> 1.32 | F28: =Materialkosten!$C$30/10*G28 -> 13.2 | G28: 0.12 | H28: 198 | I28: 320 | J28: 14.22 | K28: 3.73 | L28: 7.34 | M28: 4.25 | N28: 6.5 | O28: 8.13 | P28: 9.71 | Q28: 40 | R28: 12.45 | S28: 40 | T28: 12.45 | U28: 2 | V28: 60 | W28: 11.32 | X28: 31.89 | Y28: 11.32 | Z28: 28.52 | AA28: 160 | AB28: 11.32 | AC28: 45.84 | AD28: 11.32 | AE28: 41
B29: FI 100/275 t=1,25 | D29: 1.25 | E29: =ProduktbezogeneKosten!$F$27/10*G29 -> 1.65 | F29: =Materialkosten!$C$30/10*G29 -> 16.5 | G29: 0.15 | H29: 250 | I29: 320 | J29: 17.93 | K29: 3.73 | L29: 10.46 | M29: 4.18 | N29: 7.5 | O29: 9.38 | P29: 12.84 | Q29: 40 | R29: 19.39 | S29: 40 | T29: 19.39 | U29: 2 | V29: 60 | W29: 15.29 | X29: 49.38 | Y29: 15.29 | Z29: 44.17 | AA29: 160 | AB29: 15.29 | AC29: 70.19 | AD29: 15.29 | AE29: 62.78
B30: FI 100/275 t=1,50 | D30: 1.5 | E30: =ProduktbezogeneKosten!$F$27/10*G30 -> 1.98 | F30: =Materialkosten!$C$30/10*G30 -> 19.8 | G30: 0.18 | H30: 302 | I30: 320 | J30: 21.63 | K30: 3.73 | L30: 13.68 | M30: 4.09 | N30: 8.25 | O30: 10.31 | P30: 15.5 | Q30: 40 | R30: 27.92 | S30: 40 | T30: 27.92 | U30: 2 | V30: 60 | W30: 19.24 | X30: 70.8 | Y30: 19.24 | Z30: 63.32 | AA30: 160 | AB30: 19.24 | AC30: 99.68 | AD30: 19.24 | AE30: 89.16
B31: FI 135/310 t=0,75 | D31: 0.75 | E31: =ProduktbezogeneKosten!$F$27/10*G31 -> 1.067 | F31: =Materialkosten!$C$30/10*G31 -> 10.67 | G31: 0.097 | H31: 277 | I31: 320 | J31: 11.36 | K31: 5.05 | L31: 3.98 | M31: 5.98 | N31: 5.8 | O31: 7.25 | P31: 8.79 | Q31: 40 | R31: 6.82 | U31: 2 | V31: 60 | W31: 8.75 | X31: 17.59 | Y31: 8.75 | Z31: 15.73 | AA31: 160 | AB31: 8.75 | AC31: 25.63 | AD31: 8.75 | AE31: 22.93
B32: FI 135/310 t=0,88 | D32: 0.88 | E32: =ProduktbezogeneKosten!$F$27/10*G32 -> 1.254 | F32: =Materialkosten!$C$30/10*G32 -> 12.54 | G32: 0.114 | H32: 336 | I32: 320 | J32: 13.44 | K32: 5.05 | L32: 5.17 | M32: 5.96 | N32: 8.1 | O32: 10.13 | P32: 11.63 | Q32: 40 | R32: 9.52 | U32: 2 | V32: 60 | W32: 11.3 | X32: 25.46 | Y32: 11.3 | Z32: 21.87 | AA32: 160 | AB32: 11.3 | AC32: 35.37 | AD32: 11.3 | AE32: 31.64
B33: FI 135/310 t=1,00 | D33: 1 | E33: =ProduktbezogeneKosten!$F$27/10*G33 -> 1.419 | F33: =Materialkosten!$C$30/10*G33 -> 14.19 | G33: 0.129 | H33: 392 | I33: 320 | J33: 15.36 | K33: 5.05 | L33: 6.38 | M33: 5.93 | N33: 9.7 | O33: 12.13 | P33: 14 | Q33: 40 | R33: 12.47 | U33: 2 | V33: 60 | W33: 13.71 | X33: 31.93 | Y33: 13.71 | Z33: 28.56 | AA33: 160 | AB33: 13.71 | AC33: 45.9 | AD33: 13.71 | AE33: 41.05
B34: FI 135/310 t=1,25 | D34: 1.25 | E34: =ProduktbezogeneKosten!$F$27/10*G34 -> 1.771 | F34: =Materialkosten!$C$30/10*G34 -> 17.71 | G34: 0.161 | H34: 494 | I34: 320 | J34: 19.36 | K34: 5.05 | L34: 9.15 | M34: 5.87 | N34: 10.9 | O34: 13.63 | P34: 18.74 | Q34: 40 | R34: 20.21 | U34: 2 | V34: 60 | W34: 18.89 | X34: 51.48 | Y34: 18.89 | Z34: 46.05 | AA34: 160 | AB34: 18.89 | AC34: 73.18 | AD34: 18.89 | AE34: 65.45
B35: FI 135/310 t=1,50 | D35: 1.5 | E35: =ProduktbezogeneKosten!$F$27/10*G35 -> 2.134 | F35: =Materialkosten!$C$30/10*G35 -> 21.34 | G35: 0.194 | H35: 596 | I35: 320 | J35: 23.36 | K35: 5.05 | L35: 12 | M35: 5.78 | N35: 11.95 | O35: 14.94 | P35: 22.95 | Q35: 40 | R35: 30.52 | U35: 2 | V35: 60 | W35: 23.8 | X35: 77.39 | Y35: 23.8 | Z35: 69.22 | AA35: 160 | AB35: 23.8 | AC35: 108.96 | AD35: 23.8 | AE35: 97.46
B36: FI 150/280 t=0,75 | D36: 0.75 | E36: =ProduktbezogeneKosten!$F$27/10*G36 -> 1.177 | F36: =Materialkosten!$C$30/10*G36 -> 11.77 | G36: 0.107 | H36: 373 | I36: 320 | J36: 12.49 | K36: 5.54 | L36: 5.07 | M36: 6.45 | N36: 7.05 | O36: 8.81 | P36: 10.65 | Q36: 40 | R36: 7.72 | S36: 90 | T36: 10.35 | U36: 2 | V36: 60 | W36: 11.38 | X36: 19.91 | Y36: 11.38 | Z36: 17.81 | AA36: 160 | AB36: 11.38 | AC36: 29.01 | AD36: 11.38 | AE36: 25.95
B37: FI 150/280 t=0,88 | D37: 0.88 | E37: =ProduktbezogeneKosten!$F$27/10*G37 -> 1.386 | F37: =Materialkosten!$C$30/10*G37 -> 13.86 | G37: 0.126 | H37: 451 | I37: 320 | J37: 14.78 | K37: 5.54 | L37: 6.86 | M37: 6.4 | N37: 9.65 | O37: 12.06 | P37: 14.41 | Q37: 40 | R37: 10.84 | S37: 90 | T37: 14.42 | U37: 2 | V37: 60 | W37: 15.2 | X37: 27.83 | Y37: 15.2 | Z37: 24.89 | AA37: 160 | AB37: 15.2 | AC37: 40.25 | AD37: 15.2 | AE37: 36
B38: FI 150/280 t=1,00 | D38: 1 | E38: =ProduktbezogeneKosten!$F$27/10*G38 -> 1.573 | F38: =Materialkosten!$C$30/10*G38 -> 15.73 | G38: 0.143 | H38: 519 | I38: 320 | J38: 16.89 | K38: 5.54 | L38: 8.66 | M38: 6.36 | N38: 10.9 | O38: 13.63 | P38: 17.99 | Q38: 40 | R38: 14.27 | S38: 90 | T38: 18.88 | U38: 2 | V38: 60 | W38: 18.62 | X38: 36.54 | Y38: 18.62 | Z38: 32.68 | AA38: 160 | AB38: 18.62 | AC38: 52.52 | AD38: 18.62 | AE38: 46.97
B39: FI 150/280 t=1,25 | D39: 1.25 | E39: =ProduktbezogeneKosten!$F$27/10*G39 -> 1.969 | F39: =Materialkosten!$C$30/10*G39 -> 19.69 | G39: 0.179 | H39: 655 | I39: 320 | J39: 21.29 | K39: 5.54 | L39: 12.61 | M39: 6.26 | N39: 12.25 | O39: 15.31 | P39: 23.6 | Q39: 40 | R39: 23.42 | S39: 90 | T39: 30.67 | U39: 2 | V39: 60 | W39: 25.39 | X39: 59.66 | Y39: 25.39 | Z39: 53.36 | AA39: 160 | AB39: 25.39 | AC39: 84.8 | AD39: 25.39 | AE39: 75.85
B40: FI 150/280 t=1,50 | D40: 1.5 | E40: =ProduktbezogeneKosten!$F$27/10*G40 -> 2.354 | F40: =Materialkosten!$C$30/10*G40 -> 23.54 | G40: 0.214 | H40: 790 | I40: 320 | J40: 25.69 | K40: 5.54 | L40: 16.66 | M40: 6.11 | N40: 13.45 | O40: 16.81 | P40: 28.53 | Q40: 40 | R40: 35.84 | S40: 90 | T40: 46.54 | U40: 2 | V40: 60 | W40: 31.78 | X40: 90.89 | Y40: 31.78 | Z40: 81.3 | AA40: 160 | AB40: 31.78 | AC40: 127.97 | AD40: 31.78 | AE40: 114.46
B41: FI 165/250 t=0,75 | D41: 0.75 | E41: =ProduktbezogeneKosten!$F$27/10*G41 -> 1.32 | F41: =Materialkosten!$C$30/10*G41 -> 13.2 | G41: 0.12 | H41: 457 | I41: 320 | J41: 14.09 | K41: 5.78 | L41: 5.67 | M41: 6.76 | N41: 7.8 | O41: 9.75 | P41: 12.39 | Q41: 40 | R41: 8.95 | S41: 90 | T41: 11.99 | U41: 2 | V41: 60 | W41: 13.36 | X41: 23.06 | Y41: 13.36 | Z41: 20.62 | AA41: 160 | AB41: 13.36 | AC41: 33.6 | AD41: 13.36 | AE41: 30.5
B42: FI 165/250 t=0,88 | D42: 0.88 | E42: =ProduktbezogeneKosten!$F$27/10*G42 -> 1.551 | F42: =Materialkosten!$C$30/10*G42 -> 15.51 | G42: 0.141 | H42: 552 | I42: 320 | J42: 16.67 | K42: 5.78 | L42: 7.67 | M42: 6.71 | N42: 10.7 | O42: 13.38 | P42: 16.8 | Q42: 40 | R42: 12.55 | S42: 90 | T42: 16.7 | U42: 2 | V42: 60 | W42: 17.85 | X42: 32.24 | Y42: 17.85 | Z42: 28.83 | AA42: 160 | AB42: 17.85 | AC42: 46.63 | AD42: 17.85 | AE42: 41.7
B43: FI 165/250 t=1,00 | D43: 1 | E43: =ProduktbezogeneKosten!$F$27/10*G43 -> 1.76 | F43: =Materialkosten!$C$30/10*G43 -> 17.6 | G43: 0.16 | H43: 636 | I43: 320 | J43: 19.05 | K43: 5.78 | L43: 9.7 | M43: 6.67 | N43: 11.75 | O43: 14.69 | P43: 20.95 | Q43: 40 | R43: 16.53 | S43: 90 | T43: 21.87 | U43: 2 | V43: 60 | W43: 21.75 | X43: 42.33 | Y43: 21.75 | Z43: 37.86 | AA43: 160 | AB43: 21.75 | AC43: 60.85 | AD43: 21.75 | AE43: 54.42
B44: FI 165/250 t=1,25 | D44: 1.25 | E44: =ProduktbezogeneKosten!$F$27/10*G44 -> 2.2 | F44: =Materialkosten!$C$30/10*G44 -> 22 | G44: 0.2 | H44: 802 | I44: 320 | J44: 24.01 | K44: 5.78 | L44: 14.08 | M44: 6.56 | N44: 13.15 | O44: 16.44 | P44: 27.73 | Q44: 40 | R44: 27.15 | S44: 90 | T44: 35.55 | U44: 2 | V44: 60 | W44: 29.7 | X44: 69.15 | Y44: 29.7 | Z44: 61.85 | AA44: 160 | AB44: 29.7 | AC44: 98.3 | AD44: 29.7 | AE44: 87.92
B45: FI 165/250 t=1,50 | D45: 1.5 | E45: =ProduktbezogeneKosten!$F$27/10*G45 -> 2.64 | F45: =Materialkosten!$C$30/10*G45 -> 26.4 | G45: 0.24 | H45: 968 | I45: 320 | J45: 28.97 | K45: 5.78 | L45: 18.79 | M45: 6.4 | N45: 14.45 | O45: 18.06 | P45: 33.52 | Q45: 40 | R45: 41.56 | S45: 90 | T45: 53.97 | U45: 2 | V45: 60 | W45: 37.26 | X45: 105.41 | Y45: 37.26 | Z45: 94.28 | AA45: 160 | AB45: 37.26 | AC45: 148.41 | AD45: 37.26 | AE45: 132.74

Sheet Sandwichprofile1
A1: Sandwichelement | B1: Metecno Bausysteme GmbH Am Amselberg 1 99444 Blankenheim | J1: Dichte des PU-Kerns: | N1: 42.5 | O1: [kg/m3] | Q1: Dichte von Stahl: | U1: 7870 | V1: [kg/m3]
B2: Bezeich- nung [-] | D2: Produkt- bezogene Kosten [€/m²] | E2: Material- kosten [€/m²] | F2: Element- dicke D [mm] | G2: durch- gehende Kern- dicke dc [mm] | H2: Schwere- linien- abstand e [mm] | I2: Eigen- gewicht g [kN/m²] | J2: Äußere Deckschicht (T= trapezprofiliert) | V2: Innere Deckschicht (S=liniert) | AG2: Kernschicht | AM2: materialbezogene Teilsicherheitsbeiwerte
J3: Nenn-blech- dicke tn1 [mm] | K3: Kern- blech- dicke tk1 [mm] | L3: Kern- fläche A1 [cm²/m] | M3: Elastizitäts- modul E1 [kN/cm²] | N3: Eigen- trägheits- moment I1 [cm4] | O3: Schwer- punkt- abstand von oben d11 [mm] | P3: Wärmeaus- dehnungs- koeffizient αT1 [1/K] | Q3: Streck- grenze βs [N/mm²] | R3: Knitterspannungen | V3: Nenn-blech- dicke tn2 [mm] | W3: Kern- blech- dicke tk2 [mm] | X3: Kern- fläche A2 [cm²/m] | Y3: Elastizitäts- modul E2 [kN/cm²] | Z3: Schwer- punkt- abstand von unten d22 [mm] | AA3: Wärmeaus- dehnungs- koeffizient αT2 [1/K] | AB3: Streck- grenze βs [N/mm²] | AC3: Knitterspannungen | AG3: Kriech- faktor Kurzzeit [-] | AH3: Kriech- faktor Langzeit [-] | AI3: Schub- modul Gc [N/mm²] | AJ3: Schub- festigkeit Kurzzeit- beansp. fcv [N/mm²] | AK3: Schub- festigkeit Langzeit- beansp. fcv [N/mm²] | AL3: Druck- festigkeit βD [N/mm²] | AM3: GZT | AN3: GZG | AO3: GZT | AP3: GZG | AQ3: GZT | AR3: GZG | AS3: GZT | AT3: GZG | AU3: GZT | AV3: GZG | AW3: GZT | AX3: GZG
A4: Metecno G4 | R4: im Feld σk,F [N/mm²] | S4: im Feld für erhöhte Temp. σk,F,T [N/mm²] | T4: Mittel- auflager σk,St [N/mm²] | U4: Mittelauf- lager für erhöhte Temp. σk,St,T [N/mm²] | AC4: im Feld σk,F [N/mm²] | AD4: im Feld für erhöhte Temp. σk,F,T [N/mm²] | AE4: Mittel- auflager σk,St [N/mm²] | AF4: Mittelauf- lager für erhöhte Temp. σk,St,T [N/mm²] | AM4: Fließen einer Metall- deckschicht | AO4: Knittern einer Metalldeckschicht im Feld und an einem Mittelauflager (Interaktion mit der Auflagerreaktion) | AQ4: Schubversagen des Kerns | AS4: Schubversagen einer profilierten Deckschicht | AU4: Druckversagen des Kerns | AW4: Versagen der profilierten Deckschicht am Mittelauflager
B6: G4 68 /,50/,40 | D6: =ProduktbezogeneKosten!$F$29/10*I6 -> 2.547016163 | E6: =Materialkosten!$C$35*G6/1000+Materialkosten!$C$34*8*(L6+X6)/10000 -> 15.56765872 | F6: =G6+38 -> 68 | G6: 30 | H6: =(F6-O6-Z6-K6/2-W6/2) -> 31.39 | I6: =10/1000*(G6/10^3*$N$1+(L6+X6)/10^4*$U$1) -> 0.08490053878 | J6: 0.5 | K6: =J6-0.04 -> 0.46 | L6: =(1210.39*K6)*10^-2 -> 5.567794 | M6: 21000 | N6: =(0.00706*K6^3+15.461*K6) -> 7.112747192 | O6: 36 | P6: 1.2e-05 | Q6: 350 | R6: 350 | S6: 350 | T6: 350 | U6: 350 | V6: 0.4 | W6: =V6-0.04 -> 0.36 | X6: =10*W6 -> 3.6 | Y6: 21000 | Z6: =V6/2 -> 0.2 | AA6: 1.2e-05 | AB6: 350 | AC6: 118 | AD6: 118 | AE6: 107 | AF6: 107 | AG6: 2.4 | AH6: 7 | AI6: 3 | AJ6: 0.11 | AK6: 0.05 | AL6: 0.1 | AM6: 1.1 | AN6: 1 | AO6: 1.12 | AP6: 1.02 | AQ6: 1.16 | AR6: 1.04 | AS6: 1.1 | AT6: 1 | AU6: 1.16 | AV6: 1.04 | AW6: 1.1 | AX6: 1
B7: G4 68 /0,50/,45 | D7: =ProduktbezogeneKosten!$F$29/10*I7 -> 2.665066163 | E7: =Materialkosten!$C$35*G7/1000+Materialkosten!$C$34*8*(L7+X7)/10000 -> 16.00765872 | F7: =G7+38 -> 68 | G7: 30 | H7: =(F7-O7-Z7-K7/2-W7/2) -> 31.34 | I7: =10/1000*(G7/10^3*$N$1+(L7+X7)/10^4*$U$1) -> 0.08883553878 | J7: 0.5 | K7: =J7-0.04 -> 0.46 | L7: =(1210.39*K7)*10^-2 -> 5.567794 | M7: 21000 | N7: =(0.00706*K7^3+15.461*K7) -> 7.112747192 | O7: 36 | P7: 1.2e-05 | Q7: 350 | R7: 350 | S7: 350 | T7: 350 | U7: 350 | V7: 0.45 | W7: 0.41 | X7: =10*W7 -> 4.1 | Y7: 21000 | Z7: =V7/2 -> 0.225 | AA7: 1.2e-05 | AB7: 350 | AC7: 118 | AD7: 118 | AE7: 107 | AF7: 107 | AG7: 2.4 | AH7: 7 | AI7: 3 | AJ7: 0.11 | AK7: 0.05 | AL7: 0.1 | AM7: 1.1 | AN7: 1 | AO7: 1.12 | AP7: 1.02 | AQ7: 1.16 | AR7: 1.04 | AS7: 1.1 | AT7: 1 | AU7: 1.16 | AV7: 1.04 | AW7: 1.1 | AX7: 1
B8: G4 68 /0,50/,50 | D8: =ProduktbezogeneKosten!$F$29/10*I8 -> 2.783116163 | E8: =Materialkosten!$C$35*G8/1000+Materialkosten!$C$34*8*(L8+X8)/10000 -> 16.44765872 | F8: 68 | G8: 30 | H8: 31.29 | I8: 0.09277053878 | J8: 0.5 | K8: 0.46 | L8: 5.567794 | M8: 21000 | N8: 7.112747192 | O8: 36 | P8: 1.2e-05 | Q8: 350 | R8: 350 | S8: 350 | T8: 350 | U8: 350 | V8: 0.5 | W8: 0.46 | X8: 4.6 | Y8: 21000 | Z8: =V8/2 -> 0.25 | AA8: 1.2e-05 | AB8: 350 | AC8: 118 | AD8: 118 | AE8: 107 | AF8: 107 | AG8: 2.4 | AH8: 7 | AI8: 3 | AJ8: 0.11 | AK8: 0.05 | AL8: 0.1 | AM8: 1.1 | AN8: 1 | AO8: 1.12 | AP8: 1.02 | AQ8: 1.16 | AR8: 1.04 | AS8: 1.1 | AT8: 1 | AU8: 1.16 | AV8: 1.04 | AW8: 1.1 | AX8: 1
B9: G4 68 /0,50/,60 | D9: =ProduktbezogeneKosten!$F$29/10*I9 -> 3.019216163 | E9: =Materialkosten!$C$35*G9/1000+Materialkosten!$C$34*8*(L9+X9)/10000 -> 17.32765872 | F9: 68 | G9: 30 | H9: 31.19 | I9: 0.1006405388 | J9: 0.5 | K9: 0.46 | L9: 5.567794 | M9: 21000 | N9: 7.112747192 | O9: 36 | P9: 1.2e-05 | Q9: 350 | R9: 350 | S9: 350 | T9: 350 | U9: 350 | V9: 0.6 | W9: 0.56 | X9: 5.6 | Y9: 21000 | Z9: =V9/2 -> 0.3 | AA9: 1.2e-05 | AB9: 350 | AC9: 118 | AD9: 118 | AE9: 107 | AF9: 107 | AG9: 2.4 | AH9: 7 | AI9: 3 | AJ9: 0.11 | AK9: 0.05 | AL9: 0.1 | AM9: 1.1 | AN9: 1 | AO9: 1.12 | AP9: 1.02 | AQ9: 1.16 | AR9: 1.04 | AS9: 1.1 | AT9: 1 | AU9: 1.16 | AV9: 1.04 | AW9: 1.1 | AX9: 1
B10: G4 68 /0,50/,75 | D10: =ProduktbezogeneKosten!$F$29/10*I10 -> 3.373366163 | E10: =Materialkosten!$C$35*G10/1000+Materialkosten!$C$34*8*(L10+X10)/10000 -> 18.64765872 | F10: 68 | G10: 30 | H10: 31.04 | I10: 0.1124455388 | J10: 0.5 | K10: 0.46 | L10: 5.567794 | M10: 21000 | N10: 7.112747192 | O10: 36 | P10: 1.2e-05 | Q10: 350 | R10: 350 | S10: 350 | T10: 350 | U10: 350 | V10: 0.75 | W10: 0.71 | X10: 7.1 | Y10: 21000 | Z10: =V10/2 -> 0.375 | AA10: 1.2e-05 | AB10: 350 | AC10: =0.88*AC9 -> 103.84 | AD10: =0.88*AD9 -> 103.84 | AE10: =0.88*AE9 -> 94.16 | AF10: =0.88*AF9 -> 94.16 | AG10: 2.4 | AH10: 7 | AI10: 3 | AJ10: 0.11 | AK10: 0.05 | AL10: 0.1 | AM10: 1.1 | AN10: 1 | AO10: 1.12 | AP10: 1.02 | AQ10: 1.16 | AR10: 1.04 | AS10: 1.1 | AT10: 1 | AU10: 1.16 | AV10: 1.04 | AW10: 1.1 | AX10: 1
B11: G4 68/0,60/,40 | D11: =ProduktbezogeneKosten!$F$29/10*I11 -> 2.832789242 | E11: =Materialkosten!$C$35*G11/1000+Materialkosten!$C$34*8*(L11+X11)/10000 -> 16.63280192 | F11: 68 | G11: 30 | H11: 31.29 | I11: 0.09442630808 | J11: 0.6 | K11: =J11-0.04 -> 0.56 | L11: 6.778184 | M11: 21000 | N11: 8.659399849 | O11: 36 | P11: 1.2e-05 | Q11: 350 | R11: 350 | S11: 350 | T11: 350 | U11: 350 | V11: 0.4 | W11: 0.36 | X11: 3.6 | Y11: 21000 | Z11: 0.25 | AA11: 1.2e-05 | AB11: 350 | AC11: 118 | AD11: 118 | AE11: 107 | AF11: 107 | AG11: 2.4 | AH11: 7 | AI11: 3 | AJ11: 0.11 | AK11: 0.05 | AL11: 0.1 | AM11: 1.1 | AN11: 1 | AO11: 1.12 | AP11: 1.02 | AQ11: 1.16 | AR11: 1.04 | AS11: 1.1 | AT11: 1 | AU11: 1.16 | AV11: 1.04 | AW11: 1.1 | AX11: 1
B12: G4 68/0,60/,45 | D12: =ProduktbezogeneKosten!$F$29/10*I12 -> 2.950839242 | E12: =Materialkosten!$C$35*G12/1000+Materialkosten!$C$34*8*(L12+X12)/10000 -> 17.07280192 | F12: 68 | G12: 30 | H12: 31.265 | I12: 0.09836130808 | J12: 0.6 | K12: 0.56 | L12: 6.778184 | M12: 21000 | N12: 8.659399849 | O12: 36 | P12: 1.2e-05 | Q12: 350 | R12: 350 | S12: 350 | T12: 350 | U12: 350 | V12: 0.45 | W12: 0.41 | X12: 4.1 | Y12: 21000 | Z12: 0.25 | AA12: 1.2e-05 | AB12: 350 | AC12: 118 | AD12: 118 | AE12: 107 | AF12: 107 | AG12: 2.4 | AH12: 7 | AI12: 3 | AJ12: 0.11 | AK12: 0.05 | AL12: 0.1 | AM12: 1.1 | AN12: 1 | AO12: 1.12 | AP12: 1.02 | AQ12: 1.16 | AR12: 1.04 | AS12: 1.1 | AT12: 1 | AU12: 1.16 | AV12: 1.04 | AW12: 1.1 | AX12: 1
B13: G4 68/0,60/,50 | D13: =ProduktbezogeneKosten!$F$29/10*I13 -> 3.068889242 | E13: =Materialkosten!$C$35*G13/1000+Materialkosten!$C$34*8*(L13+X13)/10000 -> 17.51280192 | F13: 68 | G13: 30 | H13: 31.24 | I13: 0.1022963081 | J13: 0.6 | K13: 0.56 | L13: 6.778184 | M13: 21000 | N13: 8.659399849 | O13: 36 | P13: 1.2e-05 | Q13: 350 | R13: 350 | S13: 350 | T13: 350 | U13: 350 | V13: 0.5 | W13: 0.46 | X13: 4.6 | Y13: 21000 | Z13: 0.25 | AA13: 1.2e-05 | AB13: 350 | AC13: 118 | AD13: 118 | AE13: 107 | AF13: 107 | AG13: 2.4 | AH13: 7 | AI13: 3 | AJ13: 0.11 | AK13: 0.05 | AL13: 0.1 | AM13: 1.1 | AN13: 1 | AO13: 1.12 | AP13: 1.02 | AQ13: 1.16 | AR13: 1.04 | AS13: 1.1 | AT13: 1 | AU13: 1.16 | AV13: 1.04 | AW13: 1.1 | AX13: 1
B14: G4 68/0,60/,60 | D14: =ProduktbezogeneKosten!$F$29/10*I14 -> 3.304989242 | E14: =Materialkosten!$C$35*G14/1000+Materialkosten!$C$34*8*(L14+X14)/10000 -> 18.39280192 | F14: 68 | G14: 30 | H14: 31.19 | I14: 0.1101663081 | J14: 0.6 | K14: 0.56 | L14: 6.778184 | M14: 21000 | N14: 8.659399849 | O14: 36 | P14: 1.2e-05 | Q14: 350 | R14: 350 | S14: 350 | T14: 350 | U14: 350 | V14: 0.6 | W14: 0.56 | X14: 5.6 | Y14: 21000 | Z14: 0.25 | AA14: 1.2e-05 | AB14: 350 | AC14: 118 | AD14: 118 | AE14: 107 | AF14: 107 | AG14: 2.4 | AH14: 7 | AI14: 3 | AJ14: 0.11 | AK14: 0.05 | AL14: 0.1 | AM14: 1.1 | AN14: 1 | AO14: 1.12 | AP14: 1.02 | AQ14: 1.16 | AR14: 1.04 | AS14: 1.1 | AT14: 1 | AU14: 1.16 | AV14: 1.04 | AW14: 1.1 | AX14: 1
B15: G4 68/0,60/,75 | D15: =ProduktbezogeneKosten!$F$29/10*I15 -> 3.659139242 | E15: =Materialkosten!$C$35*G15/1000+Materialkosten!$C$34*8*(L15+X15)/10000 -> 19.71280192 | F15: 68 | G15: 30 | H15: 31.115 | I15: 0.1219713081 | J15: 0.6 | K15: 0.56 | L15: 6.778184 | M15: 21000 | N15: 8.659399849 | O15: 36 | P15: 1.2e-05 | Q15: 350 | R15: 350 | S15: 350 | T15: 350 | U15: 350 | V15: 0.75 | W15: 0.71 | X15: 7.1 | Y15: 21000 | Z15: 0.25 | AA15: 1.2e-05 | AB15: 350 | AC15: =0.88*AC14 -> 103.84 | AD15: =0.88*AD14 -> 103.84 | AE15: =0.88*AE14 -> 94.16 | AF15: =0.88*AF14 -> 94.16 | AG15: 2.4 | AH15: 7 | AI15: 3 | AJ15: 0.11 | AK15: 0.05 | AL15: 0.1 | AM15: 1.1 | AN15: 1 | AO15: 1.12 | AP15: 1.02 | AQ15: 1.16 | AR15: 1.04 | AS15: 1.1 | AT15: 1 | AU15: 1.16 | AV15: 1.04 | AW15: 1.1 | AX15: 1
B16: G4 68/0,75/,40 | D16: =ProduktbezogeneKosten!$F$29/10*I16 -> 3.261448861 | E16: =Materialkosten!$C$35*G16/1000+Materialkosten!$C$34*8*(L16+X16)/10000 -> 18.23051672 | F16: 68 | G16: 30 | H16: 31.19 | I16: 0.108714962 | J16: 0.75 | K16: 0.71 | L16: 8.593769 | M16: 21000 | N16: 10.97983685 | O16: 36 | P16: 1.2e-05 | Q16: 350 | R16: 350 | S16: 350 | T16: 350 | U16: 350 | V16: 0.4 | W16: 0.36 | X16: 3.6 | Y16: 21000 | Z16: 0.275 | AA16: 1.2e-05 | AB16: 350 | AC16: 118 | AD16: 118 | AE16: 107 | AF16: 107 | AG16: 2.4 | AH16: 7 | AI16: 3 | AJ16: 0.11 | AK16: 0.05 | AL16: 0.1 | AM16: 1.1 | AN16: 1 | AO16: 1.12 | AP16: 1.02 | AQ16: 1.16 | AR16: 1.04 | AS16: 1.1 | AT16: 1 | AU16: 1.16 | AV16: 1.04 | AW16: 1.1 | AX16: 1
B17: G4 68/0,75/,45 | D17: =ProduktbezogeneKosten!$F$29/10*I17 -> 3.379498861 | E17: =Materialkosten!$C$35*G17/1000+Materialkosten!$C$34*8*(L17+X17)/10000 -> 18.67051672 | F17: 68 | G17: 30 | H17: 31.165 | I17: 0.112649962 | J17: 0.75 | K17: 0.71 | L17: 8.593769 | M17: 21000 | N17: 10.97983685 | O17: 36 | P17: 1.2e-05 | Q17: 350 | R17: 350 | S17: 350 | T17: 350 | U17: 350 | V17: 0.45 | W17: 0.41 | X17: 4.1 | Y17: 21000 | Z17: 0.275 | AA17: 1.2e-05 | AB17: 350 | AC17: 118 | AD17: 118 | AE17: 107 | AF17: 107 | AG17: 2.4 | AH17: 7 | AI17: 3 | AJ17: 0.11 | AK17: 0.05 | AL17: 0.1 | AM17: 1.1 | AN17: 1 | AO17: 1.12 | AP17: 1.02 | AQ17: 1.16 | AR17: 1.04 | AS17: 1.1 | AT17: 1 | AU17: 1.16 | AV17: 1.04 | AW17: 1.1 | AX17: 1
B18: G4 68/0,75/,50 | D18: =ProduktbezogeneKosten!$F$29/10*I18 -> 3.497548861 | E18: =Materialkosten!$C$35*G18/1000+Materialkosten!$C$34*8*(L18+X18)/10000 -> 19.11051672 | F18: 68 | G18: 30 | H18: 31.14 | I18: 0.116584962 | J18: 0.75 | K18: 0.71 | L18: 8.593769 | M18: 21000 | N18: 10.97983685 | O18: 36 | P18: 1.2e-05 | Q18: 350 | R18: 350 | S18: 350 | T18: 350 | U18: 350 | V18: 0.5 | W18: 0.46 | X18: 4.6 | Y18: 21000 | Z18: 0.275 | AA18: 1.2e-05 | AB18: 350 | AC18: 118 | AD18: 118 | AE18: 107 | AF18: 107 | AG18: 2.4 | AH18: 7 | AI18: 3 | AJ18: 0.11 | AK18: 0.05 | AL18: 0.1 | AM18: 1.1 | AN18: 1 | AO18: 1.12 | AP18: 1.02 | AQ18: 1.16 | AR18: 1.04 | AS18: 1.1 | AT18: 1 | AU18: 1.16 | AV18: 1.04 | AW18: 1.1 | AX18: 1
B19: G4 68/0,75/,60 | D19: =ProduktbezogeneKosten!$F$29/10*I19 -> 3.733648861 | E19: =Materialkosten!$C$35*G19/1000+Materialkosten!$C$34*8*(L19+X19)/10000 -> 19.99051672 | F19: 68 | G19: 30 | H19: 31.09 | I19: 0.124454962 | J19: 0.75 | K19: 0.71 | L19: 8.593769 | M19: 21000 | N19: 10.97983685 | O19: 36 | P19: 1.2e-05 | Q19: 350 | R19: 350 | S19: 350 | T19: 350 | U19: 350 | V19: 0.6 | W19: 0.56 | X19: 5.6 | Y19: 21000 | Z19: 0.275 | AA19: 1.2e-05 | AB19: 350 | AC19: 118 | AD19: 118 | AE19: 107 | AF19: 107 | AG19: 2.4 | AH19: 7 | AI19: 3 | AJ19: 0.11 | AK19: 0.05 | AL19: 0.1 | AM19: 1.1 | AN19: 1 | AO19: 1.12 | AP19: 1.02 | AQ19: 1.16 | AR19: 1.04 | AS19: 1.1 | AT19: 1 | AU19: 1.16 | AV19: 1.04 | AW19: 1.1 | AX19: 1
B20: G4 68/0,75/,75 | D20: =ProduktbezogeneKosten!$F$29/10*I20 -> 4.087798861 | E20: =Materialkosten!$C$35*G20/1000+Materialkosten!$C$34*8*(L20+X20)/10000 -> 21.31051672 | F20: 68 | G20: 30 | H20: 31.015 | I20: 0.136259962 | J20: 0.75 | K20: 0.71 | L20: 8.593769 | M20: 21000 | N20: 10.97983685 | O20: 36 | P20: 1.2e-05 | Q20: 350 | R20: 350 | S20: 350 | T20: 350 | U20: 350 | V20: 0.75 | W20: 0.71 | X20: 7.1 | Y20: 21000 | Z20: 0.275 | AA20: 1.2e-05 | AB20: 350 | AC20: =0.88*AC19 -> 103.84 | AD20: =0.88*AD19 -> 103.84 | AE20: =0.88*AE19 -> 94.16 | AF20: =0.88*AF19 -> 94.16 | AG20: 2.4 | AH20: 7 | AI20: 3 | AJ20: 0.11 | AK20: 0.05 | AL20: 0.1 | AM20: 1.1 | AN20: 1 | AO20: 1.12 | AP20: 1.02 | AQ20: 1.16 | AR20: 1.04 | AS20: 1.1 | AT20: 1 | AU20: 1.16 | AV20: 1.04 | AW20: 1.1 | AX20: 1
B21: G4 88/0,50/,40 | D21: =ProduktbezogeneKosten!$F$29/10*I21 -> 2.802016163 | E21: =Materialkosten!$C$35*G21/1000+Materialkosten!$C$34*8*(L21+X21)/10000 -> 20.56765872 | F21: 88 | G21: 50 | H21: =(F21-O21-Z21-K21/2-W21/2) -> 51.39 | I21: 0.09340053878 | J21: 0.5 | K21: 0.46 | L21: 5.567794 | M21: 21000 | N21: 7.112747192 | O21: 36 | P21: 1.2e-05 | Q21: 350 | R21: 350 | S21: 350 | T21: 350 | U21: 350 | V21: 0.4 | W21: 0.36 | X21: =10*W21 -> 3.6 | Y21: 21000 | Z21: =V21/2 -> 0.2 | AA21: 1.2e-05 | AB21: 350 | AC21: 129 | AD21: 129 | AE21: 116 | AF21: 116 | AG21: 2.4 | AH21: 7 | AI21: 3.1 | AJ21: 0.11 | AK21: 0.05 | AL21: 0.1 | AM21: 1.1 | AN21: 1 | AO21: 1.12 | AP21: 1.02 | AQ21: 1.16 | AR21: 1.04 | AS21: 1.1 | AT21: 1 | AU21: 1.16 | AV21: 1.04 | AW21: 1.1 | AX21: 1
B22: G4 88/0,50/,45 | D22: =ProduktbezogeneKosten!$F$29/10*I22 -> 2.920066163 | E22: =Materialkosten!$C$35*G22/1000+Materialkosten!$C$34*8*(L22+X22)/10000 -> 21.00765872 | F22: 88 | G22: 50 | H22: =(F22-O22-Z22-K22/2-W22/2) -> 51.34 | I22: 0.09733553878 | J22: 0.5 | K22: 0.46 | L22: 5.567794 | M22: 21000 | N22: 7.112747192 | O22: 36 | P22: 1.2e-05 | Q22: 350 | R22: 350 | S22: 350 | T22: 350 | U22: 350 | V22: 0.45 | W22: 0.41 | X22: 4.1 | Y22: 21000 | Z22: =V22/2 -> 0.225 | AA22: 1.2e-05 | AB22: 350 | AC22: 129 | AD22: 129 | AE22: 116 | AF22: 116 | AG22: 2.4 | AH22: 7 | AI22: 3.1 | AJ22: 0.11 | AK22: 0.05 | AL22: 0.1 | AM22: 1.1 | AN22: 1 | AO22: 1.12 | AP22: 1.02 | AQ22: 1.16 | AR22: 1.04 | AS22: 1.1 | AT22: 1 | AU22: 1.16 | AV22: 1.04 | AW22: 1.1 | AX22: 1
B23: G4 88/0,50/,50 | D23: =ProduktbezogeneKosten!$F$29/10*I23 -> 3.038116163 | E23: =Materialkosten!$C$35*G23/1000+Materialkosten!$C$34*8*(L23+X23)/10000 -> 21.44765872 | F23: 88 | G23: 50 | H23: 51.29 | I23: 0.1012705388 | J23: 0.5 | K23: 0.46 | L23: 5.567794 | M23: 21000 | N23: 7.112747192 | O23: 36 | P23: 1.2e-05 | Q23: 350 | R23: 350 | S23: 350 | T23: 350 | U23: 350 | V23: 0.5 | W23: 0.46 | X23: 4.6 | Y23: 21000 | Z23: =V23/2 -> 0.25 | AA23: 1.2e-05 | AB23: 350 | AC23: 129 | AD23: 129 | AE23: 116 | AF23: 116 | AG23: 2.4 | AH23: 7 | AI23: 3.1 | AJ23: 0.11 | AK23: 0.05 | AL23: 0.1 | AM23: 1.1 | AN23: 1 | AO23: 1.12 | AP23: 1.02 | AQ23: 1.16 | AR23: 1.04 | AS23: 1.1 | AT23: 1 | AU23: 1.16 | AV23: 1.04 | AW23: 1.1 | AX23: 1
B24: G4 88/0,50/,60 | D24: =ProduktbezogeneKosten!$F$29/10*I24 -> 3.274216163 | E24: =Materialkosten!$C$35*G24/1000+Materialkosten!$C$34*8*(L24+X24)/10000 -> 22.32765872 | F24: 88 | G24: 50 | H24: 51.19 | I24: 0.1091405388 | J24: 0.5 | K24: 0.46 | L24: 5.567794 | M24: 21000 | N24: 7.112747192 | O24: 36 | P24: 1.2e-05 | Q24: 350 | R24: 350 | S24: 350 | T24: 350 | U24: 350 | V24: 0.6 | W24: 0.56 | X24: 5.6 | Y24: 21000 | Z24: =V24/2 -> 0.3 | AA24: 1.2e-05 | AB24: 350 | AC24: 129 | AD24: 129 | AE24: 116 | AF24: 116 | AG24: 2.4 | AH24: 7 | AI24: 3.1 | AJ24: 0.11 | AK24: 0.05 | AL24: 0.1 | AM24: 1.1 | AN24: 1 | AO24: 1.12 | AP24: 1.02 | AQ24: 1.16 | AR24: 1.04 | AS24: 1.1 | AT24: 1 | AU24: 1.16 | AV24: 1.04 | AW24: 1.1 | AX24: 1
B25: G4 88/0,50/,75 | D25: =ProduktbezogeneKosten!$F$29/10*I25 -> 3.628366163 | E25: =Materialkosten!$C$35*G25/1000+Materialkosten!$C$34*8*(L25+X25)/10000 -> 23.64765872 | F25: 88 | G25: 50 | H25: 51.04 | I25: 0.1209455388 | J25: 0.5 | K25: 0.46 | L25: 5.567794 | M25: 21000 | N25: 7.112747192 | O25: 36 | P25: 1.2e-05 | Q25: 350 | R25: 350 | S25: 350 | T25: 350 | U25: 350 | V25: 0.75 | W25: 0.71 | X25: 7.1 | Y25: 21000 | Z25: =V25/2 -> 0.375 | AA25: 1.2e-05 | AB25: 350 | AC25: =0.88*AC24 -> 113.52 | AD25: =0.88*AD24 -> 113.52 | AE25: =0.88*AE24 -> 102.08 | AF25: =0.88*AF24 -> 102.08 | AG25: 2.4 | AH25: 7 | AI25: 3.1 | AJ25: 0.11 | AK25: 0.05 | AL25: 0.1 | AM25: 1.1 | AN25: 1 | AO25: 1.12 | AP25: 1.02 | AQ25: 1.16 | AR25: 1.04 | AS25: 1.1 | AT25: 1 | AU25: 1.16 | AV25: 1.04 | AW25: 1.1 | AX25: 1
B26: G4 88/0,60/,40 | D26: =ProduktbezogeneKosten!$F$29/10*I26 -> 3.087789242 | E26: =Materialkosten!$C$35*G26/1000+Materialkosten!$C$34*8*(L26+X26)/10000 -> 21.63280192 | F26: 88 | G26: 50 | H26: 51.29 | I26: 0.1029263081 | J26: 0.6 | K26: 0.56 | L26: 6.778184 | M26: 21000 | N26: 8.659399849 | O26: 36 | P26: 1.2e-05 | Q26: 350 | R26: 350 | S26: 350 | T26: 350 | U26: 350 | V26: 0.4 | W26: 0.36 | X26: 3.6 | Y26: 21000 | Z26: 0.25 | AA26: 1.2e-05 | AB26: 350 | AC26: 129 | AD26: 129 | AE26: 116 | AF26: 116 | AG26: 2.4 | AH26: 7 | AI26: 3.1 | AJ26: 0.11 | AK26: 0.05 | AL26: 0.1 | AM26: 1.1 | AN26: 1 | AO26: 1.12 | AP26: 1.02 | AQ26: 1.16 | AR26: 1.04 | AS26: 1.1 | AT26: 1 | AU26: 1.16 | AV26: 1.04 | AW26: 1.1 | AX26: 1
B27: G4 88/0,60/,45 | D27: =ProduktbezogeneKosten!$F$29/10*I27 -> 3.205839242 | E27: =Materialkosten!$C$35*G27/1000+Materialkosten!$C$34*8*(L27+X27)/10000 -> 22.07280192 | F27: 88 | G27: 50 | H27: 51.265 | I27: 0.1068613081 | J27: 0.6 | K27: 0.56 | L27: 6.778184 | M27: 21000 | N27: 8.659399849 | O27: 36 | P27: 1.2e-05 | Q27: 350 | R27: 350 | S27: 350 | T27: 350 | U27: 350 | V27: 0.45 | W27: 0.41 | X27: 4.1 | Y27: 21000 | Z27: 0.25 | AA27: 1.2e-05 | AB27: 350 | AC27: 129 | AD27: 129 | AE27: 116 | AF27: 116 | AG27: 2.4 | AH27: 7 | AI27: 3.1 | AJ27: 0.11 | AK27: 0.05 | AL27: 0.1 | AM27: 1.1 | AN27: 1 | AO27: 1.12 | AP27: 1.02 | AQ27: 1.16 | AR27: 1.04 | AS27: 1.1 | AT27: 1 | AU27: 1.16 | AV27: 1.04 | AW27: 1.1 | AX27: 1
B28: G4 88/0,60/,50 | D28: =ProduktbezogeneKosten!$F$29/10*I28 -> 3.323889242 | E28: =Materialkosten!$C$35*G28/1000+Materialkosten!$C$34*8*(L28+X28)/10000 -> 22.51280192 | F28: 88 | G28: 50 | H28: 51.24 | I28: 0.1107963081 | J28: 0.6 | K28: 0.56 | L28: 6.778184 | M28: 21000 | N28: 8.659399849 | O28: 36 | P28: 1.2e-05 | Q28: 350 | R28: 350 | S28: 350 | T28: 350 | U28: 350 | V28: 0.5 | W28: 0.46 | X28: 4.6 | Y28: 21000 | Z28: 0.25 | AA28: 1.2e-05 | AB28: 350 | AC28: 129 | AD28: 129 | AE28: 116 | AF28: 116 | AG28: 2.4 | AH28: 7 | AI28: 3.1 | AJ28: 0.11 | AK28: 0.05 | AL28: 0.1 | AM28: 1.1 | AN28: 1 | AO28: 1.12 | AP28: 1.02 | AQ28: 1.16 | AR28: 1.04 | AS28: 1.1 | AT28: 1 | AU28: 1.16 | AV28: 1.04 | AW28: 1.1 | AX28: 1
B29: G4 88/0,60/,60 | D29: =ProduktbezogeneKosten!$F$29/10*I29 -> 3.559989242 | E29: =Materialkosten!$C$35*G29/1000+Materialkosten!$C$34*8*(L29+X29)/10000 -> 23.39280192 | F29: 88 | G29: 50 | H29: 51.19 | I29: 0.1186663081 | J29: 0.6 | K29: 0.56 | L29: 6.778184 | M29: 21000 | N29: 8.659399849 | O29: 36 | P29: 1.2e-05 | Q29: 350 | R29: 350 | S29: 350 | T29: 350 | U29: 350 | V29: 0.6 | W29: 0.56 | X29: 5.6 | Y29: 21000 | Z29: 0.25 | AA29: 1.2e-05 | AB29: 350 | AC29: 129 | AD29: 129 | AE29: 116 | AF29: 116 | AG29: 2.4 | AH29: 7 | AI29: 3.1 | AJ29: 0.11 | AK29: 0.05 | AL29: 0.1 | AM29: 1.1 | AN29: 1 | AO29: 1.12 | AP29: 1.02 | AQ29: 1.16 | AR29: 1.04 | AS29: 1.1 | AT29: 1 | AU29: 1.16 | AV29: 1.04 | AW29: 1.1 | AX29: 1
B30: G4 88/0,60/,75 | D30: =ProduktbezogeneKosten!$F$29/10*I30 -> 3.914139242 | E30: =Materialkosten!$C$35*G30/1000+Materialkosten!$C$34*8*(L30+X30)/10000 -> 24.71280192 | F30: 88 | G30: 50 | H30: 51.115 | I30: 0.1304713081 | J30: 0.6 | K30: 0.56 | L30: 6.778184 | M30: 21000 | N30: 8.659399849 | O30: 36 | P30: 1.2e-05 | Q30: 350 | R30: 350 | S30: 350 | T30: 350 | U30: 350 | V30: 0.75 | W30: 0.71 | X30: 7.1 | Y30: 21000 | Z30: 0.25 | AA30: 1.2e-05 | AB30: 350 | AC30: =0.88*AC29 -> 113.52 | AD30: =0.88*AD29 -> 113.52 | AE30: =0.88*AE29 -> 102.08 | AF30: =0.88*AF29 -> 102.08 | AG30: 2.4 | AH30: 7 | AI30: 3.1 | AJ30: 0.11 | AK30: 0.05 | AL30: 0.1 | AM30: 1.1 | AN30: 1 | AO30: 1.12 | AP30: 1.02 | AQ30: 1.16 | AR30: 1.04 | AS30: 1.1 | AT30: 1 | AU30: 1.16 | AV30: 1.04 | AW30: 1.1 | AX30: 1
B31: G4 88/0,75/,40 | D31: =ProduktbezogeneKosten!$F$29/10*I31 -> 3.516448861 | E31: =Materialkosten!$C$35*G31/1000+Materialkosten!$C$34*8*(L31+X31)/10000 -> 23.23051672 | F31: 88 | G31: 50 | H31: 51.19 | I31: 0.117214962 | J31: 0.75 | K31: 0.71 | L31: 8.593769 | M31: 21000 | N31: 10.97983685 | O31: 36 | P31: 1.2e-05 | Q31: 350 | R31: 350 | S31: 350 | T31: 350 | U31: 350 | V31: 0.4 | W31: 0.36 | X31: 3.6 | Y31: 21000 | Z31: 0.275 | AA31: 1.2e-05 | AB31: 350 | AC31: 129 | AD31: 129 | AE31: 116 | AF31: 116 | AG31: 2.4 | AH31: 7 | AI31: 3.1 | AJ31: 0.11 | AK31: 0.05 | AL31: 0.1 | AM31: 1.1 | AN31: 1 | AO31: 1.12 | AP31: 1.02 | AQ31: 1.16 | AR31: 1.04 | AS31: 1.1 | AT31: 1 | AU31: 1.16 | AV31: 1.04 | AW31: 1.1 | AX31: 1
B32: G4 88/0,75/,45 | D32: =ProduktbezogeneKosten!$F$29/10*I32 -> 3.634498861 | E32: =Materialkosten!$C$35*G32/1000+Materialkosten!$C$34*8*(L32+X32)/10000 -> 23.67051672 | F32: 88 | G32: 50 | H32: 51.165 | I32: 0.121149962 | J32: 0.75 | K32: 0.71 | L32: 8.593769 | M32: 21000 | N32: 10.97983685 | O32: 36 | P32: 1.2e-05 | Q32: 350 | R32: 350 | S32: 350 | T32: 350 | U32: 350 | V32: 0.45 | W32: 0.41 | X32: 4.1 | Y32: 21000 | Z32: 0.275 | AA32: 1.2e-05 | AB32: 350 | AC32: 129 | AD32: 129 | AE32: 116 | AF32: 116 | AG32: 2.4 | AH32: 7 | AI32: 3.1 | AJ32: 0.11 | AK32: 0.05 | AL32: 0.1 | AM32: 1.1 | AN32: 1 | AO32: 1.12 | AP32: 1.02 | AQ32: 1.16 | AR32: 1.04 | AS32: 1.1 | AT32: 1 | AU32: 1.16 | AV32: 1.04 | AW32: 1.1 | AX32: 1
B33: G4 88/0,75/,50 | D33: =ProduktbezogeneKosten!$F$29/10*I33 -> 3.752548861 | E33: =Materialkosten!$C$35*G33/1000+Materialkosten!$C$34*8*(L33+X33)/10000 -> 24.11051672 | F33: 88 | G33: 50 | H33: 51.14 | I33: 0.125084962 | J33: 0.75 | K33: 0.71 | L33: 8.593769 | M33: 21000 | N33: 10.97983685 | O33: 36 | P33: 1.2e-05 | Q33: 350 | R33: 350 | S33: 350 | T33: 350 | U33: 350 | V33: 0.5 | W33: 0.46 | X33: 4.6 | Y33: 21000 | Z33: 0.275 | AA33: 1.2e-05 | AB33: 350 | AC33: 129 | AD33: 129 | AE33: 116 | AF33: 116 | AG33: 2.4 | AH33: 7 | AI33: 3.1 | AJ33: 0.11 | AK33: 0.05 | AL33: 0.1 | AM33: 1.1 | AN33: 1 | AO33: 1.12 | AP33: 1.02 | AQ33: 1.16 | AR33: 1.04 | AS33: 1.1 | AT33: 1 | AU33: 1.16 | AV33: 1.04 | AW33: 1.1 | AX33: 1
B34: G4 88/0,75/,60 | D34: =ProduktbezogeneKosten!$F$29/10*I34 -> 3.988648861 | E34: =Materialkosten!$C$35*G34/1000+Materialkosten!$C$34*8*(L34+X34)/10000 -> 24.99051672 | F34: 88 | G34: 50 | H34: 51.09 | I34: 0.132954962 | J34: 0.75 | K34: 0.71 | L34: 8.593769 | M34: 21000 | N34: 10.97983685 | O34: 36 | P34: 1.2e-05 | Q34: 350 | R34: 350 | S34: 350 | T34: 350 | U34: 350 | V34: 0.6 | W34: 0.56 | X34: 5.6 | Y34: 21000 | Z34: 0.275 | AA34: 1.2e-05 | AB34: 350 | AC34: 129 | AD34: 129 | AE34: 116 | AF34: 116 | AG34: 2.4 | AH34: 7 | AI34: 3.1 | AJ34: 0.11 | AK34: 0.05 | AL34: 0.1 | AM34: 1.1 | AN34: 1 | AO34: 1.12 | AP34: 1.02 | AQ34: 1.16 | AR34: 1.04 | AS34: 1.1 | AT34: 1 | AU34: 1.16 | AV34: 1.04 | AW34: 1.1 | AX34: 1
B35: G4 88/0,75/,75 | D35: =ProduktbezogeneKosten!$F$29/10*I35 -> 4.342798861 | E35: =Materialkosten!$C$35*G35/1000+Materialkosten!$C$34*8*(L35+X35)/10000 -> 26.31051672 | F35: 88 | G35: 50 | H35: 51.015 | I35: 0.144759962 | J35: 0.75 | K35: 0.71 | L35: 8.593769 | M35: 21000 | N35: 10.97983685 | O35: 36 | P35: 1.2e-05 | Q35: 350 | R35: 350 | S35: 350 | T35: 350 | U35: 350 | V35: 0.75 | W35: 0.71 | X35: 7.1 | Y35: 21000 | Z35: 0.275 | AA35: 1.2e-05 | AB35: 350 | AC35: =0.88*AC34 -> 113.52 | AD35: =0.88*AD34 -> 113.52 | AE35: =0.88*AE34 -> 102.08 | AF35: =0.88*AF34 -> 102.08 | AG35: 2.4 | AH35: 7 | AI35: 3.1 | AJ35: 0.11 | AK35: 0.05 | AL35: 0.1 | AM35: 1.1 | AN35: 1 | AO35: 1.12 | AP35: 1.02 | AQ35: 1.16 | AR35: 1.04 | AS35: 1.1 | AT35: 1 | AU35: 1.16 | AV35: 1.04 | AW35: 1.1 | AX35: 1
B36: G4 118/0,50/,40 | D36: =ProduktbezogeneKosten!$F$29/10*I36 -> 3.184516163 | E36: =Materialkosten!$C$35*G36/1000+Materialkosten!$C$34*8*(L36+X36)/10000 -> 28.06765872 | F36: 118 | G36: 80 | H36: =(F36-O36-Z36-K36/2-W36/2) -> 81.39 | I36: 0.1061505388 | J36: 0.5 | K36: 0.46 | L36: 5.567794 | M36: 21000 | N36: 7.112747192 | O36: 36 | P36: 1.2e-05 | Q36: 350 | R36: 350 | S36: 350 | T36: 350 | U36: 350 | V36: 0.4 | W36: 0.36 | X36: =10*W36 -> 3.6 | Y36: 21000 | Z36: =V36/2 -> 0.2 | AA36: 1.2e-05 | AB36: 350 | AC36: 129 | AD36: 129 | AE36: 116 | AF36: 116 | AG36: 2.4 | AH36: 7 | AI36: 2.8 | AJ36: 0.11 | AK36: 0.05 | AL36: 0.1 | AM36: 1.1 | AN36: 1 | AO36: 1.12 | AP36: 1.02 | AQ36: 1.16 | AR36: 1.04 | AS36: 1.1 | AT36: 1 | AU36: 1.16 | AV36: 1.04 | AW36: 1.1 | AX36: 1
B37: G4 118/0,50/,45 | D37: =ProduktbezogeneKosten!$F$29/10*I37 -> 3.302566163 | E37: =Materialkosten!$C$35*G37/1000+Materialkosten!$C$34*8*(L37+X37)/10000 -> 28.50765872 | F37: 118 | G37: 80 | H37: =(F37-O37-Z37-K37/2-W37/2) -> 81.34 | I37: 0.1100855388 | J37: 0.5 | K37: 0.46 | L37: 5.567794 | M37: 21000 | N37: 7.112747192 | O37: 36 | P37: 1.2e-05 | Q37: 350 | R37: 350 | S37: 350 | T37: 350 | U37: 350 | V37: 0.45 | W37: 0.41 | X37: 4.1 | Y37: 21000 | Z37: =V37/2 -> 0.225 | AA37: 1.2e-05 | AB37: 350 | AC37: 129 | AD37: 129 | AE37: 116 | AF37: 116 | AG37: 2.4 | AH37: 7 | AI37: 2.8 | AJ37: 0.11 | AK37: 0.05 | AL37: 0.1 | AM37: 1.1 | AN37: 1 | AO37: 1.12 | AP37: 1.02 | AQ37: 1.16 | AR37: 1.04 | AS37: 1.1 | AT37: 1 | AU37: 1.16 | AV37: 1.04 | AW37: 1.1 | AX37: 1
B38: G4 118/0,50/,50 | D38: =ProduktbezogeneKosten!$F$29/10*I38 -> 3.420616163 | E38: =Materialkosten!$C$35*G38/1000+Materialkosten!$C$34*8*(L38+X38)/10000 -> 28.94765872 | F38: 118 | G38: 80 | H38: 81.29 | I38: 0.1140205388 | J38: 0.5 | K38: 0.46 | L38: 5.567794 | M38: 21000 | N38: 7.112747192 | O38: 36 | P38: 1.2e-05 | Q38: 350 | R38: 350 | S38: 350 | T38: 350 | U38: 350 | V38: 0.5 | W38: 0.46 | X38: 4.6 | Y38: 21000 | Z38: =V38/2 -> 0.25 | AA38: 1.2e-05 | AB38: 350 | AC38: 129 | AD38: 129 | AE38: 116 | AF38: 116 | AG38: 2.4 | AH38: 7 | AI38: 2.8 | AJ38: 0.11 | AK38: 0.05 | AL38: 0.1 | AM38: 1.1 | AN38: 1 | AO38: 1.12 | AP38: 1.02 | AQ38: 1.16 | AR38: 1.04 | AS38: 1.1 | AT38: 1 | AU38: 1.16 | AV38: 1.04 | AW38: 1.1 | AX38: 1
B39: G4 118/0,50/,60 | D39: =ProduktbezogeneKosten!$F$29/10*I39 -> 3.656716163 | E39: =Materialkosten!$C$35*G39/1000+Materialkosten!$C$34*8*(L39+X39)/10000 -> 29.82765872 | F39: 118 | G39: 80 | H39: 81.19 | I39: 0.1218905388 | J39: 0.5 | K39: 0.46 | L39: 5.567794 | M39: 21000 | N39: 7.112747192 | O39: 36 | P39: 1.2e-05 | Q39: 350 | R39: 350 | S39: 350 | T39: 350 | U39: 350 | V39: 0.6 | W39: 0.56 | X39: 5.6 | Y39: 21000 | Z39: =V39/2 -> 0.3 | AA39: 1.2e-05 | AB39: 350 | AC39: 129 | AD39: 129 | AE39: 116 | AF39: 116 | AG39: 2.4 | AH39: 7 | AI39: 2.8 | AJ39: 0.11 | AK39: 0.05 | AL39: 0.1 | AM39: 1.1 | AN39: 1 | AO39: 1.12 | AP39: 1.02 | AQ39: 1.16 | AR39: 1.04 | AS39: 1.1 | AT39: 1 | AU39: 1.16 | AV39: 1.04 | AW39: 1.1 | AX39: 1
B40: G4 118/0,50/,75 | D40: =ProduktbezogeneKosten!$F$29/10*I40 -> 4.010866163 | E40: =Materialkosten!$C$35*G40/1000+Materialkosten!$C$34*8*(L40+X40)/10000 -> 31.14765872 | F40: 118 | G40: 80 | H40: 81.04 | I40: 0.1336955388 | J40: 0.5 | K40: 0.46 | L40: 5.567794 | M40: 21000 | N40: 7.112747192 | O40: 36 | P40: 1.2e-05 | Q40: 350 | R40: 350 | S40: 350 | T40: 350 | U40: 350 | V40: 0.75 | W40: 0.71 | X40: 7.1 | Y40: 21000 | Z40: =V40/2 -> 0.375 | AA40: 1.2e-05 | AB40: 350 | AC40: =0.88*AC39 -> 113.52 | AD40: =0.88*AD39 -> 113.52 | AE40: =0.88*AE39 -> 102.08 | AF40: =0.88*AF39 -> 102.08 | AG40: 2.4 | AH40: 7 | AI40: 2.8 | AJ40: 0.11 | AK40: 0.05 | AL40: 0.1 | AM40: 1.1 | AN40: 1 | AO40: 1.12 | AP40: 1.02 | AQ40: 1.16 | AR40: 1.04 | AS40: 1.1 | AT40: 1 | AU40: 1.16 | AV40: 1.04 | AW40: 1.1 | AX40: 1
B41: G4 118/0,60/,40 | D41: =ProduktbezogeneKosten!$F$29/10*I41 -> 3.470289242 | E41: =Materialkosten!$C$35*G41/1000+Materialkosten!$C$34*8*(L41+X41)/10000 -> 29.13280192 | F41: 118 | G41: 80 | H41: 81.29 | I41: 0.1156763081 | J41: 0.6 | K41: 0.56 | L41: 6.778184 | M41: 21000 | N41: 8.659399849 | O41: 36 | P41: 1.2e-05 | Q41: 350 | R41: 350 | S41: 350 | T41: 350 | U41: 350 | V41: 0.4 | W41: 0.36 | X41: 3.6 | Y41: 21000 | Z41: 0.25 | AA41: 1.2e-05 | AB41: 350 | AC41: 129 | AD41: 129 | AE41: 116 | AF41: 116 | AG41: 2.4 | AH41: 7 | AI41: 2.8 | AJ41: 0.11 | AK41: 0.05 | AL41: 0.1 | AM41: 1.1 | AN41: 1 | AO41: 1.12 | AP41: 1.02 | AQ41: 1.16 | AR41: 1.04 | AS41: 1.1 | AT41: 1 | AU41: 1.16 | AV41: 1.04 | AW41: 1.1 | AX41: 1
B42: G4 118/0,60/,45 | D42: =ProduktbezogeneKosten!$F$29/10*I42 -> 3.588339242 | E42: =Materialkosten!$C$35*G42/1000+Materialkosten!$C$34*8*(L42+X42)/10000 -> 29.57280192 | F42: 118 | G42: 80 | H42: 81.265 | I42: 0.1196113081 | J42: 0.6 | K42: 0.56 | L42: 6.778184 | M42: 21000 | N42: 8.659399849 | O42: 36 | P42: 1.2e-05 | Q42: 350 | R42: 350 | S42: 350 | T42: 350 | U42: 350 | V42: 0.45 | W42: 0.41 | X42: 4.1 | Y42: 21000 | Z42: 0.25 | AA42: 1.2e-05 | AB42: 350 | AC42: 129 | AD42: 129 | AE42: 116 | AF42: 116 | AG42: 2.4 | AH42: 7 | AI42: 2.8 | AJ42: 0.11 | AK42: 0.05 | AL42: 0.1 | AM42: 1.1 | AN42: 1 | AO42: 1.12 | AP42: 1.02 | AQ42: 1.16 | AR42: 1.04 | AS42: 1.1 | AT42: 1 | AU42: 1.16 | AV42: 1.04 | AW42: 1.1 | AX42: 1
B43: G4 118/0,60/,50 | D43: =ProduktbezogeneKosten!$F$29/10*I43 -> 3.706389242 | E43: =Materialkosten!$C$35*G43/1000+Materialkosten!$C$34*8*(L43+X43)/10000 -> 30.01280192 | F43: 118 | G43: 80 | H43: 81.24 | I43: 0.1235463081 | J43: 0.6 | K43: 0.56 | L43: 6.778184 | M43: 21000 | N43: 8.659399849 | O43: 36 | P43: 1.2e-05 | Q43: 350 | R43: 350 | S43: 350 | T43: 350 | U43: 350 | V43: 0.5 | W43: 0.46 | X43: 4.6 | Y43: 21000 | Z43: 0.25 | AA43: 1.2e-05 | AB43: 350 | AC43: 129 | AD43: 129 | AE43: 116 | AF43: 116 | AG43: 2.4 | AH43: 7 | AI43: 2.8 | AJ43: 0.11 | AK43: 0.05 | AL43: 0.1 | AM43: 1.1 | AN43: 1 | AO43: 1.12 | AP43: 1.02 | AQ43: 1.16 | AR43: 1.04 | AS43: 1.1 | AT43: 1 | AU43: 1.16 | AV43: 1.04 | AW43: 1.1 | AX43: 1
B44: G4 118/0,60/,60 | D44: =ProduktbezogeneKosten!$F$29/10*I44 -> 3.942489242 | E44: =Materialkosten!$C$35*G44/1000+Materialkosten!$C$34*8*(L44+X44)/10000 -> 30.89280192 | F44: 118 | G44: 80 | H44: 81.19 | I44: 0.1314163081 | J44: 0.6 | K44: 0.56 | L44: 6.778184 | M44: 21000 | N44: 8.659399849 | O44: 36 | P44: 1.2e-05 | Q44: 350 | R44: 350 | S44: 350 | T44: 350 | U44: 350 | V44: 0.6 | W44: 0.56 | X44: 5.6 | Y44: 21000 | Z44: 0.25 | AA44: 1.2e-05 | AB44: 350 | AC44: 129 | AD44: 129 | AE44: 116 | AF44: 116 | AG44: 2.4 | AH44: 7 | AI44: 2.8 | AJ44: 0.11 | AK44: 0.05 | AL44: 0.1 | AM44: 1.1 | AN44: 1 | AO44: 1.12 | AP44: 1.02 | AQ44: 1.16 | AR44: 1.04 | AS44: 1.1 | AT44: 1 | AU44: 1.16 | AV44: 1.04 | AW44: 1.1 | AX44: 1
B45: G4 118/0,60/,75 | D45: =ProduktbezogeneKosten!$F$29/10*I45 -> 4.296639242 | E45: =Materialkosten!$C$35*G45/1000+Materialkosten!$C$34*8*(L45+X45)/10000 -> 32.21280192 | F45: 118 | G45: 80 | H45: 81.115 | I45: 0.1432213081 | J45: 0.6 | K45: 0.56 | L45: 6.778184 | M45: 21000 | N45: 8.659399849 | O45: 36 | P45: 1.2e-05 | Q45: 350 | R45: 350 | S45: 350 | T45: 350 | U45: 350 | V45: 0.75 | W45: 0.71 | X45: 7.1 | Y45: 21000 | Z45: 0.25 | AA45: 1.2e-05 | AB45: 350 | AC45: =0.88*AC44 -> 113.52 | AD45: =0.88*AD44 -> 113.52 | AE45: =0.88*AE44 -> 102.08 | AF45: =0.88*AF44 -> 102.08 | AG45: 2.4 | AH45: 7 | AI45: 2.8 | AJ45: 0.11 | AK45: 0.05 | AL45: 0.1 | AM45: 1.1 | AN45: 1 | AO45: 1.12 | AP45: 1.02 | AQ45: 1.16 | AR45: 1.04 | AS45: 1.1 | AT45: 1 | AU45: 1.16 | AV45: 1.04 | AW45: 1.1 | AX45: 1
B46: G4 118/0,75/,40 | D46: =ProduktbezogeneKosten!$F$29/10*I46 -> 3.898948861 | E46: =Materialkosten!$C$35*G46/1000+Materialkosten!$C$34*8*(L46+X46)/10000 -> 30.73051672 | F46: 118 | G46: 80 | H46: 81.19 | I46: 0.129964962 | J46: 0.75 | K46: 0.71 | L46: 8.593769 | M46: 21000 | N46: 10.97983685 | O46: 36 | P46: 1.2e-05 | Q46: 350 | R46: 350 | S46: 350 | T46: 350 | U46: 350 | V46: 0.4 | W46: 0.36 | X46: 3.6 | Y46: 21000 | Z46: 0.275 | AA46: 1.2e-05 | AB46: 350 | AC46: 129 | AD46: 129 | AE46: 116 | AF46: 116 | AG46: 2.4 | AH46: 7 | AI46: 2.8 | AJ46: 0.11 | AK46: 0.05 | AL46: 0.1 | AM46: 1.1 | AN46: 1 | AO46: 1.12 | AP46: 1.02 | AQ46: 1.16 | AR46: 1.04 | AS46: 1.1 | AT46: 1 | AU46: 1.16 | AV46: 1.04 | AW46: 1.1 | AX46: 1
B47: G4 118/0,75/,45 | D47: =ProduktbezogeneKosten!$F$29/10*I47 -> 4.016998861 | E47: =Materialkosten!$C$35*G47/1000+Materialkosten!$C$34*8*(L47+X47)/10000 -> 31.17051672 | F47: 118 | G47: 80 | H47: 81.165 | I47: 0.133899962 | J47: 0.75 | K47: 0.71 | L47: 8.593769 | M47: 21000 | N47: 10.97983685 | O47: 36 | P47: 1.2e-05 | Q47: 350 | R47: 350 | S47: 350 | T47: 350 | U47: 350 | V47: 0.45 | W47: 0.41 | X47: 4.1 | Y47: 21000 | Z47: 0.275 | AA47: 1.2e-05 | AB47: 350 | AC47: 129 | AD47: 129 | AE47: 116 | AF47: 116 | AG47: 2.4 | AH47: 7 | AI47: 2.8 | AJ47: 0.11 | AK47: 0.05 | AL47: 0.1 | AM47: 1.1 | AN47: 1 | AO47: 1.12 | AP47: 1.02 | AQ47: 1.16 | AR47: 1.04 | AS47: 1.1 | AT47: 1 | AU47: 1.16 | AV47: 1.04 | AW47: 1.1 | AX47: 1
B48: G4 118/0,75/,50 | D48: =ProduktbezogeneKosten!$F$29/10*I48 -> 4.135048861 | E48: =Materialkosten!$C$35*G48/1000+Materialkosten!$C$34*8*(L48+X48)/10000 -> 31.61051672 | F48: 118 | G48: 80 | H48: 81.14 | I48: 0.137834962 | J48: 0.75 | K48: 0.71 | L48: 8.593769 | M48: 21000 | N48: 10.97983685 | O48: 36 | P48: 1.2e-05 | Q48: 350 | R48: 350 | S48: 350 | T48: 350 | U48: 350 | V48: 0.5 | W48: 0.46 | X48: 4.6 | Y48: 21000 | Z48: 0.275 | AA48: 1.2e-05 | AB48: 350 | AC48: 129 | AD48: 129 | AE48: 116 | AF48: 116 | AG48: 2.4 | AH48: 7 | AI48: 2.8 | AJ48: 0.11 | AK48: 0.05 | AL48: 0.1 | AM48: 1.1 | AN48: 1 | AO48: 1.12 | AP48: 1.02 | AQ48: 1.16 | AR48: 1.04 | AS48: 1.1 | AT48: 1 | AU48: 1.16 | AV48: 1.04 | AW48: 1.1 | AX48: 1
B49: G4 118/0,75/,60 | D49: =ProduktbezogeneKosten!$F$29/10*I49 -> 4.371148861 | E49: =Materialkosten!$C$35*G49/1000+Materialkosten!$C$34*8*(L49+X49)/10000 -> 32.49051672 | F49: 118 | G49: 80 | H49: 81.09 | I49: 0.145704962 | J49: 0.75 | K49: 0.71 | L49: 8.593769 | M49: 21000 | N49: 10.97983685 | O49: 36 | P49: 1.2e-05 | Q49: 350 | R49: 350 | S49: 350 | T49: 350 | U49: 350 | V49: 0.6 | W49: 0.56 | X49: 5.6 | Y49: 21000 | Z49: 0.275 | AA49: 1.2e-05 | AB49: 350 | AC49: 129 | AD49: 129 | AE49: 116 | AF49: 116 | AG49: 2.4 | AH49: 7 | AI49: 2.8 | AJ49: 0.11 | AK49: 0.05 | AL49: 0.1 | AM49: 1.1 | AN49: 1 | AO49: 1.12 | AP49: 1.02 | AQ49: 1.16 | AR49: 1.04 | AS49: 1.1 | AT49: 1 | AU49: 1.16 | AV49: 1.04 | AW49: 1.1 | AX49: 1
B50: G4 118/0,75/,75 | D50: =ProduktbezogeneKosten!$F$29/10*I50 -> 4.725298861 | E50: =Materialkosten!$C$35*G50/1000+Materialkosten!$C$34*8*(L50+X50)/10000 -> 33.81051672 | F50: 118 | G50: 80 | H50: 81.015 | I50: 0.157509962 | J50: 0.75 | K50: 0.71 | L50: 8.593769 | M50: 21000 | N50: 10.97983685 | O50: 36 | P50: 1.2e-05 | Q50: 350 | R50: 350 | S50: 350 | T50: 350 | U50: 350 | V50: 0.75 | W50: 0.71 | X50: 7.1 | Y50: 21000 | Z50: 0.275 | AA50: 1.2e-05 | AB50: 350 | AC50: =0.88*AC49 -> 113.52 | AD50: =0.88*AD49 -> 113.52 | AE50: =0.88*AE49 -> 102.08 | AF50: =0.88*AF49 -> 102.08 | AG50: 2.4 | AH50: 7 | AI50: 2.8 | AJ50: 0.11 | AK50: 0.05 | AL50: 0.1 | AM50: 1.1 | AN50: 1 | AO50: 1.12 | AP50: 1.02 | AQ50: 1.16 | AR50: 1.04 | AS50: 1.1 | AT50: 1 | AU50: 1.16 | AV50: 1.04 | AW50: 1.1 | AX50: 1
B51: G4 138/0,50/,40 | D51: =ProduktbezogeneKosten!$F$29/10*I51 -> 3.439516163 | E51: =Materialkosten!$C$35*G51/1000+Materialkosten!$C$34*8*(L51+X51)/10000 -> 33.06765872 | F51: 138 | G51: 100 | H51: =(F51-O51-Z51-K51/2-W51/2) -> 101.39 | I51: 0.1146505388 | J51: 0.5 | K51: 0.46 | L51: 5.567794 | M51: 21000 | N51: 7.112747192 | O51: 36 | P51: 1.2e-05 | Q51: 350 | R51: 350 | S51: 350 | T51: 350 | U51: 350 | V51: 0.4 | W51: 0.36 | X51: =10*W51 -> 3.6 | Y51: 21000 | Z51: =V51/2 -> 0.2 | AA51: 1.2e-05 | AB51: 350 | AC51: 129 | AD51: 129 | AE51: 116 | AF51: 116 | AG51: 2.4 | AH51: 7 | AI51: 2.8 | AJ51: 0.11 | AK51: 0.05 | AL51: 0.1 | AM51: 1.1 | AN51: 1 | AO51: 1.12 | AP51: 1.02 | AQ51: 1.16 | AR51: 1.04 | AS51: 1.1 | AT51: 1 | AU51: 1.16 | AV51: 1.04 | AW51: 1.1 | AX51: 1
B52: G4 138/0,50/,45 | D52: =ProduktbezogeneKosten!$F$29/10*I52 -> 3.557566163 | E52: =Materialkosten!$C$35*G52/1000+Materialkosten!$C$34*8*(L52+X52)/10000 -> 33.50765872 | F52: 138 | G52: 100 | H52: =(F52-O52-Z52-K52/2-W52/2) -> 101.34 | I52: 0.1185855388 | J52: 0.5 | K52: 0.46 | L52: 5.567794 | M52: 21000 | N52: 7.112747192 | O52: 36 | P52: 1.2e-05 | Q52: 350 | R52: 350 | S52: 350 | T52: 350 | U52: 350 | V52: 0.45 | W52: 0.41 | X52: =10*W52 -> 4.1 | Y52: 21000 | Z52: =V52/2 -> 0.225 | AA52: 1.2e-05 | AB52: 350 | AC52: 129 | AD52: 129 | AE52: 116 | AF52: 116 | AG52: 2.4 | AH52: 7 | AI52: 2.8 | AJ52: 0.11 | AK52: 0.05 | AL52: 0.1 | AM52: 1.1 | AN52: 1 | AO52: 1.12 | AP52: 1.02 | AQ52: 1.16 | AR52: 1.04 | AS52: 1.1 | AT52: 1 | AU52: 1.16 | AV52: 1.04 | AW52: 1.1 | AX52: 1
B53: G4 138/0,50/,50 | D53: =ProduktbezogeneKosten!$F$29/10*I53 -> 3.675616163 | E53: =Materialkosten!$C$35*G53/1000+Materialkosten!$C$34*8*(L53+X53)/10000 -> 33.94765872 | F53: 138 | G53: 100 | H53: 101.29 | I53: 0.1225205388 | J53: 0.5 | K53: 0.46 | L53: 5.567794 | M53: 21000 | N53: 7.112747192 | O53: 36 | P53: 1.2e-05 | Q53: 350 | R53: 350 | S53: 350 | T53: 350 | U53: 350 | V53: 0.5 | W53: 0.46 | X53: 4.6 | Y53: 21000 | Z53: =V53/2 -> 0.25 | AA53: 1.2e-05 | AB53: 350 | AC53: 129 | AD53: 129 | AE53: 116 | AF53: 116 | AG53: 2.4 | AH53: 7 | AI53: 2.8 | AJ53: 0.11 | AK53: 0.05 | AL53: 0.1 | AM53: 1.1 | AN53: 1 | AO53: 1.12 | AP53: 1.02 | AQ53: 1.16 | AR53: 1.04 | AS53: 1.1 | AT53: 1 | AU53: 1.16 | AV53: 1.04 | AW53: 1.1 | AX53: 1
B54: G4 138/0,50/,60 | D54: =ProduktbezogeneKosten!$F$29/10*I54 -> 3.911716163 | E54: =Materialkosten!$C$35*G54/1000+Materialkosten!$C$34*8*(L54+X54)/10000 -> 34.82765872 | F54: 138 | G54: 100 | H54: 101.19 | I54: 0.1303905388 | J54: 0.5 | K54: 0.46 | L54: 5.567794 | M54: 21000 | N54: 7.112747192 | O54: 36 | P54: 1.2e-05 | Q54: 350 | R54: 350 | S54: 350 | T54: 350 | U54: 350 | V54: 0.6 | W54: 0.56 | X54: 5.6 | Y54: 21000 | Z54: =V54/2 -> 0.3 | AA54: 1.2e-05 | AB54: 350 | AC54: 129 | AD54: 129 | AE54: 116 | AF54: 116 | AG54: 2.4 | AH54: 7 | AI54: 2.8 | AJ54: 0.11 | AK54: 0.05 | AL54: 0.1 | AM54: 1.1 | AN54: 1 | AO54: 1.12 | AP54: 1.02 | AQ54: 1.16 | AR54: 1.04 | AS54: 1.1 | AT54: 1 | AU54: 1.16 | AV54: 1.04 | AW54: 1.1 | AX54: 1
B55: G4 138/0,50/,75 | D55: =ProduktbezogeneKosten!$F$29/10*I55 -> 4.265866163 | E55: =Materialkosten!$C$35*G55/1000+Materialkosten!$C$34*8*(L55+X55)/10000 -> 36.14765872 | F55: 138 | G55: 100 | H55: 101.04 | I55: 0.1421955388 | J55: 0.5 | K55: 0.46 | L55: 5.567794 | M55: 21000 | N55: 7.112747192 | O55: 36 | P55: 1.2e-05 | Q55: 350 | R55: 350 | S55: 350 | T55: 350 | U55: 350 | V55: 0.75 | W55: 0.71 | X55: 7.1 | Y55: 21000 | Z55: =V55/2 -> 0.375 | AA55: 1.2e-05 | AB55: 350 | AC55: =0.88*AC54 -> 113.52 | AD55: =0.88*AD54 -> 113.52 | AE55: =0.88*AE54 -> 102.08 | AF55: =0.88*AF54 -> 102.08 | AG55: 2.4 | AH55: 7 | AI55: 2.8 | AJ55: 0.11 | AK55: 0.05 | AL55: 0.1 | AM55: 1.1 | AN55: 1 | AO55: 1.12 | AP55: 1.02 | AQ55: 1.16 | AR55: 1.04 | AS55: 1.1 | AT55: 1 | AU55: 1.16 | AV55: 1.04 | AW55: 1.1 | AX55: 1
B56: G4 138/0,60/,40 | D56: =ProduktbezogeneKosten!$F$29/10*I56 -> 3.725289242 | E56: =Materialkosten!$C$35*G56/1000+Materialkosten!$C$34*8*(L56+X56)/10000 -> 34.13280192 | F56: 138 | G56: 100 | H56: 101.29 | I56: 0.1241763081 | J56: 0.6 | K56: 0.56 | L56: 6.778184 | M56: 21000 | N56: 8.659399849 | O56: 36 | P56: 1.2e-05 | Q56: 350 | R56: 350 | S56: 350 | T56: 350 | U56: 350 | V56: 0.4 | W56: 0.36 | X56: 3.6 | Y56: 21000 | Z56: 0.25 | AA56: 1.2e-05 | AB56: 350 | AC56: 129 | AD56: 129 | AE56: 116 | AF56: 116 | AG56: 2.4 | AH56: 7 | AI56: 2.8 | AJ56: 0.11 | AK56: 0.05 | AL56: 0.1 | AM56: 1.1 | AN56: 1 | AO56: 1.12 | AP56: 1.02 | AQ56: 1.16 | AR56: 1.04 | AS56: 1.1 | AT56: 1 | AU56: 1.16 | AV56: 1.04 | AW56: 1.1 | AX56: 1
B57: G4 138/0,60/,45 | D57: =ProduktbezogeneKosten!$F$29/10*I57 -> 3.843339242 | E57: =Materialkosten!$C$35*G57/1000+Materialkosten!$C$34*8*(L57+X57)/10000 -> 34.57280192 | F57: 138 | G57: 100 | H57: 101.265 | I57: 0.1281113081 | J57: 0.6 | K57: 0.56 | L57: 6.778184 | M57: 21000 | N57: 8.659399849 | O57: 36 | P57: 1.2e-05 | Q57: 350 | R57: 350 | S57: 350 | T57: 350 | U57: 350 | V57: 0.45 | W57: 0.41 | X57: 4.1 | Y57: 21000 | Z57: 0.25 | AA57: 1.2e-05 | AB57: 350 | AC57: 129 | AD57: 129 | AE57: 116 | AF57: 116 | AG57: 2.4 | AH57: 7 | AI57: 2.8 | AJ57: 0.11 | AK57: 0.05 | AL57: 0.1 | AM57: 1.1 | AN57: 1 | AO57: 1.12 | AP57: 1.02 | AQ57: 1.16 | AR57: 1.04 | AS57: 1.1 | AT57: 1 | AU57: 1.16 | AV57: 1.04 | AW57: 1.1 | AX57: 1
B58: G4 138/0,60/,50 | D58: =ProduktbezogeneKosten!$F$29/10*I58 -> 3.961389242 | E58: =Materialkosten!$C$35*G58/1000+Materialkosten!$C$34*8*(L58+X58)/10000 -> 35.01280192 | F58: 138 | G58: 100 | H58: 101.24 | I58: 0.1320463081 | J58: 0.6 | K58: 0.56 | L58: 6.778184 | M58: 21000 | N58: 8.659399849 | O58: 36 | P58: 1.2e-05 | Q58: 350 | R58: 350 | S58: 350 | T58: 350 | U58: 350 | V58: 0.5 | W58: 0.46 | X58: 4.6 | Y58: 21000 | Z58: 0.25 | AA58: 1.2e-05 | AB58: 350 | AC58: 129 | AD58: 129 | AE58: 116 | AF58: 116 | AG58: 2.4 | AH58: 7 | AI58: 2.8 | AJ58: 0.11 | AK58: 0.05 | AL58: 0.1 | AM58: 1.1 | AN58: 1 | AO58: 1.12 | AP58: 1.02 | AQ58: 1.16 | AR58: 1.04 | AS58: 1.1 | AT58: 1 | AU58: 1.16 | AV58: 1.04 | AW58: 1.1 | AX58: 1
B59: G4 138/0,60/,60 | D59: =ProduktbezogeneKosten!$F$29/10*I59 -> 4.197489242 | E59: =Materialkosten!$C$35*G59/1000+Materialkosten!$C$34*8*(L59+X59)/10000 -> 35.89280192 | F59: 138 | G59: 100 | H59: 101.19 | I59: 0.1399163081 | J59: 0.6 | K59: 0.56 | L59: 6.778184 | M59: 21000 | N59: 8.659399849 | O59: 36 | P59: 1.2e-05 | Q59: 350 | R59: 350 | S59: 350 | T59: 350 | U59: 350 | V59: 0.6 | W59: 0.56 | X59: 5.6 | Y59: 21000 | Z59: 0.25 | AA59: 1.2e-05 | AB59: 350 | AC59: 129 | AD59: 129 | AE59: 116 | AF59: 116 | AG59: 2.4 | AH59: 7 | AI59: 2.8 | AJ59: 0.11 | AK59: 0.05 | AL59: 0.1 | AM59: 1.1 | AN59: 1 | AO59: 1.12 | AP59: 1.02 | AQ59: 1.16 | AR59: 1.04 | AS59: 1.1 | AT59: 1 | AU59: 1.16 | AV59: 1.04 | AW59: 1.1 | AX59: 1
B60: G4 138/0,60/,75 | D60: =ProduktbezogeneKosten!$F$29/10*I60 -> 4.551639242 | E60: =Materialkosten!$C$35*G60/1000+Materialkosten!$C$34*8*(L60+X60)/10000 -> 37.21280192 | F60: 138 | G60: 100 | H60: 101.115 | I60: 0.1517213081 | J60: 0.6 | K60: 0.56 | L60: 6.778184 | M60: 21000 | N60: 8.659399849 | O60: 36 | P60: 1.2e-05 | Q60: 350 | R60: 350 | S60: 350 | T60: 350 | U60: 350 | V60: 0.75 | W60: 0.71 | X60: 7.1 | Y60: 21000 | Z60: 0.25 | AA60: 1.2e-05 | AB60: 350 | AC60: =0.88*AC59 -> 113.52 | AD60: =0.88*AD59 -> 113.52 | AE60: =0.88*AE59 -> 102.08 | AF60: =0.88*AF59 -> 102.08 | AG60: 2.4 | AH60: 7 | AI60: 2.8 | AJ60: 0.11 | AK60: 0.05 | AL60: 0.1 | AM60: 1.1 | AN60: 1 | AO60: 1.12 | AP60: 1.02 | AQ60: 1.16 | AR60: 1.04 | AS60: 1.1 | AT60: 1 | AU60: 1.16 | AV60: 1.04 | AW60: 1.1 | AX60: 1
B61: G4 138/0,75/,40 | D61: =ProduktbezogeneKosten!$F$29/10*I61 -> 4.153948861 | E61: =Materialkosten!$C$35*G61/1000+Materialkosten!$C$34*8*(L61+X61)/10000 -> 35.73051672 | F61: 138 | G61: 100 | H61: 101.19 | I61: 0.138464962 | J61: 0.75 | K61: 0.71 | L61: 8.593769 | M61: 21000 | N61: 10.97983685 | O61: 36 | P61: 1.2e-05 | Q61: 350 | R61: 350 | S61: 350 | T61: 350 | U61: 350 | V61: 0.4 | W61: 0.36 | X61: 3.6 | Y61: 21000 | Z61: 0.275 | AA61: 1.2e-05 | AB61: 350 | AC61: 129 | AD61: 129 | AE61: 116 | AF61: 116 | AG61: 2.4 | AH61: 7 | AI61: 2.8 | AJ61: 0.11 | AK61: 0.05 | AL61: 0.1 | AM61: 1.1 | AN61: 1 | AO61: 1.12 | AP61: 1.02 | AQ61: 1.16 | AR61: 1.04 | AS61: 1.1 | AT61: 1 | AU61: 1.16 | AV61: 1.04 | AW61: 1.1 | AX61: 1
B62: G4 138/0,75/,45 | D62: =ProduktbezogeneKosten!$F$29/10*I62 -> 4.271998861 | E62: =Materialkosten!$C$35*G62/1000+Materialkosten!$C$34*8*(L62+X62)/10000 -> 36.17051672 | F62: 138 | G62: 100 | H62: 101.165 | I62: 0.142399962 | J62: 0.75 | K62: 0.71 | L62: 8.593769 | M62: 21000 | N62: 10.97983685 | O62: 36 | P62: 1.2e-05 | Q62: 350 | R62: 350 | S62: 350 | T62: 350 | U62: 350 | V62: 0.45 | W62: 0.41 | X62: 4.1 | Y62: 21000 | Z62: 0.275 | AA62: 1.2e-05 | AB62: 350 | AC62: 129 | AD62: 129 | AE62: 116 | AF62: 116 | AG62: 2.4 | AH62: 7 | AI62: 2.8 | AJ62: 0.11 | AK62: 0.05 | AL62: 0.1 | AM62: 1.1 | AN62: 1 | AO62: 1.12 | AP62: 1.02 | AQ62: 1.16 | AR62: 1.04 | AS62: 1.1 | AT62: 1 | AU62: 1.16 | AV62: 1.04 | AW62: 1.1 | AX62: 1
B63: G4 138/0,75/,50 | D63: =ProduktbezogeneKosten!$F$29/10*I63 -> 4.390048861 | E63: =Materialkosten!$C$35*G63/1000+Materialkosten!$C$34*8*(L63+X63)/10000 -> 36.61051672 | F63: 138 | G63: 100 | H63: 101.14 | I63: 0.146334962 | J63: 0.75 | K63: 0.71 | L63: 8.593769 | M63: 21000 | N63: 10.97983685 | O63: 36 | P63: 1.2e-05 | Q63: 350 | R63: 350 | S63: 350 | T63: 350 | U63: 350 | V63: 0.5 | W63: 0.46 | X63: 4.6 | Y63: 21000 | Z63: 0.275 | AA63: 1.2e-05 | AB63: 350 | AC63: 129 | AD63: 129 | AE63: 116 | AF63: 116 | AG63: 2.4 | AH63: 7 | AI63: 2.8 | AJ63: 0.11 | AK63: 0.05 | AL63: 0.1 | AM63: 1.1 | AN63: 1 | AO63: 1.12 | AP63: 1.02 | AQ63: 1.16 | AR63: 1.04 | AS63: 1.1 | AT63: 1 | AU63: 1.16 | AV63: 1.04 | AW63: 1.1 | AX63: 1
B64: G4 138/0,75/,60 | D64: =ProduktbezogeneKosten!$F$29/10*I64 -> 4.626148861 | E64: =Materialkosten!$C$35*G64/1000+Materialkosten!$C$34*8*(L64+X64)/10000 -> 37.49051672 | F64: 138 | G64: 100 | H64: 101.09 | I64: 0.154204962 | J64: 0.75 | K64: 0.71 | L64: 8.593769 | M64: 21000 | N64: 10.97983685 | O64: 36 | P64: 1.2e-05 | Q64: 350 | R64: 350 | S64: 350 | T64: 350 | U64: 350 | V64: 0.6 | W64: 0.56 | X64: 5.6 | Y64: 21000 | Z64: 0.275 | AA64: 1.2e-05 | AB64: 350 | AC64: 129 | AD64: 129 | AE64: 116 | AF64: 116 | AG64: 2.4 | AH64: 7 | AI64: 2.8 | AJ64: 0.11 | AK64: 0.05 | AL64: 0.1 | AM64: 1.1 | AN64: 1 | AO64: 1.12 | AP64: 1.02 | AQ64: 1.16 | AR64: 1.04 | AS64: 1.1 | AT64: 1 | AU64: 1.16 | AV64: 1.04 | AW64: 1.1 | AX64: 1
B65: G4 138/0,75/,75 | D65: =ProduktbezogeneKosten!$F$29/10*I65 -> 4.980298861 | E65: =Materialkosten!$C$35*G65/1000+Materialkosten!$C$34*8*(L65+X65)/10000 -> 38.81051672 | F65: 138 | G65: 100 | H65: 101.015 | I65: 0.166009962 | J65: 0.75 | K65: 0.71 | L65: 8.593769 | M65: 21000 | N65: 10.97983685 | O65: 36 | P65: 1.2e-05 | Q65: 350 | R65: 350 | S65: 350 | T65: 350 | U65: 350 | V65: 0.75 | W65: 0.71 | X65: 7.1 | Y65: 21000 | Z65: 0.275 | AA65: 1.2e-05 | AB65: 350 | AC65: =0.88*AC64 -> 113.52 | AD65: =0.88*AD64 -> 113.52 | AE65: =0.88*AE64 -> 102.08 | AF65: =0.88*AF64 -> 102.08 | AG65: 2.4 | AH65: 7 | AI65: 2.8 | AJ65: 0.11 | AK65: 0.05 | AL65: 0.1 | AM65: 1.1 | AN65: 1 | AO65: 1.12 | AP65: 1.02 | AQ65: 1.16 | AR65: 1.04 | AS65: 1.1 | AT65: 1 | AU65: 1.16 | AV65: 1.04 | AW65: 1.1 | AX65: 1
B66: G4 158/0,50/,40 | D66: =ProduktbezogeneKosten!$F$29/10*I66 -> 3.694516163 | E66: =Materialkosten!$C$35*G66/1000+Materialkosten!$C$34*8*(L66+X66)/10000 -> 38.06765872 | F66: 158 | G66: 120 | H66: =(F66-O66-Z66-K66/2-W66/2) -> 121.39 | I66: 0.1231505388 | J66: 0.5 | K66: 0.46 | L66: 5.567794 | M66: 21000 | N66: 7.112747192 | O66: 36 | P66: 1.2e-05 | Q66: 350 | R66: 340 | S66: 340 | T66: 340 | U66: 340 | V66: 0.4 | W66: 0.36 | X66: =10*W66 -> 3.6 | Y66: 21000 | Z66: =V66/2 -> 0.2 | AA66: 1.2e-05 | AB66: 350 | AC66: 135 | AD66: 135 | AE66: 122 | AF66: 122 | AG66: 2.4 | AH66: 7 | AI66: 3.3 | AJ66: 0.1 | AK66: 0.06 | AL66: 0.1 | AM66: 1.1 | AN66: 1 | AO66: 1.12 | AP66: 1.02 | AQ66: 1.16 | AR66: 1.04 | AS66: 1.1 | AT66: 1 | AU66: 1.16 | AV66: 1.04 | AW66: 1.1 | AX66: 1
B67: G4 158/0,50/,45 | D67: =ProduktbezogeneKosten!$F$29/10*I67 -> 3.812566163 | E67: =Materialkosten!$C$35*G67/1000+Materialkosten!$C$34*8*(L67+X67)/10000 -> 38.50765872 | F67: 158 | G67: 120 | H67: =(F67-O67-Z67-K67/2-W67/2) -> 121.34 | I67: 0.1270855388 | J67: 0.5 | K67: 0.46 | L67: 5.567794 | M67: 21000 | N67: 7.112747192 | O67: 36 | P67: 1.2e-05 | Q67: 350 | R67: 340 | S67: 340 | T67: 340 | U67: 340 | V67: 0.45 | W67: 0.41 | X67: =10*W67 -> 4.1 | Y67: 21000 | Z67: =V67/2 -> 0.225 | AA67: 1.2e-05 | AB67: 350 | AC67: 135 | AD67: 135 | AE67: 122 | AF67: 122 | AG67: 2.4 | AH67: 7 | AI67: 3.3 | AJ67: 0.1 | AK67: 0.06 | AL67: 0.1 | AM67: 1.1 | AN67: 1 | AO67: 1.12 | AP67: 1.02 | AQ67: 1.16 | AR67: 1.04 | AS67: 1.1 | AT67: 1 | AU67: 1.16 | AV67: 1.04 | AW67: 1.1 | AX67: 1
B68: G4 158/0,50/,50 | D68: =ProduktbezogeneKosten!$F$29/10*I68 -> 3.930616163 | E68: =Materialkosten!$C$35*G68/1000+Materialkosten!$C$34*8*(L68+X68)/10000 -> 38.94765872 | F68: 158 | G68: 120 | H68: 121.29 | I68: 0.1310205388 | J68: 0.5 | K68: 0.46 | L68: 5.567794 | M68: 21000 | N68: 7.112747192 | O68: 36 | P68: 1.2e-05 | Q68: 350 | R68: 340 | S68: 340 | T68: 340 | U68: 340 | V68: 0.5 | W68: 0.46 | X68: 4.6 | Y68: 21000 | Z68: =V68/2 -> 0.25 | AA68: 1.2e-05 | AB68: 350 | AC68: 135 | AD68: 135 | AE68: 122 | AF68: 122 | AG68: 2.4 | AH68: 7 | AI68: 3.3 | AJ68: 0.1 | AK68: 0.06 | AL68: 0.1 | AM68: 1.1 | AN68: 1 | AO68: 1.12 | AP68: 1.02 | AQ68: 1.16 | AR68: 1.04 | AS68: 1.1 | AT68: 1 | AU68: 1.16 | AV68: 1.04 | AW68: 1.1 | AX68: 1
B69: G4 158/0,50/,60 | D69: =ProduktbezogeneKosten!$F$29/10*I69 -> 4.166716163 | E69: =Materialkosten!$C$35*G69/1000+Materialkosten!$C$34*8*(L69+X69)/10000 -> 39.82765872 | F69: 158 | G69: 120 | H69: 121.19 | I69: 0.1388905388 | J69: 0.5 | K69: 0.46 | L69: 5.567794 | M69: 21000 | N69: 7.112747192 | O69: 36 | P69: 1.2e-05 | Q69: 350 | R69: 340 | S69: 340 | T69: 340 | U69: 340 | V69: 0.6 | W69: 0.56 | X69: 5.6 | Y69: 21000 | Z69: =V69/2 -> 0.3 | AA69: 1.2e-05 | AB69: 350 | AC69: 135 | AD69: 135 | AE69: 122 | AF69: 122 | AG69: 2.4 | AH69: 7 | AI69: 3.3 | AJ69: 0.1 | AK69: 0.06 | AL69: 0.1 | AM69: 1.1 | AN69: 1 | AO69: 1.12 | AP69: 1.02 | AQ69: 1.16 | AR69: 1.04 | AS69: 1.1 | AT69: 1 | AU69: 1.16 | AV69: 1.04 | AW69: 1.1 | AX69: 1
B70: G4 158/0,50/,75 | D70: =ProduktbezogeneKosten!$F$29/10*I70 -> 4.520866163 | E70: =Materialkosten!$C$35*G70/1000+Materialkosten!$C$34*8*(L70+X70)/10000 -> 41.14765872 | F70: 158 | G70: 120 | H70: 121.04 | I70: 0.1506955388 | J70: 0.5 | K70: 0.46 | L70: 5.567794 | M70: 21000 | N70: 7.112747192 | O70: 36 | P70: 1.2e-05 | Q70: 350 | R70: 340 | S70: 340 | T70: 340 | U70: 340 | V70: 0.75 | W70: =V70-0.04 -> 0.71 | X70: 7.1 | Y70: 21000 | Z70: =V70/2 -> 0.375 | AA70: 1.2e-05 | AB70: 350 | AC70: =0.88*AC69 -> 118.8 | AD70: =0.88*AD69 -> 118.8 | AE70: =0.88*AE69 -> 107.36 | AF70: =0.88*AF69 -> 107.36 | AG70: 2.4 | AH70: 7 | AI70: 3.3 | AJ70: 0.1 | AK70: 0.06 | AL70: 0.1 | AM70: 1.1 | AN70: 1 | AO70: 1.12 | AP70: 1.02 | AQ70: 1.16 | AR70: 1.04 | AS70: 1.1 | AT70: 1 | AU70: 1.16 | AV70: 1.04 | AW70: 1.1 | AX70: 1
B71: G4 158/0,60/,40 | D71: =ProduktbezogeneKosten!$F$29/10*I71 -> 3.980289242 | E71: =Materialkosten!$C$35*G71/1000+Materialkosten!$C$34*8*(L71+X71)/10000 -> 39.13280192 | F71: =G71+38 -> 158 | G71: 120 | H71: 121.29 | I71: =10/1000*(G71/10^3*$N$1+(L71+X71)/10^4*$U$1) -> 0.1326763081 | J71: 0.6 | K71: =J71-0.04 -> 0.56 | L71: =(1210.39*K71)*10^-2 -> 6.778184 | M71: 21000 | N71: =(0.00706*K71^3+15.461*K71) -> 8.659399849 | O71: 36 | P71: 1.2e-05 | Q71: 350 | R71: 340 | S71: 340 | T71: 340 | U71: 340 | V71: 0.4 | W71: 0.36 | X71: 3.6 | Y71: 21000 | Z71: 0.25 | AA71: 1.2e-05 | AB71: 350 | AC71: 135 | AD71: 135 | AE71: 122 | AF71: 122 | AG71: 2.4 | AH71: 7 | AI71: 3.3 | AJ71: 0.1 | AK71: 0.06 | AL71: 0.1 | AM71: 1.1 | AN71: 1 | AO71: 1.12 | AP71: 1.02 | AQ71: 1.16 | AR71: 1.04 | AS71: 1.1 | AT71: 1 | AU71: 1.16 | AV71: 1.04 | AW71: 1.1 | AX71: 1
B72: G4 158/0,60/,45 | D72: =ProduktbezogeneKosten!$F$29/10*I72 -> 4.098339242 | E72: =Materialkosten!$C$35*G72/1000+Materialkosten!$C$34*8*(L72+X72)/10000 -> 39.57280192 | F72: 158 | G72: 120 | H72: 121.265 | I72: 0.1366113081 | J72: 0.6 | K72: 0.56 | L72: 6.778184 | M72: 21000 | N72: 8.659399849 | O72: 36 | P72: 1.2e-05 | Q72: 350 | R72: 340 | S72: 340 | T72: 340 | U72: 340 | V72: 0.45 | W72: 0.41 | X72: 4.1 | Y72: 21000 | Z72: 0.25 | AA72: 1.2e-05 | AB72: 350 | AC72: 135 | AD72: 135 | AE72: 122 | AF72: 122 | AG72: 2.4 | AH72: 7 | AI72: 3.3 | AJ72: 0.1 | AK72: 0.06 | AL72: 0.1 | AM72: 1.1 | AN72: 1 | AO72: 1.12 | AP72: 1.02 | AQ72: 1.16 | AR72: 1.04 | AS72: 1.1 | AT72: 1 | AU72: 1.16 | AV72: 1.04 | AW72: 1.1 | AX72: 1
B73: G4 158/0,60/,50 | D73: =ProduktbezogeneKosten!$F$29/10*I73 -> 4.216389242 | E73: =Materialkosten!$C$35*G73/1000+Materialkosten!$C$34*8*(L73+X73)/10000 -> 40.01280192 | F73: 158 | G73: 120 | H73: 121.24 | I73: 0.1405463081 | J73: 0.6 | K73: 0.56 | L73: 6.778184 | M73: 21000 | N73: 8.659399849 | O73: 36 | P73: 1.2e-05 | Q73: 350 | R73: 340 | S73: 340 | T73: 340 | U73: 340 | V73: 0.5 | W73: 0.46 | X73: 4.6 | Y73: 21000 | Z73: 0.25 | AA73: 1.2e-05 | AB73: 350 | AC73: 135 | AD73: 135 | AE73: 122 | AF73: 122 | AG73: 2.4 | AH73: 7 | AI73: 3.3 | AJ73: 0.1 | AK73: 0.06 | AL73: 0.1 | AM73: 1.1 | AN73: 1 | AO73: 1.12 | AP73: 1.02 | AQ73: 1.16 | AR73: 1.04 | AS73: 1.1 | AT73: 1 | AU73: 1.16 | AV73: 1.04 | AW73: 1.1 | AX73: 1
B74: G4 158/0,60/,60 | D74: =ProduktbezogeneKosten!$F$29/10*I74 -> 4.452489242 | E74: =Materialkosten!$C$35*G74/1000+Materialkosten!$C$34*8*(L74+X74)/10000 -> 40.89280192 | F74: 158 | G74: 120 | H74: 121.19 | I74: 0.1484163081 | J74: 0.6 | K74: 0.56 | L74: 6.778184 | M74: 21000 | N74: 8.659399849 | O74: 36 | P74: 1.2e-05 | Q74: 350 | R74: 340 | S74: 340 | T74: 340 | U74: 340 | V74: 0.6 | W74: 0.56 | X74: 5.6 | Y74: 21000 | Z74: 0.25 | AA74: 1.2e-05 | AB74: 350 | AC74: 135 | AD74: 135 | AE74: 122 | AF74: 122 | AG74: 2.4 | AH74: 7 | AI74: 3.3 | AJ74: 0.1 | AK74: 0.06 | AL74: 0.1 | AM74: 1.1 | AN74: 1 | AO74: 1.12 | AP74: 1.02 | AQ74: 1.16 | AR74: 1.04 | AS74: 1.1 | AT74: 1 | AU74: 1.16 | AV74: 1.04 | AW74: 1.1 | AX74: 1
B75: G4 158/0,60/,75 | D75: =ProduktbezogeneKosten!$F$29/10*I75 -> 4.806639242 | E75: =Materialkosten!$C$35*G75/1000+Materialkosten!$C$34*8*(L75+X75)/10000 -> 42.21280192 | F75: 158 | G75: 120 | H75: 121.115 | I75: 0.1602213081 | J75: 0.6 | K75: 0.56 | L75: 6.778184 | M75: 21000 | N75: 8.659399849 | O75: 36 | P75: 1.2e-05 | Q75: 350 | R75: 340 | S75: 340 | T75: 340 | U75: 340 | V75: 0.75 | W75: 0.71 | X75: 7.1 | Y75: 21000 | Z75: 0.25 | AA75: 1.2e-05 | AB75: 350 | AC75: =0.88*AC74 -> 118.8 | AD75: =0.88*AD74 -> 118.8 | AE75: =0.88*AE74 -> 107.36 | AF75: =0.88*AF74 -> 107.36 | AG75: 2.4 | AH75: 7 | AI75: 3.3 | AJ75: 0.1 | AK75: 0.06 | AL75: 0.1 | AM75: 1.1 | AN75: 1 | AO75: 1.12 | AP75: 1.02 | AQ75: 1.16 | AR75: 1.04 | AS75: 1.1 | AT75: 1 | AU75: 1.16 | AV75: 1.04 | AW75: 1.1 | AX75: 1
B76: G4 158/0,75/,40 | D76: =ProduktbezogeneKosten!$F$29/10*I76 -> 4.408948861 | E76: =Materialkosten!$C$35*G76/1000+Materialkosten!$C$34*8*(L76+X76)/10000 -> 40.73051672 | F76: 158 | G76: 120 | H76: 121.19 | I76: 0.146964962 | J76: 0.75 | K76: 0.71 | L76: 8.593769 | M76: 21000 | N76: 10.97983685 | O76: 36 | P76: 1.2e-05 | Q76: 350 | R76: 340 | S76: 340 | T76: 340 | U76: 340 | V76: 0.4 | W76: 0.36 | X76: 3.6 | Y76: 21000 | Z76: 0.275 | AA76: 1.2e-05 | AB76: 350 | AC76: 135 | AD76: 135 | AE76: 122 | AF76: 122 | AG76: 2.4 | AH76: 7 | AI76: 3.3 | AJ76: 0.1 | AK76: 0.06 | AL76: 0.1 | AM76: 1.1 | AN76: 1 | AO76: 1.12 | AP76: 1.02 | AQ76: 1.16 | AR76: 1.04 | AS76: 1.1 | AT76: 1 | AU76: 1.16 | AV76: 1.04 | AW76: 1.1 | AX76: 1
B77: G4 158/0,75/,45 | D77: =ProduktbezogeneKosten!$F$29/10*I77 -> 4.526998861 | E77: =Materialkosten!$C$35*G77/1000+Materialkosten!$C$34*8*(L77+X77)/10000 -> 41.17051672 | F77: 158 | G77: 120 | H77: 121.165 | I77: 0.150899962 | J77: 0.75 | K77: 0.71 | L77: 8.593769 | M77: 21000 | N77: 10.97983685 | O77: 36 | P77: 1.2e-05 | Q77: 350 | R77: 340 | S77: 340 | T77: 340 | U77: 340 | V77: 0.45 | W77: 0.41 | X77: 4.1 | Y77: 21000 | Z77: 0.275 | AA77: 1.2e-05 | AB77: 350 | AC77: 135 | AD77: 135 | AE77: 122 | AF77: 122 | AG77: 2.4 | AH77: 7 | AI77: 3.3 | AJ77: 0.1 | AK77: 0.06 | AL77: 0.1 | AM77: 1.1 | AN77: 1 | AO77: 1.12 | AP77: 1.02 | AQ77: 1.16 | AR77: 1.04 | AS77: 1.1 | AT77: 1 | AU77: 1.16 | AV77: 1.04 | AW77: 1.1 | AX77: 1
B78: G4 158/0,75/,50 | D78: =ProduktbezogeneKosten!$F$29/10*I78 -> 4.645048861 | E78: =Materialkosten!$C$35*G78/1000+Materialkosten!$C$34*8*(L78+X78)/10000 -> 41.61051672 | F78: 158 | G78: 120 | H78: 121.14 | I78: 0.154834962 | J78: 0.75 | K78: 0.71 | L78: 8.593769 | M78: 21000 | N78: 10.97983685 | O78: 36 | P78: 1.2e-05 | Q78: 350 | R78: 340 | S78: 340 | T78: 340 | U78: 340 | V78: 0.5 | W78: 0.46 | X78: 4.6 | Y78: 21000 | Z78: 0.275 | AA78: 1.2e-05 | AB78: 350 | AC78: 135 | AD78: 135 | AE78: 122 | AF78: 122 | AG78: 2.4 | AH78: 7 | AI78: 3.3 | AJ78: 0.1 | AK78: 0.06 | AL78: 0.1 | AM78: 1.1 | AN78: 1 | AO78: 1.12 | AP78: 1.02 | AQ78: 1.16 | AR78: 1.04 | AS78: 1.1 | AT78: 1 | AU78: 1.16 | AV78: 1.04 | AW78: 1.1 | AX78: 1
B79: G4 158/0,75/,60 | D79: =ProduktbezogeneKosten!$F$29/10*I79 -> 4.881148861 | E79: =Materialkosten!$C$35*G79/1000+Materialkosten!$C$34*8*(L79+X79)/10000 -> 42.49051672 | F79: 158 | G79: 120 | H79: 121.09 | I79: 0.162704962 | J79: 0.75 | K79: 0.71 | L79: 8.593769 | M79: 21000 | N79: 10.97983685 | O79: 36 | P79: 1.2e-05 | Q79: 350 | R79: 340 | S79: 340 | T79: 340 | U79: 340 | V79: 0.6 | W79: 0.56 | X79: 5.6 | Y79: 21000 | Z79: 0.275 | AA79: 1.2e-05 | AB79: 350 | AC79: 135 | AD79: 135 | AE79: 122 | AF79: 122 | AG79: 2.4 | AH79: 7 | AI79: 3.3 | AJ79: 0.1 | AK79: 0.06 | AL79: 0.1 | AM79: 1.1 | AN79: 1 | AO79: 1.12 | AP79: 1.02 | AQ79: 1.16 | AR79: 1.04 | AS79: 1.1 | AT79: 1 | AU79: 1.16 | AV79: 1.04 | AW79: 1.1 | AX79: 1
B80: G4 158/0,75/,75 | D80: =ProduktbezogeneKosten!$F$29/10*I80 -> 5.235298861 | E80: =Materialkosten!$C$35*G80/1000+Materialkosten!$C$34*8*(L80+X80)/10000 -> 43.81051672 | F80: 158 | G80: 120 | H80: 121.015 | I80: 0.174509962 | J80: 0.75 | K80: 0.71 | L80: 8.593769 | M80: 21000 | N80: 10.97983685 | O80: 36 | P80: 1.2e-05 | Q80: 350 | R80: 340 | S80: 340 | T80: 340 | U80: 340 | V80: 0.75 | W80: 0.71 | X80: 7.1 | Y80: 21000 | Z80: 0.275 | AA80: 1.2e-05 | AB80: 350 | AC80: =0.88*AC79 -> 118.8 | AD80: =0.88*AD79 -> 118.8 | AE80: =0.88*AE79 -> 107.36 | AF80: =0.88*AF79 -> 107.36 | AG80: 2.4 | AH80: 7 | AI80: 3.3 | AJ80: 0.1 | AK80: 0.06 | AL80: 0.1 | AM80: 1.1 | AN80: 1 | AO80: 1.12 | AP80: 1.02 | AQ80: 1.16 | AR80: 1.04 | AS80: 1.1 | AT80: 1 | AU80: 1.16 | AV80: 1.04 | AW80: 1.1 | AX80: 1

Sheet Sandwichprofile2
A1: Sandwichelement | B1: ThyssenKrupp Steel Europe AG Hammerstraße 11 57223 Kreuztal | J1: geschätzte Dichte des PU-Kerns: | N1: 40 | O1: [kg/m3] | Q1: Dichte von Stahl: | U1: 7870 | V1: [kg/m3]
B2: Bezeich- nung [-] | D2: Produkt- bezogene Kosten [€/m²] | E2: Material- kosten [€/m²] | F2: Element- dicke D [mm] | G2: durch- gehende Kern- dicke dc [mm] | H2: Schwere- linien- abstand e [mm] | I2: Eigen- gewicht g [kN/m²] | J2: Äußere Deckschicht | V2: Innere Deckschicht | AG2: Kernschicht (2300 L) | AM2: materialbezogene Teilsicherheitsbeiwerte
J3: Nenn-blech- dicke tn1 [mm] | K3: Kern- blech- dicke tk1 [mm] | L3: Kern- fläche A1 [cm²/m] | M3: Elastizitäts- modul E1 [kN/cm²] | N3: Eigen- trägheits- moment I1 [cm4] | O3: Schwer- punkt- abstand von oben d11 [mm] | P3: Wärmeaus- dehnungs- koeffizient αT1 [1/K] | Q3: Streck- grenze βs [N/mm²] | R3: Knitterspannungen | V3: Nenn-blech- dicke tn2 [mm] | W3: Kern- blech- dicke tk2 [mm] | X3: Kern- fläche A2 [cm²/m] | Y3: Elastizitäts- modul E2 [kN/cm²] | Z3: Schwer- punkt- abstand von unten d22 [mm] | AA3: Wärmeaus- dehnungs- koeffizient αT2 [1/K] | AB3: Streck- grenze βs [N/mm²] | AC3: Knitterspannungen | AG3: Kriech- faktor Kurzzeit [-] | AH3: Kriech- faktor Langzeit [-] | AI3: Schub- modul Gc [N/mm²] | AJ3: Schub- festigkeit Kurzzeit- beansp. fcv [N/mm²] | AK3: Schub- festigkeit Langzeit- beansp. fcv [N/mm²] | AL3: Druck- festigkeit βD [N/mm²] | AM3: GZT | AN3: GZG | AO3: GZT | AP3: GZG | AQ3: GZT | AR3: GZG | AS3: GZT | AT3: GZG | AU3: GZT | AV3: GZG | AW3: GZT | AX3: GZG
A4: Hoesch Thermodach | R4: im Feld σk,F [N/mm²] | S4: im Feld für erhöhte Temp. σk,F,T [N/mm²] | T4: Mittel- auflager σk,St [N/mm²] | U4: Mittelauf- lager für erhöhte Temp. σk,St,T [N/mm²] | AC4: im Feld σk,F [N/mm²] | AD4: im Feld für erhöhte Temp. σk,F,T [N/mm²] | AE4: Mittel- auflager σk,St [N/mm²] | AF4: Mittelauf- lager für erhöhte Temp. σk,St,T [N/mm²] | AM4: Fließen einer Metall- deckschicht | AO4: Knittern einer Metalldeckschicht im Feld und an einem Mittelauflager (Interaktion mit der Auflagerreaktion) | AQ4: Schubversagen des Kerns | AS4: Schubversagen einer profilierten Deckschicht | AU4: Druckversagen des Kerns | AW4: Versagen der profilierten Deckschicht am Mittelauflager
B6: TL75 0,50/0,40 | D6: =[1]ProduktbezogeneKosten!$F$29/10*I6 -> 2.541153 | E6: =[1]Materialkosten!$C$34*G6/1000+[1]Materialkosten!$C$33*8*(L6+X6)/10000 -> 17.6824 | F6: 75 | G6: 40 | H6: =(F6-O6-Z6-K6/2-W6/2) -> 47.09 | I6: =10/1000*(G6/10^3*$N$1+(L6+X6)/10^4*$U$1) -> 0.0847051 | J6: 0.5 | K6: =J6-0.04 -> 0.46 | L6: 5.13 | M6: 21000 | N6: 8.4 | O6: 27.3 | P6: 1.2e-05 | Q6: 350 | R6: 320 | S6: 320 | T6: 320 | U6: 320 | V6: 0.4 | W6: =V6-0.04 -> 0.36 | X6: 3.6 | Y6: 21000 | Z6: 0.2 | AA6: 1.2e-05 | AB6: 350 | AC6: 142 | AD6: 142 | AE6: 128 | AF6: 128 | AG6: 1.5 | AH6: 7 | AI6: 3.3 | AJ6: 0.12 | AK6: 0.06 | AL6: 0.13 | AM6: 1.1 | AN6: 1 | AO6: 1.3 | AP6: 1.1 | AQ6: 1.26 | AR6: 1.1 | AS6: 1.1 | AT6: 1 | AU6: 1.26 | AV6: 1.1 | AW6: 1.1 | AX6: 1
B7: TL75 0,55/0,40 | D7: =[1]ProduktbezogeneKosten!$F$29/10*I7 -> 2.671008 | E7: =[1]Materialkosten!$C$34*G7/1000+[1]Materialkosten!$C$33*8*(L7+X7)/10000 -> 18.1664 | F7: 75 | G7: 40 | H7: 47.065 | I7: =10/1000*(G7/10^3*$N$1+(L7+X7)/10^4*$U$1) -> 0.0890336 | J7: 0.55 | K7: =J7-0.04 -> 0.51 | L7: 5.68 | M7: 21000 | N7: 9.3 | O7: 27.3 | P7: 1.2e-05 | Q7: 350 | R7: 320 | S7: 320 | T7: 320 | U7: 320 | V7: 0.4 | W7: 0.36 | X7: 3.6 | Y7: 21000 | Z7: 0.2 | AA7: 1.2e-05 | AB7: 350 | AC7: 142 | AD7: 142 | AE7: 128 | AF7: 128 | AG7: 1.5 | AH7: 7 | AI7: 3.3 | AJ7: 0.12 | AK7: 0.06 | AL7: 0.13 | AM7: 1.1 | AN7: 1 | AO7: 1.3 | AP7: 1.1 | AQ7: 1.26 | AR7: 1.1 | AS7: 1.1 | AT7: 1 | AU7: 1.26 | AV7: 1.1 | AW7: 1.1 | AX7: 1
B8: TL75 0,60/0,40 | D8: =[1]ProduktbezogeneKosten!$F$29/10*I8 -> 2.845722 | E8: =[1]Materialkosten!$C$34*G8/1000+[1]Materialkosten!$C$33*8*(L8+X8)/10000 -> 18.8176 | F8: 75 | G8: 40 | H8: 47.04 | I8: 0.0948574 | J8: 0.6 | K8: 0.56 | L8: 6.42 | M8: 21000 | N8: 10.3 | O8: 27.3 | P8: 1.2e-05 | Q8: 350 | R8: 320 | S8: 320 | T8: 320 | U8: 320 | V8: 0.4 | W8: 0.36 | X8: 3.6 | Y8: 21000 | Z8: 0.2 | AA8: 1.2e-05 | AB8: 350 | AC8: 142 | AD8: 142 | AE8: 128 | AF8: 128 | AG8: 1.5 | AH8: 7 | AI8: 3.3 | AJ8: 0.12 | AK8: 0.06 | AL8: 0.13 | AM8: 1.1 | AN8: 1 | AO8: 1.3 | AP8: 1.1 | AQ8: 1.26 | AR8: 1.1 | AS8: 1.1 | AT8: 1 | AU8: 1.26 | AV8: 1.1 | AW8: 1.1 | AX8: 1
B9: TL75 0,63/0,40 | D9: =[1]ProduktbezogeneKosten!$F$29/10*I9 -> 2.881137 | E9: =[1]Materialkosten!$C$34*G9/1000+[1]Materialkosten!$C$33*8*(L9+X9)/10000 -> 18.9496 | F9: 75 | G9: 40 | H9: 47.025 | I9: 0.0960379 | J9: 0.63 | K9: 0.59 | L9: 6.57 | M9: 21000 | N9: 10.8 | O9: 27.3 | P9: 1.2e-05 | Q9: 350 | R9: 320 | S9: 320 | T9: 320 | U9: 320 | V9: 0.4 | W9: 0.36 | X9: 3.6 | Y9: 21000 | Z9: 0.2 | AA9: 1.2e-05 | AB9: 350 | AC9: 142 | AD9: 142 | AE9: 128 | AF9: 128 | AG9: 1.5 | AH9: 7 | AI9: 3.3 | AJ9: 0.12 | AK9: 0.06 | AL9: 0.13 | AM9: 1.1 | AN9: 1 | AO9: 1.3 | AP9: 1.1 | AQ9: 1.26 | AR9: 1.1 | AS9: 1.1 | AT9: 1 | AU9: 1.26 | AV9: 1.1 | AW9: 1.1 | AX9: 1
B10: TL75 0,75/0,40 | D10: =[1]ProduktbezogeneKosten!$F$29/10*I10 -> 3.19515 | E10: =[1]Materialkosten!$C$34*G10/1000+[1]Materialkosten!$C$33*8*(L10+X10)/10000 -> 20.12 | F10: 75 | G10: 40 | H10: 46.965 | I10: 0.106505 | J10: 0.75 | K10: 0.71 | L10: 7.9 | M10: 21000 | N10: 13 | O10: 27.3 | P10: 1.2e-05 | Q10: 350 | R10: 320 | S10: 320 | T10: 320 | U10: 320 | V10: 0.4 | W10: 0.36 | X10: 3.6 | Y10: 21000 | Z10: 0.2 | AA10: 1.2e-05 | AB10: 350 | AC10: 142 | AD10: 142 | AE10: 128 | AF10: 128 | AG10: 1.5 | AH10: 7 | AI10: 3.3 | AJ10: 0.12 | AK10: 0.06 | AL10: 0.13 | AM10: 1.1 | AN10: 1 | AO10: 1.3 | AP10: 1.1 | AQ10: 1.26 | AR10: 1.1 | AS10: 1.1 | AT10: 1 | AU10: 1.26 | AV10: 1.1 | AW10: 1.1 | AX10: 1
B11: TL75 0,50/0,50 | D11: =[1]ProduktbezogeneKosten!$F$29/10*I11 -> 2.777253 | E11: =[1]Materialkosten!$C$34*G11/1000+[1]Materialkosten!$C$33*8*(L11+X11)/10000 -> 18.5624 | F11: 75 | G11: 40 | H11: 46.99 | I11: 0.0925751 | J11: 0.5 | K11: =J11-0.04 -> 0.46 | L11: 5.13 | M11: 21000 | N11: 8.4 | O11: 27.3 | P11: 1.2e-05 | Q11: 350 | R11: 320 | S11: 320 | T11: 320 | U11: 320 | V11: 0.5 | W11: 0.46 | X11: 4.6 | Y11: 21000 | Z11: 0.25 | AA11: 1.2e-05 | AB11: 350 | AC11: 142 | AD11: 142 | AE11: 128 | AF11: 128 | AG11: 1.5 | AH11: 7 | AI11: 3.3 | AJ11: 0.12 | AK11: 0.06 | AL11: 0.13 | AM11: 1.1 | AN11: 1 | AO11: 1.3 | AP11: 1.1 | AQ11: 1.26 | AR11: 1.1 | AS11: 1.1 | AT11: 1 | AU11: 1.26 | AV11: 1.1 | AW11: 1.1 | AX11: 1
B12: TL75 0,55/0,50 | D12: =[1]ProduktbezogeneKosten!$F$29/10*I12 -> 2.907108 | E12: =[1]Materialkosten!$C$34*G12/1000+[1]Materialkosten!$C$33*8*(L12+X12)/10000 -> 19.0464 | F12: 75 | G12: 40 | H12: 46.965 | I12: 0.0969036 | J12: 0.55 | K12: 0.51 | L12: 5.68 | M12: 21000 | N12: 9.3 | O12: 27.3 | P12: 1.2e-05 | Q12: 350 | R12: 320 | S12: 320 | T12: 320 | U12: 320 | V12: 0.5 | W12: 0.46 | X12: 4.6 | Y12: 21000 | Z12: 0.25 | AA12: 1.2e-05 | AB12: 350 | AC12: 142 | AD12: 142 | AE12: 128 | AF12: 128 | AG12: 1.5 | AH12: 7 | AI12: 3.3 | AJ12: 0.12 | AK12: 0.06 | AL12: 0.13 | AM12: 1.1 | AN12: 1 | AO12: 1.3 | AP12: 1.1 | AQ12: 1.26 | AR12: 1.1 | AS12: 1.1 | AT12: 1 | AU12: 1.26 | AV12: 1.1 | AW12: 1.1 | AX12: 1
B13: TL75 0,60/0,50 | D13: =[1]ProduktbezogeneKosten!$F$29/10*I13 -> 3.081822 | E13: =[1]Materialkosten!$C$34*G13/1000+[1]Materialkosten!$C$33*8*(L13+X13)/10000 -> 19.6976 | F13: 75 | G13: 40 | H13: 46.94 | I13: 0.1027274 | J13: 0.6 | K13: 0.56 | L13: 6.42 | M13: 21000 | N13: 10.3 | O13: 27.3 | P13: 1.2e-05 | Q13: 350 | R13: 320 | S13: 320 | T13: 320 | U13: 320 | V13: 0.5 | W13: 0.46 | X13: 4.6 | Y13: 21000 | Z13: 0.25 | AA13: 1.2e-05 | AB13: 350 | AC13: 142 | AD13: 142 | AE13: 128 | AF13: 128 | AG13: 1.5 | AH13: 7 | AI13: 3.3 | AJ13: 0.12 | AK13: 0.06 | AL13: 0.13 | AM13: 1.1 | AN13: 1 | AO13: 1.3 | AP13: 1.1 | AQ13: 1.26 | AR13: 1.1 | AS13: 1.1 | AT13: 1 | AU13: 1.26 | AV13: 1.1 | AW13: 1.1 | AX13: 1
B14: TL75 0,63/0,50 | D14: =[1]ProduktbezogeneKosten!$F$29/10*I14 -> 3.117237 | E14: =[1]Materialkosten!$C$34*G14/1000+[1]Materialkosten!$C$33*8*(L14+X14)/10000 -> 19.8296 | F14: 75 | G14: 40 | H14: 46.925 | I14: 0.1039079 | J14: 0.63 | K14: 0.59 | L14: 6.57 | M14: 21000 | N14: 10.8 | O14: 27.3 | P14: 1.2e-05 | Q14: 350 | R14: 320 | S14: 320 | T14: 320 | U14: 320 | V14: 0.5 | W14: 0.46 | X14: 4.6 | Y14: 21000 | Z14: 0.25 | AA14: 1.2e-05 | AB14: 350 | AC14: 142 | AD14: 142 | AE14: 128 | AF14: 128 | AG14: 1.5 | AH14: 7 | AI14: 3.3 | AJ14: 0.12 | AK14: 0.06 | AL14: 0.13 | AM14: 1.1 | AN14: 1 | AO14: 1.3 | AP14: 1.1 | AQ14: 1.26 | AR14: 1.1 | AS14: 1.1 | AT14: 1 | AU14: 1.26 | AV14: 1.1 | AW14: 1.1 | AX14: 1
B15: TL75 0,75/0,50 | D15: =[1]ProduktbezogeneKosten!$F$29/10*I15 -> 3.43125 | E15: =[1]Materialkosten!$C$34*G15/1000+[1]Materialkosten!$C$33*8*(L15+X15)/10000 -> 21 | F15: 75 | G15: 40 | H15: 46.865 | I15: 0.114375 | J15: 0.75 | K15: 0.71 | L15: 7.9 | M15: 21000 | N15: 13 | O15: 27.3 | P15: 1.2e-05 | Q15: 350 | R15: 320 | S15: 320 | T15: 320 | U15: 320 | V15: 0.5 | W15: 0.46 | X15: 4.6 | Y15: 21000 | Z15: 0.25 | AA15: 1.2e-05 | AB15: 350 | AC15: 142 | AD15: 142 | AE15: 128 | AF15: 128 | AG15: 1.5 | AH15: 7 | AI15: 3.3 | AJ15: 0.12 | AK15: 0.06 | AL15: 0.13 | AM15: 1.1 | AN15: 1 | AO15: 1.3 | AP15: 1.1 | AQ15: 1.26 | AR15: 1.1 | AS15: 1.1 | AT15: 1 | AU15: 1.26 | AV15: 1.1 | AW15: 1.1 | AX15: 1
B16: TL75 0,50/0,55 | D16: =[1]ProduktbezogeneKosten!$F$29/10*I16 -> 2.895303 | E16: =[1]Materialkosten!$C$34*G16/1000+[1]Materialkosten!$C$33*8*(L16+X16)/10000 -> 19.0024 | F16: 75 | G16: 40 | H16: 46.94 | I16: 0.0965101 | J16: 0.5 | K16: 0.46 | L16: 5.13 | M16: 21000 | N16: 8.4 | O16: 27.3 | P16: 1.2e-05 | Q16: 350 | R16: 320 | S16: 320 | T16: 320 | U16: 320 | V16: 0.55 | W16: 0.51 | X16: 5.1 | Y16: 21000 | Z16: 0.275 | AA16: 1.2e-05 | AB16: 350 | AC16: 142 | AD16: 142 | AE16: 128 | AF16: 128 | AG16: 1.5 | AH16: 7 | AI16: 3.3 | AJ16: 0.12 | AK16: 0.06 | AL16: 0.13 | AM16: 1.1 | AN16: 1 | AO16: 1.3 | AP16: 1.1 | AQ16: 1.26 | AR16: 1.1 | AS16: 1.1 | AT16: 1 | AU16: 1.26 | AV16: 1.1 | AW16: 1.1 | AX16: 1
B17: TL75 0,55/0,55 | D17: =[1]ProduktbezogeneKosten!$F$29/10*I17 -> 3.025158 | E17: =[1]Materialkosten!$C$34*G17/1000+[1]Materialkosten!$C$33*8*(L17+X17)/10000 -> 19.4864 | F17: 75 | G17: 40 | H17: 46.915 | I17: 0.1008386 | J17: 0.55 | K17: 0.51 | L17: 5.68 | M17: 21000 | N17: 9.3 | O17: 27.3 | P17: 1.2e-05 | Q17: 350 | R17: 320 | S17: 320 | T17: 320 | U17: 320 | V17: 0.55 | W17: 0.51 | X17: 5.1 | Y17: 21000 | Z17: 0.275 | AA17: 1.2e-05 | AB17: 350 | AC17: 142 | AD17: 142 | AE17: 128 | AF17: 128 | AG17: 1.5 | AH17: 7 | AI17: 3.3 | AJ17: 0.12 | AK17: 0.06 | AL17: 0.13 | AM17: 1.1 | AN17: 1 | AO17: 1.3 | AP17: 1.1 | AQ17: 1.26 | AR17: 1.1 | AS17: 1.1 | AT17: 1 | AU17: 1.26 | AV17: 1.1 | AW17: 1.1 | AX17: 1
B18: TL75 0,60/0,55 | D18: =[1]ProduktbezogeneKosten!$F$29/10*I18 -> 3.199872 | E18: =[1]Materialkosten!$C$34*G18/1000+[1]Materialkosten!$C$33*8*(L18+X18)/10000 -> 20.1376 | F18: 75 | G18: 40 | H18: 46.89 | I18: 0.1066624 | J18: 0.6 | K18: 0.56 | L18: 6.42 | M18: 21000 | N18: 10.3 | O18: 27.3 | P18: 1.2e-05 | Q18: 350 | R18: 320 | S18: 320 | T18: 320 | U18: 320 | V18: 0.55 | W18: 0.51 | X18: 5.1 | Y18: 21000 | Z18: 0.275 | AA18: 1.2e-05 | AB18: 350 | AC18: 142 | AD18: 142 | AE18: 128 | AF18: 128 | AG18: 1.5 | AH18: 7 | AI18: 3.3 | AJ18: 0.12 | AK18: 0.06 | AL18: 0.13 | AM18: 1.1 | AN18: 1 | AO18: 1.3 | AP18: 1.1 | AQ18: 1.26 | AR18: 1.1 | AS18: 1.1 | AT18: 1 | AU18: 1.26 | AV18: 1.1 | AW18: 1.1 | AX18: 1
B19: TL75 0,63/0,55 | D19: =[1]ProduktbezogeneKosten!$F$29/10*I19 -> 3.235287 | E19: =[1]Materialkosten!$C$34*G19/1000+[1]Materialkosten!$C$33*8*(L19+X19)/10000 -> 20.2696 | F19: 75 | G19: 40 | H19: 46.875 | I19: 0.1078429 | J19: 0.63 | K19: 0.59 | L19: 6.57 | M19: 21000 | N19: 10.8 | O19: 27.3 | P19: 1.2e-05 | Q19: 350 | R19: 320 | S19: 320 | T19: 320 | U19: 320 | V19: 0.55 | W19: 0.51 | X19: 5.1 | Y19: 21000 | Z19: 0.275 | AA19: 1.2e-05 | AB19: 350 | AC19: 142 | AD19: 142 | AE19: 128 | AF19: 128 | AG19: 1.5 | AH19: 7 | AI19: 3.3 | AJ19: 0.12 | AK19: 0.06 | AL19: 0.13 | AM19: 1.1 | AN19: 1 | AO19: 1.3 | AP19: 1.1 | AQ19: 1.26 | AR19: 1.1 | AS19: 1.1 | AT19: 1 | AU19: 1.26 | AV19: 1.1 | AW19: 1.1 | AX19: 1
B20: TL75 0,75/0,55 | D20: =[1]ProduktbezogeneKosten!$F$29/10*I20 -> 3.5493 | E20: =[1]Materialkosten!$C$34*G20/1000+[1]Materialkosten!$C$33*8*(L20+X20)/10000 -> 21.44 | F20: 75 | G20: 40 | H20: 46.815 | I20: 0.11831 | J20: 0.75 | K20: 0.71 | L20: 7.9 | M20: 21000 | N20: 13 | O20: 27.3 | P20: 1.2e-05 | Q20: 350 | R20: 320 | S20: 320 | T20: 320 | U20: 320 | V20: 0.55 | W20: 0.51 | X20: 5.1 | Y20: 21000 | Z20: 0.275 | AA20: 1.2e-05 | AB20: 350 | AC20: 142 | AD20: 142 | AE20: 128 | AF20: 128 | AG20: 1.5 | AH20: 7 | AI20: 3.3 | AJ20: 0.12 | AK20: 0.06 | AL20: 0.13 | AM20: 1.1 | AN20: 1 | AO20: 1.3 | AP20: 1.1 | AQ20: 1.26 | AR20: 1.1 | AS20: 1.1 | AT20: 1 | AU20: 1.26 | AV20: 1.1 | AW20: 1.1 | AX20: 1
B21: TL75 0,50/0,60 | D21: =[1]ProduktbezogeneKosten!$F$29/10*I21 -> 3.013353 | E21: =[1]Materialkosten!$C$34*G21/1000+[1]Materialkosten!$C$33*8*(L21+X21)/10000 -> 19.4424 | F21: 75 | G21: 40 | H21: 46.89 | I21: 0.1004451 | J21: 0.5 | K21: 0.46 | L21: 5.13 | M21: 21000 | N21: 8.4 | O21: 27.3 | P21: 1.2e-05 | Q21: 350 | R21: 320 | S21: 320 | T21: 320 | U21: 320 | V21: 0.6 | W21: 0.56 | X21: 5.6 | Y21: 21000 | Z21: 0.3 | AA21: 1.2e-05 | AB21: 350 | AC21: 142 | AD21: 142 | AE21: 128 | AF21: 128 | AG21: 1.5 | AH21: 7 | AI21: 3.3 | AJ21: 0.12 | AK21: 0.06 | AL21: 0.13 | AM21: 1.1 | AN21: 1 | AO21: 1.3 | AP21: 1.1 | AQ21: 1.26 | AR21: 1.1 | AS21: 1.1 | AT21: 1 | AU21: 1.26 | AV21: 1.1 | AW21: 1.1 | AX21: 1
B22: TL75 0,55/0,60 | D22: =[1]ProduktbezogeneKosten!$F$29/10*I22 -> 3.143208 | E22: =[1]Materialkosten!$C$34*G22/1000+[1]Materialkosten!$C$33*8*(L22+X22)/10000 -> 19.9264 | F22: 75 | G22: 40 | H22: 46.865 | I22: 0.1047736 | J22: 0.55 | K22: 0.51 | L22: 5.68 | M22: 21000 | N22: 9.3 | O22: 27.3 | P22: 1.2e-05 | Q22: 350 | R22: 320 | S22: 320 | T22: 320 | U22: 320 | V22: 0.6 | W22: 0.56 | X22: 5.6 | Y22: 21000 | Z22: 0.3 | AA22: 1.2e-05 | AB22: 350 | AC22: 142 | AD22: 142 | AE22: 128 | AF22: 128 | AG22: 1.5 | AH22: 7 | AI22: 3.3 | AJ22: 0.12 | AK22: 0.06 | AL22: 0.13 | AM22: 1.1 | AN22: 1 | AO22: 1.3 | AP22: 1.1 | AQ22: 1.26 | AR22: 1.1 | AS22: 1.1 | AT22: 1 | AU22: 1.26 | AV22: 1.1 | AW22: 1.1 | AX22: 1
B23: TL75 0,60/0,60 | D23: =[1]ProduktbezogeneKosten!$F$29/10*I23 -> 3.317922 | E23: =[1]Materialkosten!$C$34*G23/1000+[1]Materialkosten!$C$33*8*(L23+X23)/10000 -> 20.5776 | F23: 75 | G23: 40 | H23: 46.84 | I23: 0.1105974 | J23: 0.6 | K23: 0.56 | L23: 6.42 | M23: 21000 | N23: 10.3 | O23: 27.3 | P23: 1.2e-05 | Q23: 350 | R23: 320 | S23: 320 | T23: 320 | U23: 320 | V23: 0.6 | W23: 0.56 | X23: 5.6 | Y23: 21000 | Z23: 0.3 | AA23: 1.2e-05 | AB23: 350 | AC23: 142 | AD23: 142 | AE23: 128 | AF23: 128 | AG23: 1.5 | AH23: 7 | AI23: 3.3 | AJ23: 0.12 | AK23: 0.06 | AL23: 0.13 | AM23: 1.1 | AN23: 1 | AO23: 1.3 | AP23: 1.1 | AQ23: 1.26 | AR23: 1.1 | AS23: 1.1 | AT23: 1 | AU23: 1.26 | AV23: 1.1 | AW23: 1.1 | AX23: 1
B24: TL75 0,63/0,60 | D24: =[1]ProduktbezogeneKosten!$F$29/10*I24 -> 3.353337 | E24: =[1]Materialkosten!$C$34*G24/1000+[1]Materialkosten!$C$33*8*(L24+X24)/10000 -> 20.7096 | F24: 75 | G24: 40 | H24: 46.825 | I24: 0.1117779 | J24: 0.63 | K24: 0.59 | L24: 6.57 | M24: 21000 | N24: 10.8 | O24: 27.3 | P24: 1.2e-05 | Q24: 350 | R24: 320 | S24: 320 | T24: 320 | U24: 320 | V24: 0.6 | W24: 0.56 | X24: 5.6 | Y24: 21000 | Z24: 0.3 | AA24: 1.2e-05 | AB24: 350 | AC24: 142 | AD24: 142 | AE24: 128 | AF24: 128 | AG24: 1.5 | AH24: 7 | AI24: 3.3 | AJ24: 0.12 | AK24: 0.06 | AL24: 0.13 | AM24: 1.1 | AN24: 1 | AO24: 1.3 | AP24: 1.1 | AQ24: 1.26 | AR24: 1.1 | AS24: 1.1 | AT24: 1 | AU24: 1.26 | AV24: 1.1 | AW24: 1.1 | AX24: 1
B25: TL75 0,75/0,60 | D25: =[1]ProduktbezogeneKosten!$F$29/10*I25 -> 3.66735 | E25: =[1]Materialkosten!$C$34*G25/1000+[1]Materialkosten!$C$33*8*(L25+X25)/10000 -> 21.88 | F25: 75 | G25: 40 | H25: 46.765 | I25: 0.122245 | J25: 0.75 | K25: 0.71 | L25: 7.9 | M25: 21000 | N25: 13 | O25: 27.3 | P25: 1.2e-05 | Q25: 350 | R25: 320 | S25: 320 | T25: 320 | U25: 320 | V25: 0.6 | W25: 0.56 | X25: 5.6 | Y25: 21000 | Z25: 0.3 | AA25: 1.2e-05 | AB25: 350 | AC25: 142 | AD25: 142 | AE25: 128 | AF25: 128 | AG25: 1.5 | AH25: 7 | AI25: 3.3 | AJ25: 0.12 | AK25: 0.06 | AL25: 0.13 | AM25: 1.1 | AN25: 1 | AO25: 1.3 | AP25: 1.1 | AQ25: 1.26 | AR25: 1.1 | AS25: 1.1 | AT25: 1 | AU25: 1.26 | AV25: 1.1 | AW25: 1.1 | AX25: 1
B26: TL95 0,50/0,40 | D26: =[1]ProduktbezogeneKosten!$F$29/10*I26 -> 2.781153 | E26: =[1]Materialkosten!$C$34*G26/1000+[1]Materialkosten!$C$33*8*(L26+X26)/10000 -> 22.6824 | F26: 95 | G26: 60 | H26: 67.09 | I26: 0.0927051 | J26: 0.5 | K26: 0.46 | L26: 5.13 | M26: 21000 | N26: 8.4 | O26: 27.3 | P26: 1.2e-05 | Q26: 350 | R26: 320 | S26: 320 | T26: 320 | U26: 320 | V26: 0.4 | W26: 0.36 | X26: 3.6 | Y26: 21000 | Z26: 0.2 | AA26: 1.2e-05 | AB26: 350 | AC26: 142 | AD26: 142 | AE26: 128 | AF26: 128 | AG26: 1.5 | AH26: 7 | AI26: 3.3 | AJ26: 0.12 | AK26: 0.06 | AL26: 0.13 | AM26: 1.1 | AN26: 1 | AO26: 1.3 | AP26: 1.1 | AQ26: 1.26 | AR26: 1.1 | AS26: 1.1 | AT26: 1 | AU26: 1.26 | AV26: 1.1 | AW26: 1.1 | AX26: 1
B27: TL95 0,55/0,40 | D27: =[1]ProduktbezogeneKosten!$F$29/10*I27 -> 2.911008 | E27: =[1]Materialkosten!$C$34*G27/1000+[1]Materialkosten!$C$33*8*(L27+X27)/10000 -> 23.1664 | F27: 95 | G27: 60 | H27: 67.065 | I27: 0.0970336 | J27: 0.55 | K27: 0.51 | L27: 5.68 | M27: 21000 | N27: 9.3 | O27: 27.3 | P27: 1.2e-05 | Q27: 350 | R27: 320 | S27: 320 | T27: 320 | U27: 320 | V27: 0.4 | W27: 0.36 | X27: 3.6 | Y27: 21000 | Z27: 0.2 | AA27: 1.2e-05 | AB27: 350 | AC27: 142 | AD27: 142 | AE27: 128 | AF27: 128 | AG27: 1.5 | AH27: 7 | AI27: 3.3 | AJ27: 0.12 | AK27: 0.06 | AL27: 0.13 | AM27: 1.1 | AN27: 1 | AO27: 1.3 | AP27: 1.1 | AQ27: 1.26 | AR27: 1.1 | AS27: 1.1 | AT27: 1 | AU27: 1.26 | AV27: 1.1 | AW27: 1.1 | AX27: 1
B28: TL95 0,60/0,40 | D28: =[1]ProduktbezogeneKosten!$F$29/10*I28 -> 3.085722 | E28: =[1]Materialkosten!$C$34*G28/1000+[1]Materialkosten!$C$33*8*(L28+X28)/10000 -> 23.8176 | F28: 95 | G28: 60 | H28: 67.04 | I28: 0.1028574 | J28: 0.6 | K28: 0.56 | L28: 6.42 | M28: 21000 | N28: 10.3 | O28: 27.3 | P28: 1.2e-05 | Q28: 350 | R28: 320 | S28: 320 | T28: 320 | U28: 320 | V28: 0.4 | W28: 0.36 | X28: 3.6 | Y28: 21000 | Z28: 0.2 | AA28: 1.2e-05 | AB28: 350 | AC28: 142 | AD28: 142 | AE28: 128 | AF28: 128 | AG28: 1.5 | AH28: 7 | AI28: 3.3 | AJ28: 0.12 | AK28: 0.06 | AL28: 0.13 | AM28: 1.1 | AN28: 1 | AO28: 1.3 | AP28: 1.1 | AQ28: 1.26 | AR28: 1.1 | AS28: 1.1 | AT28: 1 | AU28: 1.26 | AV28: 1.1 | AW28: 1.1 | AX28: 1
B29: TL95 0,63/0,40 | D29: =[1]ProduktbezogeneKosten!$F$29/10*I29 -> 3.121137 | E29: =[1]Materialkosten!$C$34*G29/1000+[1]Materialkosten!$C$33*8*(L29+X29)/10000 -> 23.9496 | F29: 95 | G29: 60 | H29: 67.025 | I29: 0.1040379 | J29: 0.63 | K29: 0.59 | L29: 6.57 | M29: 21000 | N29: 10.8 | O29: 27.3 | P29: 1.2e-05 | Q29: 350 | R29: 320 | S29: 320 | T29: 320 | U29: 320 | V29: 0.4 | W29: 0.36 | X29: 3.6 | Y29: 21000 | Z29: 0.2 | AA29: 1.2e-05 | AB29: 350 | AC29: 142 | AD29: 142 | AE29: 128 | AF29: 128 | AG29: 1.5 | AH29: 7 | AI29: 3.3 | AJ29: 0.12 | AK29: 0.06 | AL29: 0.13 | AM29: 1.1 | AN29: 1 | AO29: 1.3 | AP29: 1.1 | AQ29: 1.26 | AR29: 1.1 | AS29: 1.1 | AT29: 1 | AU29: 1.26 | AV29: 1.1 | AW29: 1.1 | AX29: 1
B30: TL95 0,75/0,40 | D30: =[1]ProduktbezogeneKosten!$F$29/10*I30 -> 3.43515 | E30: =[1]Materialkosten!$C$34*G30/1000+[1]Materialkosten!$C$33*8*(L30+X30)/10000 -> 25.12 | F30: 95 | G30: 60 | H30: 66.965 | I30: 0.114505 | J30: 0.75 | K30: 0.71 | L30: 7.9 | M30: 21000 | N30: 13 | O30: 27.3 | P30: 1.2e-05 | Q30: 350 | R30: 320 | S30: 320 | T30: 320 | U30: 320 | V30: 0.4 | W30: 0.36 | X30: 3.6 | Y30: 21000 | Z30: 0.2 | AA30: 1.2e-05 | AB30: 350 | AC30: 142 | AD30: 142 | AE30: 128 | AF30: 128 | AG30: 1.5 | AH30: 7 | AI30: 3.3 | AJ30: 0.12 | AK30: 0.06 | AL30: 0.13 | AM30: 1.1 | AN30: 1 | AO30: 1.3 | AP30: 1.1 | AQ30: 1.26 | AR30: 1.1 | AS30: 1.1 | AT30: 1 | AU30: 1.26 | AV30: 1.1 | AW30: 1.1 | AX30: 1
B31: TL95 0,50/0,50 | D31: =[1]ProduktbezogeneKosten!$F$29/10*I31 -> 3.017253 | E31: =[1]Materialkosten!$C$34*G31/1000+[1]Materialkosten!$C$33*8*(L31+X31)/10000 -> 23.5624 | F31: 95 | G31: 60 | H31: 66.99 | I31: 0.1005751 | J31: 0.5 | K31: 0.46 | L31: 5.13 | M31: 21000 | N31: 8.4 | O31: 27.3 | P31: 1.2e-05 | Q31: 350 | R31: 320 | S31: 320 | T31: 320 | U31: 320 | V31: 0.5 | W31: 0.46 | X31: 4.6 | Y31: 21000 | Z31: 0.25 | AA31: 1.2e-05 | AB31: 350 | AC31: 142 | AD31: 142 | AE31: 128 | AF31: 128 | AG31: 1.5 | AH31: 7 | AI31: 3.3 | AJ31: 0.12 | AK31: 0.06 | AL31: 0.13 | AM31: 1.1 | AN31: 1 | AO31: 1.3 | AP31: 1.1 | AQ31: 1.26 | AR31: 1.1 | AS31: 1.1 | AT31: 1 | AU31: 1.26 | AV31: 1.1 | AW31: 1.1 | AX31: 1
